Workbook

Sheet Summary
B2: Platte Lake Data | H2: Tributary Data | N2: Little Platte
B3: Parameter | C3: Start | D3: End | E3: Replicates | F3: Count | H3: Site | I3: Start | J3: End | K3: Replicates | L3: Count | N3: Parameter | O3: Start | P3: End | Q3: Replicates | R3: Count
B4: Total Phosphorus | C4: 1989 | D4: 2021 | E4: 3 | F4: =E4*13572/3 -> 13572 | H4: Stone TP | I4: 2003 | J4: 2021 | K4: 3 | L4: 1152 | N4: Total Phosphorus | O4: 2004 | P4: 2009 | Q4: 3 | R4: 690
B5: Dissolved Phosphorus | C5: 2004 | D5: 2009 | E5: 3 | F5: =3*152 -> 456 | H5: USGS TP | I5: 1989 | J5: 2021 | K5: 3 | L5: 2445 | N5: Dissolved Phosphorus | O5: 2004 | P5: 2009 | Q5: 3 | R5: 612
B6: Nitrate + Nitrite | C6: 2004 | D6: 2008 | E6: 3 | F6: =3*163 -> 489 | H6: Ind Hill TP | I6: 2015 | J6: 2021 | K6: 3 | L6: 396 | N6: Nitrate + Nitrite | O6: 2004 | P6: 2009 | Q6: 3 | R6: 234
B7: Chlorophyll | C7: 1990 | D7: 2011 | E7: 3 | F7: =3*554 -> 1662 | H7: NB Dead TP | I7: 1989 | J7: 2021 | K7: 3 | L7: 2271 | N7: Chlorophyll | O7: 2004 | P7: 2009 | Q7: 3 | R7: 942
B8: Secchi Depth | C8: 1980 | D8: 2021 | E8: 1 | F8: =1379 -> 1379 | H8: Pioneer TP | I8: 2016 | J8: 2021 | K8: 3 | L8: 351 | N8: Alkalinity | O8: 2004 | P8: 2009 | Q8: 3 | R8: 357
B9: Alkalinity | C9: 1982 | D9: 2011 | E9: 1 | F9: =2479 -> 2479 | H9: Haze TP | I9: 2010 | J9: 2021 | K9: 3 | L9: 507 | N9: Dissolved Alkalinity | O9: 2004 | P9: 2009 | Q9: 3 | R9: 126
B10: Dissolved Alkalinity | C10: 2005 | D10: 2006 | E10: 3 | F10: =3*90 -> 270 | H10: Carter TP | I10: 2017 | J10: 2021 | K10: 3 | L10: 564 | N10: Calcium | O10: 2005 | P10: 2009 | Q10: 3 | R10: 234
B11: Particulate Alkalinity | C11: 2011 | D11: 2011 | E11: 3 | F11: =3*34 -> 102 | H11: Vet's TP | I11: 2003 | J11: 2021 | K11: 3 | L11: 561 | N11: Total Dissolved Solids | O11: 2004 | P11: 2006 | Q11: 3 | R11: 198
B12: Calcium | C12: 1982 | D12: 2011 | E12: 3 | F12: =3*1218 -> 3654 | H12: NB Hooker TP | I12: 2007 | J12: 2009 | K12: 3 | L12: 366 | N12: Silica | O12: 2004 | P12: 2005 | Q12: 3 | R12: 180
B13: Dissolved Calcium | C13: 2011 | D13: 2011 | E13: 3 | F13: =3*34 -> 102 | H13: M-22 TP | I13: 1989 | J13: 2013 | K13: 3 | L13: 1176 | N13: Diatoms | O13: 2004 | P13: 2009 | Q13: 1 | R13: 1259
B14: Total Dissolved Solids | C14: 1982 | D14: 2011 | E14: 3 | F14: =3*1166 -> 3498 | H14: Old Res TP | I14: 2003 | J14: 2013 | K14: 3 | L14: 219 | N14: Green Algae | O14: 2004 | P14: 2009 | Q14: 1 | R14: 1329
B15: Silica | C15: 2004 | D15: 2005 | E15: 3 | F15: =3*144 -> 432 | H15: Collision TP | I15: 2004 | J15: 2013 | K15: 3 | L15: 252 | N15: Blue-Green Algae | O15: 2004 | P15: 2009 | Q15: 1 | R15: 794
B16: Temperature | C16: 1990 | D16: 2021 | E16: 1 | F16: 5184 | H16: Henry TP | I16: 2013 | J16: 2013 | K16: 3 | L16: 15 | N16: Golden Algae | O16: 2004 | P16: 2009 | Q16: 1 | R16: 1180
B17: Dissolved Oxygen | C17: 1990 | D17: 2021 | E17: 1 | F17: 5184 | H17: Dead NO3 | I17: 2007 | J17: 2009 | K17: 3 | L17: 126
B18: Oxidation-Reduction Potential | C18: 1990 | D18: 2021 | E18: 1 | F18: 5184 | H18: Hooker NO3 | I18: 2007 | J18: 2009 | K18: 3 | L18: 126 | Q18: Total | R18: =SUM(R4:R16) -> 8135
B19: Conductivity | C19: 1990 | D19: 2021 | E19: 1 | F19: 5184 | H19: Stone NO3 | I19: 2007 | J19: 2009 | K19: 3 | L19: 126
B20: pH | C20: 1990 | D20: 2021 | E20: 1 | F20: 5184 | H20: USGS NO3 | I20: 2007 | J20: 2009 | K20: 3 | L20: 129
B21: Diatoms | C21: 1995 | D21: 2012 | E21: 1 | F21: 7024 | H21: Rain TP | I21: 2003 | J21: 2013 | K21: 3 | L21: 141
B22: Green Algae | C22: 2003 | D22: 2012 | E22: 1 | F22: 2420 | H22: Rain NO3 | I22: 2004 | J22: 2007 | K22: 3 | L22: 51
B23: Blue-Green Algae | C23: 2003 | D23: 2012 | E23: 1 | F23: 1289 | H23: Stone TSS | I23: 2019 | J23: 2022 | K23: 1 | L23: 57
B24: Golden Algae | C24: 1995 | D24: 2012 | E24: 1 | F24: 4657
B25: Copepoda | C25: 1993 | D25: 2012 | E25: 1 | F25: 2270 | K25: Total | L25: =SUM(L4:L24) -> 11031
B26: Cladoceran | C26: 1993 | D26: 2012 | E26: 1 | F26: 1778
B27: Rodifera | C27: 1993 | D27: 2012 | E27: 1 | F27: 1750
B28: Periphyton | C28: 2003 | D28: 2003 | E28: 1 | F28: 8
B29: Light Penetration | C29: 2003 | D29: 2011 | E29: 1 | F29: 35
E31: Total | F31: =SUM(F4:F29) -> 75246

Sheet Lake Chemistry
I2: Depth Key | J2: ft
I3: 1 = Sur | J3: 6 = 60 | AI3: =AI5-AH5 -> 0 | AJ3: =AJ5-AI5 -> 82 | AK3: 454 | AL3: 1378 | AM3: 2364 | AN3: 2748 | AO3: 2282 | AP3: 1672 | AQ3: 1016 | AR3: 531 | AS3: 334 | AT3: 237 | AU3: 142 | AV3: 91 | AW3: 67 | AX3: 40 | AY3: 33 | AZ3: 30 | BA3: 14
I4: 2 = 7.5 | J4: 7 = 75
I5: 3 = 15 | J5: 8 = 90 | AI5: =COUNTIF($J40:$J15000,"<3") -> 0 | AJ5: =COUNTIF($J40:$J15000,"<4") -> 82 | AK5: =COUNTIF($J40:$J15000,"<5") -> 536 | AL5: =COUNTIF($J40:$J15000,"<6") -> 1914 | AM5: =COUNTIF($J40:$J15000,"<7") -> 4278 | AN5: =COUNTIF($J40:$J15000,"<8") -> 7026 | AO5: =COUNTIF($J40:$J15000,"<9") -> 9308 | AP5: =COUNTIF($J40:$J15000,"<10") -> 10980 | AQ5: =COUNTIF($J40:$J15000,"<11") -> 11996 | AR5: =COUNTIF($J40:$J15000,"<12") -> 12527 | AS5: =COUNTIF($J40:$J15000,"<13") -> 12861 | AT5: =COUNTIF($J40:$J15000,"<14") -> 13098 | AU5: =COUNTIF($J40:$J15000,"<15") -> 13240 | AV5: =COUNTIF($J40:$J15000,"<16") -> 13331 | AW5: =COUNTIF($J40:$J15000,"<17") -> 13398 | AX5: =COUNTIF($J40:$J15000,"<18") -> 13438 | AY5: =COUNTIF($J40:$J15000,"<19") -> 13471 | AZ5: =COUNTIF($J40:$J15000,"<20") -> 13501 | BA5: =COUNTIF($J40:$J15000,"<21") -> 13515
I6: 4 = 30 | J6: 9 = 0-30
I7: 5 = 45 | J7: 14 = 45-90 | AI7: =AI9-AH9 -> 25 | AJ7: =AJ9-AI9 -> 60 | AK7: =AK9-AJ9 -> 90 | AL7: =AL9-AK9 -> 196 | AM7: =AM9-AL9 -> 232 | AN7: =AN9-AM9 -> 244 | AO7: =AO9-AN9 -> 181 | AP7: =AP9-AO9 -> 147 | AQ7: =AQ9-AP9 -> 68 | AR7: =AR9-AQ9 -> 65 | AS7: =AS9-AR9 -> 37 | AT7: =AT9-AS9 -> 20 | AU7: =AU9-AT9 -> 9 | AV7: =AV9-AU9 -> 3 | AW7: =AW9-AV9 -> 2
AI9: =COUNTIF($Z40:$Z1500,"<4") -> 25 | AJ9: =COUNTIF($Z40:$Z1500,"<6") -> 85 | AK9: =COUNTIF($Z40:$Z1500,"<8") -> 175 | AL9: =COUNTIF($Z40:$Z1500,"<10") -> 371 | AM9: =COUNTIF($Z40:$Z1500,"<12") -> 603 | AN9: =COUNTIF($Z40:$Z1500,"<14") -> 847 | AO9: =COUNTIF($Z40:$Z1500,"<16") -> 1028 | AP9: =COUNTIF($Z40:$Z1500,"<18") -> 1175 | AQ9: =COUNTIF($Z40:$Z1500,"<20") -> 1243 | AR9: =COUNTIF($Z40:$Z1500,"<22") -> 1308 | AS9: =COUNTIF($Z40:$Z1500,"<24") -> 1345 | AT9: =COUNTIF($Z40:$Z1500,"<26") -> 1365 | AU9: =COUNTIF($Z40:$Z1500,"<28") -> 1374 | AV9: =COUNTIF($Z40:$Z1500,"<30") -> 1377 | AW9: =COUNTIF($Z40:$Z1500,"<32") -> 1379
AI11: =AI13-AH13 -> 13 | AJ11: =AJ13-AI13 -> 52 | AK11: =AK13-AJ13 -> 100 | AL11: =AL13-AK13 -> 105 | AM11: =AM13-AL13 -> 75 | AN11: =AN13-AM13 -> 57 | AO11: =AO13-AN13 -> 49 | AP11: =AP13-AO13 -> 29 | AQ11: =AQ13-AP13 -> 21 | AR11: =AR13-AQ13 -> 19 | AS11: =AS13-AR13 -> 11 | AT11: =AT13-AS13 -> 8 | AU11: =AU13-AT13 -> 8 | AV11: =AV13-AU13 -> 3 | AW11: =AW13-AV13 -> 2 | AX11: =AX13-AW13 -> 1
AI13: =COUNTIF($V40:$V15000,"<0.5") -> 13 | AJ13: =COUNTIF($V40:$V15000,"<1.0") -> 65 | AK13: =COUNTIF($V40:$V15000,"<1.5") -> 165 | AL13: =COUNTIF($V40:$V15000,"<2.0") -> 270 | AM13: =COUNTIF($V40:$V15000,"<2.5") -> 345 | AN13: =COUNTIF($V40:$V15000,"<3.0") -> 402 | AO13: =COUNTIF($V40:$V15000,"<3.5") -> 451 | AP13: =COUNTIF($V40:$V15000,"<4.0") -> 480 | AQ13: =COUNTIF($V40:$V15000,"<4.5") -> 501 | AR13: =COUNTIF($V40:$V15000,"<5.0") -> 520 | AS13: =COUNTIF($V40:$V15000,"<5.5") -> 531 | AT13: =COUNTIF($V40:$V15000,"<6.0") -> 539 | AU13: =COUNTIF($V40:$V15000,"<6.5") -> 547 | AV13: =COUNTIF($V40:$V15000,"<7.0") -> 550 | AW13: =COUNTIF($V40:$V15000,"<7.5") -> 552 | AX13: =COUNTIF($V40:$V15000,"<8.0") -> 553
E33: Std Dev | F33: =STDEV(F40:F685) -> 1.53274391 | U33: Std Dev | V33: =STDEV(V40:V594) -> 1.410687101 | Y33: Std Dev | Z33: =STDEV(Z40:Z1420) -> 4.835725346
E34: Count | F34: =COUNT(F40:F20023) -> 645 | I34: Count | J34: =COUNT(J40:J20023) -> 13572 | M34: Count | N34: =COUNT(N40:N20023) -> 152 | Q34: Count | R34: =COUNT(R40:R20023) -> 163 | U34: Count | V34: =COUNT(V40:V20023) -> 554 | Y34: Count | Z34: =COUNT(Z40:Z20023) -> 1379 | AC34: Count | AD34: =COUNT(AD40:AD20023) -> 2479 | AG34: Count | AH34: =COUNT(AH40:AH20023) -> 90 | AK34: Count | AL34: =COUNT(AL40:AL20023) -> 34 | AO34: Count | AP34: =COUNT(AP40:AP20023) -> 1218 | AS34: Count | AT34: =COUNT(AT40:AT20023) -> 34 | AW34: Count | AX34: =COUNT(AX40:AX20023) -> 1166 | BA34: Count | BB34: =COUNT(BB40:BB20023) -> 144
E35: Max | F35: =MAX(F40:F20023) -> 16.196292 | I35: Max | J35: =MAX(J40:J20023) -> 29.58 | M35: Max | N35: =MAX(N40:N20023) -> 14.02666667 | Q35: Max | R35: =MAX(R40:R20023) -> 472.7833333 | U35: Max | V35: =MAX(V40:V20023) -> 8.71 | Y35: Max | Z35: =MAX(Z40:Z20023) -> 31 | AC35: Max | AD35: =MAX(AD40:AD20023) -> 176 | AG35: Max | AH35: =MAX(AH40:AH20023) -> 166 | AK35: Max | AL35: =MAX(AL40:AL20023) -> 160 | AO35: Max | AP35: =MAX(AP40:AP20023) -> 80.16 | AS35: Max | AT35: =MAX(AT40:AT20023) -> 80.16 | AW35: Max | AX35: =MAX(AX40:AX20023) -> 475 | BA35: Max | BB35: =MAX(BB40:BB20023) -> 15654.85
E36: Min | F36: =MIN(F40:F20023) -> 4.221502857 | I36: Min | J36: =MIN(J40:J20023) -> 3 | M36: Min | N36: =MIN(N40:N20023) -> 2.206666667 | Q36: Min | R36: =MIN(R40:R20023) -> 0.8766666667 | U36: Min | V36: =MIN(V40:V20023) -> 0.12 | Y36: Min | Z36: =MIN(Z40:Z20023) -> 2 | AC36: Min | AD36: =MIN(AD40:AD20023) -> 64 | AG36: Min | AH36: =MIN(AH40:AH20023) -> 130 | AK36: Min | AL36: =MIN(AL40:AL20023) -> 86 | AO36: Min | AP36: =MIN(AP40:AP20023) -> 20.6 | AS36: Min | AT36: =MIN(AT40:AT20023) -> 22.44 | AW36: Min | AX36: =MIN(AX40:AX20023) -> 107 | BA36: Min | BB36: =MIN(BB40:BB20023) -> 368.75
B37: Range | E37: Avg | F37: =AVERAGE(F40:F20023) -> 7.845589088 | H37: Range | I37: Avg | J37: =AVERAGE(J40:J20023) -> 8.324620542 | L37: Range | M37: Avg | N37: =AVERAGE(N40:N20023) -> 5.954451754 | P37: Range | Q37: Avg | R37: =AVERAGE(R40:R20023) -> 143.8742843 | T37: Range | U37: Avg | V37: =AVERAGE(V40:V20023) -> 2.394461607 | X37: Range | Y37: Avg | Z37: =AVERAGE(Z40:Z20023) -> 12.73524293 | AB37: Range | AC37: Avg | AD37: =AVERAGE(AD40:AD20023) -> 146.9240823 | AF37: Range | AG37: Avg | AH37: =AVERAGE(AH40:AH20023) -> 152.8666667 | AJ37: Range | AK37: Avg | AL37: =AVERAGE(AL40:AL20023) -> 144.4705882 | AN37: Range | AO37: Avg | AP37: =AVERAGE(AP40:AP20023) -> 45.57623974 | AR37: Range | AS37: Avg | AT37: =AVERAGE(AT40:AT20023) -> 53.11794118 | AV37: Range | AW37: Avg | AX37: =AVERAGE(AX40:AX20023) -> 180.814211 | AZ37: Range | BA37: Avg | BB37: =AVERAGE(BB40:BB20023) -> 2917.293403
B38: =YEAR(MIN(B40:B10002)) -> 1990 | C38: TP | D38: TP | E38: TP | H38: =YEAR(MIN(H40:H10002)) -> 1989 | L38: =YEAR(MIN(L40:L10002)) -> 2004 | P38: =YEAR(MIN(P40:P10002)) -> 2004 | T38: =YEAR(MIN(T40:T10002)) -> 1990 | X38: =YEAR(MIN(X40:X10002)) -> 1980 | AB38: =YEAR(MIN(AB40:AB10002)) -> 1982 | AF38: =YEAR(MIN(AF40:AF10002)) -> 2005 | AJ38: =YEAR(MIN(AJ40:AJ10002)) -> 2011 | AN38: =YEAR(MIN(AN40:AN10002)) -> 1982 | AR38: =YEAR(MIN(AR40:AR10002)) -> 2011 | AV38: =YEAR(MIN(AV40:AV10002)) -> 1982 | AZ38: =YEAR(MIN(AZ40:AZ10002)) -> 2004
B39: =YEAR(MAX(B40:B20023)) -> 2020 | C39: Sur | D39: Mid | E39: Bot | F39: Vol Wt TP | H39: =YEAR(MAX(H40:H20023)) -> 2020 | I39: Depth | J39: TP | L39: =YEAR(MAX(L40:L10002)) -> 2009 | M39: Depth | N39: TDP | P39: =YEAR(MAX(P40:P10002)) -> 2008 | Q39: Depth | R39: NO3 | T39: =YEAR(MAX(T40:T10002)) -> 2011 | U39: Depth | V39: Chl | X39: =YEAR(MAX(X40:X10002)) -> 2020 | Y39: Depth | Z39: Secchi (ft) | AB39: =YEAR(MAX(AB40:AB10002)) -> 2011 | AC39: Depth | AD39: Alk | AF39: =YEAR(MAX(AF40:AF10002)) -> 2006 | AG39: Depth | AH39: Dis Alk | AJ39: =YEAR(MAX(AJ40:AJ10002)) -> 2011 | AK39: Depth | AL39: P Alk | AN39: =YEAR(MAX(AN40:AN10002)) -> 2011 | AO39: Depth | AP39: Ca | AR39: =YEAR(MAX(AR40:AR10002)) -> 2011 | AS39: Depth | AT39: Dis Ca | AV39: =YEAR(MAX(AV40:AV10002)) -> 2011 | AW39: Depth | AX39: TDS | AZ39: =YEAR(MAX(AZ40:AZ10002)) -> 2005 | BA39: Depth | BB39: Si
B40: 1990-01-03 | C40: 7.9 | D40: 8.936363636 | E40: 12.34 | F40: =0.121*C40+0.8544*D40+0.0246*E40 -> 8.894693091 | H40: 1989-11-08 | I40: 1 | J40: 11.4 | L40: 2004-08-11 | M40: 1 | N40: 4.083333333 | P40: 2004-07-14 | Q40: 1 | R40: 134.9066667 | T40: 1990-04-18 | U40: 1 | V40: 1.46 | X40: 1980-05-10 | Y40: 1 | Z40: 8 | AB40: 1982-06-17 | AC40: 1 | AD40: 143 | AF40: 2005-04-28 | AG40: 14 | AH40: 156 | AJ40: 2011-04-21 | AK40: 9 | AL40: 154 | AN40: 1982-06-17 | AO40: 1 | AP40: 43 | AR40: 2011-04-21 | AS40: 9 | AT40: 52.91 | AV40: 1982-06-17 | AW40: 1 | AX40: 168 | AZ40: 2004-07-28 | BA40: 9 | BB40: 2970.49
B41: 1990-03-06 | C41: 13.43333333 | D41: 10.74166667 | E41: 11.98 | F41: =0.121*C41+0.8544*D41+0.0246*E41 -> 11.09782133 | H41: 1989-11-08 | I41: 1 | J41: 13.7 | L41: 2004-08-25 | M41: 1 | N41: 3.653333333 | P41: 2004-07-28 | Q41: 1 | R41: 61.64333333 | T41: 1990-05-16 | U41: 1 | V41: 2.19 | X41: 1980-05-17 | Y41: 1 | Z41: 8.5 | AB41: 1992-09-09 | AC41: 1 | AD41: 64 | AF41: 2005-04-28 | AG41: 9 | AH41: 154 | AJ41: 2011-04-21 | AK41: 14 | AL41: 154 | AN41: 1992-09-09 | AO41: 1 | AP41: 38.5 | AR41: 2011-04-21 | AS41: 14 | AT41: 51.3 | AV41: 1996-03-19 | AW41: 1 | AX41: 176.8 | AZ41: 2004-07-28 | BA41: 9 | BB41: 2976.75
B42: 1990-04-18 | C42: 10.43333333 | D42: 10.13333333 | E42: 9.716666667 | F42: 10.15938333 | H42: 1989-11-08 | I42: 1 | J42: 16.1 | L42: 2004-09-08 | M42: 1 | N42: 3.213333333 | P42: 2004-09-08 | Q42: 1 | R42: 29.15666667 | T42: 1990-05-30 | U42: 1 | V42: 1.245 | X42: 1980-05-31 | Y42: 1 | Z42: 3.5 | AB42: 1992-09-09 | AC42: 3 | AD42: 126 | AF42: 2005-04-28 | AG42: 14 | AH42: 158 | AJ42: 2011-05-04 | AK42: 9 | AL42: 152 | AN42: 1992-09-09 | AO42: 1 | AP42: 38 | AR42: 2011-05-04 | AS42: 14 | AT42: 68.94 | AV42: 1996-03-19 | AW42: 2 | AX42: 162.1 | AZ42: 2004-07-28 | BA42: 9 | BB42: 3086.29
B43: 1990-05-16 | C43: 7.266666667 | D43: 6.708333333 | E43: 6 | F43: 6.758466667 | H43: 1989-11-08 | I43: 3 | J43: 12.7 | L43: 2004-09-08 | M43: 8 | N43: 4.546666667 | P43: 2004-09-22 | Q43: 1 | R43: 59.04 | T43: 1990-06-14 | U43: 1 | V43: 4.93 | X43: 1980-06-07 | Y43: 1 | Z43: 3.5 | AB43: 1992-09-09 | AC43: 4 | AD43: 130 | AF43: 2005-04-28 | AG43: 14 | AH43: 158 | AJ43: 2011-05-04 | AK43: 14 | AL43: 154 | AN43: 1992-09-09 | AO43: 1 | AP43: 38.3 | AR43: 2011-05-04 | AS43: 9 | AT43: 66.53 | AV43: 1996-03-19 | AW43: 3 | AX43: 188.4 | AZ43: 2004-08-11 | BA43: 9 | BB43: 3084.92
B44: 1990-05-30 | C44: 6.933333333 | D44: 10.01666667 | E44: 16.83333333 | F44: 9.811273333 | H44: 1989-11-08 | I44: 3 | J44: 14 | L44: 2004-09-22 | M44: 1 | N44: 4.956666667 | P44: 2004-09-22 | Q44: 8 | R44: 39.16 | T44: 1990-06-27 | U44: 1 | V44: 1.354 | X44: 1980-06-14 | Y44: 1 | Z44: 3.75 | AB44: 1992-09-09 | AC44: 5 | AD44: 142 | AF44: 2005-04-28 | AG44: 9 | AH44: 152 | AJ44: 2011-05-17 | AK44: 9 | AL44: 140 | AN44: 1996-03-19 | AO44: 1 | AP44: 40.6 | AR44: 2011-05-17 | AS44: 9 | AT44: 53.71 | AV44: 1996-03-19 | AW44: 4 | AX44: 188 | AZ44: 2004-08-11 | BA44: 9 | BB44: 3279.8
B45: 1990-06-14 | C45: 10.4 | D45: 10.68333333 | E45: 14.48333333 | F45: 10.74253 | H45: 1989-11-08 | I45: 3 | J45: 15.6 | L45: 2004-10-06 | M45: 1 | N45: 7.463333333 | P45: 2004-10-06 | Q45: 1 | R45: 39.66833333 | T45: 1990-07-11 | U45: 1 | V45: 1.725 | X45: 1980-06-21 | Y45: 1 | Z45: 3.75 | AB45: 1992-09-09 | AC45: 6 | AD45: 146 | AF45: 2005-04-28 | AG45: 9 | AH45: 156 | AJ45: 2011-05-17 | AK45: 14 | AL45: 152 | AN45: 1996-03-19 | AO45: 2 | AP45: 43.3 | AR45: 2011-05-17 | AS45: 14 | AT45: 61.72 | AV45: 1996-03-19 | AW45: 5 | AX45: 189 | AZ45: 2004-08-11 | BA45: 9 | BB45: 3301.49
B46: 1990-06-27 | C46: 8.733333333 | D46: 10.36666667 | E46: 14.93333333 | F46: 10.28137333 | H46: 1989-11-08 | I46: 4 | J46: 13.5 | L46: 2004-10-20 | M46: 1 | N46: 3.31 | P46: 2004-10-20 | Q46: 1 | R46: 70.94666667 | T46: 1990-07-25 | U46: 1 | V46: 2.2832 | X46: 1980-06-28 | Y46: 1 | Z46: 5.75 | AB46: 1992-09-09 | AC46: 7 | AD46: 152 | AF46: 2005-05-11 | AG46: 14 | AH46: 152 | AJ46: 2011-06-02 | AK46: 9 | AL46: 150 | AN46: 1996-03-19 | AO46: 3 | AP46: 43.3 | AR46: 2011-06-02 | AS46: 9 | AT46: 57.72 | AV46: 1996-03-19 | AW46: 6 | AX46: 195 | AZ46: 2004-08-25 | BA46: 9 | BB46: 2496.29
B47: 1990-07-11 | C47: 8.3 | D47: 9.683333333 | E47: 12.56666667 | F47: 9.58688 | H47: 1989-11-08 | I47: 4 | J47: 13.9 | L47: 2004-10-20 | M47: 8 | N47: 4.426666667 | P47: 2004-10-20 | Q47: 8 | R47: 76.01333333 | T47: 1990-08-08 | U47: 1 | V47: 1.23 | X47: 1980-07-05 | Y47: 1 | Z47: 5.5 | AB47: 1992-09-09 | AC47: 8 | AD47: 160 | AF47: 2005-05-11 | AG47: 14 | AH47: 156 | AJ47: 2011-06-02 | AK47: 14 | AL47: 148 | AN47: 1996-03-19 | AO47: 4 | AP47: 43.7 | AR47: 2011-06-02 | AS47: 14 | AT47: 58.52 | AV47: 1996-03-19 | AW47: 7 | AX47: 192.6 | AZ47: 2004-08-25 | BA47: 9 | BB47: 2701.24
B48: 1990-07-25 | C48: 6.833333333 | D48: 7.991666667 | E48: 13.18333333 | F48: 7.979223333 | H48: 1989-11-08 | I48: 4 | J48: 15 | L48: 2004-11-03 | M48: 1 | N48: 4.656666667 | P48: 2004-11-03 | Q48: 1 | R48: 85.21666667 | T48: 1990-08-24 | U48: 1 | V48: 2.065 | X48: 1980-07-12 | Y48: 1 | Z48: 5 | AB48: 1992-09-15 | AC48: 1 | AD48: 132 | AF48: 2005-05-11 | AG48: 9 | AH48: 152 | AJ48: 2011-06-14 | AK48: 9 | AL48: 150 | AN48: 1996-03-19 | AO48: 5 | AP48: 43.9 | AR48: 2011-06-14 | AS48: 9 | AT48: 55.31 | AV48: 1996-03-19 | AW48: 8 | AX48: 192.9 | AZ48: 2004-08-25 | BA48: 9 | BB48: 2739.87
B49: 1990-08-08 | C49: 6.566666667 | D49: 6.1 | E49: 11.16666667 | F49: 6.281106667 | H49: 1989-11-08 | I49: 5 | J49: 14.6 | L49: 2004-11-03 | M49: 8 | N49: 4.383333333 | P49: 2004-11-03 | Q49: 8 | R49: 88.76 | T49: 1990-09-05 | U49: 1 | V49: 4.024 | X49: 1980-07-19 | Y49: 1 | Z49: 5.5 | AB49: 1992-09-15 | AC49: 4 | AD49: 136 | AF49: 2005-05-11 | AG49: 9 | AH49: 158 | AJ49: 2011-06-14 | AK49: 14 | AL49: 156 | AN49: 1996-03-19 | AO49: 6 | AP49: 45.2 | AR49: 2011-06-14 | AS49: 14 | AT49: 55.31 | AV49: 1996-04-16 | AW49: 1 | AX49: 186.7 | AZ49: 2004-09-08 | BA49: 9 | BB49: 1039.29
B50: 1990-08-24 | C50: 5.866666667 | D50: 6.591666667 | E50: 13.35 | F50: 6.670196667 | H50: 1989-11-08 | I50: 5 | J50: 15.8 | L50: 2004-11-17 | M50: 1 | N50: 2.64 | P50: 2004-11-17 | Q50: 1 | R50: 111.8133333 | T50: 1990-09-12 | U50: 1 | V50: 1.516 | X50: 1980-07-26 | Y50: 1 | Z50: 6.75 | AB50: 1992-09-15 | AC50: 5 | AD50: 138 | AF50: 2005-05-11 | AG50: 14 | AH50: 154 | AJ50: 2011-06-29 | AK50: 9 | AL50: 148 | AN50: 1996-03-19 | AO50: 7 | AP50: 46.2 | AR50: 2011-06-29 | AS50: 9 | AT50: 56.11 | AV50: 1996-04-16 | AW50: 2 | AX50: 184.2 | AZ50: 2004-09-08 | BA50: 9 | BB50: 1106.53
B51: 1990-09-05 | C51: 8.5 | D51: 6.908333333 | E51: 10.55 | F51: 7.19051 | H51: 1989-11-08 | I51: 5 | J51: 16.4 | L51: 2004-11-17 | M51: 8 | N51: 2.206666667 | P51: 2004-11-17 | Q51: 8 | R51: 118.6266667 | T51: 1990-10-05 | U51: 1 | V51: 2.55 | X51: 1980-08-02 | Y51: 1 | Z51: 7 | AB51: 1992-09-15 | AC51: 6 | AD51: 150 | AF51: 2005-05-11 | AG51: 9 | AH51: 156 | AJ51: 2011-06-29 | AK51: 14 | AL51: 152 | AN51: 1996-03-19 | AO51: 8 | AP51: 46.9 | AR51: 2011-06-29 | AS51: 14 | AT51: 64.93 | AV51: 1996-04-16 | AW51: 3 | AX51: 182.1 | AZ51: 2004-09-08 | BA51: 9 | BB51: 1149.72
B52: 1990-09-12 | C52: 6.6 | D52: 8.116666667 | E52: 11.18333333 | F52: 8.00859 | H52: 1989-11-08 | I52: 6 | J52: 12.5 | L52: 2004-12-01 | M52: 1 | N52: 4.573333333 | P52: 2004-12-01 | Q52: 1 | R52: 133.2633333 | T52: 1990-10-17 | U52: 1 | V52: 2.475 | X52: 1980-08-09 | Y52: 1 | Z52: 10 | AB52: 1992-09-15 | AC52: 7 | AD52: 150 | AF52: 2005-05-25 | AG52: 14 | AH52: 152 | AJ52: 2011-07-13 | AK52: 9 | AL52: 144 | AN52: 1996-04-16 | AO52: 1 | AP52: 43.6 | AR52: 2011-07-13 | AS52: 9 | AT52: 51.3 | AV52: 1996-04-16 | AW52: 4 | AX52: 183.5 | AZ52: 2004-09-08 | BA52: 9 | BB52: 2498.69
B53: 1990-09-19 | C53: 8.733333333 | D53: 6.716666667 | E53: 8.983333333 | F53: 7.016443333 | H53: 1989-11-08 | I53: 6 | J53: 12.6 | L53: 2004-12-01 | M53: 8 | N53: 4.036666667 | P53: 2004-12-01 | Q53: 8 | R53: 133.4133333 | T53: 1990-10-31 | U53: 1 | V53: 4.549 | X53: 1980-08-16 | Y53: 1 | Z53: 9 | AB53: 1992-09-15 | AC53: 8 | AD53: 152 | AF53: 2005-05-25 | AG53: 9 | AH53: 154 | AJ53: 2011-07-13 | AK53: 14 | AL53: 154 | AN53: 1996-04-16 | AO53: 2 | AP53: 44.1 | AR53: 2011-07-13 | AS53: 14 | AT53: 53.71 | AV53: 1996-04-16 | AW53: 5 | AX53: 176.9 | AZ53: 2004-09-08 | BA53: 9 | BB53: 2529.35
B54: 1990-10-05 | C54: 7.9 | D54: 7.990909091 | E54: 8.416666667 | F54: 7.990382727 | H54: 1989-11-08 | I54: 6 | J54: 12.9 | L54: 2005-01-19 | M54: 1 | N54: 3.213333333 | P54: 2005-01-19 | Q54: 1 | R54: 176.5466667 | T54: 1990-11-16 | U54: 1 | V54: 4.36 | X54: 1980-08-23 | Y54: 1 | Z54: 8.5 | AB54: 1992-09-22 | AC54: 4 | AD54: 134 | AF54: 2005-05-25 | AG54: 14 | AH54: 152 | AJ54: 2011-07-29 | AK54: 14 | AL54: 160 | AN54: 1996-04-16 | AO54: 3 | AP54: 44.2 | AR54: 2011-07-29 | AS54: 14 | AT54: 56.91 | AV54: 1996-04-16 | AW54: 6 | AX54: 179.5 | AZ54: 2004-09-08 | BA54: 9 | BB54: 2647.72
B55: 1990-10-17 | C55: 9.733333333 | D55: 9.466666667 | E55: 9.9 | F55: 9.509593333 | H55: 1989-11-08 | I55: 7 | J55: 13.8 | L55: 2005-01-19 | M55: 8 | N55: 4.936666667 | P55: 2005-01-19 | Q55: 8 | R55: 232.1966667 | T55: 1990-12-05 | U55: 1 | V55: 5.2493 | X55: 1980-08-30 | Y55: 1 | Z55: 7.5 | AB55: 1992-09-22 | AC55: 1 | AD55: 136 | AF55: 2005-05-25 | AG55: 9 | AH55: 154 | AJ55: 2011-07-29 | AK55: 9 | AL55: 150 | AN55: 1996-04-16 | AO55: 4 | AP55: 44.5 | AR55: 2011-07-29 | AS55: 9 | AT55: 48.1 | AV55: 1996-04-16 | AW55: 7 | AX55: 180.9 | AZ55: 2004-09-22 | BA55: 14 | BB55: 942.97
B56: 1990-10-31 | C56: 10.13333333 | D56: 9.758333333 | E56: 10.33333333 | F56: 9.817853333 | H56: 1989-11-08 | I56: 7 | J56: 14.1 | L56: 2005-02-15 | M56: 1 | N56: 6.27 | P56: 2005-02-15 | Q56: 1 | R56: 200.1333333 | T56: 1991-01-09 | U56: 1 | V56: 3.3232 | X56: 1980-09-06 | Y56: 1 | Z56: 7.75 | AB56: 1992-09-22 | AC56: 3 | AD56: 138 | AF56: 2005-05-25 | AG56: 14 | AH56: 154 | AJ56: 2011-08-10 | AK56: 9 | AL56: 140 | AN56: 1996-04-16 | AO56: 5 | AP56: 43.5 | AR56: 2011-08-10 | AS56: 9 | AT56: 52.1 | AV56: 1996-04-16 | AW56: 8 | AX56: 180.4 | AZ56: 2004-09-22 | BA56: 14 | BB56: 946.95
B57: 1990-11-16 | C57: 10.36666667 | D57: 9.866666667 | E57: 10.58333333 | F57: 9.944796667 | H57: 1989-11-08 | I57: 7 | J57: 14.8 | L57: 2005-02-15 | M57: 8 | N57: 8.916666667 | P57: 2005-02-15 | Q57: 8 | R57: 222.57 | T57: 1991-02-01 | U57: 1 | V57: 3.48 | X57: 1981-05-10 | Y57: 1 | Z57: 7.5 | AB57: 1992-09-22 | AC57: 5 | AD57: 140 | AF57: 2005-05-25 | AG57: 9 | AH57: 154 | AJ57: 2011-08-10 | AK57: 14 | AL57: 154 | AN57: 1996-04-16 | AO57: 6 | AP57: 44 | AR57: 2011-08-10 | AS57: 14 | AT57: 66.53 | AV57: 1996-04-23 | AW57: 1 | AX57: 178.5 | AZ57: 2004-09-22 | BA57: 14 | BB57: 968.67
B58: 1990-12-05 | C58: 9.3 | D58: 10.19166667 | E58: 9.75 | F58: 10.07291 | H58: 1989-11-08 | I58: 8 | J58: 12 | L58: 2005-03-02 | M58: 1 | N58: 4.986666667 | P58: 2005-03-02 | Q58: 1 | R58: 213.12 | T58: 1991-02-19 | U58: 1 | V58: 1.411 | X58: 1981-05-17 | Y58: 1 | Z58: 7.5 | AB58: 1992-09-22 | AC58: 6 | AD58: 150 | AF58: 2005-06-08 | AG58: 9 | AH58: 152 | AJ58: 2011-08-24 | AK58: 9 | AL58: 134 | AN58: 1996-04-16 | AO58: 7 | AP58: 43.8 | AR58: 2011-08-24 | AS58: 9 | AT58: 52.1 | AV58: 1996-04-23 | AW58: 2 | AX58: 190.7 | AZ58: 2004-09-22 | BA58: 9 | BB58: 2194.62
B59: 1991-01-09 | C59: 7.266666667 | D59: 7.45 | E59: 9.166666667 | F59: 7.470046667 | H59: 1989-11-08 | I59: 8 | J59: 14.9 | L59: 2005-03-02 | M59: 8 | N59: 7 | P59: 2005-03-02 | Q59: 8 | R59: 288.26 | T59: 1991-03-05 | U59: 1 | V59: 3.768 | X59: 1981-05-24 | Y59: 1 | Z59: 5.5 | AB59: 1992-09-22 | AC59: 7 | AD59: 152 | AF59: 2005-06-08 | AG59: 9 | AH59: 158 | AJ59: 2011-08-24 | AK59: 14 | AL59: 156 | AN59: 1996-04-16 | AO59: 8 | AP59: 44.3 | AR59: 2011-08-24 | AS59: 14 | AT59: 55.31 | AV59: 1996-04-23 | AW59: 3 | AX59: 177.8 | AZ59: 2004-09-22 | BA59: 9 | BB59: 2766.17
B60: 1991-02-01 | C60: 6.966666667 | D60: 8.358333333 | E60: 8.4 | F60: 8.190966667 | H60: 1989-11-08 | I60: 8 | J60: 16.1 | L60: 2005-04-14 | M60: 1 | N60: 3.466666667 | P60: 2005-04-14 | Q60: 1 | R60: 343.8 | T60: 1991-03-19 | U60: 1 | V60: 1.755 | X60: 1981-05-31 | Y60: 1 | Z60: 4 | AB60: 1992-09-22 | AC60: 8 | AD60: 152 | AF60: 2005-06-08 | AG60: 9 | AH60: 154 | AJ60: 2011-09-07 | AK60: 9 | AL60: 136 | AN60: 1996-04-23 | AO60: 1 | AP60: 43.5 | AR60: 2011-09-07 | AS60: 14 | AT60: 50.5 | AV60: 1996-04-23 | AW60: 4 | AX60: 191.8 | AZ60: 2004-09-22 | BA60: 9 | BB60: 2775.55
B61: 1991-02-19 | C61: 24.3 | D61: 7.425 | E61: 7.583333333 | F61: 9.47077 | H61: 1990-01-03 | I61: 1 | J61: 7.4 | L61: 2005-04-14 | M61: 8 | N61: 4.18 | P61: 2005-04-14 | Q61: 8 | R61: 472.7833333 | T61: 1991-04-09 | U61: 1 | V61: 2.318 | X61: 1981-06-07 | Y61: 1 | Z61: 3 | AB61: 1992-09-29 | AC61: 1 | AD61: 136 | AF61: 2005-06-08 | AG61: 14 | AH61: 158 | AJ61: 2011-09-07 | AK61: 14 | AL61: 158 | AN61: 1996-04-23 | AO61: 2 | AP61: 44.9 | AR61: 2011-09-07 | AS61: 9 | AT61: 44.09 | AV61: 1996-04-23 | AW61: 5 | AX61: 180.4 | AZ61: 2004-10-06 | BA61: 9 | BB61: 1007.21
B62: 1991-03-05 | C62: 8.5 | D62: 8.375 | E62: 10.15 | F62: 8.43379 | H62: 1990-01-03 | I62: 1 | J62: 8.4 | L62: 2005-04-28 | M62: 1 | N62: 6.14 | P62: 2005-04-28 | Q62: 1 | R62: 262.0666667 | T62: 1991-04-16 | U62: 1 | V62: 0.818 | X62: 1981-06-14 | Y62: 1 | Z62: 3 | AB62: 1992-09-29 | AC62: 3 | AD62: 136 | AF62: 2005-06-08 | AG62: 14 | AH62: 154 | AJ62: 2011-09-21 | AK62: 14 | AL62: 150 | AN62: 1996-04-23 | AO62: 3 | AP62: 44.9 | AR62: 2011-09-21 | AS62: 14 | AT62: 48.1 | AV62: 1996-04-23 | AW62: 6 | AX62: 178.5 | AZ62: 2004-10-06 | BA62: 9 | BB62: 1011.81
B63: 1991-03-19 | C63: 9.15 | D63: 9 | E63: 8.65 | F63: 9.00954 | H63: 1990-01-03 | I63: 3 | J63: 10.5 | L63: 2005-04-28 | M63: 8 | N63: 6.953333333 | P63: 2005-04-28 | Q63: 8 | R63: 261.35 | T63: 1991-05-03 | U63: 1 | V63: 1.614 | X63: 1981-06-21 | Y63: 1 | Z63: 3.5 | AB63: 1992-09-29 | AC63: 4 | AD63: 138 | AF63: 2005-06-08 | AG63: 14 | AH63: 154 | AJ63: 2011-09-21 | AK63: 9 | AL63: 112 | AN63: 1996-04-23 | AO63: 4 | AP63: 44 | AR63: 2011-09-21 | AS63: 9 | AT63: 41.68 | AV63: 1996-04-23 | AW63: 7 | AX63: 177.3 | AZ63: 2004-10-06 | BA63: 9 | BB63: 1030.56
B64: 1991-04-09 | C64: 9.433333333 | D64: 9.708333333 | E64: 9.45 | F64: 9.668703333 | H64: 1990-01-03 | I64: 3 | J64: 10.8 | L64: 2005-05-11 | M64: 1 | N64: 4.203333333 | P64: 2005-05-11 | Q64: 1 | R64: 249.7 | T64: 1991-05-14 | U64: 1 | V64: 2.092 | X64: 1981-06-28 | Y64: 1 | Z64: 3.5 | AB64: 1992-09-29 | AC64: 5 | AD64: 138 | AF64: 2005-06-22 | AG64: 14 | AH64: 156 | AJ64: 2011-10-05 | AK64: 9 | AL64: 142 | AN64: 1996-04-23 | AO64: 5 | AP64: 45.3 | AR64: 2011-10-05 | AS64: 9 | AT64: 52.1 | AV64: 1996-04-23 | AW64: 8 | AX64: 177.7 | AZ64: 2004-10-06 | BA64: 9 | BB64: 1103.43
B65: 1991-04-16 | C65: 8.6 | D65: 8.458333333 | E65: 9.266666667 | F65: 8.49536 | H65: 1990-01-03 | I65: 4 | J65: 7.1 | L65: 2005-05-11 | M65: 8 | N65: 4.833333333 | P65: 2005-05-11 | Q65: 8 | R65: 262.5333333 | T65: 1991-06-11 | U65: 1 | V65: 3.878 | X65: 1981-07-05 | Y65: 1 | Z65: 3 | AB65: 1992-09-29 | AC65: 6 | AD65: 142 | AF65: 2005-06-22 | AG65: 14 | AH65: 158 | AJ65: 2011-10-05 | AK65: 14 | AL65: 150 | AN65: 1996-04-23 | AO65: 6 | AP65: 43.4 | AR65: 2011-10-05 | AS65: 14 | AT65: 63.33 | AV65: 1996-04-30 | AW65: 1 | AX65: 173.5 | AZ65: 2004-10-06 | BA65: 9 | BB65: 1170.93
B66: 1991-05-03 | C66: 7.9 | D66: 8.991666667 | E66: 10.46666667 | F66: 8.89586 | H66: 1990-01-03 | I66: 4 | J66: 7.7 | L66: 2005-05-25 | M66: 1 | N66: 6.336666667 | P66: 2005-05-25 | Q66: 1 | R66: 214.4 | T66: 1991-06-25 | U66: 1 | V66: 1.045 | X66: 1981-07-12 | Y66: 1 | Z66: 4 | AB66: 1992-09-29 | AC66: 7 | AD66: 150 | AF66: 2005-06-22 | AG66: 9 | AH66: 148 | AJ66: 2011-10-26 | AK66: 9 | AL66: 146 | AN66: 1996-04-23 | AO66: 7 | AP66: 42.6 | AR66: 2011-10-26 | AS66: 9 | AT66: 48.9 | AV66: 1996-04-30 | AW66: 2 | AX66: 175.6 | AZ66: 2004-10-06 | BA66: 9 | BB66: 1192.16
B67: 1991-05-14 | C67: 6.133333333 | D67: 9.558333333 | E67: 16.83333333 | F67: 9.322873333 | H67: 1990-01-03 | I67: 4 | J67: 8.5 | L67: 2005-05-25 | M67: 8 | N67: 4.553333333 | P67: 2005-05-25 | Q67: 8 | R67: 264.7666667 | T67: 1991-07-09 | U67: 1 | V67: 0.9539 | X67: 1981-07-19 | Y67: 1 | Z67: 4.5 | AB67: 1992-09-29 | AC67: 8 | AD67: 158 | AF67: 2005-06-22 | AG67: 9 | AH67: 148 | AJ67: 2011-10-26 | AK67: 14 | AL67: 144 | AN67: 1996-04-23 | AO67: 8 | AP67: 43.4 | AR67: 2011-10-26 | AS67: 14 | AT67: 48.1 | AV67: 1996-04-30 | AW67: 3 | AX67: 172.6 | AZ67: 2004-10-20 | BA67: 9 | BB67: 1116.07
B68: 1991-05-28 | C68: 4.7 | D68: 8.458333333 | E68: 15.41666667 | F68: 8.17475 | H68: 1990-01-03 | I68: 5 | J68: 7.1 | L68: 2005-06-08 | M68: 1 | N68: 3.65 | P68: 2005-06-08 | Q68: 1 | R68: 159.4 | T68: 1991-07-23 | U68: 1 | V68: 1.47 | X68: 1981-07-26 | Y68: 1 | Z68: 5 | AB68: 1992-10-06 | AC68: 3 | AD68: 136 | AF68: 2005-06-22 | AG68: 14 | AH68: 156 | AJ68: 2011-11-08 | AK68: 14 | AL68: 144 | AN68: 1996-04-30 | AO68: 1 | AP68: 43.7 | AR68: 2011-11-08 | AS68: 14 | AT68: 36.07 | AV68: 1996-04-30 | AW68: 4 | AX68: 173.2 | AZ68: 2004-10-20 | BA68: 9 | BB68: 1162.97
B69: 1991-06-11 | C69: 6.133333333 | D69: 8.308333333 | E69: 13.15 | F69: 8.164263333 | H69: 1990-01-03 | I69: 5 | J69: 8.2 | L69: 2005-06-08 | M69: 8 | N69: 4.36 | P69: 2005-06-08 | Q69: 8 | R69: 294.7333333 | T69: 1991-08-06 | U69: 1 | V69: 2.121 | X69: 1981-08-02 | Y69: 1 | Z69: 5 | AB69: 1992-10-06 | AC69: 6 | AD69: 138 | AF69: 2005-06-22 | AG69: 9 | AH69: 148 | AJ69: 2011-11-08 | AK69: 9 | AL69: 142 | AN69: 1996-04-30 | AO69: 2 | AP69: 46.8 | AR69: 2011-11-08 | AS69: 9 | AT69: 45.69 | AV69: 1996-04-30 | AW69: 5 | AX69: 173 | AZ69: 2004-10-20 | BA69: 14 | BB69: 1164.31
B70: 1991-06-25 | C70: 5.966666667 | D70: 8.233333333 | E70: 14.55 | F70: 8.114456667 | H70: 1990-01-03 | I70: 5 | J70: 10.6 | L70: 2005-06-22 | M70: 1 | N70: 3.79 | P70: 2005-06-22 | Q70: 1 | R70: 114.4 | T70: 1991-08-20 | U70: 1 | V70: 2.258 | X70: 1981-08-09 | Y70: 1 | Z70: 5.5 | AB70: 1992-10-06 | AC70: 1 | AD70: 142 | AF70: 2005-07-13 | AG70: 14 | AH70: 156 | AJ70: 2011-11-22 | AK70: 14 | AL70: 150 | AN70: 1996-04-30 | AO70: 3 | AP70: 43.6 | AR70: 2011-11-22 | AS70: 14 | AT70: 80.16 | AV70: 1996-04-30 | AW70: 6 | AX70: 178.8 | AZ70: 2004-10-20 | BA70: 9 | BB70: 1167.75
B71: 1991-07-09 | C71: 5.166666667 | D71: 7.633333333 | E71: 13 | F71: 7.466886667 | H71: 1990-01-03 | I71: 6 | J71: 8.2 | L71: 2005-06-22 | M71: 8 | N71: 5.133333333 | P71: 2005-06-22 | Q71: 8 | R71: 307.2433333 | T71: 1991-09-03 | U71: 1 | V71: 3.95 | X71: 1981-08-16 | Y71: 1 | Z71: 5.5 | AB71: 1992-10-06 | AC71: 4 | AD71: 144 | AF71: 2005-07-13 | AG71: 9 | AH71: 144 | AJ71: 2011-11-22 | AK71: 9 | AL71: 144 | AN71: 1996-04-30 | AO71: 4 | AP71: 44.3 | AR71: 2011-11-22 | AS71: 9 | AT71: 57.72 | AV71: 1996-04-30 | AW71: 7 | AX71: 177.5 | AZ71: 2004-10-20 | BA71: 14 | BB71: 1204.6
B72: 1991-07-23 | C72: 5.3 | D72: 8.641666667 | E72: 13.21666667 | F72: 8.34987 | H72: 1990-01-03 | I72: 6 | J72: 8.8 | L72: 2005-07-13 | M72: 1 | N72: 4.896666667 | P72: 2005-07-13 | Q72: 1 | R72: 60.81333333 | T72: 1991-09-17 | U72: 1 | V72: 5.78 | X72: 1981-08-23 | Y72: 1 | Z72: 5.5 | AB72: 1992-10-06 | AC72: 8 | AD72: 144 | AF72: 2005-07-13 | AG72: 9 | AH72: 154 | AJ72: 2011-12-21 | AK72: 9 | AL72: 106 | AN72: 1996-04-30 | AO72: 5 | AP72: 44.1 | AR72: 2011-12-21 | AS72: 9 | AT72: 28.06 | AV72: 1996-04-30 | AW72: 8 | AX72: 172.7 | AZ72: 2004-10-20 | BA72: 14 | BB72: 1211.26
B73: 1991-08-06 | C73: 7.2 | D73: 9.275 | E73: 12.33333333 | F73: 9.09916 | H73: 1990-01-03 | I73: 6 | J73: 10.8 | L73: 2005-07-13 | M73: 8 | N73: 6.393333333 | P73: 2005-07-13 | Q73: 8 | R73: 362.1666667 | T73: 1991-10-01 | U73: 1 | V73: 2.406 | X73: 1981-08-30 | Y73: 1 | Z73: 6 | AB73: 1992-10-06 | AC73: 7 | AD73: 156 | AF73: 2005-07-13 | AG73: 14 | AH73: 154 | AJ73: 2011-12-21 | AK73: 14 | AL73: 86 | AN73: 1996-04-30 | AO73: 6 | AP73: 43.6 | AR73: 2011-12-21 | AS73: 14 | AT73: 22.44 | AV73: 1996-05-07 | AW73: 1 | AX73: 171.7 | AZ73: 2004-11-03 | BA73: 9 | BB73: 1037.91
B74: 1991-08-20 | C74: 5.766666667 | D74: 7.733333333 | E74: 11.05 | F74: 7.576956667 | H74: 1990-01-03 | I74: 7 | J74: 7.9 | L74: 2005-07-27 | M74: 1 | N74: 4.9 | P74: 2005-07-27 | Q74: 1 | R74: 37.99333333 | T74: 1991-10-15 | U74: 1 | V74: 3.153 | X74: 1981-09-06 | Y74: 1 | Z74: 8 | AB74: 1992-10-06 | AC74: 5 | AD74: 160 | AF74: 2005-07-13 | AG74: 14 | AH74: 154 | AN74: 1996-04-30 | AO74: 7 | AP74: 44 | AV74: 1996-05-07 | AW74: 2 | AX74: 177.1 | AZ74: 2004-11-03 | BA74: 9 | BB74: 1039.69
B75: 1991-09-03 | C75: 4.766666667 | D75: 6.218181818 | E75: 10.16666667 | F75: 6.139681212 | H75: 1990-01-03 | I75: 7 | J75: 8.2 | L75: 2005-07-27 | M75: 8 | N75: 2.536666667 | P75: 2005-07-27 | Q75: 8 | R75: 236.7466667 | T75: 1991-11-05 | U75: 1 | V75: 3.836 | X75: 1981-09-13 | Y75: 1 | Z75: 8 | AB75: 1992-10-13 | AC75: 6 | AD75: 138 | AF75: 2005-07-13 | AG75: 9 | AH75: 154 | AN75: 1996-04-30 | AO75: 8 | AP75: 44.2 | AV75: 1996-05-07 | AW75: 3 | AX75: 177.6 | AZ75: 2004-11-03 | BA75: 9 | BB75: 1053.43
B76: 1991-09-17 | C76: 6.333333333 | D76: 6.816666667 | E76: 10.53333333 | F76: 6.849613333 | H76: 1990-01-03 | I76: 8 | J76: 14.9 | L76: 2005-08-10 | M76: 1 | N76: 3.8 | P76: 2005-08-10 | Q76: 1 | R76: 20.27666667 | T76: 1991-11-19 | U76: 1 | V76: 2.33 | X76: 1982-05-10 | Y76: 1 | Z76: 9.5 | AB76: 1992-10-13 | AC76: 5 | AD76: 139 | AF76: 2005-07-27 | AG76: 14 | AH76: 156 | AN76: 1996-05-07 | AO76: 1 | AP76: 42.5 | AV76: 1996-05-07 | AW76: 4 | AX76: 173.7 | AZ76: 2004-11-03 | BA76: 14 | BB76: 1182.45
B77: 1991-10-01 | C77: 6.366666667 | D77: 6.05 | E77: 10.3 | F77: 6.192866667 | H77: 1990-01-03 | I77: 8 | J77: 15 | L77: 2005-08-10 | M77: 8 | N77: 4.503333333 | P77: 2005-08-10 | Q77: 8 | R77: 206.38 | T77: 1991-12-10 | U77: 1 | V77: 1.71 | X77: 1982-05-17 | Y77: 1 | Z77: 9 | AB77: 1992-10-13 | AC77: 3 | AD77: 140 | AF77: 2005-07-27 | AG77: 9 | AH77: 138 | AN77: 1996-05-07 | AO77: 2 | AP77: 43.5 | AV77: 1996-05-07 | AW77: 5 | AX77: 177.3 | AZ77: 2004-11-03 | BA77: 14 | BB77: 1214.94
B78: 1991-10-15 | C78: 7.066666667 | D78: 5.966666667 | E78: 7.233333333 | F78: 6.130926667 | H78: 1990-01-03 | I78: 8 | J78: 15.7 | L78: 2005-08-24 | M78: 1 | N78: 4.4 | P78: 2005-08-24 | Q78: 1 | R78: 12.53 | T78: 1992-01-17 | U78: 1 | V78: 3.22 | X78: 1982-05-24 | Y78: 1 | Z78: 7.5 | AB78: 1992-10-13 | AC78: 4 | AD78: 140 | AF78: 2005-07-27 | AG78: 14 | AH78: 152 | AN78: 1996-05-07 | AO78: 3 | AP78: 43.2 | AV78: 1996-05-07 | AW78: 6 | AX78: 173.1 | AZ78: 2004-11-03 | BA78: 14 | BB78: 1266.06
B79: 1991-11-05 | C79: 9 | D79: 8.816666667 | E79: 10.58333333 | F79: 8.88231 | H79: 1990-03-06 | I79: 1 | J79: 10.5 | L79: 2005-08-24 | M79: 8 | N79: 7.92 | P79: 2005-08-24 | Q79: 8 | R79: 111.03 | T79: 1992-01-28 | U79: 1 | V79: 3.08 | X79: 1982-05-31 | Y79: 1 | Z79: 7 | AB79: 1992-10-13 | AC79: 1 | AD79: 142 | AF79: 2005-07-27 | AG79: 9 | AH79: 138 | AN79: 1996-05-07 | AO79: 4 | AP79: 42.7 | AV79: 1996-05-07 | AW79: 7 | AX79: 173.5 | AZ79: 2004-11-17 | BA79: 9 | BB79: 1187.67
B80: 1991-11-19 | C80: 8.5 | D80: 10.975 | E80: 10.35 | F80: 10.66015 | H80: 1990-03-06 | I80: 1 | J80: 12.9 | L80: 2005-09-07 | M80: 1 | N80: 3.453333333 | P80: 2005-09-07 | Q80: 1 | R80: 13.97333333 | T80: 1992-02-18 | U80: 1 | V80: 2.28 | X80: 1982-06-07 | Y80: 1 | Z80: 5 | AB80: 1992-10-13 | AC80: 8 | AD80: 155 | AF80: 2005-07-27 | AG80: 9 | AH80: 142 | AN80: 1996-05-07 | AO80: 5 | AP80: 42.7 | AV80: 1996-05-07 | AW80: 8 | AX80: 181.6 | AZ80: 2004-11-17 | BA80: 14 | BB80: 1204.23
B81: 1991-12-10 | C81: 9.1 | D81: 9.291666667 | E81: 8.933333333 | F81: 9.25966 | H81: 1990-03-06 | I81: 1 | J81: 16.9 | L81: 2005-09-07 | M81: 8 | N81: 7.766666667 | P81: 2005-09-07 | Q81: 8 | R81: 59.04666667 | T81: 1992-03-13 | U81: 1 | V81: 2.105 | X81: 1982-06-14 | Y81: 1 | Z81: 3.5 | AB81: 1992-10-13 | AC81: 7 | AD81: 167 | AF81: 2005-07-27 | AG81: 14 | AH81: 152 | AN81: 1996-05-07 | AO81: 6 | AP81: 42.9 | AV81: 1996-05-14 | AW81: 1 | AX81: 179.5 | AZ81: 2004-11-17 | BA81: 9 | BB81: 1205.78
B82: 1992-01-17 | C82: 5.433333333 | D82: 6.466666667 | E82: 5.133333333 | F82: 6.308833333 | H82: 1990-03-06 | I82: 3 | J82: 10.4 | L82: 2005-09-21 | M82: 1 | N82: 7.156666667 | P82: 2005-09-21 | Q82: 1 | R82: 28.56 | T82: 1992-05-12 | U82: 1 | V82: 3.676 | X82: 1982-06-21 | Y82: 1 | Z82: 3 | AB82: 1992-10-21 | AC82: 1 | AD82: 130 | AF82: 2005-08-10 | AG82: 9 | AH82: 138 | AN82: 1996-05-07 | AO82: 7 | AP82: 43.2 | AV82: 1996-05-14 | AW82: 2 | AX82: 184.1 | AZ82: 2004-11-17 | BA82: 14 | BB82: 1208.97
B83: 1992-01-28 | C83: 8.466666667 | D83: 6.241666667 | E83: 7.3 | F83: 6.536926667 | H83: 1990-03-06 | I83: 3 | J83: 13.5 | L83: 2005-09-21 | M83: 8 | N83: 8.55 | P83: 2005-09-21 | Q83: 8 | R83: 23.35 | T83: 1992-05-26 | U83: 1 | V83: 1.764 | X83: 1982-06-28 | Y83: 1 | Z83: 4 | AB83: 1992-10-21 | AC83: 3 | AD83: 132 | AF83: 2005-08-10 | AG83: 9 | AH83: 146 | AN83: 1996-05-07 | AO83: 8 | AP83: 42.7 | AV83: 1996-05-14 | AW83: 3 | AX83: 174.9 | AZ83: 2004-11-17 | BA83: 9 | BB83: 1228.88
B84: 1992-02-18 | C84: 15 | D84: 8.316666667 | E84: 12.01666667 | F84: 9.21637 | H84: 1990-03-06 | I84: 3 | J84: 13.7 | L84: 2005-10-05 | M84: 1 | N84: 6.56 | P84: 2005-10-05 | Q84: 1 | R84: 40.53666667 | T84: 1992-06-09 | U84: 1 | V84: 1.745 | X84: 1982-07-05 | Y84: 1 | Z84: 5.5 | AB84: 1992-10-21 | AC84: 6 | AD84: 132 | AF84: 2005-08-10 | AG84: 14 | AH84: 166 | AN84: 1996-05-14 | AO84: 1 | AP84: 43 | AV84: 1996-05-14 | AW84: 4 | AX84: 150 | AZ84: 2004-11-17 | BA84: 14 | BB84: 1401.49
B85: 1992-03-13 | C85: 6.566666667 | D85: 9.75 | E85: 11.83333333 | F85: 9.416066667 | H85: 1990-03-06 | I85: 4 | J85: 7.9 | L85: 2005-10-05 | M85: 8 | N85: 6.783333333 | P85: 2005-10-05 | Q85: 8 | R85: 14.44 | T85: 1992-06-19 | U85: 1 | V85: 4.719 | X85: 1982-07-12 | Y85: 1 | Z85: 5.5 | AB85: 1992-10-21 | AC85: 7 | AD85: 134 | AF85: 2005-08-10 | AG85: 14 | AH85: 162 | AN85: 1996-05-14 | AO85: 2 | AP85: 43.3 | AV85: 1996-05-14 | AW85: 5 | AX85: 179.4 | AZ85: 2004-12-01 | BA85: 14 | BB85: 798.18
B86: 1992-04-09 | C86: 6.333333333 | D86: 6.808333333 | E86: 12.75 | F86: 6.897023333 | H86: 1990-03-06 | I86: 4 | J86: 10.5 | L86: 2005-11-02 | M86: 1 | N86: 8.863333333 | P86: 2005-11-02 | Q86: 1 | R86: 66.61 | T86: 1992-06-30 | U86: 1 | V86: 2.218 | X86: 1982-07-19 | Y86: 1 | Z86: 4 | AB86: 1992-10-21 | AC86: 4 | AD86: 136 | AF86: 2005-08-10 | AG86: 14 | AH86: 162 | AN86: 1996-05-14 | AO86: 3 | AP86: 43.5 | AV86: 1996-05-14 | AW86: 6 | AX86: 177.4 | AZ86: 2004-12-01 | BA86: 9 | BB86: 827.06
B87: 1992-04-14 | C87: 7.966666667 | D87: 8.033333333 | E87: 15.56666667 | F87: 8.210586667 | H87: 1990-03-06 | I87: 4 | J87: 13.3 | L87: 2005-11-02 | M87: 8 | N87: 10.07333333 | P87: 2005-11-02 | Q87: 8 | R87: 65.89666667 | T87: 1992-07-21 | U87: 1 | V87: 1.9 | X87: 1982-07-26 | Y87: 1 | Z87: 6 | AB87: 1992-10-21 | AC87: 5 | AD87: 138 | AF87: 2005-08-10 | AG87: 9 | AH87: 142 | AN87: 1996-05-14 | AO87: 4 | AP87: 43.6 | AV87: 1996-05-14 | AW87: 7 | AX87: 179.9 | AZ87: 2004-12-01 | BA87: 14 | BB87: 828.98
B88: 1992-04-28 | C88: 8.5 | D88: 8.25 | E88: 8.9 | F88: 8.29624 | H88: 1990-03-06 | I88: 5 | J88: 9.3 | L88: 2005-11-30 | M88: 1 | N88: 6.333333333 | P88: 2005-11-30 | Q88: 1 | R88: 124.0866667 | T88: 1992-08-18 | U88: 1 | V88: 1.49 | X88: 1982-08-02 | Y88: 1 | Z88: 5.5 | AB88: 1992-10-21 | AC88: 8 | AD88: 138 | AF88: 2005-08-24 | AG88: 14 | AH88: 162 | AN88: 1996-05-14 | AO88: 5 | AP88: 44.4 | AV88: 1996-05-14 | AW88: 8 | AX88: 178.7 | AZ88: 2004-12-01 | BA88: 14 | BB88: 842.21
B89: 1992-05-12 | C89: 12.73333333 | D89: 8.358333333 | E89: 14.18333333 | F89: 9.031003333 | H89: 1990-03-06 | I89: 5 | J89: 9.3 | L89: 2005-11-30 | M89: 8 | N89: 6.353333333 | P89: 2005-11-30 | Q89: 8 | R89: 123.8033333 | T89: 1992-09-01 | U89: 1 | V89: 1.3 | X89: 1982-08-09 | Y89: 1 | Z89: 6.5 | AB89: 1992-10-27 | AC89: 1 | AD89: 138 | AF89: 2005-08-24 | AG89: 9 | AH89: 142 | AN89: 1996-05-14 | AO89: 6 | AP89: 43.8 | AV89: 1996-05-21 | AW89: 1 | AX89: 176.4 | AZ89: 2004-12-01 | BA89: 9 | BB89: 849.47
B90: 1992-05-26 | C90: 9.6 | D90: 10.40833333 | E90: 14.38333333 | F90: 10.40831 | H90: 1990-03-06 | I90: 5 | J90: 11.3 | L90: 2006-03-01 | M90: 1 | N90: 4.67 | P90: 2006-03-01 | Q90: 1 | R90: 207.3166667 | T90: 1992-09-09 | U90: 1 | V90: 1.96 | X90: 1982-08-16 | Y90: 1 | Z90: 6.5 | AB90: 1992-10-27 | AC90: 7 | AD90: 138 | AF90: 2005-08-24 | AG90: 9 | AH90: 138 | AN90: 1996-05-14 | AO90: 7 | AP90: 43.9 | AV90: 1996-05-21 | AW90: 2 | AX90: 189 | AZ90: 2004-12-01 | BA90: 9 | BB90: 873.42
B91: 1992-06-09 | C91: 6.466666667 | D91: 12.00833333 | E91: 15 | F91: 11.41138667 | H91: 1990-03-06 | I91: 6 | J91: 9.3 | L91: 2006-03-01 | M91: 8 | N91: 6.03 | P91: 2006-03-01 | Q91: 8 | R91: 235.8566667 | T91: 1992-09-15 | U91: 1 | V91: 1.37 | X91: 1982-08-23 | Y91: 1 | Z91: 6.5 | AB91: 1992-10-27 | AC91: 3 | AD91: 140 | AF91: 2005-08-24 | AG91: 14 | AH91: 162 | AN91: 1996-05-14 | AO91: 8 | AP91: 44 | AV91: 1996-05-21 | AW91: 3 | AX91: 178.8 | AZ91: 2005-01-19 | BA91: 14 | BB91: 521.96
B92: 1992-06-19 | C92: 13.1 | D92: 10.23 | E92: 16.9 | F92: 10.741352 | H92: 1990-03-06 | I92: 6 | J92: 9.7 | L92: 2006-04-05 | M92: 1 | N92: 9.963333333 | P92: 2006-04-05 | Q92: 1 | R92: 229.15 | T92: 1992-09-22 | U92: 1 | V92: 1.53 | X92: 1982-08-30 | Y92: 1 | Z92: 7.5 | AB92: 1992-10-27 | AC92: 4 | AD92: 140 | AF92: 2005-08-24 | AG92: 14 | AH92: 164 | AN92: 1996-05-21 | AO92: 1 | AP92: 43.5 | AV92: 1996-05-21 | AW92: 4 | AX92: 186.6 | AZ92: 2005-01-19 | BA92: 14 | BB92: 788.44
B93: 1992-06-30 | C93: 9.033333333 | D93: 9.463636364 | E93: 12.93333333 | F93: 9.496924242 | H93: 1990-03-06 | I93: 6 | J93: 10.7 | L93: 2006-04-05 | M93: 8 | N93: 9.006666667 | P93: 2006-04-05 | Q93: 8 | R93: 224.98 | T93: 1992-09-29 | U93: 1 | V93: 2.11 | X93: 1982-09-06 | Y93: 1 | Z93: 8 | AB93: 1992-10-27 | AC93: 5 | AD93: 140 | AF93: 2005-08-24 | AG93: 9 | AH93: 142 | AN93: 1996-05-21 | AO93: 2 | AP93: 42.6 | AV93: 1996-05-21 | AW93: 5 | AX93: 183.1 | AZ93: 2005-01-19 | BA93: 14 | BB93: 858.29
B94: 1992-07-21 | C94: 7.533333333 | D94: 8.336363636 | E94: 8.333333333 | F94: 8.239122424 | H94: 1990-03-06 | I94: 7 | J94: 10.2 | L94: 2006-04-19 | M94: 1 | N94: 5.806666667 | P94: 2006-04-19 | Q94: 1 | R94: 229.89 | T94: 1992-10-06 | U94: 1 | V94: 1.63 | X94: 1982-09-13 | Y94: 1 | Z94: 8 | AB94: 1992-10-27 | AC94: 6 | AD94: 140 | AF94: 2005-09-07 | AG94: 14 | AH94: 156 | AN94: 1996-05-21 | AO94: 3 | AP94: 43.1 | AV94: 1996-05-21 | AW94: 6 | AX94: 177.4 | AZ94: 2005-02-15 | BA94: 14 | BB94: 566.87
B95: 1992-08-04 | C95: 5.5 | D95: 6.819166667 | E95: 11.95 | F95: 6.785766 | H95: 1990-03-06 | I95: 7 | J95: 10.4 | L95: 2006-04-19 | M95: 8 | N95: 5.99 | P95: 2006-04-19 | Q95: 8 | R95: 231.7633333 | T95: 1992-10-13 | U95: 1 | V95: 1.65 | X95: 1983-05-17 | Y95: 1 | Z95: 10 | AB95: 1992-10-27 | AC95: 8 | AD95: 140 | AF95: 2005-09-07 | AG95: 14 | AH95: 156 | AN95: 1996-05-21 | AO95: 4 | AP95: 42.9 | AV95: 1996-05-21 | AW95: 7 | AX95: 187 | AZ95: 2005-02-15 | BA95: 9 | BB95: 587.05
B96: 1992-08-18 | C96: 5.733333333 | D96: 6.633333333 | E96: 10.8 | F96: 6.626933333 | H96: 1990-03-06 | I96: 7 | J96: 11.4 | L96: 2006-05-03 | M96: 1 | N96: 8.016666667 | P96: 2006-05-03 | Q96: 1 | R96: 216.87 | T96: 1992-10-21 | U96: 1 | V96: 2.53 | X96: 1983-05-24 | Y96: 1 | Z96: 10 | AB96: 1992-11-04 | AC96: 1 | AD96: 140 | AF96: 2005-09-07 | AG96: 14 | AH96: 154 | AN96: 1996-05-21 | AO96: 5 | AP96: 43.2 | AV96: 1996-05-21 | AW96: 8 | AX96: 184.4 | AZ96: 2005-02-15 | BA96: 14 | BB96: 588.46
B97: 1992-09-01 | C97: 7.633333333 | D97: 8.341666667 | E97: 15.03333333 | F97: 8.420573333 | H97: 1990-03-06 | I97: 8 | J97: 13.6 | L97: 2006-05-03 | M97: 8 | N97: 6.283333333 | P97: 2006-05-03 | Q97: 8 | R97: 228.7033333 | T97: 1992-10-27 | U97: 1 | V97: 3.11 | X97: 1983-05-31 | Y97: 1 | Z97: 8.5 | AB97: 1992-11-04 | AC97: 7 | AD97: 140 | AF97: 2005-09-07 | AG97: 9 | AH97: 132 | AN97: 1996-05-21 | AO97: 6 | AP97: 42.3 | AV97: 1996-05-28 | AW97: 1 | AX97: 170.1 | AZ97: 2005-02-15 | BA97: 9 | BB97: 588.68
B98: 1992-09-09 | C98: 6.133333333 | D98: 6.633333333 | E98: 13.4 | F98: 6.739293333 | H98: 1990-03-06 | I98: 8 | J98: 14.3 | L98: 2006-05-16 | M98: 1 | N98: 8.36 | P98: 2006-05-16 | Q98: 1 | R98: 194.4133333 | T98: 1992-11-04 | U98: 1 | V98: 4.53 | X98: 1983-06-07 | Y98: 1 | Z98: 9 | AB98: 1992-11-04 | AC98: 4 | AD98: 142 | AF98: 2005-09-07 | AG98: 9 | AH98: 134 | AN98: 1996-05-21 | AO98: 7 | AP98: 44 | AV98: 1996-05-28 | AW98: 2 | AX98: 172.9 | AZ98: 2005-02-15 | BA98: 14 | BB98: 596.73
B99: 1992-09-15 | C99: 6.733333333 | D99: 6.666666667 | E99: 10.63333333 | F99: 6.772313333 | H99: 1990-04-18 | I99: 1 | J99: 10.1 | L99: 2006-05-16 | M99: 8 | N99: 4.743333333 | P99: 2006-05-16 | Q99: 8 | R99: 205.03 | T99: 1992-11-12 | U99: 1 | V99: 4.22 | X99: 1983-06-14 | Y99: 1 | Z99: 7.5 | AB99: 1992-11-04 | AC99: 6 | AD99: 142 | AF99: 2005-09-07 | AG99: 9 | AH99: 130 | AN99: 1996-05-21 | AO99: 8 | AP99: 43.6 | AV99: 1996-05-28 | AW99: 3 | AX99: 179.9 | AZ99: 2005-02-15 | BA99: 9 | BB99: 607.76
B100: 1992-09-22 | C100: 8.533333333 | D100: 7.275 | E100: 10.11666667 | F100: 7.497163333 | H100: 1990-04-18 | I100: 1 | J100: 10.6 | L100: 2006-06-01 | M100: 1 | N100: 5.446666667 | P100: 2006-06-01 | Q100: 1 | R100: 169.8266667 | T100: 1992-11-18 | U100: 1 | V100: 3.4 | X100: 1983-06-21 | Y100: 1 | Z100: 5 | AB100: 1992-11-04 | AC100: 8 | AD100: 144 | AF100: 2005-09-21 | AG100: 14 | AH100: 164 | AN100: 1996-05-28 | AO100: 1 | AP100: 42.5 | AV100: 1996-05-28 | AW100: 4 | AX100: 172.7 | AZ100: 2005-03-02 | BA100: 9 | BB100: 535.57
B101: 1992-09-29 | C101: 7.3 | D101: 7.216666667 | E101: 9.05 | F101: 7.27185 | H101: 1990-04-18 | I101: 1 | J101: 10.6 | L101: 2006-06-01 | M101: 8 | N101: 6.503333333 | P101: 2006-06-01 | Q101: 8 | R101: 189.6 | T101: 1992-11-24 | U101: 1 | V101: 3.35 | X101: 1983-06-28 | Y101: 1 | Z101: 3.5 | AB101: 1992-11-04 | AC101: 3 | AD101: 146 | AF101: 2005-09-21 | AG101: 9 | AH101: 140 | AN101: 1996-05-28 | AO101: 2 | AP101: 44.9 | AV101: 1996-05-28 | AW101: 5 | AX101: 173.6 | AZ101: 2005-03-02 | BA101: 14 | BB101: 567.47
B102: 1992-10-06 | C102: 6.1 | D102: 5.766666667 | E102: 8.116666667 | F102: 5.86481 | H102: 1990-04-18 | I102: 3 | J102: 9.8 | L102: 2006-06-14 | M102: 1 | N102: 7.53 | P102: 2006-06-14 | Q102: 1 | R102: 103.1733333 | T102: 1992-12-01 | U102: 1 | V102: 4.13 | X102: 1983-07-05 | Y102: 1 | Z102: 4.5 | AB102: 1992-11-04 | AC102: 5 | AD102: 146 | AF102: 2005-09-21 | AG102: 14 | AH102: 164 | AN102: 1996-05-28 | AO102: 3 | AP102: 41.4 | AV102: 1996-05-28 | AW102: 6 | AX102: 172.5 | AZ102: 2005-03-02 | BA102: 9 | BB102: 571.4
B103: 1992-10-13 | C103: 8.966666667 | D103: 8.858333333 | E103: 12.01666667 | F103: 8.949136667 | H103: 1990-04-18 | I103: 3 | J103: 10.1 | L103: 2006-06-14 | M103: 8 | N103: 6.636666667 | P103: 2006-06-14 | Q103: 8 | R103: 247.18 | T103: 1992-12-08 | U103: 1 | V103: 2.85 | X103: 1983-07-12 | Y103: 1 | Z103: 6 | AB103: 1992-11-12 | AC103: 1 | AD103: 140 | AF103: 2005-09-21 | AG103: 9 | AH103: 142 | AN103: 1996-05-28 | AO103: 4 | AP103: 46.7 | AV103: 1996-05-28 | AW103: 7 | AX103: 175.8 | AZ103: 2005-03-02 | BA103: 9 | BB103: 574.02
B104: 1992-10-21 | C104: 8.833333333 | D104: 9.133333333 | E104: 9.8 | F104: 9.113433333 | H104: 1990-04-18 | I104: 3 | J104: 10.6 | L104: 2006-06-28 | M104: 1 | N104: 6.11 | P104: 2006-06-28 | Q104: 1 | R104: 101.05 | T104: 1992-12-15 | U104: 1 | V104: 2.64 | X104: 1983-07-19 | Y104: 1 | Z104: 7 | AB104: 1992-11-12 | AC104: 4 | AD104: 142 | AF104: 2005-09-21 | AG104: 14 | AH104: 164 | AN104: 1996-05-28 | AO104: 5 | AP104: 45.8 | AV104: 1996-05-28 | AW104: 8 | AX104: 183.6 | AZ104: 2005-03-02 | BA104: 14 | BB104: 581.47
B105: 1992-10-27 | C105: 8.366666667 | D105: 9.766666667 | E105: 12.68333333 | F105: =0.121*C105+0.8544*D105+0.0246*E105 -> 9.669016667 | H105: 1990-04-18 | I105: 4 | J105: 9.1 | L105: 2006-06-28 | M105: 8 | N105: 7.673333333 | P105: 2006-06-28 | Q105: 8 | R105: 415.5533333 | T105: 1992-12-22 | U105: 1 | V105: 2.35 | X105: 1983-07-26 | Y105: 1 | Z105: 8 | AB105: 1992-11-12 | AC105: 6 | AD105: 142 | AF105: 2005-09-21 | AG105: 9 | AH105: 142 | AN105: 1996-05-28 | AO105: 6 | AP105: 39.8 | AV105: 1996-06-04 | AW105: 1 | AX105: 176.6 | AZ105: 2005-03-02 | BA105: 14 | BB105: 584.08
B106: 1992-11-04 | C106: 10.5 | D106: 9.633333333 | E106: 9.966666667 | F106: 9.7464 | H106: 1990-04-18 | I106: 4 | J106: 10.6 | L106: 2006-07-12 | M106: 1 | N106: 5.463333333 | P106: 2006-07-12 | Q106: 1 | R106: 42.22 | T106: 1993-01-12 | U106: 1 | V106: 2.55 | X106: 1983-08-02 | Y106: 1 | Z106: 9 | AB106: 1992-11-12 | AC106: 8 | AD106: 142 | AF106: 2005-10-05 | AG106: 9 | AH106: 144 | AN106: 1996-05-28 | AO106: 7 | AP106: 47 | AV106: 1996-06-04 | AW106: 2 | AX106: 179.7 | AZ106: 2005-04-14 | BA106: 9 | BB106: 381.52
B107: 1992-11-12 | C107: 9.266666667 | D107: 9.808333333 | E107: 9.133333333 | F107: 9.726186667 | H107: 1990-04-18 | I107: 4 | J107: 10.6 | L107: 2006-07-12 | M107: 8 | N107: 7.22 | P107: 2006-07-12 | Q107: 8 | R107: 263.5466667 | T107: 1993-01-26 | U107: 1 | V107: 2.57 | X107: 1983-08-09 | Y107: 1 | Z107: 9 | AB107: 1992-11-12 | AC107: 7 | AD107: 144 | AF107: 2005-10-05 | AG107: 9 | AH107: 142 | AN107: 1996-05-28 | AO107: 8 | AP107: 39.5 | AV107: 1996-06-04 | AW107: 3 | AX107: 180.9 | AZ107: 2005-04-14 | BA107: 14 | BB107: 381.85
B108: 1992-11-18 | C108: 9.733333333 | D108: 10.075 | E108: 10.33333333 | F108: 10.04001333 | H108: 1990-04-18 | I108: 5 | J108: 9.6 | L108: 2006-07-27 | M108: 1 | N108: 6.48 | P108: 2006-07-27 | Q108: 1 | R108: 13.25 | T108: 1993-02-09 | U108: 1 | V108: 1.87 | X108: 1983-08-16 | Y108: 1 | Z108: 10 | AB108: 1992-11-12 | AC108: 3 | AD108: 146 | AF108: 2005-10-05 | AG108: 14 | AH108: 156 | AN108: 1996-06-04 | AO108: 1 | AP108: 44.6 | AV108: 1996-06-04 | AW108: 4 | AX108: 175.5 | AZ108: 2005-04-14 | BA108: 14 | BB108: 382.92
B109: 1992-11-24 | C109: 9.6 | D109: 9.516666667 | E109: 9.983333333 | F109: 9.53823 | H109: 1990-04-18 | I109: 5 | J109: 9.9 | L109: 2006-07-27 | M109: 8 | N109: 6.143333333 | P109: 2006-07-27 | Q109: 8 | R109: 194.0966667 | T109: 1993-02-23 | U109: 1 | V109: 1.71 | X109: 1983-08-23 | Y109: 1 | Z109: 9 | AB109: 1992-11-12 | AC109: 5 | AD109: 148 | AF109: 2005-10-05 | AG109: 14 | AH109: 158 | AN109: 1996-06-04 | AO109: 2 | AP109: 44.7 | AV109: 1996-06-04 | AW109: 5 | AX109: 178 | AZ109: 2005-04-14 | BA109: 14 | BB109: 383.46
B110: 1992-12-01 | C110: 7.733333333 | D110: 8.183333333 | E110: 8.333333333 | F110: 8.132573333 | H110: 1990-04-18 | I110: 5 | J110: 10.1 | L110: 2006-08-09 | M110: 1 | N110: 4.863333333 | P110: 2006-08-09 | Q110: 1 | R110: 9.276666667 | T110: 1993-03-09 | U110: 1 | V110: 2.266666667 | X110: 1983-08-30 | Y110: 1 | Z110: 9.5 | AB110: 1992-11-18 | AC110: 1 | AD110: 140 | AF110: 2005-10-05 | AG110: 14 | AH110: 160 | AN110: 1996-06-04 | AO110: 3 | AP110: 44.2 | AV110: 1996-06-04 | AW110: 6 | AX110: 170.6 | AZ110: 2005-04-14 | BA110: 9 | BB110: 391.64
B111: 1992-12-08 | C111: 7.2 | D111: 8.441666667 | E111: 7.583333333 | F111: 8.27031 | H111: 1990-04-18 | I111: 6 | J111: 9.1 | L111: 2006-08-09 | M111: 8 | N111: 7.353333333 | P111: 2006-08-09 | Q111: 8 | R111: 130.17 | T111: 1993-03-23 | U111: 1 | V111: 2.56 | X111: 1983-09-06 | Y111: 1 | Z111: 9 | AB111: 1992-11-18 | AC111: 3 | AD111: 140 | AF111: 2005-10-05 | AG111: 9 | AH111: 142 | AN111: 1996-06-04 | AO111: 4 | AP111: 44.5 | AV111: 1996-06-04 | AW111: 7 | AX111: 179.2 | AZ111: 2005-04-14 | BA111: 9 | BB111: 392.38
B112: 1992-12-15 | C112: 7.666666667 | D112: 7.816666667 | E112: 7.716666667 | F112: 7.796056667 | H112: 1990-04-18 | I112: 6 | J112: 9.6 | L112: 2006-08-23 | M112: 1 | N112: 5.623333333 | P112: 2006-08-23 | Q112: 1 | R112: 0.8766666667 | T112: 1993-04-21 | U112: 1 | V112: 3.36 | X112: 1983-09-13 | Y112: 1 | Z112: 11 | AB112: 1992-11-18 | AC112: 6 | AD112: 140 | AF112: 2005-11-02 | AG112: 9 | AH112: 150 | AN112: 1996-06-04 | AO112: 5 | AP112: 44.8 | AV112: 1996-06-04 | AW112: 8 | AX112: 181 | AZ112: 2005-04-28 | BA112: 9 | BB112: 387.54
B113: 1992-12-22 | C113: 7.866666667 | D113: 9.425 | E113: 8.266666667 | F113: 9.207946667 | H113: 1990-04-18 | I113: 6 | J113: 12.5 | L113: 2006-08-23 | M113: 8 | N113: 7.553333333 | P113: 2006-08-23 | Q113: 8 | R113: 95.67 | T113: 1993-05-04 | U113: 1 | V113: 3.43 | X113: 1984-05-03 | Y113: 1 | Z113: 11 | AB113: 1992-11-18 | AC113: 5 | AD113: 142 | AF113: 2005-11-02 | AG113: 14 | AH113: 158 | AN113: 1996-06-04 | AO113: 6 | AP113: 43.4 | AV113: 1996-06-11 | AW113: 1 | AX113: 175.8 | AZ113: 2005-04-28 | BA113: 14 | BB113: 393.6
B114: 1993-01-12 | C114: 6.133333333 | D114: 7.975 | E114: 12.51666667 | F114: 7.863883333 | H114: 1990-04-18 | I114: 7 | J114: 9.8 | L114: 2006-09-06 | M114: 1 | N114: 7.376666667 | P114: 2006-09-06 | Q114: 1 | R114: 1.1 | T114: 1993-05-18 | U114: 1 | V114: 1.48 | X114: 1984-05-10 | Y114: 1 | Z114: 9 | AB114: 1992-11-18 | AC114: 7 | AD114: 142 | AF114: 2005-11-02 | AG114: 9 | AH114: 150 | AN114: 1996-06-04 | AO114: 7 | AP114: 43.5 | AV114: 1996-06-11 | AW114: 2 | AX114: 177 | AZ114: 2005-04-28 | BA114: 14 | BB114: 397.11
B115: 1993-01-26 | C115: 5.7 | D115: 8.116666667 | E115: 12.33333333 | F115: 7.92798 | H115: 1990-04-18 | I115: 7 | J115: 10.1 | L115: 2006-09-06 | M115: 8 | N115: 8.766666667 | P115: 2006-09-06 | Q115: 8 | R115: 48.62 | T115: 1993-06-01 | U115: 1 | V115: 1.2 | X115: 1984-05-17 | Y115: 1 | Z115: 11.5 | AB115: 1992-11-18 | AC115: 8 | AD115: 142 | AF115: 2005-11-02 | AG115: 14 | AH115: 164 | AN115: 1996-06-04 | AO115: 8 | AP115: 44.6 | AV115: 1996-06-11 | AW115: 3 | AX115: 171.9 | AZ115: 2005-04-28 | BA115: 14 | BB115: 401.37
B116: 1993-02-09 | C116: 7.233333333 | D116: 8.016666667 | E116: 11.71666667 | F116: 8.012903333 | H116: 1990-04-18 | I116: 7 | J116: 11.1 | L116: 2006-09-20 | M116: 1 | N116: 5.57 | P116: 2006-09-20 | Q116: 1 | R116: 20.8 | T116: 1993-06-15 | U116: 1 | V116: 2.32 | X116: 1984-05-24 | Y116: 1 | Z116: 9 | AB116: 1992-11-18 | AC116: 4 | AD116: 144 | AF116: 2005-11-02 | AG116: 14 | AH116: 162 | AN116: 1996-06-11 | AO116: 1 | AP116: 48 | AV116: 1996-06-11 | AW116: 4 | AX116: 174.3 | AZ116: 2005-04-28 | BA116: 9 | BB116: 401.37
B117: 1993-02-23 | C117: 8.933333333 | D117: 7.2 | E117: 10.66666667 | F117: 7.495013333 | H117: 1990-04-18 | I117: 8 | J117: 8.6 | L117: 2006-09-20 | M117: 8 | N117: 8.24 | P117: 2006-09-20 | Q117: 8 | R117: 11.01666667 | T117: 1993-06-29 | U117: 1 | V117: 1.56 | X117: 1984-05-31 | Y117: 1 | Z117: 8.5 | AB117: 1992-11-24 | AC117: 8 | AD117: 136 | AF117: 2005-11-02 | AG117: 9 | AH117: 150 | AN117: 1996-06-11 | AO117: 2 | AP117: 48.4 | AV117: 1996-06-11 | AW117: 5 | AX117: 176.3 | AZ117: 2005-04-28 | BA117: 9 | BB117: 414.87
B118: 1993-03-09 | C118: 14.93333333 | D118: 8.375 | E118: 12.6 | F118: 9.272493333 | H118: 1990-04-18 | I118: 8 | J118: 9.1 | L118: 2006-10-09 | M118: 1 | N118: 5.016666667 | P118: 2006-10-09 | Q118: 1 | R118: 37.96333333 | T118: 1993-07-13 | U118: 1 | V118: 2.98 | X118: 1984-06-07 | Y118: 1 | Z118: 7 | AB118: 1992-11-24 | AC118: 1 | AD118: 138 | AF118: 2005-11-30 | AG118: 14 | AH118: 156 | AN118: 1996-06-11 | AO118: 3 | AP118: 48.1 | AV118: 1996-06-11 | AW118: 6 | AX118: 173.3 | AZ118: 2005-05-11 | BA118: 9 | BB118: 368.75
B119: 1993-03-23 | C119: 12.06666667 | D119: 5.106666667 | E119: 9.3 | F119: 6.051982667 | H119: 1990-04-18 | I119: 8 | J119: 9.6 | L119: 2006-10-09 | M119: 8 | N119: 6.926666667 | P119: 2006-10-09 | Q119: 8 | R119: 20.8 | T119: 1993-07-27 | U119: 1 | V119: 2.77 | X119: 1984-06-14 | Y119: 1 | Z119: 11 | AB119: 1992-11-24 | AC119: 3 | AD119: 138 | AF119: 2005-11-30 | AG119: 9 | AH119: 153 | AN119: 1996-06-11 | AO119: 4 | AP119: 48.4 | AV119: 1996-06-11 | AW119: 7 | AX119: 182.8 | AZ119: 2005-05-11 | BA119: 9 | BB119: 374.72
B120: 1993-04-21 | C120: 7.933333333 | D120: 9.306666667 | E120: 7.816666667 | F120: 9.103839333 | H120: 1990-05-16 | I120: 1 | J120: 7.1 | L120: 2006-10-24 | M120: 1 | N120: 5.316666667 | P120: 2006-10-24 | Q120: 1 | R120: 111.03 | T120: 1993-08-10 | U120: 1 | V120: 2.77 | X120: 1984-06-21 | Y120: 1 | Z120: 8 | AB120: 1992-11-24 | AC120: 5 | AD120: 140 | AF120: 2005-11-30 | AG120: 9 | AH120: 155 | AN120: 1996-06-11 | AO120: 5 | AP120: 49 | AV120: 1996-06-11 | AW120: 8 | AX120: 182.7 | AZ120: 2005-05-11 | BA120: 14 | BB120: 381.39
B121: 1993-05-04 | C121: 8 | D121: 8.76 | E121: 15.18333333 | F121: 8.826054 | H121: 1990-05-16 | I121: 1 | J121: 7.1 | L121: 2006-10-24 | M121: 8 | N121: 4.79 | P121: 2006-10-24 | Q121: 8 | R121: 59.47666667 | T121: 1993-08-24 | U121: 1 | V121: 3.9 | X121: 1984-06-28 | Y121: 1 | Z121: 10.5 | AB121: 1992-11-24 | AC121: 6 | AD121: 140 | AF121: 2005-11-30 | AG121: 14 | AH121: 156 | AN121: 1996-06-11 | AO121: 6 | AP121: 48.4 | AV121: 1996-06-18 | AW121: 1 | AX121: 166.5 | AZ121: 2005-05-11 | BA121: 14 | BB121: 382.05
B122: 1993-05-18 | C122: 7.566666667 | D122: 8.413333333 | E122: 12.6 | F122: 8.413878667 | H122: 1990-05-16 | I122: 1 | J122: 7.6 | L122: 2006-11-08 | M122: 1 | N122: 5.043333333 | P122: 2006-11-08 | Q122: 1 | R122: 85.41666667 | T122: 1993-09-07 | U122: 1 | V122: 3.19 | X122: 1984-07-05 | Y122: 1 | Z122: 10 | AB122: 1992-11-24 | AC122: 7 | AD122: 140 | AF122: 2005-11-30 | AG122: 9 | AH122: 150 | AN122: 1996-06-11 | AO122: 7 | AP122: 48.7 | AV122: 1996-06-18 | AW122: 2 | AX122: 172.6 | AZ122: 2005-05-11 | BA122: 14 | BB122: 386
B123: 1993-06-01 | C123: 8.1 | D123: 11.11333333 | E123: 20.8 | F123: 10.987012 | H123: 1990-05-16 | I123: 3 | J123: 6 | L123: 2006-11-08 | M123: 8 | N123: 5.283333333 | P123: 2006-11-08 | Q123: 8 | R123: 79.45666667 | T123: 1993-09-21 | U123: 1 | V123: 4.68 | X123: 1984-07-12 | Y123: 1 | Z123: 13 | AB123: 1992-11-24 | AC123: 4 | AD123: 142 | AF123: 2005-11-30 | AG123: 14 | AH123: 156 | AN123: 1996-06-11 | AO123: 8 | AP123: 49.2 | AV123: 1996-06-18 | AW123: 3 | AX123: 172.1 | AZ123: 2005-05-11 | BA123: 9 | BB123: 392.65
B124: 1993-06-15 | C124: 9.266666667 | D124: 9.886666667 | E124: 16.51666667 | F124: 9.974744667 | H124: 1990-05-16 | I124: 3 | J124: 7.1 | L124: 2006-11-27 | M124: 1 | N124: 4.796666667 | P124: 2006-11-27 | Q124: 1 | R124: 101.09 | T124: 1993-10-05 | U124: 1 | V124: 5.81 | X124: 1984-07-19 | Y124: 1 | Z124: 11 | AB124: 1992-12-01 | AC124: 4 | AD124: 136 | AF124: 2006-03-01 | AG124: 9 | AH124: 162 | AN124: 1996-06-18 | AO124: 1 | AP124: 38.7 | AV124: 1996-06-18 | AW124: 4 | AX124: 173.2 | AZ124: 2005-05-25 | BA124: 14 | BB124: 716.7
B125: 1993-06-29 | C125: 6.866666667 | D125: 8.193333333 | E125: 12.43333333 | F125: 8.137110667 | H125: 1990-05-16 | I125: 3 | J125: 10.2 | L125: 2006-11-27 | M125: 8 | N125: 5.03 | P125: 2006-11-27 | Q125: 8 | R125: 100.2966667 | T125: 1993-10-19 | U125: 1 | V125: 5.55 | X125: 1984-07-26 | Y125: 1 | Z125: 12 | AB125: 1992-12-01 | AC125: 5 | AD125: 136 | AF125: 2006-03-01 | AG125: 14 | AH125: 162 | AN125: 1996-06-18 | AO125: 2 | AP125: 39.1 | AV125: 1996-06-18 | AW125: 5 | AX125: 176.5 | AZ125: 2005-05-25 | BA125: 14 | BB125: 737.93
B126: 1993-07-13 | C126: 4.6 | D126: 6.913333333 | E126: 12.68333333 | F126: 6.775362 | H126: 1990-05-16 | I126: 4 | J126: 6 | L126: 2006-12-13 | M126: 1 | N126: 6.24 | P126: 2006-12-13 | Q126: 1 | R126: 117.5266667 | T126: 1993-11-02 | U126: 1 | V126: 7.55 | X126: 1984-08-02 | Y126: 1 | Z126: 12.5 | AB126: 1992-12-01 | AC126: 7 | AD126: 142 | AF126: 2006-03-01 | AG126: 9 | AH126: 162 | AN126: 1996-06-18 | AO126: 3 | AP126: 38.6 | AV126: 1996-06-18 | AW126: 6 | AX126: 178.1 | AZ126: 2005-05-25 | BA126: 9 | BB126: 756.79
B127: 1993-07-27 | C127: 6.866666667 | D127: 9.146666667 | E127: 8.55 | F127: 8.856108667 | H127: 1990-05-16 | I127: 4 | J127: 6.4 | L127: 2006-12-13 | M127: 8 | N127: 5.096666667 | P127: 2006-12-13 | Q127: 8 | R127: 125.5233333 | T127: 1993-11-17 | U127: 1 | V127: 8.71 | X127: 1984-08-09 | Y127: 1 | Z127: 12 | AB127: 1992-12-01 | AC127: 8 | AD127: 142 | AF127: 2006-03-01 | AG127: 14 | AH127: 162 | AN127: 1996-06-18 | AO127: 4 | AP127: 39.8 | AV127: 1996-06-18 | AW127: 7 | AX127: 181.5 | AZ127: 2005-05-25 | BA127: 14 | BB127: 792.52
B128: 1993-08-10 | C128: 5.433333333 | D128: 5.853333333 | E128: 8.166666667 | F128: 5.859421333 | H128: 1990-05-16 | I128: 4 | J128: 7.6 | L128: 2007-01-05 | M128: 1 | N128: 4.09 | P128: 2007-01-05 | Q128: 1 | R128: 157.9366667 | T128: 1993-11-30 | U128: 1 | V128: 4.85 | X128: 1984-08-16 | Y128: 1 | Z128: 10 | AB128: 1992-12-01 | AC128: 6 | AD128: 146 | AF128: 2006-03-01 | AG128: 9 | AH128: 160 | AN128: 1996-06-18 | AO128: 5 | AP128: 41.5 | AV128: 1996-06-18 | AW128: 8 | AX128: 186.6 | AZ128: 2005-05-25 | BA128: 9 | BB128: 800.74
B129: 1993-08-24 | C129: 4.9 | D129: 5.54 | E129: 6.75 | F129: 5.492326 | H129: 1990-05-16 | I129: 5 | J129: 6 | L129: 2007-01-05 | M129: 8 | N129: 4.003333333 | P129: 2007-01-05 | Q129: 8 | R129: 158.8266667 | T129: 1993-12-14 | U129: 1 | V129: 5.55 | X129: 1984-08-23 | Y129: 1 | Z129: 11 | AB129: 1992-12-01 | AC129: 1 | AD129: 150 | AF129: 2006-03-01 | AG129: 14 | AH129: 164 | AN129: 1996-06-18 | AO129: 6 | AP129: 41.1 | AV129: 1996-06-25 | AW129: 1 | AX129: 173.3 | AZ129: 2005-05-25 | BA129: 9 | BB129: 806.1
B130: 1993-09-07 | C130: 5.5 | D130: 5.184615385 | E130: 8.433333333 | F130: 5.302695385 | H130: 1990-05-16 | I130: 5 | J130: 6.6 | L130: 2007-03-29 | M130: 1 | N130: 5.103333333 | P130: 2007-03-29 | Q130: 1 | R130: 226.3233333 | T130: 1994-01-04 | U130: 1 | V130: 5.52 | X130: 1984-08-30 | Y130: 1 | Z130: 12.5 | AB130: 1992-12-01 | AC130: 3 | AD130: 156 | AN130: 1996-06-18 | AO130: 7 | AP130: 42.1 | AV130: 1996-06-25 | AW130: 2 | AX130: 170.9 | AZ130: 2005-06-08 | BA130: 14 | BB130: 459.12
B131: 1993-09-21 | C131: 6.15 | D131: 6.166666667 | E131: 8.716666667 | F131: 6.22738 | H131: 1990-05-16 | I131: 5 | J131: 7.1 | L131: 2007-03-29 | M131: 8 | N131: 6.71 | P131: 2007-03-29 | Q131: 8 | R131: 231.5666667 | T131: 1994-01-21 | U131: 1 | V131: 4.05 | X131: 1984-09-06 | Y131: 1 | Z131: 11.5 | AB131: 1992-12-15 | AC131: 7 | AD131: 138 | AN131: 1996-06-18 | AO131: 8 | AP131: 42.1 | AV131: 1996-06-25 | AW131: 3 | AX131: 172.5 | AZ131: 2005-06-08 | BA131: 9 | BB131: 737.6
B132: 1993-10-05 | C132: 8.966666667 | D132: 10.34 | E132: 12.38333333 | F132: 10.22409267 | H132: 1990-05-16 | I132: 6 | J132: 5.5 | L132: 2007-04-17 | M132: 1 | N132: 8.796666667 | P132: 2007-04-17 | Q132: 1 | R132: 230.88 | T132: 1994-02-01 | U132: 1 | V132: 3.02 | X132: 1984-09-13 | Y132: 1 | Z132: 16 | AB132: 1992-12-15 | AC132: 1 | AD132: 140 | AN132: 1996-06-25 | AO132: 1 | AP132: 42.3 | AV132: 1996-06-25 | AW132: 4 | AX132: 172.6 | AZ132: 2005-06-08 | BA132: 14 | BB132: 742.25
B133: 1993-10-19 | C133: 9.4 | D133: 9.7 | E133: 10.58333333 | F133: 9.68543 | H133: 1990-05-16 | I133: 6 | J133: 6 | L133: 2007-04-17 | M133: 8 | N133: 8.066666667 | P133: 2007-04-17 | Q133: 8 | R133: 228.12 | T133: 1994-02-15 | U133: 1 | V133: 1.77 | X133: 1985-05-03 | Y133: 1 | Z133: 8 | AB133: 1992-12-15 | AC133: 4 | AD133: 140 | AN133: 1996-06-25 | AO133: 2 | AP133: 42.4 | AV133: 1996-06-25 | AW133: 5 | AX133: 181.3 | AZ133: 2005-06-08 | BA133: 9 | BB133: 756.68
B134: 1993-11-02 | C134: 9.233333333 | D134: 9.406666667 | E134: 9.883333333 | F134: 9.397419333 | H134: 1990-05-16 | I134: 6 | J134: 6 | L134: 2007-05-02 | M134: 1 | N134: 3.553333333 | P134: 2007-05-02 | Q134: 1 | R134: 219.58 | T134: 1994-03-01 | U134: 1 | V134: 1.21 | X134: 1985-05-10 | Y134: 1 | Z134: 8 | AB134: 1992-12-15 | AC134: 6 | AD134: 140 | AN134: 1996-06-25 | AO134: 3 | AP134: 43.1 | AV134: 1996-06-25 | AW134: 6 | AX134: 180.9 | AZ134: 2005-06-08 | BA134: 9 | BB134: 813.85
B135: 1993-11-17 | C135: 9.066666667 | D135: 9.413333333 | E135: 8.816666667 | F135: 9.356708667 | H135: 1990-05-16 | I135: 7 | J135: 5.5 | L135: 2007-05-02 | M135: 8 | N135: 4.9 | P135: 2007-05-02 | Q135: 8 | R135: 225.6566667 | T135: 1994-03-15 | U135: 1 | V135: 1.52 | X135: 1985-05-17 | Y135: 1 | Z135: 6 | AB135: 1992-12-15 | AC135: 3 | AD135: 142 | AN135: 1996-06-25 | AO135: 4 | AP135: 43 | AV135: 1996-06-25 | AW135: 7 | AX135: 180.8 | AZ135: 2005-06-08 | BA135: 14 | BB135: 999.11
B136: 1993-11-30 | C136: 8.1 | D136: 7.84 | E136: 8.666666667 | F136: 7.891796 | H136: 1990-05-16 | I136: 7 | J136: 5.9 | L136: 2007-05-16 | M136: 1 | N136: 5.833333333 | P136: 2007-05-16 | Q136: 1 | R136: 207.3833333 | T136: 1994-04-05 | U136: 1 | V136: 3.37 | X136: 1985-05-24 | Y136: 1 | Z136: 6 | AB136: 1992-12-15 | AC136: 5 | AD136: 142 | AN136: 1996-06-25 | AO136: 5 | AP136: 44.2 | AV136: 1996-06-25 | AW136: 8 | AX136: 181.8 | AZ136: 2005-06-22 | BA136: 9 | BB136: 429.24
B137: 1993-12-14 | C137: 7.066666667 | D137: 6.773333333 | E137: 7.3 | F137: 6.821782667 | H137: 1990-05-16 | I137: 7 | J137: 6 | L137: 2007-05-16 | M137: 8 | N137: 4.716666667 | P137: 2007-05-16 | Q137: 8 | R137: 216.5 | T137: 1994-04-19 | U137: 1 | V137: 4.45 | X137: 1985-05-31 | Y137: 1 | Z137: 7 | AB137: 1992-12-15 | AC137: 8 | AD137: 144 | AN137: 1996-06-25 | AO137: 6 | AP137: 43.3 | AV137: 1996-07-02 | AW137: 1 | AX137: 155.2 | AZ137: 2005-06-22 | BA137: 14 | BB137: 435.26
B138: 1994-01-04 | C138: 5.766666667 | D138: 7.14 | E138: 13.28333333 | F138: 7.124952667 | H138: 1990-05-16 | I138: 8 | J138: 5.5 | L138: 2007-06-01 | M138: 1 | N138: 4.37 | P138: 2007-06-01 | Q138: 1 | R138: 166 | T138: 1994-05-03 | U138: 1 | V138: 5.62 | X138: 1985-06-07 | Y138: 1 | Z138: 7 | AB138: 1992-12-22 | AC138: 1 | AD138: 140 | AN138: 1996-06-25 | AO138: 7 | AP138: 45 | AV138: 1996-07-02 | AW138: 2 | AX138: 166.6 | AZ138: 2005-06-22 | BA138: 14 | BB138: 435.34
B139: 1994-01-21 | C139: 6.366666667 | D139: 6.393333333 | E139: 11.38333333 | F139: 6.512860667 | H139: 1990-05-16 | I139: 8 | J139: 6 | L139: 2007-06-01 | M139: 8 | N139: 4.936666667 | P139: 2007-06-01 | Q139: 8 | R139: 202.5966667 | T139: 1994-05-17 | U139: 1 | V139: 6.1 | X139: 1985-06-14 | Y139: 1 | Z139: 8.5 | AB139: 1992-12-22 | AC139: 4 | AD139: 142 | AN139: 1996-06-25 | AO139: 8 | AP139: 45.8 | AV139: 1996-07-02 | AW139: 3 | AX139: 171 | AZ139: 2005-06-22 | BA139: 9 | BB139: 438.62
B140: 1994-02-01 | C140: 7.966666667 | D140: 8.666666667 | E140: 12.86666667 | F140: 8.685286667 | H140: 1990-05-16 | I140: 8 | J140: 7.1 | L140: 2007-06-13 | M140: 1 | N140: 4.773333333 | P140: 2007-06-13 | Q140: 1 | R140: 139.3033333 | T140: 1994-05-31 | U140: 1 | V140: 5.25 | X140: 1985-06-21 | Y140: 1 | Z140: 8 | AB140: 1992-12-22 | AC140: 3 | AD140: 144 | AN140: 1996-07-02 | AO140: 1 | AP140: 39.5 | AV140: 1996-07-02 | AW140: 4 | AX140: 171 | AZ140: 2005-06-22 | BA140: 9 | BB140: 442.51
B141: 1994-02-15 | C141: 5.5 | D141: 6.493333333 | E141: 11.36666667 | F141: 6.493024 | H141: 1990-05-30 | I141: 1 | J141: 6 | L141: 2007-06-13 | M141: 8 | N141: 5.563333333 | P141: 2007-06-13 | Q141: 8 | R141: 187.5166667 | T141: 1994-06-14 | U141: 1 | V141: 3.54 | X141: 1985-06-28 | Y141: 1 | Z141: 8.5 | AB141: 1992-12-22 | AC141: 5 | AD141: 146 | AN141: 1996-07-02 | AO141: 2 | AP141: 37.9 | AV141: 1996-07-02 | AW141: 5 | AX141: 180.5 | AZ141: 2005-06-22 | BA141: 14 | BB141: 484.39
B142: 1994-03-01 | C142: 9.966666667 | D142: 7.793333333 | E142: 11.51666667 | F142: 8.147900667 | H142: 1990-05-30 | I142: 1 | J142: 7.3 | L142: 2007-06-27 | M142: 1 | N142: 5.25 | P142: 2007-06-27 | Q142: 1 | R142: 92.22666667 | T142: 1994-06-28 | U142: 1 | V142: 4.96 | X142: 1985-07-05 | Y142: 1 | Z142: 7 | AB142: 1992-12-22 | AC142: 6 | AD142: 146 | AN142: 1996-07-02 | AO142: 3 | AP142: 38.9 | AV142: 1996-07-02 | AW142: 6 | AX142: 179.3 | AZ142: 2005-07-13 | BA142: 9 | BB142: 520.25
B143: 1994-03-15 | C143: 5.133333333 | D143: 7.246666667 | E143: 12.56666667 | F143: 7.121825333 | H143: 1990-05-30 | I143: 1 | J143: 7.5 | L143: 2007-06-27 | M143: 8 | N143: 6.763333333 | P143: 2007-06-27 | Q143: 8 | R143: 188.6333333 | T143: 1994-07-12 | U143: 1 | V143: 4.82 | X143: 1985-07-12 | Y143: 1 | Z143: 8 | AB143: 1992-12-22 | AC143: 8 | AD143: 146 | AN143: 1996-07-02 | AO143: 4 | AP143: 39.1 | AV143: 1996-07-02 | AW143: 7 | AX143: 182.5 | AZ143: 2005-07-13 | BA143: 14 | BB143: 539.03
B144: 1994-04-05 | C144: 4.7 | D144: 4.9 | E144: 6.9 | F144: 4.925 | H144: 1990-05-30 | I144: 3 | J144: 10.8 | L144: 2007-07-11 | M144: 1 | N144: 4.916666667 | P144: 2007-07-11 | Q144: 1 | R144: 56.89 | T144: 1994-07-26 | U144: 1 | V144: 3.66 | X144: 1985-07-19 | Y144: 1 | Z144: 8 | AB144: 1992-12-22 | AC144: 7 | AD144: 148 | AN144: 1996-07-02 | AO144: 5 | AP144: 40.8 | AV144: 1996-07-02 | AW144: 8 | AX144: 182.1 | AZ144: 2005-07-13 | BA144: 14 | BB144: 546.01
B145: 1994-04-19 | C145: 6.933333333 | D145: 6.506666667 | E145: 7.683333333 | F145: 6.587239333 | H145: 1990-05-30 | I145: 3 | J145: 12.7 | L145: 2007-07-11 | M145: 8 | N145: 5.336666667 | P145: 2007-07-11 | Q145: 8 | R145: 269.13 | T145: 1994-08-09 | U145: 1 | V145: 2.98 | X145: 1985-07-26 | Y145: 1 | Z145: 12 | AB145: 1993-01-12 | AC145: 6 | AD145: 140 | AN145: 1996-07-02 | AO145: 6 | AP145: 42 | AV145: 1996-07-09 | AW145: 1 | AX145: 167.9 | AZ145: 2005-07-13 | BA145: 9 | BB145: 547.11
B146: 1994-05-03 | C146: 7.033333333 | D146: 8.973333333 | E146: 10.56666667 | F146: 8.777789333 | H146: 1990-05-30 | I146: 3 | J146: 12.7 | L146: 2007-07-25 | M146: 1 | N146: 4.72 | P146: 2007-07-25 | Q146: 1 | R146: 12.45333333 | T146: 1994-08-23 | U146: 1 | V146: 2.52 | X146: 1985-08-02 | Y146: 1 | Z146: 12.5 | AB146: 1993-01-12 | AC146: 8 | AD146: 140 | AN146: 1996-07-02 | AO146: 7 | AP146: 40.6 | AV146: 1996-07-09 | AW146: 2 | AX146: 167.1 | AZ146: 2005-07-13 | BA146: 14 | BB146: 553.2
B147: 1994-05-17 | C147: 8.033333333 | D147: 9.726666667 | E147: 14 | F147: 9.626897333 | H147: 1990-05-30 | I147: 4 | J147: 7.9 | L147: 2007-07-25 | M147: 8 | N147: 4.56 | P147: 2007-07-25 | Q147: 8 | R147: 310.3366667 | T147: 1994-09-06 | U147: 1 | V147: 2.76 | X147: 1985-08-09 | Y147: 1 | Z147: 12 | AB147: 1993-01-12 | AC147: 4 | AD147: 144 | AN147: 1996-07-02 | AO147: 8 | AP147: 42.3 | AV147: 1996-07-09 | AW147: 3 | AX147: 166.5 | AZ147: 2005-07-13 | BA147: 9 | BB147: 565.26
B148: 1994-05-31 | C148: 9.566666667 | D148: 9.733333333 | E148: 19.13333333 | F148: 9.944406667 | H148: 1990-05-30 | I148: 4 | J148: 8.4 | L148: 2007-08-08 | M148: 1 | N148: 4.196666667 | P148: 2007-08-08 | Q148: 1 | R148: 13.54666667 | T148: 1994-09-20 | U148: 1 | V148: 1.69 | X148: 1985-08-16 | Y148: 1 | Z148: 12 | AB148: 1993-01-12 | AC148: 1 | AD148: 150 | AN148: 1996-07-09 | AO148: 1 | AP148: 40.9 | AV148: 1996-07-09 | AW148: 4 | AX148: 184.8 | AZ148: 2005-07-27 | BA148: 14 | BB148: 542.79
B149: 1994-06-14 | C149: 8.233333333 | D149: 9.833333333 | E149: 15.33333333 | F149: 9.775033333 | H149: 1990-05-30 | I149: 4 | J149: 8.4 | L149: 2007-08-08 | M149: 8 | N149: 5.11 | P149: 2007-08-08 | Q149: 8 | R149: 264.2333333 | T149: 1994-10-04 | U149: 1 | V149: 3.23 | X149: 1985-08-23 | Y149: 1 | Z149: 13 | AB149: 1993-01-12 | AC149: 3 | AD149: 150 | AN149: 1996-07-09 | AO149: 2 | AP149: 40 | AV149: 1996-07-09 | AW149: 5 | AX149: 179.2 | AZ149: 2005-07-27 | BA149: 9 | BB149: 639.25
B150: 1994-06-28 | C150: 7.7 | D150: 8.226666667 | E150: 11.8 | F150: 8.250844 | H150: 1990-05-30 | I150: 5 | J150: 8.4 | L150: 2007-08-22 | M150: 1 | N150: 4.89 | P150: 2007-08-22 | Q150: 1 | R150: 6.143333333 | T150: 1994-10-18 | U150: 1 | V150: 4.01 | X150: 1985-08-30 | Y150: 1 | Z150: 14.5 | AB150: 1993-01-12 | AC150: 5 | AD150: 150 | AN150: 1996-07-09 | AO150: 3 | AP150: 40.9 | AV150: 1996-07-09 | AW150: 6 | AX150: 180.6 | AZ150: 2005-07-27 | BA150: 14 | BB150: 647.76
B151: 1994-07-12 | C151: 6.3 | D151: 6.986666667 | E151: 8.233333333 | F151: 6.934248 | H151: 1990-05-30 | I151: 5 | J151: 10.8 | L151: 2007-08-22 | M151: 8 | N151: 5.026666667 | P151: 2007-08-22 | Q151: 8 | R151: 197.0166667 | T151: 1994-11-01 | U151: 1 | V151: 3.28 | X151: 1985-09-06 | Y151: 1 | Z151: 10 | AB151: 1993-01-12 | AC151: 7 | AD151: 150 | AN151: 1996-07-09 | AO151: 4 | AP151: 42.9 | AV151: 1996-07-09 | AW151: 7 | AX151: 180.2 | AZ151: 2005-07-27 | BA151: 14 | BB151: 662.48
B152: 1994-07-26 | C152: 5.1 | D152: 6.9 | E152: 7.733333333 | F152: 6.7027 | H152: 1990-05-30 | I152: 5 | J152: 11.4 | L152: 2007-09-05 | M152: 1 | N152: 4.333333333 | P152: 2007-09-05 | Q152: 1 | R152: 1.906666667 | T152: 1994-11-15 | U152: 1 | V152: 6.46 | X152: 1985-09-13 | Y152: 1 | Z152: 14 | AB152: 1993-01-26 | AC152: 3 | AD152: 142 | AN152: 1996-07-09 | AO152: 5 | AP152: 44.6 | AV152: 1996-07-09 | AW152: 8 | AX152: 185.7 | AZ152: 2005-07-27 | BA152: 9 | BB152: 663.96
B153: 1994-08-09 | C153: 7.366666667 | D153: 7.853333333 | E153: 10.56666667 | F153: 7.861194667 | H153: 1990-05-30 | I153: 6 | J153: 7.5 | L153: 2007-09-05 | M153: 8 | N153: 6.18 | P153: 2007-09-05 | Q153: 8 | R153: 137.0333333 | T153: 1994-11-29 | U153: 1 | V153: 6.86 | X153: 1986-05-10 | Y153: 1 | Z153: 10.5 | AB153: 1993-01-26 | AC153: 5 | AD153: 142 | AN153: 1996-07-09 | AO153: 6 | AP153: 43.4 | AV153: 1996-07-16 | AW153: 1 | AX153: 166.2 | AZ153: 2005-07-27 | BA153: 9 | BB153: 688.52
B154: 1994-08-23 | C154: 5.8 | D154: 6.386666667 | E154: 9.833333333 | F154: 6.400468 | H154: 1990-05-30 | I154: 6 | J154: 9.4 | L154: 2007-09-26 | M154: 1 | N154: 5.163333333 | P154: 2007-09-26 | Q154: 1 | R154: 19.48 | T154: 1994-12-13 | U154: 1 | V154: 6.56 | X154: 1986-05-17 | Y154: 1 | Z154: 8.5 | AB154: 1993-01-26 | AC154: 4 | AD154: 148 | AN154: 1996-07-09 | AO154: 7 | AP154: 44.5 | AV154: 1996-07-16 | AW154: 2 | AX154: 164.9 | AZ154: 2005-08-10 | BA154: 9 | BB154: 4898.14
B155: 1994-09-06 | C155: 7.466666667 | D155: 6.806666667 | E155: 9.066666667 | F155: 6.942122667 | H155: 1990-05-30 | I155: 6 | J155: 11.8 | L155: 2007-09-26 | M155: 8 | N155: 6.543333333 | P155: 2007-09-26 | Q155: 8 | R155: 22.77 | T155: 1994-12-27 | U155: 1 | V155: 6.7 | X155: 1986-05-24 | Y155: 1 | Z155: 7.5 | AB155: 1993-01-26 | AC155: 6 | AD155: 148 | AN155: 1996-07-09 | AO155: 8 | AP155: 44.6 | AV155: 1996-07-16 | AW155: 3 | AX155: 164.1 | AZ155: 2005-08-10 | BA155: 9 | BB155: 4997.58
B156: 1994-09-20 | C156: 6.066666667 | D156: 7.221428571 | E156: 9.916666667 | F156: 7.148005238 | H156: 1990-05-30 | I156: 7 | J156: 13.7 | L156: 2007-10-10 | M156: 1 | N156: 6.333333333 | P156: 2007-10-10 | Q156: 1 | R156: 23.03333333 | T156: 1995-01-24 | U156: 1 | V156: 3.25 | X156: 1986-05-31 | Y156: 1 | Z156: 6 | AB156: 1993-01-26 | AC156: 7 | AD156: 148 | AN156: 1996-07-16 | AO156: 1 | AP156: 43.2 | AV156: 1996-07-16 | AW156: 4 | AX156: 163.2 | AZ156: 2005-08-10 | BA156: 9 | BB156: 5118.48
B157: 1994-10-04 | C157: 6.666666667 | D157: 7.22 | E157: 8.05 | F157: 7.173464667 | H157: 1990-05-30 | I157: 7 | J157: 14.1 | L157: 2007-10-10 | M157: 8 | N157: 6.313333333 | P157: 2007-10-10 | Q157: 8 | R157: 11.51 | T157: 1995-02-07 | U157: 1 | V157: 2.18 | X157: 1986-06-07 | Y157: 1 | Z157: 5 | AB157: 1993-01-26 | AC157: 1 | AD157: 150 | AN157: 1996-07-16 | AO157: 2 | AP157: 42.1 | AV157: 1996-07-16 | AW157: 5 | AX157: 180.9 | AZ157: 2005-08-10 | BA157: 14 | BB157: 12200.68
B158: 1994-10-18 | C158: 7.666666667 | D158: 7.386666667 | E158: 8.816666667 | F158: 7.455724667 | H158: 1990-05-30 | I158: 7 | J158: 16.5 | L158: 2007-10-24 | M158: 1 | N158: 6.24 | P158: 2007-10-24 | Q158: 1 | R158: 33.79666667 | T158: 1995-02-21 | U158: 1 | V158: 1.27 | X158: 1986-06-14 | Y158: 1 | Z158: 4 | AB158: 1993-02-09 | AC158: 4 | AD158: 150 | AN158: 1996-07-16 | AO158: 3 | AP158: 42.5 | AV158: 1996-07-16 | AW158: 6 | AX158: 183.8 | AZ158: 2005-08-10 | BA158: 14 | BB158: 12594.51
B159: 1994-11-01 | C159: 9.4 | D159: 9.64 | E159: 10.11666667 | F159: 9.622686 | H159: 1990-05-30 | I159: 8 | J159: 18.4 | L159: 2007-10-24 | M159: 8 | N159: 6.62 | P159: 2007-10-24 | Q159: 8 | R159: 16.61666667 | T159: 1995-03-07 | U159: 1 | V159: 1.79 | X159: 1986-06-21 | Y159: 1 | Z159: 4 | AB159: 1993-02-09 | AC159: 6 | AD159: 150 | AN159: 1996-07-16 | AO159: 4 | AP159: 44.7 | AV159: 1996-07-16 | AW159: 7 | AX159: 183.9 | AZ159: 2005-08-10 | BA159: 14 | BB159: 13300.79
B160: 1994-11-15 | C160: 10.23333333 | D160: 10.46 | E160: 11.2 | F160: 10.45077733 | H160: 1990-05-30 | I160: 8 | J160: 18.9 | L160: 2007-11-07 | M160: 1 | N160: 7.006666667 | P160: 2007-11-07 | Q160: 1 | R160: 72.13333333 | T160: 1995-03-28 | U160: 1 | V160: 2.02 | X160: 1986-06-28 | Y160: 1 | Z160: 5 | AB160: 1993-02-09 | AC160: 3 | AD160: 152 | AN160: 1996-07-16 | AO160: 5 | AP160: 46.4 | AV160: 1996-07-16 | AW160: 8 | AX160: 184.3 | AZ160: 2005-08-24 | BA160: 9 | BB160: 7412.62
B161: 1994-11-29 | C161: 11.93333333 | D161: 12.34666667 | E161: 12.8 | F161: 12.30780533 | H161: 1990-05-30 | I161: 8 | J161: 19.4 | L161: 2007-11-07 | M161: 8 | N161: 6.793333333 | P161: 2007-11-07 | Q161: 8 | R161: 73.32333333 | T161: 1995-04-11 | U161: 1 | V161: 3.8 | X161: 1986-07-05 | Y161: 1 | Z161: 6 | AB161: 1993-02-09 | AC161: 5 | AD161: 154 | AN161: 1996-07-16 | AO161: 6 | AP161: 46.4 | AV161: 1996-07-23 | AW161: 1 | AX161: 166.5 | AZ161: 2005-08-24 | BA161: 14 | BB161: 12618.74
B162: 1994-12-13 | C162: 8.866666667 | D162: 9.1 | E162: 8.966666667 | F162: 9.068486667 | H162: 1990-06-14 | I162: 1 | J162: 10.2 | L162: 2008-02-01 | M162: 1 | N162: 6.753333333 | P162: 2008-02-01 | Q162: 1 | R162: 196.3166667 | T162: 1995-04-25 | U162: 1 | V162: 6.27 | X162: 1986-07-12 | Y162: 1 | Z162: 8 | AB162: 1993-02-09 | AC162: 7 | AD162: 156 | AN162: 1996-07-16 | AO162: 7 | AP162: 46.8 | AV162: 1996-07-23 | AW162: 2 | AX162: 164.8 | AZ162: 2005-08-24 | BA162: 14 | BB162: 13104
B163: 1994-12-27 | C163: 7.7 | D163: 7.98 | E163: 7.616666667 | F163: 7.937182 | H163: 1990-06-14 | I163: 1 | J163: 10.2 | L163: 2008-02-01 | M163: 8 | N163: 8.756666667 | P163: 2008-02-01 | Q163: 8 | R163: 226.2766667 | T163: 1995-05-09 | U163: 1 | V163: 6.26 | X163: 1986-07-19 | Y163: 1 | Z163: 10 | AB163: 1993-02-09 | AC163: 1 | AD163: 158 | AN163: 1996-07-16 | AO163: 8 | AP163: 45.5 | AV163: 1996-07-23 | AW163: 3 | AX163: 163.2 | AZ163: 2005-08-24 | BA163: 14 | BB163: 13488.5
B164: 1995-01-24 | C164: 7.633333333 | D164: 7.886666667 | E164: 13.4 | F164: 7.991641333 | H164: 1990-06-14 | I164: 1 | J164: 10.8 | L164: 2008-02-14 | M164: 1 | N164: 8.516666667 | P164: 2008-02-14 | Q164: 1 | R164: 197.0166667 | T164: 1995-05-23 | U164: 1 | V164: 5.12 | X164: 1986-07-26 | Y164: 1 | Z164: 12.5 | AB164: 1993-02-23 | AC164: 1 | AD164: 150 | AN164: 1996-07-23 | AO164: 1 | AP164: 39.1 | AV164: 1996-07-23 | AW164: 4 | AX164: 165.7 | AZ164: 2005-08-24 | BA164: 9 | BB164: 15442.63
B165: 1995-02-07 | C165: 5.633333333 | D165: 7.226666667 | E165: 8.833333333 | F165: 7.073397333 | H165: 1990-06-14 | I165: 3 | J165: 12.3 | L165: 2008-02-14 | M165: 8 | N165: 10.34 | P165: 2008-02-14 | Q165: 8 | R165: 256.38 | T165: 1995-06-06 | U165: 1 | V165: 4.88 | X165: 1986-08-02 | Y165: 1 | Z165: 11 | AB165: 1993-02-23 | AC165: 3 | AD165: 150 | AN165: 1996-07-23 | AO165: 2 | AP165: 37.8 | AV165: 1996-07-23 | AW165: 5 | AX165: 179.9 | AZ165: 2005-08-24 | BA165: 9 | BB165: 15654.85
B166: 1995-02-21 | C166: 4.333333333 | D166: 5.94 | E166: 10.7 | F166: 5.862689333 | H166: 1990-06-14 | I166: 3 | J166: 12.8 | L166: 2008-03-05 | M166: 1 | N166: 5.643333333 | P166: 2008-03-05 | Q166: 1 | R166: 228.4533333 | T166: 1995-06-20 | U166: 1 | V166: 3.22 | X166: 1986-08-09 | Y166: 1 | Z166: 9 | AB166: 1993-02-23 | AC166: 6 | AD166: 150 | AN166: 1996-07-23 | AO166: 3 | AP166: 37.7 | AV166: 1996-07-23 | AW166: 6 | AX166: 181.5 | AZ166: 2005-09-07 | BA166: 9 | BB166: 7674.93
B167: 1995-03-07 | C167: 8.233333333 | D167: 6.833333333 | E167: 11.25 | F167: 7.111383333 | H167: 1990-06-14 | I167: 3 | J167: 13.3 | L167: 2008-03-05 | M167: 8 | N167: 6.39 | P167: 2008-03-05 | Q167: 8 | R167: 302.4733333 | T167: 1995-07-03 | U167: 1 | V167: 1.75 | X167: 1986-08-16 | Y167: 1 | Z167: 14.5 | AB167: 1993-02-23 | AC167: 7 | AD167: 150 | AN167: 1996-07-23 | AO167: 4 | AP167: 38.8 | AV167: 1996-07-23 | AW167: 7 | AX167: 182.9 | AZ167: 2005-09-07 | BA167: 9 | BB167: 7904.34
B168: 1995-03-28 | C168: 7 | D168: 7.133333333 | E168: 7.416666667 | F168: 7.12417 | H168: 1990-06-14 | I168: 4 | J168: 10.8 | L168: 2008-03-20 | M168: 1 | N168: 3.996666667 | P168: 2008-03-20 | Q168: 1 | R168: 275.7 | T168: 1995-07-18 | U168: 1 | V168: 3.86 | X168: 1986-08-23 | Y168: 1 | Z168: 13 | AB168: 1993-02-23 | AC168: 8 | AD168: 152 | AN168: 1996-07-23 | AO168: 5 | AP168: 42.9 | AV168: 1996-07-23 | AW168: 8 | AX168: 184.7 | AZ168: 2005-09-07 | BA168: 9 | BB168: 8157.8
B169: 1995-04-11 | C169: 8.266666667 | D169: 9.193333333 | E169: 9.016666667 | F169: =0.121*C169+0.8544*D169+0.0246*E169 -> 9.076860667 | H169: 1990-06-14 | I169: 4 | J169: 11.3 | L169: 2008-03-20 | M169: 8 | N169: 3.253333333 | P169: 2008-03-20 | Q169: 8 | T169: 1995-08-01 | U169: 1 | V169: 2.48 | X169: 1986-08-30 | Y169: 1 | Z169: 13 | AB169: 1993-02-23 | AC169: 4 | AD169: 156 | AN169: 1996-07-23 | AO169: 6 | AP169: 42 | AV169: 1996-07-30 | AW169: 1 | AX169: 168.8 | AZ169: 2005-09-07 | BA169: 14 | BB169: 13189.05
B170: 1995-04-25 | C170: 8.366666667 | D170: 9.18 | E170: 8.983333333 | F170: 9.076748667 | H170: 1990-06-14 | I170: 4 | J170: 11.8 | L170: 2008-04-16 | M170: 1 | N170: 5.196666667 | P170: 2008-04-16 | Q170: 1 | R170: 255.4833333 | T170: 1995-08-15 | U170: 1 | V170: 2.05 | X170: 1986-09-06 | Y170: 1 | Z170: 11 | AB170: 1993-02-23 | AC170: 5 | AD170: 160 | AN170: 1996-07-23 | AO170: 7 | AP170: 42.5 | AV170: 1996-07-30 | AW170: 2 | AX170: 168.4 | AZ170: 2005-09-07 | BA170: 14 | BB170: 13365.73
B171: 1995-05-09 | C171: 9.133333333 | D171: 8.793333333 | E171: 8.333333333 | F171: 8.823157333 | H171: 1990-06-14 | I171: 5 | J171: 9.7 | L171: 2008-04-16 | M171: 8 | N171: 5.88 | P171: 2008-04-16 | Q171: 8 | R171: 253.4866667 | T171: 1995-08-29 | U171: 1 | V171: 4.9 | X171: 1986-09-13 | Y171: 1 | Z171: 13.5 | AB171: 1993-03-23 | AC171: 7 | AD171: 140 | AN171: 1996-07-23 | AO171: 8 | AP171: 43.3 | AV171: 1996-07-30 | AW171: 3 | AX171: 164.2 | AZ171: 2005-09-07 | BA171: 14 | BB171: 13715.5
B172: 1995-05-23 | C172: 8.733333333 | D172: 8.673333333 | E172: 11.01666667 | F172: 8.738239333 | H172: 1990-06-14 | I172: 5 | J172: 10.2 | L172: 2008-04-30 | M172: 1 | N172: 6.333333333 | P172: 2008-04-30 | Q172: 1 | R172: 244.9966667 | T172: 1995-09-12 | U172: 1 | V172: 3.71 | X172: 1986-09-20 | Y172: 1 | Z172: 14 | AB172: 1993-03-23 | AC172: 4 | AD172: 148 | AN172: 1996-07-30 | AO172: 1 | AP172: 36.7 | AV172: 1996-07-30 | AW172: 4 | AX172: 166 | AZ172: 2005-09-21 | BA172: 14 | BB172: 6655.01
B173: 1995-06-06 | C173: 6.266666667 | D173: 8.433333333 | E173: 17 | F173: 8.381906667 | H173: 1990-06-14 | I173: 5 | J173: 10.2 | L173: 2008-04-30 | M173: 8 | N173: 7.093333333 | P173: 2008-04-30 | Q173: 8 | R173: 246.4033333 | T173: 1995-09-26 | U173: 1 | V173: 3.29 | X173: 1987-05-03 | Y173: 1 | Z173: 10.5 | AB173: 1993-03-23 | AC173: 6 | AD173: 150 | AN173: 1996-07-30 | AO173: 2 | AP173: 36.6 | AV173: 1996-07-30 | AW173: 5 | AX173: 182.2 | AZ173: 2005-09-21 | BA173: 14 | BB173: 6679.37
B174: 1995-06-20 | C174: 6.966666667 | D174: 8.38 | E174: 13.08333333 | F174: 8.324688667 | H174: 1990-06-14 | I174: 6 | J174: 8.2 | L174: 2008-05-15 | M174: 1 | N174: 4.916666667 | P174: 2008-05-15 | Q174: 1 | R174: 234.72 | T174: 1995-10-10 | U174: 1 | V174: 3.69 | X174: 1987-05-10 | Y174: 1 | Z174: 10 | AB174: 1993-03-23 | AC174: 1 | AD174: 152 | AN174: 1996-07-30 | AO174: 3 | AP174: 37.3 | AV174: 1996-07-30 | AW174: 6 | AX174: 185.4 | AZ174: 2005-09-21 | BA174: 14 | BB174: 6692.22
B175: 1995-07-03 | C175: 9.366666667 | D175: 7.971428571 | E175: 10.8 | F175: 8.209835238 | H175: 1990-06-14 | I175: 6 | J175: 8.7 | L175: 2008-05-15 | M175: 8 | N175: 7.09 | P175: 2008-05-15 | Q175: 8 | R175: 252.0533333 | T175: 1995-10-24 | U175: 1 | V175: 4.92 | X175: 1987-05-17 | Y175: 1 | Z175: 8.5 | AB175: 1993-03-23 | AC175: 3 | AD175: 152 | AN175: 1996-07-30 | AO175: 4 | AP175: 37.3 | AV175: 1996-07-30 | AW175: 7 | AX175: 183.9 | AZ175: 2005-09-21 | BA175: 9 | BB175: 8500.61
B176: 1995-07-18 | C176: 8.333333333 | D176: 9.32 | E176: 9.95 | F176: 9.216111333 | H176: 1990-06-14 | I176: 6 | J176: 8.9 | L176: 2008-05-23 | M176: 1 | N176: 5.85 | P176: 2008-05-23 | Q176: 1 | R176: 222.1 | T176: 1995-11-07 | U176: 1 | V176: 3.74 | X176: 1987-05-24 | Y176: 1 | Z176: 9 | AB176: 1993-04-21 | AC176: 5 | AD176: 140 | AN176: 1996-07-30 | AO176: 5 | AP176: 42.9 | AV176: 1996-07-30 | AW176: 8 | AX176: 187.2 | AZ176: 2005-09-21 | BA176: 9 | BB176: 8514.64
B177: 1995-08-01 | C177: 4.45 | D177: 6.033333333 | E177: 8.183333333 | F177: 5.89464 | H177: 1990-06-14 | I177: 7 | J177: 12.3 | L177: 2008-05-23 | M177: 8 | N177: 6.563333333 | P177: 2008-05-23 | Q177: 8 | R177: 262.3833333 | T177: 1995-11-21 | U177: 1 | V177: 5.41 | X177: 1987-05-31 | Y177: 1 | Z177: 9 | AB177: 1993-04-21 | AC177: 3 | AD177: 144 | AN177: 1996-07-30 | AO177: 6 | AP177: 41.7 | AV177: 1996-08-06 | AW177: 1 | AX177: 170.9 | AZ177: 2005-09-21 | BA177: 9 | BB177: 8516.99
B178: 1995-08-15 | C178: 4.866666667 | D178: 6.064285714 | E178: 8.066666667 | F178: 5.968632381 | H178: 1990-06-14 | I178: 7 | J178: 13.5 | L178: 2008-06-04 | M178: 1 | N178: 6.166666667 | P178: 2008-06-04 | Q178: 1 | R178: 211.3266667 | T178: 1995-12-05 | U178: 1 | V178: 3.11 | X178: 1987-06-07 | Y178: 1 | Z178: 8 | AB178: 1993-04-21 | AC178: 4 | AD178: 144 | AN178: 1996-07-30 | AO178: 7 | AP178: 41.8 | AV178: 1996-08-06 | AW178: 2 | AX178: 168.9 | AZ178: 2005-10-05 | BA178: 14 | BB178: 8177.39
B179: 1995-08-29 | C179: 7.1 | D179: 7.313333333 | E179: 11.35 | F179: 7.386822 | H179: 1990-06-14 | I179: 7 | J179: 14.9 | L179: 2008-06-04 | M179: 8 | N179: 7.676666667 | P179: 2008-06-04 | Q179: 8 | R179: 284.97 | T179: 1995-12-22 | U179: 1 | V179: 2.76 | X179: 1987-06-14 | Y179: 1 | Z179: 10.5 | AB179: 1993-04-21 | AC179: 6 | AD179: 144 | AN179: 1996-07-30 | AO179: 8 | AP179: 41.7 | AV179: 1996-08-06 | AW179: 3 | AX179: 171.8 | AZ179: 2005-10-05 | BA179: 9 | BB179: 9213.71
B180: 1995-09-12 | C180: 7.866666667 | D180: 7.113333333 | E180: 9.466666667 | F180: 7.262378667 | H180: 1990-06-14 | I180: 8 | J180: 15.4 | L180: 2008-06-20 | M180: 1 | N180: 5.806666667 | P180: 2008-06-20 | Q180: 1 | R180: 177.22 | T180: 1996-01-02 | U180: 1 | V180: 2.46 | X180: 1987-06-21 | Y180: 1 | Z180: 7 | AB180: 1993-04-21 | AC180: 7 | AD180: 144 | AN180: 1996-08-06 | AO180: 1 | AP180: 38.8 | AV180: 1996-08-06 | AW180: 4 | AX180: 166.9 | AZ180: 2005-10-05 | BA180: 9 | BB180: 9679.03
B181: 1995-09-26 | C181: 8.866666667 | D181: 8.686666667 | E181: 9.183333333 | F181: 8.720664667 | H181: 1990-06-14 | I181: 8 | J181: 15.4 | L181: 2008-06-20 | M181: 8 | N181: 9.61 | P181: 2008-06-20 | Q181: 8 | R181: 278.4766667 | T181: 1996-01-16 | U181: 1 | V181: 1.7 | X181: 1987-06-28 | Y181: 1 | Z181: 13 | AB181: 1993-04-21 | AC181: 2 | AD181: 146 | AN181: 1996-08-06 | AO181: 2 | AP181: 40.5 | AV181: 1996-08-06 | AW181: 5 | AX181: 186.1 | AZ181: 2005-10-05 | BA181: 9 | BB181: 10402.46
B182: 1995-10-10 | C182: 8.333333333 | D182: 7.686666667 | E182: 9.25 | F182: 7.803371333 | H182: 1990-06-14 | I182: 8 | J182: 15.4 | L182: 2008-10-09 | M182: 1 | N182: 14.02666667 | P182: 2008-07-01 | Q182: 1 | R182: 141.2766667 | T182: 1996-01-31 | U182: 1 | V182: 1.17 | X182: 1987-07-05 | Y182: 1 | Z182: 14 | AB182: 1993-04-21 | AC182: 8 | AD182: 146 | AN182: 1996-08-06 | AO182: 3 | AP182: 42.2 | AV182: 1996-08-06 | AW182: 6 | AX182: 186.5 | AZ182: 2005-10-05 | BA182: 14 | BB182: 12976.79
B183: 1995-10-24 | C183: 10.56666667 | D183: 10.35333333 | E183: 9.866666667 | F183: 10.36717467 | H183: 1990-06-27 | I183: 1 | J183: 7.4 | L183: 2008-10-09 | M183: 8 | N183: 6.883333333 | P183: 2008-07-01 | Q183: 8 | R183: 294.85 | T183: 1996-02-13 | U183: 1 | V183: 0.96 | X183: 1987-07-12 | Y183: 1 | Z183: 12.5 | AB183: 1993-04-21 | AC183: 1 | AD183: 156 | AN183: 1996-08-06 | AO183: 4 | AP183: 42 | AV183: 1996-08-06 | AW183: 7 | AX183: 184.3 | AZ183: 2005-10-05 | BA183: 14 | BB183: 13232.1
B184: 1995-11-07 | C184: 11.33333333 | D184: 11.03333333 | E184: 10.08333333 | F184: 11.04626333 | H184: 1990-06-27 | I184: 1 | J184: 9.3 | L184: 2008-10-15 | M184: 1 | N184: 6.363333333 | P184: 2008-07-17 | Q184: 1 | R184: 77.68 | T184: 1996-02-27 | U184: 1 | V184: 0.76 | X184: 1987-07-19 | Y184: 1 | Z184: 13.5 | AB184: 1993-05-04 | AC184: 3 | AD184: 138 | AN184: 1996-08-06 | AO184: 5 | AP184: 47.2 | AV184: 1996-08-06 | AW184: 8 | AX184: 198.6
B185: 1995-11-21 | C185: 12.23333333 | D185: 10.90666667 | E185: 10.78333333 | F185: 11.06415933 | H185: 1990-06-27 | I185: 1 | J185: 9.5 | L185: 2008-10-15 | M185: 8 | N185: 7.303333333 | P185: 2008-07-17 | Q185: 8 | R185: 283.7033333 | T185: 1996-03-12 | U185: 1 | V185: 1.39 | X185: 1987-07-26 | Y185: 1 | Z185: 14.5 | AB185: 1993-05-04 | AC185: 6 | AD185: 138 | AN185: 1996-08-06 | AO185: 6 | AP185: 47.7 | AV185: 1996-08-20 | AW185: 1 | AX185: 153.2
B186: 1995-12-05 | C186: 8.5 | D186: 8.78 | E186: 8.766666667 | F186: 8.745792 | H186: 1990-06-27 | I186: 3 | J186: 11.6 | L186: 2008-10-30 | M186: 1 | N186: 5.373333333 | P186: 2008-07-30 | Q186: 1 | R186: 28.09333333 | T186: 1996-03-19 | U186: 1 | V186: 2.53 | X186: 1987-08-02 | Y186: 1 | Z186: 9 | AB186: 1993-05-04 | AC186: 2 | AD186: 140 | AN186: 1996-08-06 | AO186: 7 | AP186: 47.5 | AV186: 1996-08-20 | AW186: 2 | AX186: 161.2
B187: 1995-12-22 | C187: 7.133333333 | D187: 7.12 | E187: 9.8 | F187: 7.187541333 | H187: 1990-06-27 | I187: 3 | J187: 12.2 | L187: 2008-10-30 | M187: 8 | N187: 7.856666667 | P187: 2008-07-30 | Q187: 8 | R187: 243.7766667 | T187: 1996-04-16 | U187: 1 | V187: 1.63 | X187: 1987-08-09 | Y187: 1 | Z187: 9 | AB187: 1993-05-04 | AC187: 1 | AD187: 142 | AN187: 1996-08-06 | AO187: 8 | AP187: 47.7 | AV187: 1996-08-20 | AW187: 3 | AX187: 169.1
B188: 1996-01-02 | C188: 7.633333333 | D188: 6.713333333 | E188: 11.18333333 | F188: 6.934615333 | H188: 1990-06-27 | I188: 3 | J188: 16.1 | L188: 2008-11-12 | M188: 1 | N188: 6.846666667 | P188: 2008-08-14 | Q188: 1 | R188: 7.93 | T188: 1996-04-23 | U188: 1 | V188: 2.09 | X188: 1987-08-16 | Y188: 1 | Z188: 10.5 | AB188: 1993-05-04 | AC188: 4 | AD188: 144 | AN188: 1996-08-20 | AO188: 1 | AP188: 40.1 | AV188: 1996-08-20 | AW188: 4 | AX188: 161.3
B189: 1996-01-16 | C189: 7.833333333 | D189: 6.633333333 | E189: 11.01666667 | F189: 6.886363333 | H189: 1990-06-27 | I189: 4 | J189: 9.3 | L189: 2008-11-12 | M189: 8 | N189: 7.896666667 | P189: 2008-08-14 | Q189: 8 | R189: 182.5233333 | T189: 1996-04-30 | U189: 1 | V189: 2.31 | X189: 1987-08-23 | Y189: 1 | Z189: 11.5 | AB189: 1993-05-04 | AC189: 5 | AD189: 146 | AN189: 1996-08-20 | AO189: 2 | AP189: 40.6 | AV189: 1996-08-20 | AW189: 5 | AX189: 172.5
B190: 1996-01-31 | C190: 7.366666667 | D190: 5.32 | E190: 11.41666667 | F190: 5.717624667 | H190: 1990-06-27 | I190: 4 | J190: 9.3 | L190: 2009-01-27 | M190: 1 | N190: 8.03 | P190: 2008-08-27 | Q190: 1 | R190: 6.453333333 | T190: 1996-05-07 | U190: 1 | V190: 2.54 | X190: 1987-08-30 | Y190: 1 | Z190: 12 | AB190: 1993-05-04 | AC190: 8 | AD190: 146 | AN190: 1996-08-20 | AO190: 3 | AP190: 39.9 | AV190: 1996-08-20 | AW190: 6 | AX190: 180.6
B191: 1996-02-13 | C191: 7.913333333 | D191: 7.913333333 | E191: 12.13333333 | F191: 8.017145333 | H191: 1990-06-27 | I191: 4 | J191: 11.6 | L191: 2009-01-27 | M191: 8 | N191: 9.67 | P191: 2008-08-27 | Q191: 8 | R191: 125.66 | T191: 1996-05-14 | U191: 1 | V191: 3.89 | X191: 1987-09-06 | Y191: 1 | Z191: 10.5 | AB191: 1993-05-04 | AC191: 7 | AD191: 150 | AN191: 1996-08-20 | AO191: 4 | AP191: 41.4 | AV191: 1996-08-20 | AW191: 7 | AX191: 187.9
B192: 1996-02-27 | C192: 20.65 | D192: 6.566666667 | E192: 12.16666667 | F192: 8.40851 | H192: 1990-06-27 | I192: 5 | J192: 8.4 | P192: 2008-09-10 | Q192: 1 | R192: 14.06 | T192: 1996-05-21 | U192: 1 | V192: 3.42 | X192: 1987-09-13 | Y192: 1 | Z192: 9 | AB192: 1993-05-18 | AC192: 2 | AD192: 136 | AN192: 1996-08-20 | AO192: 5 | AP192: 46.8 | AV192: 1996-08-20 | AW192: 8 | AX192: 179
B193: 1996-03-12 | C193: 6.533333333 | D193: 7.093333333 | E193: 13.45 | F193: 7.181947333 | H193: 1990-06-27 | I193: 5 | J193: 8.8 | P193: 2008-09-10 | Q193: 8 | R193: 40.62 | T193: 1996-05-28 | U193: 1 | V193: 2.98 | X193: 1987-09-20 | Y193: 1 | Z193: 9 | AB193: 1993-05-18 | AC193: 3 | AD193: 144 | AN193: 1996-08-20 | AO193: 6 | AP193: 46 | AV193: 1996-09-03 | AW193: 1 | AX193: 160.6
B194: 1996-03-19 | C194: 9.713333333 | D194: 9.713333333 | E194: 13.63333333 | F194: 9.809765333 | H194: 1990-06-27 | I194: 5 | J194: 11.2 | P194: 2008-09-23 | Q194: 1 | R194: 22.17666667 | T194: 1996-06-04 | U194: 1 | V194: 2.91 | X194: 1988-05-03 | Y194: 1 | Z194: 9 | AB194: 1993-05-18 | AC194: 4 | AD194: 144 | AN194: 1996-08-20 | AO194: 7 | AP194: 46 | AV194: 1996-09-03 | AW194: 2 | AX194: 161.7
B195: 1996-04-16 | C195: 6.4 | D195: 6.713333333 | E195: 6.283333333 | F195: 6.664842 | H195: 1990-06-27 | I195: 6 | J195: 8.2 | P195: 2008-09-23 | Q195: 8 | R195: 11.83 | T195: 1996-06-11 | U195: 1 | V195: 1.53 | X195: 1988-05-10 | Y195: 1 | Z195: 7 | AB195: 1993-05-18 | AC195: 5 | AD195: 144 | AN195: 1996-08-20 | AO195: 8 | AP195: 46.4 | AV195: 1996-09-03 | AW195: 3 | AX195: 164.5
B196: 1996-04-23 | C196: 7.566666667 | D196: 6.7 | E196: 7.516666667 | F196: 6.824956667 | H196: 1990-06-27 | I196: 6 | J196: 8.4 | P196: 2008-10-09 | Q196: 1 | R196: 29.67 | T196: 1996-06-18 | U196: 1 | V196: 2.26 | X196: 1988-05-17 | Y196: 1 | Z196: 7 | AB196: 1993-05-18 | AC196: 6 | AD196: 144 | AN196: 1996-09-03 | AO196: 1 | AP196: 40.4 | AV196: 1996-09-03 | AW196: 4 | AX196: 165.9
B197: 1996-04-30 | C197: 6.366666667 | D197: 7.246666667 | E197: 7.016666667 | F197: 7.134528667 | H197: 1990-06-27 | I197: 6 | J197: 9.3 | P197: 2008-10-09 | Q197: 8 | R197: 14.82666667 | T197: 1996-06-25 | U197: 1 | V197: 2.89 | X197: 1988-05-24 | Y197: 1 | Z197: 5 | AB197: 1993-05-18 | AC197: 8 | AD197: 144 | AN197: 1996-09-03 | AO197: 2 | AP197: 38.5 | AV197: 1996-09-03 | AW197: 5 | AX197: 186.1
B198: 1996-05-07 | C198: 7.466666667 | D198: 6.873333333 | E198: 7.8 | F198: 6.967922667 | H198: 1990-06-27 | I198: 7 | J198: 15.1 | P198: 2008-10-15 | Q198: 1 | R198: 35.01333333 | T198: 1996-07-02 | U198: 1 | V198: 2.95 | X198: 1988-05-31 | Y198: 1 | Z198: 4 | AB198: 1993-05-18 | AC198: 7 | AD198: 146 | AN198: 1996-09-03 | AO198: 3 | AP198: 38.5 | AV198: 1996-09-03 | AW198: 6 | AX198: 189.2
B199: 1996-05-14 | C199: 8.933333333 | D199: 7.9 | E199: 9.133333333 | F199: 8.055373333 | H199: 1990-06-27 | I199: 7 | J199: 16.3 | P199: 2008-10-15 | Q199: 8 | R199: 18.24333333 | T199: 1996-07-09 | U199: 1 | V199: 2.04 | X199: 1988-06-07 | Y199: 1 | Z199: 4 | AB199: 1993-05-18 | AC199: 1 | AD199: 148 | AN199: 1996-09-03 | AO199: 4 | AP199: 38.5 | AV199: 1996-09-03 | AW199: 7 | AX199: 184.7
B200: 1996-05-21 | C200: 7.8 | D200: 8.253333333 | E200: 10.56666667 | F200: 8.255388 | H200: 1990-06-27 | I200: 7 | J200: 16.3 | P200: 2008-10-30 | Q200: 1 | R200: 53.68 | T200: 1996-07-16 | U200: 1 | V200: 2.8 | X200: 1988-06-14 | Y200: 1 | Z200: 6 | AB200: 1993-06-01 | AC200: 2 | AD200: 140 | AN200: 1996-09-03 | AO200: 5 | AP200: 45.2 | AV200: 1996-09-03 | AW200: 8 | AX200: 186.9
B201: 1996-05-28 | C201: 7.766666667 | D201: 8.36 | E201: 13.63333333 | F201: 8.417930667 | H201: 1990-06-27 | I201: 8 | J201: 13.5 | P201: 2008-10-30 | Q201: 8 | R201: 53.80666667 | T201: 1996-07-23 | U201: 1 | V201: 1.68 | X201: 1988-06-21 | Y201: 1 | Z201: 7 | AB201: 1993-06-01 | AC201: 8 | AD201: 140 | AN201: 1996-09-03 | AO201: 6 | AP201: 45 | AV201: 1996-09-17 | AW201: 1 | AX201: 165.3
B202: 1996-06-04 | C202: 8.166666667 | D202: 8.633333333 | E202: 12.8 | F202: 8.679366667 | H202: 1990-06-27 | I202: 8 | J202: 14 | P202: 2008-11-12 | Q202: 1 | R202: 65.49333333 | T202: 1996-07-30 | U202: 1 | V202: 1.89 | X202: 1988-06-28 | Y202: 1 | Z202: 10 | AB202: 1993-06-01 | AC202: 4 | AD202: 142 | AN202: 1996-09-03 | AO202: 7 | AP202: 45.5 | AV202: 1996-09-17 | AW202: 2 | AX202: 168.5
B203: 1996-06-11 | C203: 6.433333333 | D203: 8.013333333 | E203: 12.96666667 | F203: 7.944005333 | H203: 1990-06-27 | I203: 8 | J203: 14.4 | P203: 2008-11-12 | Q203: 8 | R203: 44.05 | T203: 1996-08-06 | U203: 1 | V203: 2.6 | X203: 1988-07-05 | Y203: 1 | Z203: 17 | AB203: 1993-06-01 | AC203: 5 | AD203: 142 | AN203: 1996-09-03 | AO203: 8 | AP203: 45.4 | AV203: 1996-09-17 | AW203: 3 | AX203: 169.5
B204: 1996-06-18 | C204: 7.366666667 | D204: 8.486666667 | E204: 13.83333333 | F204: 8.482674667 | H204: 1990-07-11 | I204: 1 | J204: 8.3 | T204: 1996-08-20 | U204: 1 | V204: 3.05 | X204: 1988-07-12 | Y204: 1 | Z204: 14 | AB204: 1993-06-01 | AC204: 6 | AD204: 144 | AN204: 1996-09-17 | AO204: 1 | AP204: 38.9 | AV204: 1996-09-17 | AW204: 4 | AX204: 169.6
B205: 1996-06-25 | C205: 6.766666667 | D205: 7.766666667 | E205: 15.23333333 | F205: 7.829346667 | H205: 1990-07-11 | I205: 1 | J205: 8.3 | T205: 1996-09-03 | U205: 1 | V205: 1.22 | X205: 1988-07-19 | Y205: 1 | Z205: 16 | AB205: 1993-06-01 | AC205: 7 | AD205: 144 | AN205: 1996-09-17 | AO205: 2 | AP205: 39.6 | AV205: 1996-09-17 | AW205: 5 | AX205: 189.9
B206: 1996-07-02 | C206: 5.7 | D206: 8.206666667 | E206: 11.91666667 | F206: 7.994626 | H206: 1990-07-11 | I206: 1 | J206: 8.3 | T206: 1996-09-17 | U206: 1 | V206: 2.91 | X206: 1988-07-26 | Y206: 1 | Z206: 16 | AB206: 1993-06-01 | AC206: 1 | AD206: 146 | AN206: 1996-09-17 | AO206: 3 | AP206: 39.2 | AV206: 1996-09-17 | AW206: 6 | AX206: 188.1
B207: 1996-07-09 | C207: 5.85 | D207: 6.926666667 | E207: 11.53333333 | F207: 6.909714 | H207: 1990-07-11 | I207: 3 | J207: 9.2 | T207: 1996-10-01 | U207: 1 | V207: 2.86 | X207: 1988-08-02 | Y207: 1 | Z207: 12 | AB207: 1993-06-01 | AC207: 3 | AD207: 148 | AN207: 1996-09-17 | AO207: 4 | AP207: 42 | AV207: 1996-09-17 | AW207: 7 | AX207: 191.1
B208: 1996-07-16 | C208: 4.866666667 | D208: 5.993333333 | E208: 11.86666667 | F208: 6.001490667 | H208: 1990-07-11 | I208: 3 | J208: 9.2 | T208: 1996-10-15 | U208: 1 | V208: 5.18 | X208: 1988-08-09 | Y208: 1 | Z208: 13 | AB208: 1993-06-15 | AC208: 2 | AD208: 138 | AN208: 1996-09-17 | AO208: 5 | AP208: 45.4 | AV208: 1996-09-17 | AW208: 8 | AX208: 186.4
B209: 1996-07-23 | C209: 5.833333333 | D209: 7.45 | E209: 9.416666667 | F209: 7.302763333 | H209: 1990-07-11 | I209: 3 | J209: 11.5 | T209: 1996-10-29 | U209: 1 | V209: 4.32 | X209: 1988-08-16 | Y209: 1 | Z209: 12 | AB209: 1993-06-15 | AC209: 4 | AD209: 142 | AN209: 1996-09-17 | AO209: 6 | AP209: 46.3 | AV209: 1996-10-01 | AW209: 1 | AX209: 175.4
B210: 1996-07-30 | C210: 5 | D210: 6.92 | E210: 10.43333333 | F210: 6.774108 | H210: 1990-07-11 | I210: 4 | J210: 8.7 | T210: 1996-11-12 | U210: 1 | V210: 6.12 | X210: 1988-08-23 | Y210: 1 | Z210: 13 | AB210: 1993-06-15 | AC210: 1 | AD210: 144 | AN210: 1996-09-17 | AO210: 7 | AP210: 45.7 | AV210: 1996-10-01 | AW210: 2 | AX210: 169.8
B211: 1996-08-06 | C211: 5.9 | D211: 6.84 | E211: 10.26666667 | F211: 6.810556 | H211: 1990-07-11 | I211: 4 | J211: 9.2 | T211: 1996-11-26 | U211: 1 | V211: 5.63 | X211: 1988-08-30 | Y211: 1 | Z211: 12 | AB211: 1993-06-15 | AC211: 8 | AD211: 146 | AN211: 1996-09-17 | AO211: 8 | AP211: 47.1 | AV211: 1996-10-01 | AW211: 3 | AX211: 171.8
B212: 1996-08-20 | C212: 5.466666667 | D212: 5.98 | E212: 9.733333333 | F212: 6.010218667 | H212: 1990-07-11 | I212: 4 | J212: 10.1 | T212: 1996-12-10 | U212: 1 | V212: 4.25 | X212: 1988-09-06 | Y212: 1 | Z212: 15 | AB212: 1993-06-15 | AC212: 3 | AD212: 148 | AN212: 1996-10-01 | AO212: 1 | AP212: 42.3 | AV212: 1996-10-01 | AW212: 4 | AX212: 174.5
B213: 1996-09-03 | C213: 6.133333333 | D213: 6.38 | E213: 9.2 | F213: 6.419525333 | H213: 1990-07-11 | I213: 5 | J213: 8.7 | T213: 1997-01-14 | U213: 1 | V213: 2.67 | X213: 1988-09-13 | Y213: 1 | Z213: 13 | AB213: 1993-06-15 | AC213: 5 | AD213: 152 | AN213: 1996-10-01 | AO213: 2 | AP213: 41.6 | AV213: 1996-10-01 | AW213: 5 | AX213: 172
B214: 1996-09-17 | C214: 6 | D214: 6.653333333 | E214: 9.35 | F214: 6.640618 | H214: 1990-07-11 | I214: 5 | J214: 9.2 | T214: 1997-01-28 | U214: 1 | V214: 2.25 | X214: 1988-09-20 | Y214: 1 | Z214: 16 | AB214: 1993-06-15 | AC214: 6 | AD214: 152 | AN214: 1996-10-01 | AO214: 3 | AP214: 41.3 | AV214: 1996-10-01 | AW214: 6 | AX214: 179.4
B215: 1996-10-01 | C215: 7.266666667 | D215: 7.693333333 | E215: 10.08 | F215: 7.700418667 | H215: 1990-07-11 | I215: 5 | J215: 11 | T215: 1997-02-11 | U215: 1 | V215: 1.24 | X215: 1989-05-03 | Y215: 1 | Z215: 14 | AB215: 1993-06-15 | AC215: 7 | AD215: 154 | AN215: 1996-10-01 | AO215: 4 | AP215: 41.4 | AV215: 1996-10-01 | AW215: 7 | AX215: 195.3
B216: 1996-10-15 | C216: 8.266666667 | D216: 7.826666667 | E216: 8.083333333 | F216: 7.886220667 | H216: 1990-07-11 | I216: 6 | J216: 9.2 | T216: 1997-02-25 | U216: 1 | V216: 0.45 | X216: 1989-05-03 | Y216: 1 | Z216: 14 | AB216: 1993-06-29 | AC216: 3 | AD216: 136 | AN216: 1996-10-01 | AO216: 5 | AP216: 41.5 | AV216: 1996-10-01 | AW216: 8 | AX216: 197.2
B217: 1996-10-29 | C217: 9.133333333 | D217: 8.953333333 | E217: 12.53333333 | F217: 9.063181333 | H217: 1990-07-11 | I217: 6 | J217: 9.2 | T217: 1997-03-11 | U217: 1 | V217: 1.15 | X217: 1989-05-10 | Y217: 1 | Z217: 12 | AB217: 1993-06-29 | AC217: 1 | AD217: 138 | AN217: 1996-10-01 | AO217: 6 | AP217: 43.5 | AV217: 1996-10-15 | AW217: 1 | AX217: 169.9
B218: 1996-11-12 | C218: 11.43333333 | D218: 10.04 | E218: 8.9 | F218: 10.18054933 | H218: 1990-07-11 | I218: 6 | J218: 11 | T218: 1997-03-25 | U218: 1 | V218: 1.15 | X218: 1989-05-10 | Y218: 1 | Z218: 12 | AB218: 1993-06-29 | AC218: 2 | AD218: 138 | AN218: 1996-10-01 | AO218: 7 | AP218: 47.3 | AV218: 1996-10-15 | AW218: 2 | AX218: 172.9
B219: 1996-11-26 | C219: 6.5 | D219: 6.68 | E219: 7.083333333 | F219: 6.668142 | H219: 1990-07-11 | I219: 7 | J219: 11 | T219: 1997-04-08 | U219: 1 | V219: 3.16 | X219: 1989-05-17 | Y219: 1 | Z219: 12 | AB219: 1993-06-29 | AC219: 4 | AD219: 138 | AN219: 1996-10-01 | AO219: 8 | AP219: 47.9 | AV219: 1996-10-15 | AW219: 3 | AX219: 167.1
B220: 1996-12-10 | C220: 6.433333333 | D220: 6.573333333 | E220: 6.566666667 | F220: 6.556229333 | H220: 1990-07-11 | I220: 7 | J220: 11.9 | T220: 1997-04-15 | U220: 1 | V220: 2.37 | X220: 1989-05-17 | Y220: 1 | Z220: 12 | AB220: 1993-06-29 | AC220: 5 | AD220: 140 | AN220: 1996-10-15 | AO220: 1 | AP220: 41.6 | AV220: 1996-10-15 | AW220: 4 | AX220: 168.8
B221: 1997-01-14 | C221: 7.266666667 | D221: 7.346666667 | E221: 15.86666667 | F221: 7.546578667 | H221: 1990-07-11 | I221: 7 | J221: 13.3 | T221: 1997-04-22 | U221: 1 | V221: 2.14 | X221: 1989-05-24 | Y221: 1 | Z221: 8 | AB221: 1993-06-29 | AC221: 6 | AD221: 142 | AN221: 1996-10-15 | AO221: 2 | AP221: 41.4 | AV221: 1996-10-15 | AW221: 5 | AX221: 172.1
B222: 1997-01-28 | C222: 5.5 | D222: 6.371428571 | E222: 10.06666667 | F222: 6.356888571 | H222: 1990-07-11 | I222: 8 | J222: 12.8 | T222: 1997-05-02 | U222: 1 | V222: 2.59 | X222: 1989-05-24 | Y222: 1 | Z222: 8 | AB222: 1993-06-29 | AC222: 7 | AD222: 146 | AN222: 1996-10-15 | AO222: 3 | AP222: 41.6 | AV222: 1996-10-15 | AW222: 6 | AX222: 167.6
B223: 1997-02-11 | C223: 4.466666667 | D223: 5.66 | E223: 9.716666667 | F223: 5.615400667 | H223: 1990-07-11 | I223: 8 | J223: 13.1 | T223: 1997-05-07 | U223: 1 | V223: 2.79 | X223: 1989-05-31 | Y223: 1 | Z223: 7 | AB223: 1993-06-29 | AC223: 8 | AD223: 146 | AN223: 1996-10-15 | AO223: 4 | AP223: 41.7 | AV223: 1996-10-15 | AW223: 7 | AX223: 170.6
... 2027 more rows

Sheet Lake Probe Data
D9: Count | E9: Count | F9: Count | G9: Count | H9: Count
B10: Range | D10: =COUNTA(D13:D200000) -> 5175 | E10: =COUNTA(E13:E200000) -> 5184 | F10: =COUNT(F13:F200000) -> 5184 | G10: 5184 | H10: 5184
B11: =YEAR(MIN(B13:B9975)) -> 1990
B12: =YEAR(MAX(B13:B19996)) -> 2021 | C12: Depth | D12: Temp | E12: DO | F12: ORP | G12: Conductivity | H12: pH
B13: 1990-01-03 | C13: 0 | D13: 33 | E13: 13.3 | F13: 0 | G13: 0 | H13: 0
B14: 1990-01-03 | C14: 7.5
B15: 1990-01-03 | C15: 15 | D15: 34.1 | E15: 13 | F15: 0 | G15: 0 | H15: 0
B16: 1990-01-03 | C16: 30 | D16: 34.1 | E16: 12.3 | F16: 0 | G16: 0 | H16: 0
B17: 1990-01-03 | C17: 45 | D17: 34.5 | E17: 12.1 | F17: 0 | G17: 0 | H17: 0
B18: 1990-01-03 | C18: 60 | D18: 34.8 | E18: 11.5 | F18: 0 | G18: 0 | H18: 0
B19: 1990-01-03 | C19: 75 | D19: 35.2 | E19: 10.3 | F19: 0 | G19: 0 | H19: 0
B20: 1990-01-03 | C20: 90 | D20: 35.7 | E20: 8 | F20: 0 | G20: 0 | H20: 0
B21: 1990-03-06 | C21: 0 | D21: 36.8 | E21: 12.9 | F21: 0 | G21: 0 | H21: 0
B22: 1990-03-06 | C22: 7.5
B23: 1990-03-06 | C23: 15 | D23: 37.9 | E23: 11.7 | F23: 0 | G23: 0 | H23: 0
B24: 1990-03-06 | C24: 30 | D24: 39 | E24: 10.8 | F24: 0 | G24: 0 | H24: 0
B25: 1990-03-06 | C25: 45 | D25: 38.3 | E25: 10.7 | F25: 0 | G25: 0 | H25: 0
B26: 1990-03-06 | C26: 60 | D26: 37.9 | E26: 9.4 | F26: 0 | G26: 0 | H26: 0
B27: 1990-03-06 | C27: 75 | D27: 37.9 | E27: 8.8 | F27: 0 | G27: 0 | H27: 0
B28: 1990-03-06 | C28: 90 | D28: 37.4 | E28: 7.5 | F28: 0 | G28: 0 | H28: 0
B29: 1990-04-18 | C29: 0 | D29: 41.1 | E29: 13.21 | F29: 0 | G29: 0 | H29: 0
B30: 1990-04-18 | C30: 7.5
B31: 1990-04-18 | C31: 15 | D31: 41.6 | E31: 12.77 | F31: 0 | G31: 0 | H31: 0
... 38 more rows

Sheet Big Platte Phyto
AA5: =E33 -> 7024
AA6: =J33 -> 2420
AA7: =O33 -> 1289
AA8: =T33 -> 4657
D9: Diatom Sub-Type | G9: Green Sub-Type | J9: Blue Green Sub-Type | M9: Golden Sub-Type
D10: 1 | E10: Synedra | G10: Scenedesmus | J10: Anabaena | M10: Peridinium/Gymnodium
D11: 2 | E11: Fragilaria | G11: Pediastrum, Desmids | J11: Microcystis | M11: Dinobryon
D12: 3 | E12: Melosira | G12: Microgreens (cells) | J12: Gloeothece | M12: Uroglenopsis
D13: 4 | E13: Centrics | G13: Coelastrum (Colonies) | J13: Aphanocapsa | M13: Ceratium
D14: 5 | E14: Cymatopleura | G14: Filamentous Greens | J14: Gloeosapsa | M14: Trebonema
D15: 6 | E15: Achnanthes | G15: Lagerheimia | J15: Gompho, Coelos | M15: Mallomonas
D16: 7 | E16: Amphipora | G16: Closterium (cells) | J16: Oscillatoria/Lyngbya | M16: Cryptomonas
D17: 8 | E17: Asterionella | G17: Pediastrum (cells) | J17: Chrococcus | M17: Chrysosphaerella (Colony)
D18: 9 | E18: Other Pennates | G18: Ankistrodesmus | J18: Eucapsis | M18: Chroomonas
D19: 10 | E19: Cyclotella | G19: Cosmarium | J19: Merimopedia | M19: Other Flagellate
D20: 11 | E20: dipioneis | G20: Staurastrum | J20: Lyngbya
D21: 12 | E21: Pleurosigma | G21: Colonial Green (Colonies) | J21: Coelosphaerium (cells)
D22: 13 | E22: Rhizoselenia | J22: Microsystis
D23: 14 | E23: Cymbella
D24: 15 | E24: Tabellaria
D25: 16 | E25: Stephandiscus
D26: 17 | E26: Large Benthic
D27: 18 | E27: Small Pennate
D28: 19 | E28: Large Pennate
D29: 20 | E29: Naviculoid
D33: Count | E33: =COUNT(E39:E30031) -> 7024 | I33: Count | J33: =COUNT(J39:J30031) -> 2420 | N33: Count | O33: =COUNT(O39:O30031) -> 1289 | S33: Count | T33: =COUNT(T39:T30031) -> 4657
D34: Maxiumum | E34: =MAX(E39:E20030) -> 1576600 | I34: Maxiumum | J34: =MAX(J39:J20030) -> 3922051 | N34: Maxiumum | O34: =MAX(O39:O20030) -> 4202198 | S34: Maxiumum | T34: =MAX(T39:T20030) -> 1978535
D35: Minimum | E35: =MIN(E40:E2031) -> 2 | I35: Minimum | J35: =MIN(J40:J2031) -> 100 | N35: Minimum | O35: =MIN(O40:O2031) -> 100 | S35: Minimum | T35: =MIN(T40:T2031) -> 2
D36: Average | E36: =AVERAGE(E39:E20031) -> 24149.93334 | I36: Average | J36: =AVERAGE(J39:J20031) -> 112656.5694 | N36: Average | O36: =AVERAGE(O39:O20031) -> 155989.7176 | S36: Average | T36: =AVERAGE(T39:T20031) -> 56390.07765
B37: Range | G37: Range | L37: Range | Q37: Range
B38: =YEAR(MIN(B40:B10002)) -> 1995 | E38: Diatoms | G38: =YEAR(MIN(G40:G10002)) -> 2003 | J38: Greens | L38: =YEAR(MIN(L40:L10002)) -> 2003 | O38: Blue Greens | Q38: =YEAR(MIN(Q40:Q10002)) -> 1995 | T38: Golden
B39: =YEAR(MAX(B40:B20000)) -> 2012 | D39: Sub-Type | G39: =YEAR(MAX(G40:G20000)) -> 2012 | I39: Sub-Type | L39: =YEAR(MAX(L40:L20000)) -> 2012 | N39: Sub-Type | Q39: =YEAR(MAX(Q40:Q20000)) -> 2012 | S39: Sub-Type
B40: 1995-05-09 | C40: Diatom | D40: 10 | E40: 220 | G40: 2003-01-29 | H40: Green | I40: 3 | J40: 55800 | L40: 2003-01-29 | M40: Blue Green | N40: 1 | O40: 4500 | Q40: 1995-05-23 | R40: Golden | S40: 2 | T40: 1988
B41: 1995-05-09 | C41: Diatom | D41: 10 | E41: 67 | G41: 2003-01-29 | H41: Green | I41: 1 | J41: 8755 | L41: 2003-03-12 | M41: Blue Green | N41: 1 | O41: 45962 | Q41: 1995-05-23 | R41: Golden | S41: 5 | T41: 3056
B42: 1995-05-09 | C42: Diatom | D42: 10 | E42: 71 | G42: 2003-01-29 | H42: Green | I42: 1 | J42: 10943 | L42: 2003-04-23 | M42: Blue Green | N42: 2 | O42: 39396 | Q42: 1995-05-23 | R42: Golden | S42: 2 | T42: 2146
B43: 1995-05-09 | C43: Diatom | D43: 10 | E43: 93 | G43: 2003-01-29 | H43: Green | I43: 1 | J43: 13132 | L43: 2003-05-07 | M43: Blue Green | N43: 7 | O43: 1000 | Q43: 1995-05-23 | R43: Golden | S43: 5 | T43: 3656
B44: 1995-05-09 | C44: Diatom | D44: 10 | E44: 209 | G44: 2003-01-29 | H44: Green | I44: 3 | J44: 151017 | L44: 2003-05-07 | M44: Blue Green | N44: 7 | O44: 1100 | Q44: 1995-05-23 | R44: Golden | S44: 2 | T44: 933
B45: 1995-05-09 | C45: Diatom | D45: 10 | E45: 140 | G45: 2003-01-29 | H45: Green | I45: 1 | J45: 8755 | L45: 2003-06-18 | M45: Blue Green | N45: 2 | O45: 600 | Q45: 1995-05-23 | R45: Golden | S45: 5 | T45: 3967
B46: 1995-05-09 | C46: Diatom | D46: 10 | E46: 145 | G46: 2003-01-29 | H46: Green | I46: 3 | J46: 28452 | L46: 2003-06-18 | M46: Blue Green | N46: 1 | O46: 9100 | Q46: 1995-05-23 | R46: Golden | S46: 2 | T46: 1885
B47: 1995-05-09 | C47: Diatom | D47: 10 | E47: 84 | G47: 2003-03-04 | H47: Green | I47: 3 | J47: 45962 | L47: 2003-06-18 | M47: Blue Green | N47: 3 | O47: 45000 | Q47: 1995-05-23 | R47: Golden | S47: 5 | T47: 3038
B48: 1995-05-23 | C48: Diatom | D48: 2 | E48: 470 | G48: 2003-03-04 | H48: Green | I48: 1 | J48: 8755 | L48: 2003-06-18 | M48: Blue Green | N48: 2 | O48: 600 | Q48: 1995-05-23 | R48: Golden | S48: 2 | T48: 25
B49: 1995-05-23 | C49: Diatom | D49: 10 | E49: 843 | G49: 2003-03-04 | H49: Green | I49: 2 | J49: 100 | L49: 2003-06-18 | M49: Blue Green | N49: 3 | O49: 1600 | Q49: 1995-05-23 | R49: Golden | S49: 5 | T49: 2438
B50: 1995-05-23 | C50: Diatom | D50: 2 | E50: 618 | G50: 2003-03-12 | H50: Green | I50: 2 | J50: 100 | L50: 2003-06-18 | M50: Blue Green | N50: 2 | O50: 800 | Q50: 1995-05-23 | R50: Golden | S50: 2 | T50: 58
B51: 1995-05-23 | C51: Diatom | D51: 10 | E51: 182 | G51: 2003-03-12 | H51: Green | I51: 3 | J51: 6566 | L51: 2003-06-18 | M51: Blue Green | N51: 1 | O51: 30000 | Q51: 1995-05-23 | R51: Golden | S51: 5 | T51: 4708
B52: 1995-05-23 | C52: Diatom | D52: 2 | E52: 267 | G52: 2003-03-12 | H52: Green | I52: 1 | J52: 8755 | L52: 2003-06-18 | M52: Blue Green | N52: 1 | O52: 14800 | Q52: 1995-05-23 | R52: Golden | S52: 2 | T52: 146
B53: 1995-05-23 | C53: Diatom | D53: 10 | E53: 233 | G53: 2003-03-12 | H53: Green | I53: 1 | J53: 400 | L53: 2003-07-02 | M53: Blue Green | N53: 2 | O53: 2500 | Q53: 1995-05-23 | R53: Golden | S53: 5 | T53: 6877
B54: 1995-05-23 | C54: Diatom | D54: 2 | E54: 726 | G54: 2003-03-12 | H54: Green | I54: 3 | J54: 13132 | L54: 2003-07-02 | M54: Blue Green | N54: 8 | O54: 400 | Q54: 1995-05-23 | R54: Golden | S54: 2 | T54: 242
B55: 1995-05-23 | C55: Diatom | D55: 10 | E55: 1899 | G55: 2003-04-23 | H55: Green | I55: 3 | J55: 35018 | L55: 2003-07-02 | M55: Blue Green | N55: 2 | O55: 900 | Q55: 1995-05-23 | R55: Golden | S55: 5 | T55: 3800
B56: 1995-05-23 | C56: Diatom | D56: 2 | E56: 500 | G56: 2003-04-23 | H56: Green | I56: 2 | J56: 100 | L56: 2003-07-02 | M56: Blue Green | N56: 1 | O56: 3500 | Q56: 1995-06-06 | R56: Golden | S56: 2 | T56: 3073
B57: 1995-05-23 | C57: Diatom | D57: 10 | E57: 57 | G57: 2003-04-23 | H57: Green | I57: 3 | J57: 24075 | L57: 2003-07-02 | M57: Blue Green | N57: 1 | O57: 48000 | Q57: 1995-06-06 | R57: Golden | S57: 5 | T57: 875
B58: 1995-05-23 | C58: Diatom | D58: 2 | E58: 592 | G58: 2003-04-23 | H58: Green | I58: 3 | J58: 59093 | L58: 2003-07-02 | M58: Blue Green | N58: 2 | O58: 1500 | Q58: 1995-06-06 | R58: Golden | S58: 2 | T58: 6111
B59: 1995-05-23 | C59: Diatom | D59: 10 | E59: 931 | G59: 2003-04-23 | H59: Green | I59: 1 | J59: 400 | L59: 2003-07-02 | M59: Blue Green | N59: 8 | O59: 8755 | Q59: 1995-06-06 | R59: Golden | S59: 5 | T59: 623
B60: 1995-05-23 | C60: Diatom | D60: 2 | E60: 958 | G60: 2003-04-23 | H60: Green | I60: 3 | J60: 74414 | L60: 2003-07-02 | M60: Blue Green | N60: 2 | O60: 1200 | Q60: 1995-06-06 | R60: Golden | S60: 2 | T60: 1617
B61: 1995-05-23 | C61: Diatom | D61: 10 | E61: 984 | G61: 2003-04-23 | H61: Green | I61: 1 | J61: 17509 | L61: 2003-07-02 | M61: Blue Green | N61: 1 | O61: 5800 | Q61: 1995-06-06 | R61: Golden | S61: 5 | T61: 1867
B62: 1995-05-23 | C62: Diatom | D62: 2 | E62: 192 | G62: 2003-04-23 | H62: Green | I62: 3 | J62: 63471 | L62: 2003-07-02 | M62: Blue Green | N62: 2 | O62: 2400 | Q62: 1995-06-06 | R62: Golden | S62: 2 | T62: 608
B63: 1995-05-23 | C63: Diatom | D63: 10 | E63: 1359 | G63: 2003-04-23 | H63: Green | I63: 1 | J63: 1200 | L63: 2003-07-02 | M63: Blue Green | N63: 1 | O63: 9600 | Q63: 1995-06-06 | R63: Golden | S63: 5 | T63: 4258
B64: 1995-06-06 | C64: Diatom | D64: 2 | E64: 14 | G64: 2003-04-23 | H64: Green | I64: 3 | J64: 30641 | L64: 2003-07-02 | M64: Blue Green | N64: 2 | O64: 28900 | Q64: 1995-06-06 | R64: Golden | S64: 2 | T64: 25
B65: 1995-06-06 | C65: Diatom | D65: 10 | E65: 100 | G65: 2003-04-23 | H65: Green | I65: 3 | J65: 15321 | L65: 2003-07-17 | M65: Blue Green | N65: 2 | O65: 5200 | Q65: 1995-06-06 | R65: Golden | S65: 5 | T65: 4633
B66: 1995-06-06 | C66: Diatom | D66: 2 | E66: 112 | G66: 2003-05-07 | H66: Green | I66: 2 | J66: 100 | L66: 2003-07-17 | M66: Blue Green | N66: 2 | O66: 2400 | Q66: 1995-06-06 | R66: Golden | S66: 2 | T66: 117
B67: 1995-06-06 | C67: Diatom | D67: 10 | E67: 63 | G67: 2003-05-07 | H67: Green | I67: 3 | J67: 264826 | L67: 2003-07-17 | M67: Blue Green | N67: 2 | O67: 6200 | Q67: 1995-06-06 | R67: Golden | S67: 5 | T67: 8000
B68: 1995-06-06 | C68: Diatom | D68: 2 | E68: 50 | G68: 2003-05-07 | H68: Green | I68: 1 | J68: 300 | L68: 2003-07-17 | M68: Blue Green | N68: 2 | O68: 8700 | Q68: 1995-06-06 | R68: Golden | S68: 2 | T68: 81
B69: 1995-06-06 | C69: Diatom | D69: 10 | E69: 192 | G69: 2003-05-07 | H69: Green | I69: 3 | J69: 534029 | L69: 2003-07-17 | M69: Blue Green | N69: 2 | O69: 4200 | Q69: 1995-06-06 | R69: Golden | S69: 5 | T69: 10908
B70: 1995-06-06 | C70: Diatom | D70: 2 | E70: 258 | G70: 2003-05-07 | H70: Green | I70: 5 | J70: 1000 | L70: 2003-07-30 | M70: Blue Green | N70: 2 | O70: 27500 | Q70: 1995-06-06 | R70: Golden | S70: 5 | T70: 12408
B71: 1995-06-06 | C71: Diatom | D71: 10 | E71: 281 | G71: 2003-05-07 | H71: Green | I71: 1 | J71: 800 | L71: 2003-07-30 | M71: Blue Green | N71: 6 | O71: 7500 | Q71: 1995-06-20 | R71: Golden | S71: 2 | T71: 56
B72: 1995-06-06 | C72: Diatom | D72: 2 | E72: 108 | G72: 2003-05-07 | H72: Green | I72: 3 | J72: 28452 | L72: 2003-07-30 | M72: Blue Green | N72: 9 | O72: 800 | Q72: 1995-06-20 | R72: Golden | S72: 5 | T72: 121
B73: 1995-06-06 | C73: Diatom | D73: 10 | E73: 67 | G73: 2003-05-07 | H73: Green | I73: 5 | J73: 1200 | L73: 2003-07-30 | M73: Blue Green | N73: 2 | O73: 1800 | Q73: 1995-06-20 | R73: Golden | S73: 5 | T73: 25
B74: 1995-06-06 | C74: Diatom | D74: 2 | E74: 92 | G74: 2003-05-07 | H74: Green | I74: 1 | J74: 400 | L74: 2003-07-30 | M74: Blue Green | N74: 8 | O74: 1900 | Q74: 1995-06-20 | R74: Golden | S74: 2 | T74: 8
B75: 1995-06-06 | C75: Diatom | D75: 10 | E75: 1050 | G75: 2003-05-07 | H75: Green | I75: 3 | J75: 80980 | L75: 2003-07-30 | M75: Blue Green | N75: 2 | O75: 9000 | Q75: 1995-06-20 | R75: Golden | S75: 5 | T75: 8
B76: 1995-06-06 | C76: Diatom | D76: 2 | E76: 162 | G76: 2003-05-07 | H76: Green | I76: 1 | J76: 800 | L76: 2003-07-30 | M76: Blue Green | N76: 2 | O76: 1800 | Q76: 1995-06-20 | R76: Golden | S76: 5 | T76: 158
B77: 1995-06-06 | C77: Diatom | D77: 10 | E77: 864 | G77: 2003-05-07 | H77: Green | I77: 3 | J77: 41584 | L77: 2003-07-30 | M77: Blue Green | N77: 1 | O77: 700 | Q77: 1995-06-20 | R77: Golden | S77: 5 | T77: 1058
B78: 1995-06-06 | C78: Diatom | D78: 2 | E78: 169 | G78: 2003-05-07 | H78: Green | I78: 3 | J78: 166337 | L78: 2003-07-30 | M78: Blue Green | N78: 2 | O78: 47500 | Q78: 1995-06-20 | R78: Golden | S78: 5 | T78: 3775
B79: 1995-06-06 | C79: Diatom | D79: 10 | E79: 2655 | G79: 2003-05-07 | H79: Green | I79: 2 | J79: 100 | L79: 2003-07-30 | M79: Blue Green | N79: 8 | O79: 6300 | Q79: 1995-06-20 | R79: Golden | S79: 5 | T79: 1215
B80: 1995-06-20 | C80: Diatom | D80: 10 | E80: 9 | G80: 2003-05-07 | H80: Green | I80: 3 | J80: 61282 | L80: 2003-07-30 | M80: Blue Green | N80: 1 | O80: 1200 | Q80: 1995-06-20 | R80: Golden | S80: 5 | T80: 4033
B81: 1995-06-20 | C81: Diatom | D81: 2 | E81: 8 | G81: 2003-05-07 | H81: Green | I81: 2 | J81: 100 | L81: 2003-07-30 | M81: Blue Green | N81: 2 | O81: 24400 | Q81: 1995-07-03 | R81: Golden | S81: 2 | T81: 10
B82: 1995-06-20 | C82: Diatom | D82: 10 | E82: 17 | G82: 2003-05-07 | H82: Green | I82: 3 | J82: 212299 | L82: 2003-07-30 | M82: Blue Green | N82: 8 | O82: 6500 | Q82: 1995-07-03 | R82: Golden | S82: 5 | T82: 19
B83: 1995-06-20 | C83: Diatom | D83: 2 | E83: 67 | G83: 2003-05-07 | H83: Green | I83: 5 | J83: 300 | L83: 2003-08-13 | M83: Blue Green | N83: 2 | O83: 8400 | Q83: 1995-07-03 | R83: Golden | S83: 5 | T83: 39
B84: 1995-06-20 | C84: Diatom | D84: 10 | E84: 14 | G84: 2003-05-21 | H84: Green | I84: 1 | J84: 28452 | L84: 2003-08-13 | M84: Blue Green | N84: 2 | O84: 104600 | Q84: 1995-07-03 | R84: Golden | S84: 5 | T84: 29
B85: 1995-06-20 | C85: Diatom | D85: 10 | E85: 28 | G85: 2003-05-21 | H85: Green | I85: 2 | J85: 100 | L85: 2003-08-13 | M85: Blue Green | N85: 8 | O85: 251694 | Q85: 1995-07-03 | R85: Golden | S85: 5 | T85: 58
B86: 1995-06-20 | C86: Diatom | D86: 10 | E86: 123 | G86: 2003-05-21 | H86: Green | I86: 3 | J86: 30641 | L86: 2003-08-13 | M86: Blue Green | N86: 1 | O86: 800 | Q86: 1995-07-03 | R86: Golden | S86: 5 | T86: 184
B87: 1995-06-20 | C87: Diatom | D87: 10 | E87: 200 | G87: 2003-05-21 | H87: Green | I87: 1 | J87: 400 | L87: 2003-08-13 | M87: Blue Green | N87: 2 | O87: 84900 | Q87: 1995-07-03 | R87: Golden | S87: 5 | T87: 126
B88: 1995-06-20 | C88: Diatom | D88: 10 | E88: 318 | G88: 2003-05-21 | H88: Green | I88: 3 | J88: 89734 | L88: 2003-08-13 | M88: Blue Green | N88: 8 | O88: 242940 | Q88: 1995-07-03 | R88: Golden | S88: 5 | T88: 39
B89: 1995-06-20 | C89: Diatom | D89: 10 | E89: 700 | G89: 2003-05-21 | H89: Green | I89: 1 | J89: 17509 | L89: 2003-08-13 | M89: Blue Green | N89: 10 | O89: 700 | Q89: 1995-07-03 | R89: Golden | S89: 5 | T89: 251
B90: 1995-07-03 | C90: Diatom | D90: 2 | E90: 10 | G90: 2003-05-21 | H90: Green | I90: 2 | J90: 200 | L90: 2003-08-13 | M90: Blue Green | N90: 1 | O90: 800 | Q90: 1995-07-18 | R90: Golden | S90: 2 | T90: 8128
B91: 1995-07-03 | C91: Diatom | D91: 10 | E91: 13 | G91: 2003-05-21 | H91: Green | I91: 3 | J91: 21886 | L91: 2003-08-13 | M91: Blue Green | N91: 2 | O91: 81400 | Q91: 1995-07-18 | R91: Golden | S91: 2 | T91: 5529
B92: 1995-07-03 | C92: Diatom | D92: 10 | E92: 22 | G92: 2003-05-21 | H92: Green | I92: 5 | J92: 700 | L92: 2003-08-13 | M92: Blue Green | N92: 8 | O92: 347995 | Q92: 1995-07-18 | R92: Golden | S92: 2 | T92: 9483
B93: 1995-07-03 | C93: Diatom | D93: 10 | E93: 13 | G93: 2003-05-21 | H93: Green | I93: 1 | J93: 400 | L93: 2003-08-27 | M93: Blue Green | N93: 2 | O93: 1400 | Q93: 1995-07-18 | R93: Golden | S93: 2 | T93: 1338
B94: 1995-07-03 | C94: Diatom | D94: 10 | E94: 10 | G94: 2003-05-21 | H94: Green | I94: 3 | J94: 37207 | L94: 2003-08-27 | M94: Blue Green | N94: 2 | O94: 45700 | Q94: 1995-07-18 | R94: Golden | S94: 2 | T94: 891
B95: 1995-07-03 | C95: Diatom | D95: 10 | E95: 16 | G95: 2003-05-21 | H95: Green | I95: 2 | J95: 100 | L95: 2003-08-27 | M95: Blue Green | N95: 10 | O95: 200 | Q95: 1995-07-18 | R95: Golden | S95: 2 | T95: 351
B96: 1995-07-03 | C96: Diatom | D96: 10 | E96: 77 | G96: 2003-05-21 | H96: Green | I96: 3 | J96: 96300 | L96: 2003-08-27 | M96: Blue Green | N96: 2 | O96: 12100 | Q96: 1995-07-18 | R96: Golden | S96: 2 | T96: 48
B97: 1995-07-03 | C97: Diatom | D97: 10 | E97: 213 | G97: 2003-05-21 | H97: Green | I97: 3 | J97: 63471 | L97: 2003-08-27 | M97: Blue Green | N97: 2 | O97: 43700 | Q97: 1995-07-18 | R97: Golden | S97: 5 | T97: 3
B98: 1995-07-03 | C98: Diatom | D98: 10 | E98: 254 | G98: 2003-05-21 | H98: Green | I98: 5 | J98: 200 | L98: 2003-08-27 | M98: Blue Green | N98: 8 | O98: 32830 | Q98: 1995-07-18 | R98: Golden | S98: 2 | T98: 204
B99: 1995-07-18 | C99: Diatom | D99: 2 | E99: 17 | G99: 2003-05-21 | H99: Green | I99: 2 | J99: 200 | L99: 2003-08-27 | M99: Blue Green | N99: 1 | O99: 4100 | Q99: 1995-07-18 | R99: Golden | S99: 5 | T99: 3
B100: 1995-07-18 | C100: Diatom | D100: 10 | E100: 10 | G100: 2003-05-21 | H100: Green | I100: 3 | J100: 15321 | L100: 2003-08-27 | M100: Blue Green | N100: 2 | O100: 55200 | Q100: 1995-08-01 | R100: Golden | S100: 2 | T100: 9589
B101: 1995-07-18 | C101: Diatom | D101: 2 | E101: 9 | G101: 2003-06-18 | H101: Green | I101: 2 | J101: 100 | L101: 2003-08-27 | M101: Blue Green | N101: 8 | O101: 126941 | Q101: 1995-08-01 | R101: Golden | S101: 5 | T101: 16
B102: 1995-07-18 | C102: Diatom | D102: 10 | E102: 3 | G102: 2003-06-18 | H102: Green | I102: 3 | J102: 78791 | L102: 2003-08-27 | M102: Blue Green | N102: 8 | O102: 8755 | Q102: 1995-08-01 | R102: Golden | S102: 2 | T102: 11761
B103: 1995-07-18 | C103: Diatom | D103: 2 | E103: 9 | G103: 2003-06-18 | H103: Green | I103: 1 | J103: 8755 | L103: 2003-09-10 | M103: Blue Green | N103: 2 | O103: 16000 | Q103: 1995-08-01 | R103: Golden | S103: 5 | T103: 29
B104: 1995-07-18 | C104: Diatom | D104: 2 | E104: 72 | G104: 2003-06-18 | H104: Green | I104: 2 | J104: 200 | L104: 2003-09-10 | M104: Blue Green | N104: 2 | O104: 52800 | Q104: 1995-08-01 | R104: Golden | S104: 2 | T104: 7711
B105: 1995-07-18 | C105: Diatom | D105: 2 | E105: 18 | G105: 2003-06-18 | H105: Green | I105: 3 | J105: 24075 | L105: 2003-09-10 | M105: Blue Green | N105: 10 | O105: 400 | Q105: 1995-08-01 | R105: Golden | S105: 5 | T105: 13
B106: 1995-07-18 | C106: Diatom | D106: 10 | E106: 21 | G106: 2003-06-18 | H106: Green | I106: 3 | J106: 978324 | L106: 2003-09-10 | M106: Blue Green | N106: 2 | O106: 5200 | Q106: 1995-08-01 | R106: Golden | S106: 2 | T106: 15573
B107: 1995-07-18 | C107: Diatom | D107: 10 | E107: 27 | G107: 2003-06-18 | H107: Green | I107: 1 | J107: 8755 | L107: 2003-09-10 | M107: Blue Green | N107: 8 | O107: 13132 | Q107: 1995-08-01 | R107: Golden | S107: 5 | T107: 110
B108: 1995-07-18 | C108: Diatom | D108: 10 | E108: 78 | G108: 2003-06-18 | H108: Green | I108: 2 | J108: 300 | L108: 2003-09-10 | M108: Blue Green | N108: 2 | O108: 37400 | Q108: 1995-08-01 | R108: Golden | S108: 2 | T108: 300
B109: 1995-08-01 | C109: Diatom | D109: 2 | E109: 116 | G109: 2003-06-18 | H109: Green | I109: 3 | J109: 288901 | L109: 2003-09-10 | M109: Blue Green | N109: 2 | O109: 6200 | Q109: 1995-08-01 | R109: Golden | S109: 5 | T109: 129
B110: 1995-08-01 | C110: Diatom | D110: 2 | E110: 197 | G110: 2003-06-18 | H110: Green | I110: 2 | J110: 200 | L110: 2003-09-10 | M110: Blue Green | N110: 8 | O110: 400 | Q110: 1995-08-01 | R110: Golden | S110: 5 | T110: 48
B111: 1995-08-01 | C111: Diatom | D111: 2 | E111: 84 | G111: 2003-06-18 | H111: Green | I111: 3 | J111: 17509 | L111: 2003-09-10 | M111: Blue Green | N111: 2 | O111: 7600 | Q111: 1995-08-01 | R111: Golden | S111: 5 | T111: 19
B112: 1995-08-01 | C112: Diatom | D112: 10 | E112: 3 | G112: 2003-06-18 | H112: Green | I112: 1 | J112: 4377 | L112: 2003-09-10 | M112: Blue Green | N112: 2 | O112: 600 | Q112: 1995-08-01 | R112: Golden | S112: 2 | T112: 29
B113: 1995-08-01 | C113: Diatom | D113: 2 | E113: 35 | G113: 2003-06-18 | H113: Green | I113: 2 | J113: 200 | L113: 2003-09-24 | M113: Blue Green | N113: 2 | O113: 10300 | Q113: 1995-08-01 | R113: Golden | S113: 5 | T113: 6
B114: 1995-08-01 | C114: Diatom | D114: 2 | E114: 293 | G114: 2003-06-18 | H114: Green | I114: 3 | J114: 1273792 | L114: 2003-09-24 | M114: Blue Green | N114: 2 | O114: 28500 | Q114: 1995-08-15 | R114: Golden | S114: 2 | T114: 6
B115: 1995-08-01 | C115: Diatom | D115: 10 | E115: 3 | G115: 2003-06-18 | H115: Green | I115: 3 | J115: 562482 | L115: 2003-09-24 | M115: Blue Green | N115: 2 | O115: 8100 | Q115: 1995-08-15 | R115: Golden | S115: 5 | T115: 16
B116: 1995-08-01 | C116: Diatom | D116: 2 | E116: 64 | G116: 2003-06-18 | H116: Green | I116: 2 | J116: 100 | L116: 2003-09-24 | M116: Blue Green | N116: 2 | O116: 3600 | Q116: 1995-08-15 | R116: Golden | S116: 2 | T116: 12
B117: 1995-08-01 | C117: Diatom | D117: 10 | E117: 10 | G117: 2003-06-18 | H117: Green | I117: 3 | J117: 606255 | L117: 2003-09-24 | M117: Blue Green | N117: 2 | O117: 17600 | Q117: 1995-08-15 | R117: Golden | S117: 5 | T117: 25
B118: 1995-08-01 | C118: Diatom | D118: 2 | E118: 3 | G118: 2003-07-02 | H118: Green | I118: 1 | J118: 13132 | L118: 2003-09-24 | M118: Blue Green | N118: 8 | O118: 113810 | Q118: 1995-08-15 | R118: Golden | S118: 2 | T118: 9
B119: 1995-08-15 | C119: Diatom | D119: 2 | E119: 190 | G119: 2003-07-02 | H119: Green | I119: 3 | J119: 402711 | L119: 2003-09-24 | M119: Blue Green | N119: 2 | O119: 9500 | Q119: 1995-08-15 | R119: Golden | S119: 5 | T119: 19
B120: 1995-08-15 | C120: Diatom | D120: 2 | E120: 283 | G120: 2003-07-02 | H120: Green | I120: 2 | J120: 300 | L120: 2003-09-24 | M120: Blue Green | N120: 8 | O120: 8755 | Q120: 1995-08-15 | R120: Golden | S120: 5 | T120: 9
B121: 1995-08-15 | C121: Diatom | D121: 2 | E121: 317 | G121: 2003-07-02 | H121: Green | I121: 3 | J121: 67848 | L121: 2003-09-24 | M121: Blue Green | N121: 11 | O121: 700 | Q121: 1995-08-15 | R121: Golden | S121: 2 | T121: 37
B122: 1995-08-15 | C122: Diatom | D122: 2 | E122: 2439 | G122: 2003-07-02 | H122: Green | I122: 5 | J122: 1000 | L122: 2003-09-24 | M122: Blue Green | N122: 2 | O122: 27500 | Q122: 1995-08-15 | R122: Golden | S122: 5 | T122: 12
B123: 1995-08-15 | C123: Diatom | D123: 2 | E123: 1820 | G123: 2003-07-02 | H123: Green | I123: 3 | J123: 474936 | L123: 2003-09-24 | M123: Blue Green | N123: 8 | O123: 17509 | Q123: 1995-08-15 | R123: Golden | S123: 2 | T123: 25
B124: 1995-08-15 | C124: Diatom | D124: 2 | E124: 311 | G124: 2003-07-02 | H124: Green | I124: 1 | J124: 8755 | L124: 2003-10-08 | M124: Blue Green | N124: 2 | O124: 8400 | Q124: 1995-08-15 | R124: Golden | S124: 5 | T124: 22
B125: 1995-08-15 | C125: Diatom | D125: 2 | E125: 12 | G125: 2003-07-02 | H125: Green | I125: 3 | J125: 825119 | L125: 2003-10-08 | M125: Blue Green | N125: 4 | O125: 400 | Q125: 1995-08-15 | R125: Golden | S125: 5 | T125: 9
B126: 1995-08-15 | C126: Diatom | D126: 2 | E126: 78 | G126: 2003-07-02 | H126: Green | I126: 1 | J126: 4377 | L126: 2003-10-08 | M126: Blue Green | N126: 2 | O126: 9100 | Q126: 1995-08-15 | R126: Golden | S126: 5 | T126: 12
B127: 1995-08-29 | C127: Diatom | D127: 2 | E127: 208 | G127: 2003-07-02 | H127: Green | I127: 3 | J127: 85357 | L127: 2003-10-08 | M127: Blue Green | N127: 2 | O127: 11000 | Q127: 1995-08-29 | R127: Golden | S127: 2 | T127: 19
B128: 1995-08-29 | C128: Diatom | D128: 10 | E128: 6 | G128: 2003-07-02 | H128: Green | I128: 1 | J128: 21886 | L128: 2003-10-08 | M128: Blue Green | N128: 8 | O128: 13132 | Q128: 1995-08-29 | R128: Golden | S128: 5 | T128: 118
B129: 1995-08-29 | C129: Diatom | D129: 2 | E129: 224 | G129: 2003-07-02 | H129: Green | I129: 3 | J129: 490257 | L129: 2003-10-08 | M129: Blue Green | N129: 2 | O129: 5400 | Q129: 1995-08-29 | R129: Golden | S129: 2 | T129: 12
B130: 1995-08-29 | C130: Diatom | D130: 10 | E130: 3 | G130: 2003-07-02 | H130: Green | I130: 1 | J130: 17509 | L130: 2003-10-08 | M130: Blue Green | N130: 4 | O130: 4000 | Q130: 1995-08-29 | R130: Golden | S130: 5 | T130: 40
B131: 1995-08-29 | C131: Diatom | D131: 2 | E131: 212 | G131: 2003-07-02 | H131: Green | I131: 3 | J131: 1002400 | L131: 2003-10-08 | M131: Blue Green | N131: 2 | O131: 4100 | Q131: 1995-08-29 | R131: Golden | S131: 2 | T131: 9
B132: 1995-08-29 | C132: Diatom | D132: 10 | E132: 6 | G132: 2003-07-02 | H132: Green | I132: 3 | J132: 28452 | L132: 2003-10-08 | M132: Blue Green | N132: 4 | O132: 1200 | Q132: 1995-08-29 | R132: Golden | S132: 5 | T132: 84
B133: 1995-08-29 | C133: Diatom | D133: 2 | E133: 544 | G133: 2003-07-17 | H133: Green | I133: 3 | J133: 17509 | L133: 2003-10-08 | M133: Blue Green | N133: 8 | O133: 1000 | Q133: 1995-08-29 | R133: Golden | S133: 5 | T133: 262
B134: 1995-08-29 | C134: Diatom | D134: 2 | E134: 62 | G134: 2003-07-17 | H134: Green | I134: 2 | J134: 100 | L134: 2003-10-08 | M134: Blue Green | N134: 2 | O134: 20500 | Q134: 1995-08-29 | R134: Golden | S134: 5 | T134: 22
B135: 1995-08-29 | C135: Diatom | D135: 2 | E135: 53 | G135: 2003-07-17 | H135: Green | I135: 3 | J135: 56905 | L135: 2003-10-22 | M135: Blue Green | N135: 2 | O135: 11500 | Q135: 1995-08-29 | R135: Golden | S135: 5 | T135: 6
B136: 1995-08-29 | C136: Diatom | D136: 2 | E136: 19 | G136: 2003-07-17 | H136: Green | I136: 2 | J136: 100 | L136: 2003-10-22 | M136: Blue Green | N136: 2 | O136: 3300 | Q136: 1995-08-29 | R136: Golden | S136: 5 | T136: 3
B137: 1995-08-29 | C137: Diatom | D137: 2 | E137: 25 | G137: 2003-07-17 | H137: Green | I137: 3 | J137: 172903 | L137: 2003-10-22 | M137: Blue Green | N137: 2 | O137: 5500 | Q137: 1995-09-12 | R137: Golden | S137: 2 | T137: 57
B138: 1995-09-12 | C138: Diatom | D138: 2 | E138: 1146 | G138: 2003-07-17 | H138: Green | I138: 2 | J138: 100 | L138: 2003-10-22 | M138: Blue Green | N138: 4 | O138: 200 | Q138: 1995-09-12 | R138: Golden | S138: 5 | T138: 444
B139: 1995-09-12 | C139: Diatom | D139: 10 | E139: 3 | G139: 2003-07-17 | H139: Green | I139: 3 | J139: 8755 | L139: 2003-10-22 | M139: Blue Green | N139: 2 | O139: 18600 | Q139: 1995-09-12 | R139: Golden | S139: 2 | T139: 65
B140: 1995-09-12 | C140: Diatom | D140: 2 | E140: 2673 | G140: 2003-07-17 | H140: Green | I140: 3 | J140: 61282 | L140: 2003-10-22 | M140: Blue Green | N140: 2 | O140: 4800 | Q140: 1995-09-12 | R140: Golden | S140: 5 | T140: 2007
B141: 1995-09-12 | C141: Diatom | D141: 10 | E141: 12 | G141: 2003-07-17 | H141: Green | I141: 5 | J141: 700 | L141: 2003-10-22 | M141: Blue Green | N141: 2 | O141: 9200 | Q141: 1995-09-12 | R141: Golden | S141: 2 | T141: 60
B142: 1995-09-12 | C142: Diatom | D142: 2 | E142: 2394 | G142: 2003-07-17 | H142: Green | I142: 3 | J142: 28452 | L142: 2003-10-22 | M142: Blue Green | N142: 4 | O142: 400 | Q142: 1995-09-12 | R142: Golden | S142: 5 | T142: 1007
B143: 1995-09-12 | C143: Diatom | D143: 10 | E143: 39 | G143: 2003-07-17 | H143: Green | I143: 1 | J143: 4377 | L143: 2003-11-05 | M143: Blue Green | N143: 2 | O143: 7000 | Q143: 1995-09-12 | R143: Golden | S143: 2 | T143: 228
B144: 1995-09-12 | C144: Diatom | D144: 2 | E144: 3009 | G144: 2003-07-17 | H144: Green | I144: 3 | J144: 170714 | L144: 2003-11-05 | M144: Blue Green | N144: 2 | O144: 800 | Q144: 1995-09-12 | R144: Golden | S144: 5 | T144: 2094
B145: 1995-09-12 | C145: Diatom | D145: 10 | E145: 15 | G145: 2003-07-30 | H145: Green | I145: 3 | J145: 105055 | L145: 2003-11-05 | M145: Blue Green | N145: 3 | O145: 400 | Q145: 1995-09-12 | R145: Golden | S145: 5 | T145: 297
B146: 1995-09-12 | C146: Diatom | D146: 2 | E146: 273 | G146: 2003-07-30 | H146: Green | I146: 1 | J146: 4377 | L146: 2003-11-05 | M146: Blue Green | N146: 2 | O146: 5200 | Q146: 1995-09-12 | R146: Golden | S146: 2 | T146: 6
B147: 1995-09-12 | C147: Diatom | D147: 2 | E147: 537 | G147: 2003-07-30 | H147: Green | I147: 2 | J147: 100 | L147: 2003-11-05 | M147: Blue Green | N147: 2 | O147: 5200 | Q147: 1995-09-12 | R147: Golden | S147: 5 | T147: 384
B148: 1995-09-12 | C148: Diatom | D148: 10 | E148: 3 | G148: 2003-07-30 | H148: Green | I148: 3 | J148: 15321 | L148: 2003-11-19 | M148: Blue Green | N148: 3 | O148: 400 | Q148: 1995-09-12 | R148: Golden | S148: 5 | T148: 60
B149: 1995-09-12 | C149: Diatom | D149: 2 | E149: 132 | G149: 2003-07-30 | H149: Green | I149: 1 | J149: 8755 | L149: 2003-11-19 | M149: Blue Green | N149: 2 | O149: 800 | Q149: 1995-09-12 | R149: Golden | S149: 2 | T149: 3
B150: 1995-09-12 | C150: Diatom | D150: 2 | E150: 75 | G150: 2003-07-30 | H150: Green | I150: 2 | J150: 100 | L150: 2003-11-19 | M150: Blue Green | N150: 2 | O150: 1200 | Q150: 1995-09-12 | R150: Golden | S150: 5 | T150: 37
B151: 1995-09-26 | C151: Diatom | D151: 2 | E151: 4251 | G151: 2003-07-30 | H151: Green | I151: 3 | J151: 19698 | L151: 2004-02-05 | M151: Blue Green | N151: 2 | O151: 1300 | Q151: 1995-09-26 | R151: Golden | S151: 5 | T151: 183
B152: 1995-09-26 | C152: Diatom | D152: 2 | E152: 4389 | G152: 2003-07-30 | H152: Green | I152: 1 | J152: 8755 | L152: 2004-02-05 | M152: Blue Green | N152: 2 | O152: 900 | Q152: 1995-09-26 | R152: Golden | S152: 2 | T152: 6
B153: 1995-09-26 | C153: Diatom | D153: 10 | E153: 12 | G153: 2003-07-30 | H153: Green | I153: 2 | J153: 100 | L153: 2004-02-05 | M153: Blue Green | N153: 2 | O153: 600 | Q153: 1995-09-26 | R153: Golden | S153: 5 | T153: 135
B154: 1995-09-26 | C154: Diatom | D154: 2 | E154: 4551 | G154: 2003-07-30 | H154: Green | I154: 3 | J154: 83169 | L154: 2004-02-19 | M154: Blue Green | N154: 2 | O154: 300 | Q154: 1995-09-26 | R154: Golden | S154: 5 | T154: 165
B155: 1995-09-26 | C155: Diatom | D155: 10 | E155: 63 | G155: 2003-07-30 | H155: Green | I155: 3 | J155: 91923 | L155: 2004-02-19 | M155: Blue Green | N155: 2 | O155: 100 | Q155: 1995-09-26 | R155: Golden | S155: 5 | T155: 528
B156: 1995-09-26 | C156: Diatom | D156: 2 | E156: 4551 | G156: 2003-07-30 | H156: Green | I156: 3 | J156: 13132 | L156: 2004-02-19 | M156: Blue Green | N156: 2 | O156: 16000 | Q156: 1995-09-26 | R156: Golden | S156: 5 | T156: 423
B157: 1995-09-26 | C157: Diatom | D157: 10 | E157: 51 | G157: 2003-08-13 | H157: Green | I157: 1 | J157: 8755 | L157: 2004-02-19 | M157: Blue Green | N157: 2 | O157: 400 | Q157: 1995-09-26 | R157: Golden | S157: 5 | T157: 42
B158: 1995-09-26 | C158: Diatom | D158: 2 | E158: 4329 | G158: 2003-08-13 | H158: Green | I158: 3 | J158: 21886 | L158: 2004-02-19 | M158: Blue Green | N158: 2 | O158: 200 | Q158: 1995-09-26 | R158: Golden | S158: 5 | T158: 27
B159: 1995-09-26 | C159: Diatom | D159: 10 | E159: 63 | G159: 2003-08-13 | H159: Green | I159: 3 | J159: 17509 | L159: 2004-05-19 | M159: Blue Green | N159: 2 | O159: 2400 | Q159: 1995-09-26 | R159: Golden | S159: 5 | T159: 3
B160: 1995-09-26 | C160: Diatom | D160: 2 | E160: 1254 | G160: 2003-08-13 | H160: Green | I160: 1 | J160: 21886 | L160: 2004-06-16 | M160: Blue Green | N160: 2 | O160: 2500 | Q160: 1995-10-10 | R160: Golden | S160: 2 | T160: 33
B161: 1995-09-26 | C161: Diatom | D161: 10 | E161: 21 | G161: 2003-08-13 | H161: Green | I161: 2 | J161: 100 | L161: 2004-06-16 | M161: Blue Green | N161: 2 | O161: 2800 | Q161: 1995-10-10 | R161: Golden | S161: 5 | T161: 159
B162: 1995-09-26 | C162: Diatom | D162: 2 | E162: 774 | G162: 2003-08-13 | H162: Green | I162: 3 | J162: 72225 | L162: 2004-06-16 | M162: Blue Green | N162: 8 | O162: 10200 | Q162: 1995-10-10 | R162: Golden | S162: 2 | T162: 123
B163: 1995-09-26 | C163: Diatom | D163: 10 | E163: 12 | G163: 2003-08-13 | H163: Green | I163: 3 | J163: 8755 | L163: 2004-06-28 | M163: Blue Green | N163: 8 | O163: 5600 | Q163: 1995-10-10 | R163: Golden | S163: 5 | T163: 342
B164: 1995-09-26 | C164: Diatom | D164: 2 | E164: 345 | G164: 2003-08-13 | H164: Green | I164: 1 | J164: 30641 | L164: 2004-06-28 | M164: Blue Green | N164: 8 | O164: 6400 | Q164: 1995-10-10 | R164: Golden | S164: 2 | T164: 39
B165: 1995-10-10 | C165: Diatom | D165: 2 | E165: 1155 | G165: 2003-08-13 | H165: Green | I165: 2 | J165: 200 | L165: 2004-06-28 | M165: Blue Green | N165: 2 | O165: 800 | Q165: 1995-10-10 | R165: Golden | S165: 5 | T165: 129
B166: 1995-10-10 | C166: Diatom | D166: 2 | E166: 4923 | G166: 2003-08-13 | H166: Green | I166: 3 | J166: 115998 | L166: 2004-06-28 | M166: Blue Green | N166: 8 | O166: 5600 | Q166: 1995-10-10 | R166: Golden | S166: 2 | T166: 72
B167: 1995-10-10 | C167: Diatom | D167: 10 | E167: 27 | G167: 2003-08-13 | H167: Green | I167: 1 | J167: 15321 | L167: 2004-06-28 | M167: Blue Green | N167: 8 | O167: 2800 | Q167: 1995-10-10 | R167: Golden | S167: 5 | T167: 303
B168: 1995-10-10 | C168: Diatom | D168: 2 | E168: 4368 | G168: 2003-08-13 | H168: Green | I168: 3 | J168: 80980 | L168: 2004-07-14 | M168: Blue Green | N168: 1 | O168: 100 | Q168: 1995-10-10 | R168: Golden | S168: 2 | T168: 30
B169: 1995-10-10 | C169: Diatom | D169: 10 | E169: 48 | G169: 2003-08-27 | H169: Green | I169: 3 | J169: 13132 | L169: 2004-07-14 | M169: Blue Green | N169: 2 | O169: 6500 | Q169: 1995-10-10 | R169: Golden | S169: 5 | T169: 264
B170: 1995-10-10 | C170: Diatom | D170: 2 | E170: 5625 | G170: 2003-08-27 | H170: Green | I170: 1 | J170: 52527 | L170: 2004-07-14 | M170: Blue Green | N170: 2 | O170: 3900 | Q170: 1995-10-10 | R170: Golden | S170: 5 | T170: 561
B171: 1995-10-10 | C171: Diatom | D171: 10 | E171: 132 | G171: 2003-08-27 | H171: Green | I171: 3 | J171: 435549 | L171: 2004-07-14 | M171: Blue Green | N171: 2 | O171: 13600 | Q171: 1995-10-24 | R171: Golden | S171: 2 | T171: 1882
B172: 1995-10-10 | C172: Diatom | D172: 2 | E172: 4890 | G172: 2003-08-27 | H172: Green | I172: 1 | J172: 8755 | L172: 2004-07-28 | M172: Blue Green | N172: 2 | O172: 2900 | Q172: 1995-10-24 | R172: Golden | S172: 5 | T172: 3208
B173: 1995-10-10 | C173: Diatom | D173: 10 | E173: 78 | G173: 2003-08-27 | H173: Green | I173: 1 | J173: 65659 | L173: 2004-07-28 | M173: Blue Green | N173: 2 | O173: 14100 | Q173: 1995-10-24 | R173: Golden | S173: 2 | T173: 1643
B174: 1995-10-10 | C174: Diatom | D174: 2 | E174: 7413 | G174: 2003-08-27 | H174: Green | I174: 2 | J174: 100 | L174: 2004-07-28 | M174: Blue Green | N174: 2 | O174: 400 | Q174: 1995-10-24 | R174: Golden | S174: 5 | T174: 2604
B175: 1995-10-10 | C175: Diatom | D175: 10 | E175: 150 | G175: 2003-08-27 | H175: Green | I175: 3 | J175: 396145 | L175: 2004-07-28 | M175: Blue Green | N175: 2 | O175: 1900 | Q175: 1995-10-24 | R175: Golden | S175: 2 | T175: 1428
B176: 1995-10-10 | C176: Diatom | D176: 2 | E176: 225 | G176: 2003-08-27 | H176: Green | I176: 1 | J176: 26264 | L176: 2004-07-28 | M176: Blue Green | N176: 2 | O176: 45100 | Q176: 1995-10-24 | R176: Golden | S176: 5 | T176: 2346
B177: 1995-10-10 | C177: Diatom | D177: 2 | E177: 297 | G177: 2003-08-27 | H177: Green | I177: 2 | J177: 400 | L177: 2004-07-28 | M177: Blue Green | N177: 8 | O177: 56606 | Q177: 1995-10-24 | R177: Golden | S177: 2 | T177: 252
B178: 1995-10-24 | C178: Diatom | D178: 2 | E178: 1223 | G178: 2003-08-27 | H178: Green | I178: 3 | J178: 590934 | L178: 2004-07-28 | M178: Blue Green | N178: 2 | O178: 57700 | Q178: 1995-10-24 | R178: Golden | S178: 5 | T178: 3279
B179: 1995-10-24 | C179: Diatom | D179: 10 | E179: 236 | G179: 2003-09-10 | H179: Green | I179: 1 | J179: 41584 | L179: 2004-07-28 | M179: Blue Green | N179: 8 | O179: 6000 | Q179: 1995-10-24 | R179: Golden | S179: 2 | T179: 784
B180: 1995-10-24 | C180: Diatom | D180: 2 | E180: 1160 | G180: 2003-09-10 | H180: Green | I180: 2 | J180: 100 | L180: 2004-07-28 | M180: Blue Green | N180: 2 | O180: 46300 | Q180: 1995-10-24 | R180: Golden | S180: 5 | T180: 2722
B181: 1995-10-24 | C181: Diatom | D181: 10 | E181: 271 | G181: 2003-09-10 | H181: Green | I181: 3 | J181: 304222 | L181: 2004-07-28 | M181: Blue Green | N181: 8 | O181: 8200 | Q181: 1995-10-24 | R181: Golden | S181: 2 | T181: 636
B182: 1995-10-24 | C182: Diatom | D182: 2 | E182: 1633 | G182: 2003-09-10 | H182: Green | I182: 1 | J182: 212299 | L182: 2004-08-11 | M182: Blue Green | N182: 2 | O182: 39800 | Q182: 1995-10-24 | R182: Golden | S182: 5 | T182: 2496
B183: 1995-10-24 | C183: Diatom | D183: 10 | E183: 140 | G183: 2003-09-10 | H183: Green | I183: 3 | J183: 216676 | L183: 2004-08-11 | M183: Blue Green | N183: 8 | O183: 43772 | Q183: 1995-10-24 | R183: Golden | S183: 2 | T183: 831
B184: 1995-10-24 | C184: Diatom | D184: 2 | E184: 1048 | G184: 2003-09-10 | H184: Green | I184: 3 | J184: 28452 | L184: 2004-08-11 | M184: Blue Green | N184: 2 | O184: 6200 | Q184: 1995-10-24 | R184: Golden | S184: 5 | T184: 2626
B185: 1995-10-24 | C185: Diatom | D185: 10 | E185: 286 | G185: 2003-09-10 | H185: Green | I185: 1 | J185: 8755 | L185: 2004-08-11 | M185: Blue Green | N185: 2 | O185: 22700 | Q185: 1995-10-24 | R185: Golden | S185: 2 | T185: 2825
B186: 1995-10-24 | C186: Diatom | D186: 2 | E186: 1173 | G186: 2003-09-10 | H186: Green | I186: 2 | J186: 200 | L186: 2004-08-11 | M186: Blue Green | N186: 8 | O186: 61282 | Q186: 1995-10-24 | R186: Golden | S186: 5 | T186: 4828
B187: 1995-10-24 | C187: Diatom | D187: 10 | E187: 208 | G187: 2003-09-10 | H187: Green | I187: 3 | J187: 350183 | L187: 2004-08-11 | M187: Blue Green | N187: 2 | O187: 1200 | Q187: 1995-11-07 | R187: Golden | S187: 2 | T187: 1086
B188: 1995-10-24 | C188: Diatom | D188: 2 | E188: 1113 | G188: 2003-09-10 | H188: Green | I188: 3 | J188: 17509 | L188: 2004-08-11 | M188: Blue Green | N188: 8 | O188: 8754 | Q188: 1995-11-07 | R188: Golden | S188: 5 | T188: 6113
B189: 1995-10-24 | C189: Diatom | D189: 10 | E189: 285 | G189: 2003-09-10 | H189: Green | I189: 1 | J189: 17509 | L189: 2004-08-11 | M189: Blue Green | N189: 2 | O189: 24000 | Q189: 1995-11-07 | R189: Golden | S189: 2 | T189: 775
B190: 1995-10-24 | C190: Diatom | D190: 2 | E190: 1428 | G190: 2003-09-10 | H190: Green | I190: 2 | J190: 100 | L190: 2004-08-11 | M190: Blue Green | N190: 8 | O190: 18868 | Q190: 1995-11-07 | R190: Golden | S190: 5 | T190: 4334
B191: 1995-10-24 | C191: Diatom | D191: 10 | E191: 190 | G191: 2003-09-10 | H191: Green | I191: 3 | J191: 140073 | L191: 2004-08-25 | M191: Blue Green | N191: 2 | O191: 400 | Q191: 1995-11-07 | R191: Golden | S191: 2 | T191: 703
B192: 1995-10-24 | C192: Diatom | D192: 2 | E192: 1820 | G192: 2003-09-10 | H192: Green | I192: 3 | J192: 15321 | L192: 2004-08-25 | M192: Blue Green | N192: 2 | O192: 1400 | Q192: 1995-11-07 | R192: Golden | S192: 5 | T192: 4418
B193: 1995-10-24 | C193: Diatom | D193: 10 | E193: 404 | G193: 2003-09-24 | H193: Green | I193: 1 | J193: 13132 | L193: 2004-08-25 | M193: Blue Green | N193: 2 | O193: 37000 | Q193: 1995-11-07 | R193: Golden | S193: 2 | T193: 784
B194: 1995-11-07 | C194: Diatom | D194: 2 | E194: 865 | G194: 2003-09-24 | H194: Green | I194: 3 | J194: 65659 | L194: 2004-08-25 | M194: Blue Green | N194: 8 | O194: 17510 | Q194: 1995-11-07 | R194: Golden | S194: 5 | T194: 5438
B195: 1995-11-07 | C195: Diatom | D195: 10 | E195: 1002 | G195: 2003-09-24 | H195: Green | I195: 1 | J195: 111621 | L195: 2004-08-25 | M195: Blue Green | N195: 2 | O195: 18100 | Q195: 1995-11-07 | R195: Golden | S195: 2 | T195: 688
B196: 1995-11-07 | C196: Diatom | D196: 2 | E196: 719 | G196: 2003-09-24 | H196: Green | I196: 3 | J196: 19698 | L196: 2004-08-25 | M196: Blue Green | N196: 8 | O196: 245128 | Q196: 1995-11-07 | R196: Golden | S196: 5 | T196: 5656
B197: 1995-11-07 | C197: Diatom | D197: 10 | E197: 915 | G197: 2003-09-24 | H197: Green | I197: 4 | J197: 8755 | L197: 2004-08-25 | M197: Blue Green | N197: 2 | O197: 27500 | Q197: 1995-11-07 | R197: Golden | S197: 2 | T197: 921
B198: 1995-11-07 | C198: Diatom | D198: 2 | E198: 719 | G198: 2003-09-24 | H198: Green | I198: 1 | J198: 4377 | L198: 2004-08-25 | M198: Blue Green | N198: 8 | O198: 245128 | Q198: 1995-11-07 | R198: Golden | S198: 5 | T198: 5607
B199: 1995-11-07 | C199: Diatom | D199: 10 | E199: 933 | G199: 2003-09-24 | H199: Green | I199: 3 | J199: 13132 | L199: 2004-09-08 | M199: Blue Green | N199: 2 | O199: 34500 | Q199: 1995-11-07 | R199: Golden | S199: 2 | T199: 865
B200: 1995-11-07 | C200: Diatom | D200: 2 | E200: 1064 | G200: 2003-09-24 | H200: Green | I200: 1 | J200: 4377 | L200: 2004-09-08 | M200: Blue Green | N200: 8 | O200: 6800 | Q200: 1995-11-07 | R200: Golden | S200: 5 | T200: 5133
B201: 1995-11-07 | C201: Diatom | D201: 10 | E201: 958 | G201: 2003-09-24 | H201: Green | I201: 3 | J201: 19698 | L201: 2004-09-08 | M201: Blue Green | N201: 2 | O201: 3200 | Q201: 1995-11-21 | R201: Golden | S201: 2 | T201: 1490
B202: 1995-11-07 | C202: Diatom | D202: 2 | E202: 880 | G202: 2003-09-24 | H202: Green | I202: 1 | J202: 242940 | L202: 2004-09-08 | M202: Blue Green | N202: 2 | O202: 11000 | Q202: 1995-11-21 | R202: Golden | S202: 5 | T202: 4153
B203: 1995-11-07 | C203: Diatom | D203: 10 | E203: 1039 | G203: 2003-09-24 | H203: Green | I203: 2 | J203: 400 | L203: 2004-09-08 | M203: Blue Green | N203: 10 | O203: 70036 | Q203: 1995-11-21 | R203: Golden | S203: 2 | T203: 971
B204: 1995-11-07 | C204: Diatom | D204: 2 | E204: 747 | G204: 2003-09-24 | H204: Green | I204: 3 | J204: 63471 | L204: 2004-09-08 | M204: Blue Green | N204: 1 | O204: 3100 | Q204: 1995-11-21 | R204: Golden | S204: 5 | T204: 2875
B205: 1995-11-07 | C205: Diatom | D205: 10 | E205: 1056 | G205: 2003-09-24 | H205: Green | I205: 4 | J205: 8900 | L205: 2004-09-08 | M205: Blue Green | N205: 2 | O205: 27600 | Q205: 1995-11-21 | R205: Golden | S205: 2 | T205: 849
B206: 1995-11-07 | C206: Diatom | D206: 2 | E206: 887 | G206: 2003-09-24 | H206: Green | I206: 1 | J206: 201355 | L206: 2004-09-08 | M206: Blue Green | N206: 2 | O206: 1100 | Q206: 1995-11-21 | R206: Golden | S206: 5 | T206: 3155
B207: 1995-11-07 | C207: Diatom | D207: 10 | E207: 946 | G207: 2003-09-24 | H207: Green | I207: 3 | J207: 118187 | L207: 2004-09-08 | M207: Blue Green | N207: 8 | O207: 1200 | Q207: 1995-11-21 | R207: Golden | S207: 2 | T207: 1509
... 4293 more rows

Sheet Big Platte Zoop
AB5: =E25 -> 2279 | AC5: =E30 -> Copepoda
AB6: =J25 -> 1778 | AC6: =J30 -> Cladoceran
AB7: =O25 -> 1750 | AC7: =O30 -> Rodifera
B13: Sub-Type
B14: 1 | C14: Bosmina | I14: Type
B15: =B14+1 -> 2 | C15: Eubosmina | I15: 1 | J15: Cyclopoid
B16: =B15+1 -> 3 | C16: Alona | I16: 2 | J16: Calanoid
B17: 4 | C17: Daphnia | I17: 3 | J17: Mesocyclops
B18: 5 | C18: Diaphanosoma | I18: 4 | J18: Epishura
B19: 6 | C19: Ceriodaphnia | I19: 5 | J19: Haaracticoid
B20: 7 | C20: Sida | I20: 6 | J20: Nauplii
B21: 8 | C21: Holopedium
B22: 9 | C22: Leptodora
B23: 10 | C23: Unknown
B24: 11 | C24: Chydorus
D25: Count | E25: =COUNT(E31:E30023) -> 2279 | I25: Count | J25: =COUNT(J31:J30023) -> 1778 | N25: Count | O25: =COUNT(O31:O30023) -> 1750
D26: Maxiumum | E26: =MAX(E31:E20022) -> 498 | I26: Maxiumum | J26: =MAX(J31:J20022) -> 248 | N26: Maxiumum | O26: =MAX(O31:O20022) -> 5293
D27: Minimum | E27: =MIN(E32:E2023) -> 0.01 | I27: Minimum | J27: =MIN(J32:J2023) -> 0.004 | N27: Minimum | O27: =MIN(O32:O2023) -> 0.1
B28: Range | D28: Average | E28: =AVERAGE(E31:E20023) -> 20.02129443 | G28: Range | I28: Average | J28: =AVERAGE(J31:J20023) -> 13.80022497 | L28: Range | N28: Average | O28: =AVERAGE(O31:O20023) -> 264.8152
B29: =YEAR(MIN(B31:B9993)) -> 1993 | G29: =YEAR(MIN(G31:G9993)) -> 1993 | L29: =YEAR(MIN(L31:L9993)) -> 1993
B30: =YEAR(MAX(B31:B19991)) -> 2012 | E30: Copepoda | G30: =YEAR(MAX(G31:G19991)) -> 2012 | J30: Cladoceran | L30: =YEAR(MAX(L31:L19991)) -> 2012 | O30: Rodifera
B31: 1993-03-23 | C31: Copepoda | D31: 1 | E31: 0.6 | G31: 1993-03-23 | H31: Cladoceran | I31: 4 | J31: 0.3 | L31: 1993-03-23 | M31: Rodifera | N31: 1 | O31: 6.5
B32: 1993-03-23 | C32: Copepoda | D32: 1 | E32: 1.9 | G32: 1993-03-23 | H32: Cladoceran | I32: 4 | J32: 1.1 | L32: 1993-03-23 | M32: Rodifera | N32: 1 | O32: 33
B33: 1993-03-23 | C33: Copepoda | D33: 1 | E33: 13.8 | G33: 1993-03-23 | H33: Cladoceran | I33: 4 | J33: 4.8 | L33: 1993-03-23 | M33: Rodifera | N33: 1 | O33: 203.8
B34: 1995-05-09 | C34: Copepoda | D34: 1 | E34: 73 | G34: 1995-05-09 | H34: Cladoceran | I34: 4 | J34: 9 | L34: 1995-05-09 | M34: Rodifera | N34: 1 | O34: 496
B35: 1995-05-09 | C35: Copepoda | D35: 1 | E35: 77 | G35: 1995-05-09 | H35: Cladoceran | I35: 4 | J35: 3 | L35: 1995-05-09 | M35: Rodifera | N35: 1 | O35: 550
B36: 1995-05-09 | C36: Copepoda | D36: 1 | E36: 213 | G36: 1995-05-09 | H36: Cladoceran | I36: 4 | J36: 11 | L36: 1995-05-09 | M36: Rodifera | N36: 1 | O36: 836
B37: 1995-05-09 | C37: Copepoda | D37: 1 | E37: 152 | G37: 1995-05-09 | H37: Cladoceran | I37: 4 | J37: 18 | L37: 1995-05-09 | M37: Rodifera | N37: 1 | O37: 660
B38: 1995-05-09 | C38: Copepoda | D38: 1 | E38: 154 | G38: 1995-05-09 | H38: Cladoceran | I38: 4 | J38: 3 | L38: 1995-05-09 | M38: Rodifera | N38: 1 | O38: 434
B39: 1995-05-09 | C39: Copepoda | D39: 1 | E39: 35 | G39: 1995-05-09 | H39: Cladoceran | I39: 4 | J39: 3 | L39: 1995-05-09 | M39: Rodifera | N39: 1 | O39: 138
B40: 1995-05-09 | C40: Copepoda | D40: 1 | E40: 58 | G40: 1995-05-23 | H40: Cladoceran | I40: 4 | J40: 2 | L40: 1995-05-09 | M40: Rodifera | N40: 1 | O40: 155
B41: 1995-05-09 | C41: Copepoda | D41: 1 | E41: 51 | G41: 1995-05-23 | H41: Cladoceran | I41: 4 | J41: 26 | L41: 1995-05-09 | M41: Rodifera | N41: 1 | O41: 253
B42: 1995-05-23 | C42: Copepoda | D42: 1 | E42: 36 | G42: 1995-05-23 | H42: Cladoceran | I42: 4 | J42: 31 | L42: 1995-05-23 | M42: Rodifera | N42: 1 | O42: 1035
B43: 1995-05-23 | C43: Copepoda | D43: 1 | E43: 48 | G43: 1995-05-23 | H43: Cladoceran | I43: 4 | J43: 29 | L43: 1995-05-23 | M43: Rodifera | N43: 1 | O43: 664
B44: 1995-05-23 | C44: Copepoda | D44: 1 | E44: 75 | G44: 1995-05-23 | H44: Cladoceran | I44: 4 | J44: 11 | L44: 1995-05-23 | M44: Rodifera | N44: 1 | O44: 608
B45: 1995-05-23 | C45: Copepoda | D45: 1 | E45: 66 | G45: 1995-05-23 | H45: Cladoceran | I45: 4 | J45: 17 | L45: 1995-05-23 | M45: Rodifera | N45: 1 | O45: 1181
B46: 1995-05-23 | C46: Copepoda | D46: 1 | E46: 51 | G46: 1995-05-23 | H46: Cladoceran | I46: 4 | J46: 21 | L46: 1995-05-23 | M46: Rodifera | N46: 1 | O46: 241
B47: 1995-05-23 | C47: Copepoda | D47: 1 | E47: 33 | G47: 1995-06-06 | H47: Cladoceran | I47: 4 | J47: 28 | L47: 1995-05-23 | M47: Rodifera | N47: 1 | O47: 528
B48: 1995-05-23 | C48: Copepoda | D48: 1 | E48: 28 | G48: 1995-06-06 | H48: Cladoceran | I48: 4 | J48: 75 | L48: 1995-05-23 | M48: Rodifera | N48: 1 | O48: 337
B49: 1995-05-23 | C49: Copepoda | D49: 1 | E49: 21 | G49: 1995-06-06 | H49: Cladoceran | I49: 4 | J49: 86 | L49: 1995-05-23 | M49: Rodifera | N49: 1 | O49: 131
B50: 1995-06-06 | C50: Copepoda | D50: 1 | E50: 42 | G50: 1995-06-06 | H50: Cladoceran | I50: 4 | J50: 58 | L50: 1995-06-06 | M50: Rodifera | N50: 1 | O50: 1025
B51: 1995-06-06 | C51: Copepoda | D51: 1 | E51: 33 | G51: 1995-06-06 | H51: Cladoceran | I51: 4 | J51: 25 | L51: 1995-06-06 | M51: Rodifera | N51: 1 | O51: 595
B52: 1995-06-06 | C52: Copepoda | D52: 1 | E52: 100 | G52: 1995-06-06 | H52: Cladoceran | I52: 4 | J52: 14 | L52: 1995-06-06 | M52: Rodifera | N52: 1 | O52: 1350
B53: 1995-06-06 | C53: Copepoda | D53: 1 | E53: 48 | G53: 1995-06-06 | H53: Cladoceran | I53: 4 | J53: 54 | L53: 1995-06-06 | M53: Rodifera | N53: 1 | O53: 998
B54: 1995-06-06 | C54: Copepoda | D54: 1 | E54: 25 | G54: 1995-06-06 | H54: Cladoceran | I54: 4 | J54: 24 | L54: 1995-06-06 | M54: Rodifera | N54: 1 | O54: 481
B55: 1995-06-06 | C55: Copepoda | D55: 1 | E55: 48 | G55: 1995-06-20 | H55: Cladoceran | I55: 4 | J55: 19 | L55: 1995-06-06 | M55: Rodifera | N55: 1 | O55: 889
B56: 1995-06-06 | C56: Copepoda | D56: 1 | E56: 36 | G56: 1995-06-20 | H56: Cladoceran | I56: 4 | J56: 117 | L56: 1995-06-06 | M56: Rodifera | N56: 1 | O56: 1053
B57: 1995-06-06 | C57: Copepoda | D57: 1 | E57: 46 | G57: 1995-06-20 | H57: Cladoceran | I57: 4 | J57: 81 | L57: 1995-06-06 | M57: Rodifera | N57: 1 | O57: 2660
B58: 1995-06-20 | C58: Copepoda | D58: 1 | E58: 12 | G58: 1995-06-20 | H58: Cladoceran | I58: 4 | J58: 25 | L58: 1995-06-20 | M58: Rodifera | N58: 1 | O58: 231
B59: 1995-06-20 | C59: Copepoda | D59: 1 | E59: 14 | G59: 1995-06-20 | H59: Cladoceran | I59: 4 | J59: 56 | L59: 1995-06-20 | M59: Rodifera | N59: 1 | O59: 253
B60: 1995-06-20 | C60: Copepoda | D60: 1 | E60: 81 | G60: 1995-06-20 | H60: Cladoceran | I60: 4 | J60: 25 | L60: 1995-06-20 | M60: Rodifera | N60: 1 | O60: 411
B61: 1995-06-20 | C61: Copepoda | D61: 1 | E61: 119 | G61: 1995-06-20 | H61: Cladoceran | I61: 4 | J61: 42 | L61: 1995-06-20 | M61: Rodifera | N61: 1 | O61: 275
B62: 1995-06-20 | C62: Copepoda | D62: 1 | E62: 64 | G62: 1995-06-20 | H62: Cladoceran | I62: 4 | J62: 25 | L62: 1995-06-20 | M62: Rodifera | N62: 1 | O62: 311
B63: 1995-06-20 | C63: Copepoda | D63: 1 | E63: 28 | G63: 1995-07-03 | H63: Cladoceran | I63: 4 | J63: 145 | L63: 1995-06-20 | M63: Rodifera | N63: 1 | O63: 844
B64: 1995-06-20 | C64: Copepoda | D64: 1 | E64: 27 | G64: 1995-07-03 | H64: Cladoceran | I64: 4 | J64: 206 | L64: 1995-06-20 | M64: Rodifera | N64: 1 | O64: 969
B65: 1995-06-20 | C65: Copepoda | D65: 1 | E65: 192 | G65: 1995-07-03 | H65: Cladoceran | I65: 4 | J65: 219 | L65: 1995-06-20 | M65: Rodifera | N65: 1 | O65: 1939
B66: 1995-07-03 | C66: Copepoda | D66: 1 | E66: 19 | G66: 1995-07-03 | H66: Cladoceran | I66: 4 | J66: 161 | L66: 1995-07-03 | M66: Rodifera | N66: 1 | O66: 525
B67: 1995-07-03 | C67: Copepoda | D67: 1 | E67: 22 | G67: 1995-07-03 | H67: Cladoceran | I67: 4 | J67: 39 | L67: 1995-07-03 | M67: Rodifera | N67: 1 | O67: 838
B68: 1995-07-03 | C68: Copepoda | D68: 1 | E68: 16 | G68: 1995-07-03 | H68: Cladoceran | I68: 4 | J68: 42 | L68: 1995-07-03 | M68: Rodifera | N68: 1 | O68: 490
B69: 1995-07-03 | C69: Copepoda | D69: 1 | E69: 167 | G69: 1995-07-03 | H69: Cladoceran | I69: 4 | J69: 109 | L69: 1995-07-03 | M69: Rodifera | N69: 1 | O69: 387
B70: 1995-07-03 | C70: Copepoda | D70: 1 | E70: 71 | G70: 1995-07-03 | H70: Cladoceran | I70: 4 | J70: 141 | L70: 1995-07-03 | M70: Rodifera | N70: 1 | O70: 87
B71: 1995-07-03 | C71: Copepoda | D71: 1 | E71: 64 | G71: 1995-07-18 | H71: Cladoceran | I71: 4 | J71: 42 | L71: 1995-07-03 | M71: Rodifera | N71: 1 | O71: 123
B72: 1995-07-03 | C72: Copepoda | D72: 1 | E72: 45 | G72: 1995-07-18 | H72: Cladoceran | I72: 4 | J72: 159 | L72: 1995-07-03 | M72: Rodifera | N72: 1 | O72: 280
B73: 1995-07-03 | C73: Copepoda | D73: 1 | E73: 65 | G73: 1995-07-18 | H73: Cladoceran | I73: 4 | J73: 126 | L73: 1995-07-03 | M73: Rodifera | N73: 1 | O73: 364
B74: 1995-07-18 | C74: Copepoda | D74: 1 | E74: 18 | G74: 1995-07-18 | H74: Cladoceran | I74: 4 | J74: 99 | L74: 1995-07-18 | M74: Rodifera | N74: 1 | O74: 564
B75: 1995-07-18 | C75: Copepoda | D75: 1 | E75: 33 | G75: 1995-07-18 | H75: Cladoceran | I75: 4 | J75: 24 | L75: 1995-07-18 | M75: Rodifera | N75: 1 | O75: 822
B76: 1995-07-18 | C76: Copepoda | D76: 1 | E76: 30 | G76: 1995-07-18 | H76: Cladoceran | I76: 4 | J76: 33 | L76: 1995-07-18 | M76: Rodifera | N76: 1 | O76: 747
B77: 1995-07-18 | C77: Copepoda | D77: 1 | E77: 108 | G77: 1995-07-18 | H77: Cladoceran | I77: 4 | J77: 3 | L77: 1995-07-18 | M77: Rodifera | N77: 1 | O77: 690
B78: 1995-07-18 | C78: Copepoda | D78: 1 | E78: 72 | G78: 1995-07-18 | H78: Cladoceran | I78: 4 | J78: 3 | L78: 1995-07-18 | M78: Rodifera | N78: 1 | O78: 153
B79: 1995-07-18 | C79: Copepoda | D79: 1 | E79: 171 | G79: 1995-08-01 | H79: Cladoceran | I79: 4 | J79: 13 | L79: 1995-07-18 | M79: Rodifera | N79: 1 | O79: 144
B80: 1995-07-18 | C80: Copepoda | D80: 1 | E80: 30 | G80: 1995-08-01 | H80: Cladoceran | I80: 4 | J80: 7 | L80: 1995-07-18 | M80: Rodifera | N80: 1 | O80: 270
B81: 1995-08-01 | C81: Copepoda | D81: 1 | E81: 10 | G81: 1995-08-01 | H81: Cladoceran | I81: 4 | J81: 36 | L81: 1995-07-18 | M81: Rodifera | N81: 1 | O81: 75
B82: 1995-08-01 | C82: Copepoda | D82: 1 | E82: 10 | G82: 1995-08-01 | H82: Cladoceran | I82: 4 | J82: 116 | L82: 1995-08-01 | M82: Rodifera | N82: 1 | O82: 326
B83: 1995-08-01 | C83: Copepoda | D83: 1 | E83: 13 | G83: 1995-08-01 | H83: Cladoceran | I83: 4 | J83: 3 | L83: 1995-08-01 | M83: Rodifera | N83: 1 | O83: 303
B84: 1995-08-01 | C84: Copepoda | D84: 1 | E84: 71 | G84: 1995-08-01 | H84: Cladoceran | I84: 4 | J84: 13 | L84: 1995-08-01 | M84: Rodifera | N84: 1 | O84: 196
B85: 1995-08-01 | C85: Copepoda | D85: 1 | E85: 61 | G85: 1995-08-01 | H85: Cladoceran | I85: 4 | J85: 3 | L85: 1995-08-01 | M85: Rodifera | N85: 1 | O85: 1592
B86: 1995-08-01 | C86: Copepoda | D86: 1 | E86: 87 | G86: 1995-08-01 | H86: Cladoceran | I86: 4 | J86: 10 | L86: 1995-08-01 | M86: Rodifera | N86: 1 | O86: 364
B87: 1995-08-01 | C87: Copepoda | D87: 1 | E87: 7 | G87: 1995-08-15 | H87: Cladoceran | I87: 4 | J87: 28 | L87: 1995-08-01 | M87: Rodifera | N87: 1 | O87: 200
B88: 1995-08-15 | C88: Copepoda | D88: 1 | E88: 3 | G88: 1995-08-15 | H88: Cladoceran | I88: 4 | J88: 31 | L88: 1995-08-01 | M88: Rodifera | N88: 1 | O88: 32
B89: 1995-08-15 | C89: Copepoda | D89: 1 | E89: 12 | G89: 1995-08-15 | H89: Cladoceran | I89: 4 | J89: 12 | L89: 1995-08-01 | M89: Rodifera | N89: 1 | O89: 42
B90: 1995-08-15 | C90: Copepoda | D90: 1 | E90: 3 | G90: 1995-08-29 | H90: Cladoceran | I90: 4 | J90: 9 | L90: 1995-08-15 | M90: Rodifera | N90: 1 | O90: 439
B91: 1995-08-15 | C91: Copepoda | D91: 1 | E91: 7 | G91: 1995-08-29 | H91: Cladoceran | I91: 4 | J91: 3 | L91: 1995-08-15 | M91: Rodifera | N91: 1 | O91: 399
B92: 1995-08-15 | C92: Copepoda | D92: 1 | E92: 12 | G92: 1995-08-29 | H92: Cladoceran | I92: 4 | J92: 16 | L92: 1995-08-15 | M92: Rodifera | N92: 1 | O92: 361
B93: 1995-08-15 | C93: Copepoda | D93: 1 | E93: 3 | G93: 1995-08-29 | H93: Cladoceran | I93: 4 | J93: 6 | L93: 1995-08-15 | M93: Rodifera | N93: 1 | O93: 56
B94: 1995-08-29 | C94: Copepoda | D94: 1 | E94: 12 | G94: 1995-09-12 | H94: Cladoceran | I94: 4 | J94: 9 | L94: 1995-08-15 | M94: Rodifera | N94: 1 | O94: 75
B95: 1995-08-29 | C95: Copepoda | D95: 1 | E95: 9 | G95: 1995-09-12 | H95: Cladoceran | I95: 4 | J95: 24 | L95: 1995-08-15 | M95: Rodifera | N95: 1 | O95: 22
B96: 1995-08-29 | C96: Copepoda | D96: 1 | E96: 16 | G96: 1995-09-12 | H96: Cladoceran | I96: 4 | J96: 15 | L96: 1995-08-29 | M96: Rodifera | N96: 1 | O96: 681
B97: 1995-08-29 | C97: Copepoda | D97: 1 | E97: 40 | G97: 1995-09-12 | H97: Cladoceran | I97: 4 | J97: 15 | L97: 1995-08-29 | M97: Rodifera | N97: 1 | O97: 613
B98: 1995-09-12 | C98: Copepoda | D98: 1 | E98: 24 | G98: 1995-09-12 | H98: Cladoceran | I98: 4 | J98: 6 | L98: 1995-08-29 | M98: Rodifera | N98: 1 | O98: 665
B99: 1995-09-12 | C99: Copepoda | D99: 1 | E99: 33 | G99: 1995-09-26 | H99: Cladoceran | I99: 4 | J99: 36 | L99: 1995-08-29 | M99: Rodifera | N99: 1 | O99: 893
B100: 1995-09-12 | C100: Copepoda | D100: 1 | E100: 18 | G100: 1995-09-26 | H100: Cladoceran | I100: 4 | J100: 24 | L100: 1995-08-29 | M100: Rodifera | N100: 1 | O100: 87
B101: 1995-09-12 | C101: Copepoda | D101: 1 | E101: 48 | G101: 1995-09-26 | H101: Cladoceran | I101: 4 | J101: 66 | L101: 1995-08-29 | M101: Rodifera | N101: 1 | O101: 31
B102: 1995-09-12 | C102: Copepoda | D102: 1 | E102: 12 | G102: 1995-09-26 | H102: Cladoceran | I102: 4 | J102: 63 | L102: 1995-08-29 | M102: Rodifera | N102: 1 | O102: 3
B103: 1995-09-12 | C103: Copepoda | D103: 1 | E103: 3 | G103: 1995-09-26 | H103: Cladoceran | I103: 4 | J103: 21 | L103: 1995-08-29 | M103: Rodifera | N103: 1 | O103: 12
B104: 1995-09-26 | C104: Copepoda | D104: 1 | E104: 33 | G104: 1995-09-26 | H104: Cladoceran | I104: 4 | J104: 12 | L104: 1995-09-12 | M104: Rodifera | N104: 1 | O104: 192
B105: 1995-09-26 | C105: Copepoda | D105: 1 | E105: 33 | G105: 1995-10-10 | H105: Cladoceran | I105: 4 | J105: 3 | L105: 1995-09-12 | M105: Rodifera | N105: 1 | O105: 569
B106: 1995-09-26 | C106: Copepoda | D106: 1 | E106: 15 | G106: 1995-10-10 | H106: Cladoceran | I106: 4 | J106: 6 | L106: 1995-09-12 | M106: Rodifera | N106: 1 | O106: 480
B107: 1995-09-26 | C107: Copepoda | D107: 1 | E107: 9 | G107: 1995-10-10 | H107: Cladoceran | I107: 4 | J107: 9 | L107: 1995-09-12 | M107: Rodifera | N107: 1 | O107: 525
B108: 1995-09-26 | C108: Copepoda | D108: 1 | E108: 12 | G108: 1995-10-10 | H108: Cladoceran | I108: 4 | J108: 9 | L108: 1995-09-12 | M108: Rodifera | N108: 1 | O108: 15
B109: 1995-09-26 | C109: Copepoda | D109: 1 | E109: 15 | G109: 1995-10-10 | H109: Cladoceran | I109: 4 | J109: 3 | L109: 1995-09-12 | M109: Rodifera | N109: 1 | O109: 84
B110: 1995-09-26 | C110: Copepoda | D110: 1 | E110: 3 | G110: 1995-10-10 | H110: Cladoceran | I110: 4 | J110: 9 | L110: 1995-09-12 | M110: Rodifera | N110: 1 | O110: 3
B111: 1995-09-26 | C111: Copepoda | D111: 1 | E111: 6 | G111: 1995-10-24 | H111: Cladoceran | I111: 4 | J111: 34 | L111: 1995-09-12 | M111: Rodifera | N111: 1 | O111: 3
B112: 1995-10-10 | C112: Copepoda | D112: 1 | E112: 18 | G112: 1995-10-24 | H112: Cladoceran | I112: 4 | J112: 72 | L112: 1995-09-26 | M112: Rodifera | N112: 1 | O112: 441
B113: 1995-10-10 | C113: Copepoda | D113: 1 | E113: 3 | G113: 1995-10-24 | H113: Cladoceran | I113: 4 | J113: 37 | L113: 1995-09-26 | M113: Rodifera | N113: 1 | O113: 579
B114: 1995-10-10 | C114: Copepoda | D114: 1 | E114: 9 | G114: 1995-10-24 | H114: Cladoceran | I114: 4 | J114: 93 | L114: 1995-09-26 | M114: Rodifera | N114: 1 | O114: 609
B115: 1995-10-10 | C115: Copepoda | D115: 1 | E115: 6 | G115: 1995-10-24 | H115: Cladoceran | I115: 4 | J115: 44 | L115: 1995-09-26 | M115: Rodifera | N115: 1 | O115: 645
B116: 1995-10-10 | C116: Copepoda | D116: 1 | E116: 12 | G116: 1995-10-24 | H116: Cladoceran | I116: 4 | J116: 48 | L116: 1995-09-26 | M116: Rodifera | N116: 1 | O116: 657
B117: 1995-10-10 | C117: Copepoda | D117: 1 | E117: 3 | G117: 1995-10-24 | H117: Cladoceran | I117: 4 | J117: 50 | L117: 1995-09-26 | M117: Rodifera | N117: 1 | O117: 633
B118: 1995-10-24 | C118: Copepoda | D118: 1 | E118: 25 | G118: 1995-10-24 | H118: Cladoceran | I118: 4 | J118: 31 | L118: 1995-09-26 | M118: Rodifera | N118: 1 | O118: 45
B119: 1995-10-24 | C119: Copepoda | D119: 1 | E119: 19 | G119: 1995-11-07 | H119: Cladoceran | I119: 4 | J119: 47 | L119: 1995-09-26 | M119: Rodifera | N119: 1 | O119: 3
B120: 1995-10-24 | C120: Copepoda | D120: 1 | E120: 25 | G120: 1995-11-07 | H120: Cladoceran | I120: 4 | J120: 34 | L120: 1995-10-10 | M120: Rodifera | N120: 1 | O120: 447
B121: 1995-10-24 | C121: Copepoda | D121: 1 | E121: 16 | G121: 1995-11-07 | H121: Cladoceran | I121: 4 | J121: 47 | L121: 1995-10-10 | M121: Rodifera | N121: 1 | O121: 591
B122: 1995-10-24 | C122: Copepoda | D122: 1 | E122: 3 | G122: 1995-11-07 | H122: Cladoceran | I122: 4 | J122: 65 | L122: 1995-10-10 | M122: Rodifera | N122: 1 | O122: 342
B123: 1995-10-24 | C123: Copepoda | D123: 1 | E123: 27 | G123: 1995-11-07 | H123: Cladoceran | I123: 4 | J123: 44 | L123: 1995-10-10 | M123: Rodifera | N123: 1 | O123: 246
B124: 1995-10-24 | C124: Copepoda | D124: 1 | E124: 9 | G124: 1995-11-07 | H124: Cladoceran | I124: 4 | J124: 40 | L124: 1995-10-10 | M124: Rodifera | N124: 1 | O124: 90
B125: 1995-10-24 | C125: Copepoda | D125: 1 | E125: 34 | G125: 1995-11-07 | H125: Cladoceran | I125: 4 | J125: 34 | L125: 1995-10-10 | M125: Rodifera | N125: 1 | O125: 105
B126: 1995-11-07 | C126: Copepoda | D126: 1 | E126: 44 | G126: 1995-11-21 | H126: Cladoceran | I126: 4 | J126: 3 | L126: 1995-10-24 | M126: Rodifera | N126: 1 | O126: 604
B127: 1995-11-07 | C127: Copepoda | D127: 1 | E127: 22 | G127: 1995-11-21 | H127: Cladoceran | I127: 4 | J127: 6 | L127: 1995-10-24 | M127: Rodifera | N127: 1 | O127: 644
B128: 1995-11-07 | C128: Copepoda | D128: 1 | E128: 25 | G128: 1995-11-21 | H128: Cladoceran | I128: 4 | J128: 9 | L128: 1995-10-24 | M128: Rodifera | N128: 1 | O128: 420
B129: 1995-11-07 | C129: Copepoda | D129: 1 | E129: 25 | G129: 1995-11-21 | H129: Cladoceran | I129: 4 | J129: 9 | L129: 1995-10-24 | M129: Rodifera | N129: 1 | O129: 118
B130: 1995-11-07 | C130: Copepoda | D130: 1 | E130: 25 | G130: 1995-11-21 | H130: Cladoceran | I130: 4 | J130: 12 | L130: 1995-10-24 | M130: Rodifera | N130: 1 | O130: 261
B131: 1995-11-07 | C131: Copepoda | D131: 1 | E131: 25 | G131: 1995-11-21 | H131: Cladoceran | I131: 4 | J131: 28 | L131: 1995-10-24 | M131: Rodifera | N131: 1 | O131: 180
B132: 1995-11-07 | C132: Copepoda | D132: 1 | E132: 37 | G132: 1995-11-21 | H132: Cladoceran | I132: 4 | J132: 16 | L132: 1995-10-24 | M132: Rodifera | N132: 1 | O132: 299
B133: 1995-11-21 | C133: Copepoda | D133: 1 | E133: 34 | G133: 1995-11-21 | H133: Cladoceran | I133: 4 | J133: 16 | L133: 1995-10-24 | M133: Rodifera | N133: 1 | O133: 1173
B134: 1995-11-21 | C134: Copepoda | D134: 1 | E134: 40 | G134: 1995-12-05 | H134: Cladoceran | I134: 4 | J134: 6 | L134: 1995-11-07 | M134: Rodifera | N134: 1 | O134: 460
B135: 1995-11-21 | C135: Copepoda | D135: 1 | E135: 19 | G135: 1995-12-05 | H135: Cladoceran | I135: 4 | J135: 9 | L135: 1995-11-07 | M135: Rodifera | N135: 1 | O135: 370
B136: 1995-11-21 | C136: Copepoda | D136: 1 | E136: 9 | G136: 1995-12-05 | H136: Cladoceran | I136: 4 | J136: 3 | L136: 1995-11-07 | M136: Rodifera | N136: 1 | O136: 296
B137: 1995-11-21 | C137: Copepoda | D137: 1 | E137: 50 | G137: 1995-12-05 | H137: Cladoceran | I137: 4 | J137: 12 | L137: 1995-11-07 | M137: Rodifera | N137: 1 | O137: 488
B138: 1995-11-21 | C138: Copepoda | D138: 1 | E138: 40 | G138: 1995-12-05 | H138: Cladoceran | I138: 4 | J138: 3 | L138: 1995-11-07 | M138: Rodifera | N138: 1 | O138: 442
B139: 1995-11-21 | C139: Copepoda | D139: 1 | E139: 37 | G139: 1995-12-05 | H139: Cladoceran | I139: 4 | J139: 9 | L139: 1995-11-07 | M139: Rodifera | N139: 1 | O139: 473
B140: 1995-11-21 | C140: Copepoda | D140: 1 | E140: 25 | G140: 1995-12-05 | H140: Cladoceran | I140: 4 | J140: 6 | L140: 1995-11-07 | M140: Rodifera | N140: 1 | O140: 510
B141: 1995-12-05 | C141: Copepoda | D141: 1 | E141: 6 | G141: 1995-12-05 | H141: Cladoceran | I141: 4 | J141: 6 | L141: 1995-11-21 | M141: Rodifera | N141: 1 | O141: 358
B142: 1995-12-05 | C142: Copepoda | D142: 1 | E142: 12 | G142: 1995-12-22 | H142: Cladoceran | I142: 4 | J142: 3 | L142: 1995-11-21 | M142: Rodifera | N142: 1 | O142: 333
B143: 1995-12-05 | C143: Copepoda | D143: 1 | E143: 25 | G143: 1995-12-22 | H143: Cladoceran | I143: 4 | J143: 3 | L143: 1995-11-21 | M143: Rodifera | N143: 1 | O143: 327
B144: 1995-12-05 | C144: Copepoda | D144: 1 | E144: 31 | G144: 1995-12-22 | H144: Cladoceran | I144: 4 | J144: 3 | L144: 1995-11-21 | M144: Rodifera | N144: 1 | O144: 352
B145: 1995-12-05 | C145: Copepoda | D145: 1 | E145: 28 | G145: 1995-12-22 | H145: Cladoceran | I145: 4 | J145: 12 | L145: 1995-11-21 | M145: Rodifera | N145: 1 | O145: 467
B146: 1995-12-05 | C146: Copepoda | D146: 1 | E146: 22 | G146: 1995-12-22 | H146: Cladoceran | I146: 4 | J146: 16 | L146: 1995-11-21 | M146: Rodifera | N146: 1 | O146: 296
B147: 1995-12-05 | C147: Copepoda | D147: 1 | E147: 22 | G147: 1995-12-22 | H147: Cladoceran | I147: 4 | J147: 34 | L147: 1995-11-21 | M147: Rodifera | N147: 1 | O147: 314
B148: 1995-12-05 | C148: Copepoda | D148: 1 | E148: 28 | G148: 1996-01-02 | H148: Cladoceran | I148: 4 | J148: 6 | L148: 1995-11-21 | M148: Rodifera | N148: 1 | O148: 255
B149: 1995-12-22 | C149: Copepoda | D149: 1 | E149: 9 | G149: 1996-01-02 | H149: Cladoceran | I149: 4 | J149: 3 | L149: 1995-12-05 | M149: Rodifera | N149: 1 | O149: 240
B150: 1995-12-22 | C150: Copepoda | D150: 1 | E150: 40 | G150: 1996-01-02 | H150: Cladoceran | I150: 4 | J150: 9 | L150: 1995-12-05 | M150: Rodifera | N150: 1 | O150: 208
B151: 1995-12-22 | C151: Copepoda | D151: 1 | E151: 31 | G151: 1996-01-02 | H151: Cladoceran | I151: 4 | J151: 16 | L151: 1995-12-05 | M151: Rodifera | N151: 1 | O151: 196
B152: 1995-12-22 | C152: Copepoda | D152: 1 | E152: 22 | G152: 1996-01-16 | H152: Cladoceran | I152: 4 | J152: 3 | L152: 1995-12-05 | M152: Rodifera | N152: 1 | O152: 261
B153: 1995-12-22 | C153: Copepoda | D153: 1 | E153: 59 | G153: 1996-01-16 | H153: Cladoceran | I153: 4 | J153: 3 | L153: 1995-12-05 | M153: Rodifera | N153: 1 | O153: 274
B154: 1995-12-22 | C154: Copepoda | D154: 1 | E154: 72 | G154: 1996-01-16 | H154: Cladoceran | I154: 4 | J154: 3 | L154: 1995-12-05 | M154: Rodifera | N154: 1 | O154: 252
B155: 1996-01-02 | C155: Copepoda | D155: 1 | E155: 6 | G155: 1996-01-16 | H155: Cladoceran | I155: 4 | J155: 3 | L155: 1995-12-05 | M155: Rodifera | N155: 1 | O155: 177
B156: 1996-01-02 | C156: Copepoda | D156: 1 | E156: 6 | G156: 1996-01-16 | H156: Cladoceran | I156: 4 | J156: 12 | L156: 1995-12-05 | M156: Rodifera | N156: 1 | O156: 240
B157: 1996-01-02 | C157: Copepoda | D157: 1 | E157: 19 | G157: 1996-01-31 | H157: Cladoceran | I157: 4 | J157: 3 | L157: 1995-12-22 | M157: Rodifera | N157: 1 | O157: 40
B158: 1996-01-02 | C158: Copepoda | D158: 1 | E158: 6 | G158: 1996-01-31 | H158: Cladoceran | I158: 4 | J158: 3 | L158: 1995-12-22 | M158: Rodifera | N158: 1 | O158: 44
B159: 1996-01-02 | C159: Copepoda | D159: 1 | E159: 12 | G159: 1996-01-31 | H159: Cladoceran | I159: 4 | J159: 6 | L159: 1995-12-22 | M159: Rodifera | N159: 1 | O159: 165
B160: 1996-01-02 | C160: Copepoda | D160: 1 | E160: 22 | G160: 1996-02-13 | H160: Cladoceran | I160: 4 | J160: 6 | L160: 1995-12-22 | M160: Rodifera | N160: 1 | O160: 68
B161: 1996-01-02 | C161: Copepoda | D161: 1 | E161: 59 | G161: 1996-02-13 | H161: Cladoceran | I161: 4 | J161: 9 | L161: 1995-12-22 | M161: Rodifera | N161: 1 | O161: 118
B162: 1996-01-16 | C162: Copepoda | D162: 1 | E162: 12 | G162: 1996-02-27 | H162: Cladoceran | I162: 4 | J162: 3 | L162: 1995-12-22 | M162: Rodifera | N162: 1 | O162: 180
B163: 1996-01-16 | C163: Copepoda | D163: 1 | E163: 4 | G163: 1996-02-27 | H163: Cladoceran | I163: 4 | J163: 9 | L163: 1995-12-22 | M163: Rodifera | N163: 1 | O163: 364
B164: 1996-01-16 | C164: Copepoda | D164: 1 | E164: 9 | G164: 1996-02-27 | H164: Cladoceran | I164: 4 | J164: 3 | L164: 1995-12-22 | M164: Rodifera | N164: 1 | O164: 296
B165: 1996-01-16 | C165: Copepoda | D165: 1 | E165: 25 | G165: 1996-02-27 | H165: Cladoceran | I165: 4 | J165: 6 | L165: 1996-01-02 | M165: Rodifera | N165: 1 | O165: 53
B166: 1996-01-16 | C166: Copepoda | D166: 1 | E166: 31 | G166: 1996-02-27 | H166: Cladoceran | I166: 4 | J166: 9 | L166: 1996-01-02 | M166: Rodifera | N166: 1 | O166: 90
B167: 1996-01-16 | C167: Copepoda | D167: 1 | E167: 25 | G167: 1996-03-12 | H167: Cladoceran | I167: 4 | J167: 12 | L167: 1996-01-02 | M167: Rodifera | N167: 1 | O167: 56
B168: 1996-01-16 | C168: Copepoda | D168: 1 | E168: 112 | G168: 1996-03-19 | H168: Cladoceran | I168: 4 | J168: 3 | L168: 1996-01-02 | M168: Rodifera | N168: 1 | O168: 93
B169: 1996-01-31 | C169: Copepoda | D169: 1 | E169: 6 | G169: 1996-03-19 | H169: Cladoceran | I169: 4 | J169: 3 | L169: 1996-01-02 | M169: Rodifera | N169: 1 | O169: 96
B170: 1996-01-31 | C170: Copepoda | D170: 1 | E170: 12 | G170: 1996-04-23 | H170: Cladoceran | I170: 4 | J170: 3 | L170: 1996-01-02 | M170: Rodifera | N170: 1 | O170: 109
B171: 1996-01-31 | C171: Copepoda | D171: 1 | E171: 3 | G171: 1996-04-30 | H171: Cladoceran | I171: 4 | J171: 3 | L171: 1996-01-02 | M171: Rodifera | N171: 1 | O171: 152
B172: 1996-01-31 | C172: Copepoda | D172: 1 | E172: 34 | G172: 1996-04-30 | H172: Cladoceran | I172: 4 | J172: 3 | L172: 1996-01-02 | M172: Rodifera | N172: 1 | O172: 345
B173: 1996-01-31 | C173: Copepoda | D173: 1 | E173: 44 | G173: 1996-05-07 | H173: Cladoceran | I173: 4 | J173: 9 | L173: 1996-01-16 | M173: Rodifera | N173: 1 | O173: 50
B174: 1996-01-31 | C174: Copepoda | D174: 1 | E174: 19 | G174: 1996-05-07 | H174: Cladoceran | I174: 4 | J174: 6 | L174: 1996-01-16 | M174: Rodifera | N174: 1 | O174: 75
B175: 1996-01-31 | C175: Copepoda | D175: 1 | E175: 12 | G175: 1996-05-07 | H175: Cladoceran | I175: 4 | J175: 3 | L175: 1996-01-16 | M175: Rodifera | N175: 1 | O175: 137
B176: 1996-01-31 | C176: Copepoda | D176: 1 | E176: 28 | G176: 1996-05-07 | H176: Cladoceran | I176: 4 | J176: 3 | L176: 1996-01-16 | M176: Rodifera | N176: 1 | O176: 140
B177: 1996-02-13 | C177: Copepoda | D177: 1 | E177: 6 | G177: 1996-05-14 | H177: Cladoceran | I177: 4 | J177: 3 | L177: 1996-01-16 | M177: Rodifera | N177: 1 | O177: 146
B178: 1996-02-13 | C178: Copepoda | D178: 1 | E178: 9 | G178: 1996-05-14 | H178: Cladoceran | I178: 4 | J178: 6 | L178: 1996-01-16 | M178: Rodifera | N178: 1 | O178: 115
B179: 1996-02-13 | C179: Copepoda | D179: 1 | E179: 19 | G179: 1996-05-21 | H179: Cladoceran | I179: 4 | J179: 3 | L179: 1996-01-16 | M179: Rodifera | N179: 1 | O179: 196
B180: 1996-02-13 | C180: Copepoda | D180: 1 | E180: 28 | G180: 1996-05-21 | H180: Cladoceran | I180: 4 | J180: 12 | L180: 1996-01-16 | M180: Rodifera | N180: 1 | O180: 292
B181: 1996-02-13 | C181: Copepoda | D181: 1 | E181: 9 | G181: 1996-05-21 | H181: Cladoceran | I181: 4 | J181: 18 | L181: 1996-01-31 | M181: Rodifera | N181: 1 | O181: 68
B182: 1996-02-13 | C182: Copepoda | D182: 1 | E182: 16 | G182: 1996-05-21 | H182: Cladoceran | I182: 4 | J182: 3 | L182: 1996-01-31 | M182: Rodifera | N182: 1 | O182: 62
B183: 1996-02-13 | C183: Copepoda | D183: 1 | E183: 9 | G183: 1996-05-21 | H183: Cladoceran | I183: 4 | J183: 6 | L183: 1996-01-31 | M183: Rodifera | N183: 1 | O183: 78
B184: 1996-02-13 | C184: Copepoda | D184: 1 | E184: 40 | G184: 1996-05-21 | H184: Cladoceran | I184: 4 | J184: 3 | L184: 1996-01-31 | M184: Rodifera | N184: 1 | O184: 190
B185: 1996-02-27 | C185: Copepoda | D185: 1 | E185: 9 | G185: 1996-05-28 | H185: Cladoceran | I185: 4 | J185: 21 | L185: 1996-01-31 | M185: Rodifera | N185: 1 | O185: 159
B186: 1996-02-27 | C186: Copepoda | D186: 1 | E186: 6 | G186: 1996-05-28 | H186: Cladoceran | I186: 4 | J186: 33 | L186: 1996-01-31 | M186: Rodifera | N186: 1 | O186: 140
B187: 1996-02-27 | C187: Copepoda | D187: 1 | E187: 21 | G187: 1996-05-28 | H187: Cladoceran | I187: 4 | J187: 84 | L187: 1996-01-31 | M187: Rodifera | N187: 1 | O187: 143
B188: 1996-02-27 | C188: Copepoda | D188: 1 | E188: 6 | G188: 1996-05-28 | H188: Cladoceran | I188: 4 | J188: 12 | L188: 1996-01-31 | M188: Rodifera | N188: 1 | O188: 208
B189: 1996-02-27 | C189: Copepoda | D189: 1 | E189: 18 | G189: 1996-06-04 | H189: Cladoceran | I189: 4 | J189: 18 | L189: 1996-02-13 | M189: Rodifera | N189: 1 | O189: 30
B190: 1996-02-27 | C190: Copepoda | D190: 1 | E190: 18 | G190: 1996-06-04 | H190: Cladoceran | I190: 4 | J190: 66 | L190: 1996-02-13 | M190: Rodifera | N190: 1 | O190: 56
B191: 1996-02-27 | C191: Copepoda | D191: 1 | E191: 28 | G191: 1996-06-04 | H191: Cladoceran | I191: 4 | J191: 21 | L191: 1996-02-13 | M191: Rodifera | N191: 1 | O191: 96
B192: 1996-02-27 | C192: Copepoda | D192: 1 | E192: 57 | G192: 1996-06-04 | H192: Cladoceran | I192: 4 | J192: 9 | L192: 1996-02-13 | M192: Rodifera | N192: 1 | O192: 146
B193: 1996-03-12 | C193: Copepoda | D193: 1 | E193: 9 | G193: 1996-06-04 | H193: Cladoceran | I193: 4 | J193: 6 | L193: 1996-02-13 | M193: Rodifera | N193: 1 | O193: 109
B194: 1996-03-12 | C194: Copepoda | D194: 1 | E194: 6 | G194: 1996-06-04 | H194: Cladoceran | I194: 4 | J194: 3 | L194: 1996-02-13 | M194: Rodifera | N194: 1 | O194: 109
B195: 1996-03-12 | C195: Copepoda | D195: 1 | E195: 30 | G195: 1996-06-04 | H195: Cladoceran | I195: 4 | J195: 9 | L195: 1996-02-13 | M195: Rodifera | N195: 1 | O195: 93
B196: 1996-03-12 | C196: Copepoda | D196: 1 | E196: 21 | G196: 1996-06-11 | H196: Cladoceran | I196: 4 | J196: 3 | L196: 1996-02-13 | M196: Rodifera | N196: 1 | O196: 156
B197: 1996-03-12 | C197: Copepoda | D197: 1 | E197: 12 | G197: 1996-06-11 | H197: Cladoceran | I197: 4 | J197: 69 | L197: 1996-02-27 | M197: Rodifera | N197: 1 | O197: 12
B198: 1996-03-12 | C198: Copepoda | D198: 1 | E198: 6 | G198: 1996-06-11 | H198: Cladoceran | I198: 4 | J198: 90 | L198: 1996-02-27 | M198: Rodifera | N198: 1 | O198: 51
B199: 1996-03-12 | C199: Copepoda | D199: 1 | E199: 24 | G199: 1996-06-11 | H199: Cladoceran | I199: 4 | J199: 6 | L199: 1996-02-27 | M199: Rodifera | N199: 1 | O199: 132
B200: 1996-03-12 | C200: Copepoda | D200: 1 | E200: 60 | G200: 1996-06-11 | H200: Cladoceran | I200: 4 | J200: 9 | L200: 1996-02-27 | M200: Rodifera | N200: 1 | O200: 162
B201: 1996-03-19 | C201: Copepoda | D201: 1 | E201: 12 | G201: 1996-06-11 | H201: Cladoceran | I201: 4 | J201: 12 | L201: 1996-02-27 | M201: Rodifera | N201: 1 | O201: 111
B202: 1996-03-19 | C202: Copepoda | D202: 1 | E202: 24 | G202: 1996-06-11 | H202: Cladoceran | I202: 4 | J202: 12 | L202: 1996-02-27 | M202: Rodifera | N202: 1 | O202: 81
B203: 1996-03-19 | C203: Copepoda | D203: 1 | E203: 30 | G203: 1996-06-11 | H203: Cladoceran | I203: 4 | J203: 36 | L203: 1996-02-27 | M203: Rodifera | N203: 1 | O203: 47
B204: 1996-03-19 | C204: Copepoda | D204: 1 | E204: 36 | G204: 1996-06-18 | H204: Cladoceran | I204: 4 | J204: 21 | L204: 1996-02-27 | M204: Rodifera | N204: 1 | O204: 123
B205: 1996-03-19 | C205: Copepoda | D205: 1 | E205: 15 | G205: 1996-06-18 | H205: Cladoceran | I205: 4 | J205: 27 | L205: 1996-03-12 | M205: Rodifera | N205: 1 | O205: 42
B206: 1996-03-19 | C206: Copepoda | D206: 1 | E206: 9 | G206: 1996-06-18 | H206: Cladoceran | I206: 4 | J206: 57 | L206: 1996-03-12 | M206: Rodifera | N206: 1 | O206: 51
B207: 1996-03-19 | C207: Copepoda | D207: 1 | E207: 18 | G207: 1996-06-18 | H207: Cladoceran | I207: 4 | J207: 12 | L207: 1996-03-12 | M207: Rodifera | N207: 1 | O207: 162
B208: 1996-03-19 | C208: Copepoda | D208: 1 | E208: 132 | G208: 1996-06-18 | H208: Cladoceran | I208: 4 | J208: 60 | L208: 1996-03-12 | M208: Rodifera | N208: 1 | O208: 135
B209: 1996-04-16 | C209: Copepoda | D209: 1 | E209: 48 | G209: 1996-06-18 | H209: Cladoceran | I209: 4 | J209: 54 | L209: 1996-03-12 | M209: Rodifera | N209: 1 | O209: 87
... 2100 more rows

Sheet Stream Chemistry
BP15: M22 | BQ15: Lake | BR15: USGS | BS15: Pioneer | BT15: Haze | BU15: Vet's | BV15: Stone
BP16: =AD36 -> 8.402390882 | BQ16: ='Lake Chemistry'!$F$37 -> 7.845589088 | BR16: =F36 -> 14.51715746 | BS16: =O36 -> 15.35367521 | BT16: =R36 -> 13.76668639 | BU16: =X36 -> 12.71193405 | BV16: =C36 -> 11.17804687
BP17: -14.45869038 | BQ17: -33.88465231 | BR17: 1 | BS17: -33.88465231 | BU17: -7.03178616 | BV17: -6.678845292
BP18: 1.3328454 | BQ18: 1.121591163 | BR18: 1 | BS18: 1.121591163 | BU18: 0.7201234897 | BV18: 0.5416106962
BO19: 138.1 | BP19: =BP18*$BO19+BP17 -> 169.6072593 | BQ19: =BP19 -> 169.6072593 | BR19: =$BO19 -> 138.1 | BS19: =BS18*$BO19+$BP17 -> 140.4330493 | BT19: =(BS19+BU19)/2 -> 112.7117064 | BU19: 84.99036354 | BV19: 60.33774676
B31: Intercept | C31: -6.678845292
B32: Slope | C32: 0.5416106962
B33: Count | C33: =COUNT(C39:C20022) -> 384 | E33: Count | F33: =COUNT(F39:F20022) -> 815 | H33: Count | I33: =COUNT(I39:I20022) -> 132 | K33: Count | L33: =COUNT(L39:L20022) -> 757 | N33: Count | O33: =COUNT(O39:O20022) -> 117 | Q33: Count | R33: =COUNT(R39:R20022) -> 169 | T33: Count | U33: =COUNT(U39:U20022) -> 188 | W33: Count | X33: =COUNT(X39:X20022) -> 187 | Z33: Count | AA33: =COUNT(AA39:AA20022) -> 122 | AC33: Count | AD33: =COUNT(AD39:AD20022) -> 392 | AF33: Count | AG33: =COUNT(AG39:AG20022) -> 73 | AI33: Count | AJ33: =COUNT(AJ39:AJ20022) -> 84 | AL33: Count | AM33: =COUNT(AM39:AM20022) -> 5 | AO33: Count | AP33: =COUNT(AP39:AP20022) -> 42 | AR33: Count | AS33: =COUNT(AS39:AS20022) -> 42 | AU33: Count | AV33: =COUNT(AV39:AV20022) -> 42 | AX33: Count | AY33: =COUNT(AY39:AY20022) -> 43 | BA33: Count | BB33: =COUNT(BB39:BB20022) -> 47 | BD33: Count | BE33: =COUNT(BE39:BE20022) -> 17 | BG33: Count | BH33: =COUNT(BH39:BH20022) -> 57
B34: Max | C34: =MAX(C39:C20022) -> 57.85 | E34: Max | F34: =MAX(F39:F20022) -> 97.6 | H34: Max | I34: =MAX(I39:I20022) -> 36.59 | K34: Max | L34: =MAX(L39:L20022) -> 72.46666667 | N34: Max | O34: =MAX(O39:O20022) -> 36.62 | Q34: Max | R34: =MAX(R39:R20022) -> 59.04 | T34: Max | U34: =MAX(U39:U20022) -> 135.02 | W34: Max | X34: =MAX(X39:X20022) -> 44.45333333 | Z34: Max | AA34: =MAX(AA39:AA20022) -> 32.62 | AC34: Max | AD34: =MAX(AD39:AD20022) -> 41.23666667 | AF34: Max | AG34: =MAX(AG39:AG20022) -> 37.61666667 | AI34: Max | AJ34: =MAX(AJ39:AJ20022) -> 186.4 | AL34: Max | AM34: =MAX(AM39:AM20022) -> 23.04333333 | AO34: Max | AP34: =MAX(AP39:AP20022) -> 149.28 | AR34: Max | AS34: =MAX(AS39:AS20022) -> 254.12 | AU34: Max | AV34: =MAX(AV39:AV20022) -> 338.72 | AX34: Max | AY34: =MAX(AY39:AY20022) -> 562.86 | BA34: Max | BB34: =MAX(BB39:BB20022) -> 39.61 | BD34: Max | BE34: =MAX(BE39:BE20022) -> 355.5 | BG34: Max | BH34: =MAX(BH39:BH20022) -> 13.5
B35: Min | C35: =MIN(C39:C20022) -> 5.053333333 | E35: Min | F35: =MIN(F39:F20022) -> 4.1 | H35: Min | I35: =MIN(I39:I20022) -> 9.12 | K35: Min | L35: =MIN(L39:L20022) -> 5.443333333 | N35: Min | O35: =MIN(O39:O20022) -> 7.3 | Q35: Min | R35: =MIN(R39:R20022) -> 6.63 | T35: Min | U35: =MIN(U39:U20022) -> 6.26 | W35: Min | X35: =MIN(X39:X20022) -> 6.763333333 | Z35: Min | AA35: =MIN(AA39:AA20022) -> 4.46 | AC35: Min | AD35: =MIN(AD39:AD20022) -> 3.783333333 | AF35: Min | AG35: =MIN(AG39:AG20022) -> 4.403333333 | AI35: Min | AJ35: =MIN(AJ39:AJ20022) -> 6.1 | AL35: Min | AM35: =MIN(AM39:AM20022) -> 16.56666667 | AO35: Min | AP35: =MIN(AP39:AP20022) -> 2.33 | AR35: Min | AS35: =MIN(AS39:AS20022) -> 99.02 | AU35: Min | AV35: =MIN(AV39:AV20022) -> 78.18 | AX35: Min | AY35: =MIN(AY39:AY20022) -> 213.79 | BA35: Min | BB35: =MIN(BB39:BB20022) -> 4.535 | BD35: Min | BE35: =MIN(BE39:BE20022) -> 29.47333333 | BG35: Min | BH35: =MIN(BH39:BH20022) -> 0.7070707071
B36: Avg | C36: =AVERAGE(C39:C20022) -> 11.17804687 | E36: Avg | F36: =AVERAGE(F39:F20022) -> 14.51715746 | H36: Avg | I36: =AVERAGE(I39:I20022) -> 16.88939394 | K36: Avg | L36: =AVERAGE(L39:L20022) -> 14.41409291 | N36: Avg | O36: =AVERAGE(O39:O20022) -> 15.35367521 | Q36: Avg | R36: =AVERAGE(R39:R20022) -> 13.76668639 | T36: Avg | U36: =AVERAGE(U39:U20022) -> 15.74574468 | W36: Avg | X36: =AVERAGE(X39:X20022) -> 12.71193405 | Z36: Avg | AA36: =AVERAGE(AA39:AA20022) -> 11.40040984 | AC36: Avg | AD36: =AVERAGE(AD39:AD20022) -> 8.402390882 | AF36: Avg | AG36: =AVERAGE(AG39:AG20022) -> 9.720045662 | AI36: Avg | AJ36: =AVERAGE(AJ39:AJ20022) -> 27.85833333 | AL36: Avg | AM36: =AVERAGE(AM39:AM20022) -> 20.34066667 | AO36: Avg | AP36: =AVERAGE(AP39:AP20022) -> 61.65 | AR36: Avg | AS36: =AVERAGE(AS39:AS20022) -> 186.0983333 | AU36: Avg | AV36: =AVERAGE(AV39:AV20022) -> 170.3807143 | AX36: Avg | AY36: =AVERAGE(AY39:AY20022) -> 336.6793023 | BA36: Avg | BB36: =AVERAGE(BB39:BB20022) -> 12.73301418 | BD36: Avg | BE36: =AVERAGE(BE39:BE20022) -> 161.355 | BG36: Avg | BH36: =AVERAGE(BH39:BH20022) -> 3.501394663
B38: =YEAR(MIN(B40:B4000)) -> 2003 | E38: =YEAR(MIN(E40:E4000)) -> 1989 | H38: =YEAR(MIN(H40:H4000)) -> 2015 | K38: =YEAR(MIN(K40:K4000)) -> 1989 | N38: =YEAR(MIN(N40:N4000)) -> 2016 | Q38: =YEAR(MIN(Q40:Q4000)) -> 2010 | T38: =YEAR(MIN(T40:T4000)) -> 2017 | W38: =YEAR(MIN(W40:W4000)) -> 2003 | Z38: =YEAR(MIN(Z40:Z4000)) -> 2007 | AC38: =YEAR(MIN(AC40:AC4000)) -> 1989 | AF38: =YEAR(MIN(AF40:AF4000)) -> 2003 | AI38: =YEAR(MIN(AI40:AI4000)) -> 2004 | AL38: =YEAR(MIN(AL40:AL4000)) -> 2013 | AO38: =YEAR(MIN(AO40:AO4000)) -> 2007 | AR38: =YEAR(MIN(AR40:AR4000)) -> 2007 | AU38: =YEAR(MIN(AU40:AU4000)) -> 2007 | AX38: =YEAR(MIN(AX40:AX4000)) -> 2007 | BA38: =YEAR(MIN(BA40:BA4000)) -> 2003 | BD38: =YEAR(MIN(BD40:BD4000)) -> 2004 | BG38: =YEAR(MIN(BG40:BG4000)) -> 2019 | BH38: mg/L
B39: =YEAR(MAX(B40:B4000)) -> 2021 | C39: TP Stone | E39: =YEAR(MAX(E40:E4000)) -> 2021 | F39: TP USGS | H39: =YEAR(MAX(H40:H4000)) -> 2021 | I39: TP Ind Hill | K39: =YEAR(MAX(K40:K4000)) -> 2021 | L39: TP NB Dead | N39: =YEAR(MAX(N40:N4000)) -> 2021 | O39: TP Pioneer | Q39: =YEAR(MAX(Q40:Q4000)) -> 2021 | R39: TP Haze | T39: =YEAR(MAX(T40:T4000)) -> 2021 | U39: TP Carter | W39: =YEAR(MAX(W40:W4000)) -> 2021 | X39: TP Vet's | Z39: =YEAR(MAX(Z40:Z4000)) -> 2009 | AA39: TP NB Hooker | AC39: =YEAR(MAX(AC40:AC4000)) -> 2013 | AD39: TP M-22 | AF39: =YEAR(MAX(AF40:AF4000)) -> 2013 | AG39: TP Old Res | AI39: =YEAR(MAX(AI40:AI4000)) -> 2013 | AJ39: TP Collision | AL39: =YEAR(MAX(AL40:AL4000)) -> 2013 | AM39: Henry TP | AO39: =YEAR(MAX(AO40:AO4000)) -> 2009 | AP39: Dead NO3 | AR39: =YEAR(MAX(AR40:AR4000)) -> 2009 | AS39: Hooker NO3 | AU39: =YEAR(MAX(AU40:AU4000)) -> 2009 | AV39: Stone NO3 | AX39: =YEAR(MAX(AX40:AX4000)) -> 2009 | AY39: USGS NO3 | BA39: =YEAR(MAX(BA40:BA4000)) -> 2013 | BB39: Rain TP | BD39: =YEAR(MAX(BD40:BD4000)) -> 2007 | BE39: Rain NO3 | BG39: =YEAR(MAX(BG40:BG4000)) -> 2022 | BH39: Stone TSS
B40: 2003-10-15 | C40: 8.276666667 | E40: 1989-11-30 | F40: 14.73333333 | H40: 2015-09-16 | I40: 20.11 | K40: 1989-11-30 | L40: 19.26666667 | N40: 2016-06-15 | O40: 18.79 | Q40: 2010-11-09 | R40: 6.63 | T40: 2017-06-06 | U40: 13.38 | W40: 2003-11-24 | X40: 8.943333333 | Z40: 2007-06-27 | AA40: 9.21 | AC40: 1989-11-30 | AD40: 13.43333333 | AF40: 2003-10-15 | AG40: 10.04 | AI40: 2004-01-26 | AJ40: 6.7 | AL40: 2013-05-22 | AM40: 19.52666667 | AO40: 2007-06-13 | AP40: 4.83 | AR40: 2007-06-27 | AS40: 163.96 | AU40: 2007-06-27 | AV40: 113.83 | AX40: 2007-06-13 | AY40: 292.18 | BA40: 2003-08-21 | BB40: 11.93666667 | BD40: 2004-12-07 | BE40: 29.47333333 | BG40: 2019-11-26 | BH40: 0.7291666667
B41: 2003-11-24 | C41: 8.27 | E41: 1989-12-27 | F41: 14.4 | H41: 2015-10-05 | I41: 11.89 | K41: 1989-12-27 | L41: 12.8 | N41: 2016-06-28 | O41: 20.72 | Q41: 2010-11-16 | R41: 6.723333333 | T41: 2017-06-19 | U41: 16.18 | W41: 2004-01-30 | X41: 11.8 | Z41: 2007-06-27 | AA41: 9.93 | AC41: 1989-12-27 | AD41: 7.266666667 | AF41: 2004-02-23 | AG41: 10.85 | AI41: 2004-01-26 | AJ41: 6.6 | AL41: 2013-06-05 | AM41: 22.18666667 | AO41: 2007-06-27 | AP41: 9.89 | AR41: 2007-07-11 | AS41: 182.94 | AU41: 2007-07-11 | AV41: 120.66 | AX41: 2007-06-27 | AY41: 278.98 | BA41: 2003-08-24 | BB41: 31.14 | BD41: 2005-05-19 | BE41: 355.5 | BG41: 2019-12-13 | BH41: 1.5625
B42: 2004-01-30 | C42: 13.13333333 | E42: 1990-02-21 | F42: 22.1 | H42: 2015-10-26 | I42: 11.82 | K42: 1990-01-17 | L42: 22.23333333 | N42: 2016-07-13 | O42: 16.51 | Q42: 2010-11-23 | R42: 9.85 | T42: 2017-07-05 | U42: 13.29 | W42: 2004-02-17 | X42: 11.46333333 | Z42: 2007-06-27 | AA42: 11.35 | AC42: 1990-01-17 | AD42: 11.1 | AF42: 2004-03-29 | AG42: 37.61666667 | AI42: 2004-01-26 | AJ42: 7.2 | AL42: 2013-06-18 | AM42: 23.04333333 | AO42: 2007-07-11 | AP42: 13.61 | AR42: 2007-07-25 | AS42: 175.86 | AU42: 2007-07-25 | AV42: 115.41 | AX42: 2007-07-11 | AY42: 285.06 | BA42: 2003-08-28 | BB42: 7.033333333 | BD42: 2005-05-19 | BE42: 208.19 | BG42: 2020-01-09 | BH42: 2.395833333
B43: 2004-02-23 | C43: 12.67333333 | E43: 1990-03-14 | F43: 73.6 | H43: 2015-11-17 | I43: 13.9 | K43: 1990-02-21 | L43: 15.33333333 | N43: 2016-07-26 | O43: 16 | Q43: 2010-11-29 | R43: 8.136666667 | T43: 2017-07-20 | U43: 13.23 | W43: 2004-03-26 | X43: 14.74333333 | Z43: 2007-07-11 | AA43: 14.57 | AC43: 1990-02-21 | AD43: 12.03333333 | AF43: 2004-04-29 | AG43: 8.14 | AI43: 2004-02-27 | AJ43: 14 | AL43: 2013-07-03 | AM43: 20.38 | AO43: 2007-07-25 | AP43: 15.03 | AR43: 2007-08-08 | AS43: 184.07 | AU43: 2007-08-08 | AV43: 94.62 | AX43: 2007-07-25 | AY43: 285.98 | BA43: 2003-09-14 | BB43: 30.53 | BD43: 2005-09-07 | BE43: 273.3733333 | BG43: 2020-01-24 | BH43: 2.083333333
B44: 2004-04-29 | C44: 12.21333333 | E44: 1990-03-21 | F44: 13.73333333 | H44: 2015-12-02 | I44: 19.8 | K44: 1990-03-14 | L44: 27.5 | N44: 2016-08-09 | O44: 11.31 | Q44: 2010-12-08 | R44: 9.253333333 | T44: 2017-08-01 | U44: 11.42 | W44: 2004-04-21 | X44: 17.81333333 | Z44: 2007-07-11 | AA44: 14.34 | AC44: 1990-03-14 | AD44: 8.043333333 | AF44: 2004-05-24 | AG44: 21.08 | AI44: 2004-02-27 | AJ44: 13.5 | AL44: 2013-07-17 | AM44: 16.56666667 | AO44: 2007-08-08 | AP44: 8.93 | AR44: 2007-08-22 | AS44: 164.86 | AU44: 2007-08-22 | AV44: 113.4 | AX44: 2007-08-08 | AY44: 254.08 | BA44: 2003-09-22 | BB44: 17.5 | BD44: 2005-09-07 | BE44: 234.76 | BG44: 2020-02-07 | BH44: 1.93877551
B45: 2004-05-24 | C45: 14.395 | E45: 1990-04-04 | F45: 15.63333333 | H45: 2015-12-16 | I45: 22.85 | K45: 1990-03-21 | L45: 36.06666667 | N45: 2016-08-23 | O45: 13.55 | Q45: 2010-12-15 | R45: 9.8 | T45: 2017-08-18 | U45: 21.12 | W45: 2004-05-31 | X45: 31.90666667 | Z45: 2007-07-11 | AA45: 13.61 | AC45: 1990-03-21 | AD45: 7.71 | AF45: 2004-06-01 | AG45: 14.475 | AI45: 2004-02-27 | AJ45: 14.9 | AO45: 2007-08-22 | AP45: 9.76 | AR45: 2007-09-05 | AS45: 166.31 | AU45: 2007-09-05 | AV45: 81.16 | AX45: 2007-08-22 | AY45: 299.19 | BA45: 2003-09-23 | BB45: 29.68333333 | BD45: 2005-09-07 | BE45: 189.5766667 | BG45: 2020-02-27 | BH45: 3.195876289
B46: 2004-06-01 | C46: 12.6 | E46: 1990-04-18 | F46: 18.03333333 | H46: 2016-01-06 | I46: 21.85 | K46: 1990-04-04 | L46: 16.56666667 | N46: 2016-09-16 | O46: 10.31 | Q46: 2010-12-28 | R46: 8.526666667 | T46: 2017-09-06 | U46: 13.68 | W46: 2004-07-09 | X46: 10.26666667 | Z46: 2007-07-25 | AA46: 10.32 | AC46: 1990-04-04 | AD46: 9 | AF46: 2004-06-26 | AG46: 11.16333333 | AI46: 2004-03-26 | AJ46: 57.8 | AO46: 2007-09-05 | AP46: 2.33 | AR46: 2007-09-26 | AS46: 121.2 | AU46: 2007-09-26 | AV46: 78.58 | AX46: 2007-09-05 | AY46: 271.07 | BA46: 2003-09-27 | BB46: 17.39666667 | BD46: 2005-11-28 | BE46: 99.91333333 | BG46: 2020-03-11 | BH46: 1.979166667
B47: 2004-07-09 | C47: 9.24 | E47: 1990-04-20 | F47: 19.06666667 | H47: 2016-01-21 | I47: 23.09 | K47: 1990-04-18 | L47: 15.16666667 | N47: 2016-09-27 | O47: 10.49 | Q47: 2011-01-05 | R47: 12.03666667 | T47: 2017-09-21 | U47: 10.8 | W47: 2004-08-21 | X47: 9.543333333 | Z47: 2007-07-25 | AA47: 11.46 | AC47: 1990-04-18 | AD47: 9.29 | AF47: 2004-10-12 | AG47: 6.543333333 | AI47: 2004-03-26 | AJ47: 50.8 | AO47: 2007-09-26 | AP47: 19.2 | AR47: 2007-10-10 | AS47: 156 | AU47: 2007-10-10 | AV47: 78.18 | AX47: 2007-09-26 | AY47: 220.16 | BA47: 2003-09-27 | BB47: 8.516666667 | BD47: 2005-11-28 | BE47: 68.125 | BG47: 2020-03-27 | BH47: 2.02020202
B48: 2004-10-12 | C48: 8.09 | E48: 1990-04-23 | F48: 19.8 | H48: 2016-02-01 | I48: 22.58 | K48: 1990-04-25 | L48: 41.93333333 | N48: 2016-10-14 | O48: 11.42 | Q48: 2011-01-12 | R48: 11.03 | T48: 2017-10-11 | U48: 10.21 | W48: 2004-10-02 | X48: 10.05 | Z48: 2007-07-25 | AA48: 11.87 | AC48: 1990-04-25 | AD48: 9.433333333 | AF48: 2004-11-28 | AG48: 18.86333333 | AI48: 2004-03-26 | AJ48: 45.5 | AO48: 2007-10-24 | AP48: 20.72 | AR48: 2007-10-24 | AS48: 99.02 | AU48: 2007-10-24 | AV48: 96.66 | AX48: 2007-10-10 | AY48: 213.79 | BA48: 2003-10-01 | BB48: 13.575 | BD48: 2006-04-03 | BE48: 35.79 | BG48: 2020-04-07 | BH48: 4.329896907
B49: 2004-11-29 | C49: 10.19333333 | E49: 1990-04-25 | F49: 23.73333333 | H49: 2016-03-07 | I49: 29.09 | K49: 1990-05-02 | L49: 26.9 | N49: 2016-10-26 | O49: 9.27 | Q49: 2011-01-20 | R49: 18.10666667 | T49: 2017-10-30 | U49: 10.75 | W49: 2004-11-26 | X49: 11.09666667 | Z49: 2007-08-08 | AA49: 10.77 | AC49: 1990-05-02 | AD49: 7.8 | AF49: 2004-12-22 | AG49: 10.45666667 | AI49: 2004-04-21 | AJ49: 154.6 | AO49: 2007-11-07 | AP49: 57.07 | AR49: 2007-11-07 | AS49: 162.07 | AU49: 2007-11-07 | AV49: 180.15 | AX49: 2007-10-24 | AY49: 214.06 | BA49: 2003-10-02 | BB49: 13.9 | BD49: 2006-04-03 | BE49: 94.32 | BG49: 2020-04-24 | BH49: 2.121212121
B50: 2004-12-22 | C50: 10.56666667 | E50: 1990-04-27 | F50: 25.5 | H50: 2016-03-30 | I50: 17.81 | K50: 1990-05-09 | L50: 28.33333333 | N50: 2016-11-16 | O50: 8.08 | Q50: 2011-02-04 | R50: 18.15 | T50: 2017-11-17 | U50: 10.74 | W50: 2004-12-18 | X50: 10.44333333 | Z50: 2007-08-08 | AA50: 9.59 | AC50: 1990-05-09 | AD50: 4.5 | AF50: 2005-05-31 | AG50: 6.916666667 | AI50: 2004-04-21 | AJ50: 137.5 | AO50: 2007-11-19 | AP50: 84.41 | AR50: 2007-11-19 | AS50: 203.06 | AU50: 2007-11-19 | AV50: 210.08 | AX50: 2007-11-07 | AY50: 367.28 | BA50: 2004-02-24 | BB50: 10.95666667 | BD50: 2006-05-11 | BE50: 145.5333333 | BG50: 2020-04-30 | BH50: 5.806451613
B51: 2005-05-31 | C51: 10.05333333 | E51: 1990-04-30 | F51: 19.96666667 | H51: 2016-04-15 | I51: 16.5 | K51: 1990-05-10 | L51: 26.45 | N51: 2016-12-13 | O51: 27.57 | Q51: 2011-02-09 | R51: 16.19333333 | T51: 2017-11-30 | U51: 10.41 | W51: 2005-08-10 | X51: 12.89 | Z51: 2007-08-08 | AA51: 11.32 | AC51: 1990-05-10 | AD51: 7.05 | AF51: 2005-06-07 | AG51: 4.403333333 | AI51: 2004-04-21 | AJ51: 136.8 | AO51: 2007-12-05 | AP51: 80.21 | AR51: 2007-12-05 | AS51: 216.46 | AU51: 2007-12-05 | AV51: 205 | AX51: 2007-11-19 | AY51: 412.9 | BA51: 2004-03-02 | BB51: 10.78 | BD51: 2006-05-11 | BE51: 134.77 | BG51: 2020-05-15 | BH51: 3.131313131
B52: 2005-06-07 | C52: 8.163333333 | E52: 1990-05-02 | F52: 17.86666667 | H52: 2016-04-26 | I52: 20.13 | K52: 1990-05-11 | L52: 23.83333333 | N52: 2016-12-28 | O52: 18.3 | Q52: 2011-02-16 | R52: 12.01 | T52: 2017-12-15 | U52: 10.94 | W52: 2005-09-13 | X52: 11.17 | Z52: 2007-08-22 | AA52: 11.17 | AC52: 1990-05-11 | AD52: 11.43333333 | AF52: 2005-06-13 | AG52: 8.77 | AI52: 2004-05-31 | AJ52: 169.1 | AO52: 2007-12-19 | AP52: 109.83 | AR52: 2007-12-19 | AS52: 220.4 | AU52: 2007-12-19 | AV52: 240.28 | AX52: 2007-12-05 | AY52: 398.34 | BA52: 2004-03-05 | BB52: 8.07 | BD52: 2006-05-18 | BE52: 134.77 | BG52: 2020-05-18 | BH52: 13.5
B53: 2005-06-13 | C53: 11.82333333 | E53: 1990-05-04 | F53: 14.26666667 | H53: 2016-05-09 | I53: 13.17 | K53: 1990-05-16 | L53: 19.06666667 | N53: 2017-01-18 | O53: 17.18 | Q53: 2011-02-23 | R53: 12.09333333 | T53: 2018-01-09 | U53: 12.8 | W53: 2005-10-20 | X53: 11.09 | Z53: 2007-08-22 | AA53: 11.39 | AC53: 1990-05-16 | AD53: 9.266666667 | AF53: 2005-06-20 | AG53: 9.233333333 | AI53: 2004-05-31 | AJ53: 170.2 | AO53: 2008-01-03 | AP53: 120.03 | AR53: 2008-01-03 | AS53: 233.19 | AU53: 2008-01-03 | AV53: 241.16 | AX53: 2007-12-19 | AY53: 423.21 | BA53: 2004-04-06 | BB53: 16.23666667 | BD53: 2006-05-18 | BE53: 165.2333333 | BG53: 2020-05-29 | BH53: 4.5
B54: 2005-06-20 | C54: 9.646666667 | E54: 1990-05-07 | F54: 13.86666667 | H54: 2016-05-27 | I54: 14.3 | K54: 1990-06-04 | L54: 19.86666667 | N54: 2017-01-31 | O54: 12.9 | Q54: 2011-03-08 | R54: 12.77666667 | T54: 2018-01-24 | U54: 15.69 | W54: 2005-12-01 | X54: 9.38 | Z54: 2007-08-22 | AA54: 10.51 | AC54: 1990-06-04 | AD54: 11.43333333 | AF54: 2005-06-27 | AG54: 8.56 | AI54: 2004-05-31 | AJ54: 186.4 | AO54: 2008-01-17 | AP54: 95.7 | AR54: 2008-01-17 | AS54: 220.99 | AU54: 2008-01-17 | AV54: 231.58 | AX54: 2008-01-03 | AY54: 407.85 | BA54: 2004-04-08 | BB54: 9.365 | BD54: 2006-07-24 | BE54: 190.6366667 | BG54: 2020-06-12 | BH54: 3.229166667
B55: 2005-06-27 | C55: 12.26333333 | E55: 1990-05-09 | F55: 14.26666667 | H55: 2016-06-15 | I55: 36.59 | K55: 1990-06-12 | L55: 21.6 | N55: 2017-02-17 | O55: 14.37 | Q55: 2011-03-17 | R55: 12.57333333 | T55: 2018-02-07 | U55: 12.88 | W55: 2006-05-16 | X55: 16.58666667 | Z55: 2007-09-05 | AA55: 14.19 | AC55: 1990-06-12 | AD55: 17.265 | AF55: 2005-07-06 | AG55: 8.423333333 | AI55: 2004-06-26 | AJ55: 16.9 | AO55: 2008-02-01 | AP55: 121.81 | AR55: 2008-02-01 | AS55: 228.45 | AU55: 2008-02-01 | AV55: 248.28 | AX55: 2008-01-17 | AY55: 390.88 | BA55: 2004-04-21 | BB55: 6.22 | BD55: 2006-07-24 | BE55: 216.55 | BG55: 2020-06-26 | BH55: 3.87755102
B56: 2005-07-06 | C56: 11.95666667 | E56: 1990-05-10 | F56: 43.33333333 | H56: 2016-06-28 | I56: 17.28 | K56: 1990-06-13 | L56: 25.36666667 | N56: 2017-02-28 | O56: 11.1 | Q56: 2011-03-22 | R56: 10.09 | T56: 2018-02-23 | U56: 11.86 | W56: 2006-06-14 | X56: 10.42333333 | Z56: 2007-09-05 | AA56: 13.73 | AC56: 1990-06-13 | AD56: 12.85 | AF56: 2005-07-11 | AG56: 9.543333333 | AI56: 2004-06-26 | AJ56: 18.4 | AO56: 2008-02-14 | AP56: 140.15 | AR56: 2008-02-14 | AS56: 251.88 | AU56: 2008-02-14 | AV56: 243.93 | AX56: 2008-02-01 | AY56: 392.51 | BA56: 2004-05-13 | BB56: 6.63 | BD56: 2007-05-09 | BE56: 166.52 | BG56: 2020-07-10 | BH56: 5.052631579
B57: 2005-07-11 | C57: 13.12333333 | E57: 1990-05-11 | F57: 15.1 | H57: 2016-07-13 | I57: 21.14 | K57: 1990-06-17 | L57: 32.7 | N57: 2017-03-15 | O57: 14.76 | Q57: 2011-03-31 | R57: 24.36666667 | T57: 2018-04-06 | U57: 9.12 | W57: 2006-07-12 | X57: 11.02333333 | Z57: 2007-09-05 | AA57: 15.17 | AC57: 1990-06-17 | AD57: 12.05 | AF57: 2005-07-19 | AG57: 8.866666667 | AI57: 2004-06-26 | AJ57: 20.4 | AO57: 2008-03-05 | AP57: 133.19 | AR57: 2008-03-05 | AS57: 215.75 | AU57: 2008-03-05 | AV57: 338.72 | AX57: 2008-02-14 | AY57: 395.38 | BA57: 2004-05-23 | BB57: 6.99 | BG57: 2020-07-24 | BH57: 3.617021277
B58: 2005-07-19 | C58: 12.47 | E58: 1990-05-14 | F58: 13.4 | H58: 2016-07-26 | I58: 22.51 | K58: 1990-06-23 | L58: 28.9 | N58: 2017-03-29 | O58: 14.61 | Q58: 2011-04-06 | R58: 11.59666667 | T58: 2018-04-24 | U58: 16.83 | W58: 2006-09-21 | X58: 8.966666667 | Z58: 2007-09-26 | AA58: 9.91 | AC58: 1990-06-23 | AD58: 12.55 | AF58: 2005-07-25 | AG58: 8.713333333 | AI58: 2004-08-21 | AJ58: 12.3 | AO58: 2008-03-19 | AP58: 149.28 | AR58: 2008-03-19 | AS58: 189.55 | AU58: 2008-03-19 | AV58: 290.45 | AX58: 2008-03-05 | AY58: 409.24 | BA58: 2004-06-11 | BB58: 11.45 | BG58: 2020-08-07 | BH58: 2.040816327
B59: 2005-07-25 | C59: 12.58666667 | E59: 1990-05-16 | F59: 17.86666667 | H59: 2016-08-09 | I59: 21.12 | K59: 1990-06-27 | L59: 46.5 | N59: 2017-04-18 | O59: 19.66 | Q59: 2011-04-13 | R59: 12.92333333 | T59: 2018-05-08 | U59: 15.62 | W59: 2006-10-23 | X59: 9.326666667 | Z59: 2007-09-26 | AA59: 10.5 | AC59: 1990-06-27 | AD59: 8.533333333 | AF59: 2005-08-02 | AG59: 8.926666667 | AI59: 2004-08-21 | AJ59: 13.7 | AO59: 2008-04-02 | AP59: 91.36 | AR59: 2008-04-02 | AS59: 200.77 | AU59: 2008-04-02 | AV59: 302.94 | AX59: 2008-03-19 | AY59: 426.42 | BA59: 2004-07-07 | BB59: 25.85 | BG59: 2020-09-15 | BH59: 0.7070707071
B60: 2005-08-02 | C60: 12.54666667 | E60: 1990-05-18 | F60: 16.13333333 | H60: 2016-08-23 | I60: 23.85 | K60: 1990-07-11 | L60: 26.16666667 | N60: 2017-05-03 | O60: 18.09 | Q60: 2011-04-21 | R60: 12.83 | T60: 2018-05-24 | U60: 11.67 | W60: 2010-11-16 | X60: 6.763333333 | Z60: 2007-09-26 | AA60: 9.87 | AC60: 1990-07-11 | AD60: 8.776666667 | AF60: 2005-08-07 | AG60: 7.946666667 | AI60: 2004-08-21 | AJ60: 13.7 | AO60: 2008-04-16 | AP60: 69.46 | AR60: 2008-04-16 | AS60: 167.29 | AU60: 2008-04-16 | AV60: 292.07 | AX60: 2008-04-02 | AY60: 411.6 | BA60: 2004-07-30 | BB60: 14.03 | BG60: 2020-09-29 | BH60: 1.836734694
B61: 2005-08-08 | C61: 15.25 | E61: 1990-05-21 | F61: 16.3 | H61: 2016-09-16 | I61: 18.67 | K61: 1990-07-25 | L61: 20.46666667 | N61: 2017-05-22 | O61: 16.8 | Q61: 2011-04-27 | R61: 17.65666667 | T61: 2018-06-06 | U61: 16.46 | W61: 2010-11-23 | X61: 8.21 | Z61: 2007-10-10 | AA61: 11.94 | AC61: 1990-07-25 | AD61: 8.766666667 | AF61: 2005-08-08 | AG61: 10.50666667 | AI61: 2004-10-02 | AJ61: 33.8 | AO61: 2008-04-30 | AP61: 28.33 | AR61: 2008-04-30 | AS61: 157.39 | AU61: 2008-04-30 | AV61: 215.26 | AX61: 2008-04-16 | AY61: 384.99 | BA61: 2004-11-04 | BB61: 7.51 | BG61: 2020-10-14 | BH61: 1.020408163
B62: 2005-08-10 | C62: 10.71 | E62: 1990-05-23 | F62: 16.38333333 | H62: 2016-09-27 | I62: 17.19 | K62: 1990-08-08 | L62: 13.66666667 | N62: 2017-06-06 | O62: 18 | Q62: 2011-05-04 | R62: 11.14 | T62: 2018-06-20 | U62: 14.51 | W62: 2010-11-29 | X62: 7.753333333 | Z62: 2007-10-10 | AA62: 13.14 | AC62: 1990-08-08 | AD62: 5 | AF62: 2005-08-15 | AG62: 7.753333333 | AI62: 2004-10-02 | AJ62: 30.5 | AO62: 2008-05-15 | AP62: 32.69 | AR62: 2008-05-15 | AS62: 139.9 | AU62: 2008-05-15 | AV62: 182.34 | AX62: 2008-04-30 | AY62: 334.86 | BA62: 2005-02-07 | BB62: 9.54 | BG62: 2020-11-03 | BH62: 1.725888325
B63: 2005-08-15 | C63: 12.15333333 | E63: 1990-05-25 | F63: 14.8 | H63: 2016-10-14 | I63: 17.87 | K63: 1990-08-24 | L63: 21.3 | N63: 2017-06-19 | O63: 19.42 | Q63: 2011-05-11 | R63: 57.64666667 | T63: 2018-07-06 | U63: 14.83 | W63: 2010-12-08 | X63: 10.2 | Z63: 2007-10-10 | AA63: 12.13 | AC63: 1990-08-24 | AD63: 6.4 | AF63: 2005-08-22 | AG63: 7.476666667 | AI63: 2004-10-02 | AJ63: 26.9 | AO63: 2008-05-23 | AP63: 23.47 | AR63: 2008-05-23 | AS63: 119.61 | AU63: 2008-05-23 | AV63: 155.14 | AX63: 2008-05-15 | AY63: 302.96 | BA63: 2005-05-13 | BB63: 26.08333333 | BG63: 2020-11-19 | BH63: 1.306532663
B64: 2005-08-22 | C64: 9.773333333 | E64: 1990-05-30 | F64: 15.86666667 | H64: 2016-10-26 | I64: 12.4 | K64: 1990-09-05 | L64: 19.73333333 | N64: 2017-07-05 | O64: 13.23 | Q64: 2011-05-17 | R64: 10.38666667 | T64: 2018-07-30 | U64: 12.01 | W64: 2010-12-15 | X64: 9.3 | Z64: 2007-10-24 | AA64: 15.27 | AC64: 1990-09-05 | AD64: 6.666666667 | AF64: 2005-08-29 | AG64: 7.776666667 | AI64: 2004-10-24 | AJ64: 6.8 | AO64: 2008-06-04 | AP64: 25.48 | AR64: 2008-06-04 | AS64: 136.16 | AU64: 2008-06-04 | AV64: 156.04 | AX64: 2008-05-23 | AY64: 296.15 | BA64: 2005-05-19 | BB64: 4.76 | BG64: 2020-12-02 | BH64: 1
B65: 2005-08-29 | C65: 9.433333333 | E65: 1990-06-01 | F65: 13.36666667 | H65: 2016-11-16 | I65: 13.11 | K65: 1990-09-12 | L65: 26.63333333 | N65: 2017-07-20 | O65: 12.81 | Q65: 2011-05-25 | R65: 12.58666667 | T65: 2018-08-15 | U65: 13.12 | W65: 2010-12-28 | X65: 8.966666667 | Z65: 2007-10-24 | AA65: 15.27 | AC65: 1990-09-12 | AD65: 6.966666667 | AF65: 2005-09-04 | AG65: 8.216666667 | AI65: 2004-10-24 | AJ65: 6.3 | AO65: 2008-06-20 | AP65: 20.84 | AR65: 2008-06-20 | AS65: 136.68 | AU65: 2008-06-20 | AV65: 122.28 | AX65: 2008-06-04 | AY65: 303.55 | BA65: 2005-09-07 | BB65: 6.483333333 | BG65: 2020-12-17 | BH65: 9.637305699
B66: 2005-09-04 | C66: 11.21333333 | E66: 1990-06-04 | F66: 12.4 | H66: 2016-12-13 | I66: 23.28 | K66: 1990-09-14 | L66: 27.45 | N66: 2017-08-01 | O66: 13.15 | Q66: 2011-06-02 | R66: 9.956666667 | T66: 2018-08-29 | U66: 42.48 | W66: 2011-01-05 | X66: 12.26666667 | Z66: 2007-10-24 | AA66: 7.26 | AC66: 1990-09-14 | AD66: 7.6 | AF66: 2005-09-06 | AG66: 11.93333333 | AI66: 2004-10-24 | AJ66: 7.1 | AO66: 2008-07-01 | AP66: 26.25 | AR66: 2008-07-01 | AS66: 138.37 | AU66: 2008-07-01 | AV66: 117.49 | AX66: 2008-06-20 | AY66: 284.3 | BA66: 2005-09-13 | BB66: 22.7 | BG66: 2021-01-05 | BH66: 1.25
B67: 2005-09-06 | C67: 9.433333333 | E67: 1990-06-12 | F67: 66.5 | H67: 2016-12-28 | I67: 29.17 | K67: 1990-09-19 | L67: 16.7 | N67: 2017-08-18 | O67: 14.5 | Q67: 2011-06-08 | R67: 13.58333333 | T67: 2018-09-14 | U67: 10.84 | W67: 2011-01-12 | X67: 8.556666667 | Z67: 2007-11-07 | AA67: 6.09 | AC67: 1990-09-19 | AD67: 7.666666667 | AF67: 2005-09-12 | AG67: 6.626666667 | AI67: 2004-11-28 | AJ67: 34 | AO67: 2008-07-17 | AP67: 49.34 | AR67: 2008-07-17 | AS67: 177.69 | AU67: 2008-07-17 | AV67: 102.12 | AX67: 2008-07-01 | AY67: 286.86 | BA67: 2005-11-28 | BB67: 5.546666667 | BG67: 2021-02-04 | BH67: 2.244897959
B68: 2005-09-12 | C68: 9.12 | E68: 1990-06-13 | F68: 21.83333333 | H68: 2017-01-18 | I68: 21.84 | K68: 1990-10-05 | L68: 28.56666667 | N68: 2017-09-06 | O68: 8.97 | Q68: 2011-06-14 | R68: 10.59333333 | T68: 2018-09-28 | U68: 11.15 | W68: 2011-01-20 | X68: 14.65333333 | Z68: 2007-11-07 | AA68: 5.54 | AC68: 1990-10-05 | AD68: 6.633333333 | AF68: 2005-09-19 | AG68: 6.116666667 | AI68: 2004-11-28 | AJ68: 31.4 | AO68: 2008-07-30 | AP68: 48.28 | AR68: 2008-07-30 | AS68: 176.39 | AU68: 2008-07-30 | AV68: 93.08 | AX68: 2008-07-17 | AY68: 295.76 | BA68: 2006-04-03 | BB68: 6.175 | BG68: 2021-02-24 | BH68: 4.0625
B69: 2005-09-19 | C69: 7.593333333 | E69: 1990-06-17 | F69: 97.6 | H69: 2017-01-31 | I69: 19.58 | K69: 1990-10-17 | L69: 12.43333333 | N69: 2017-09-21 | O69: 7.83 | Q69: 2011-06-22 | R69: 28.65666667 | T69: 2018-10-16 | U69: 8.86 | W69: 2011-02-04 | X69: 11.98 | Z69: 2007-11-07 | AA69: 5.45 | AC69: 1990-10-17 | AD69: 9.133333333 | AF69: 2005-09-26 | AG69: 7.196666667 | AI69: 2004-11-28 | AJ69: 35.6 | AO69: 2008-08-14 | AP69: 43.73 | AR69: 2008-08-14 | AS69: 193.3 | AU69: 2008-08-14 | AV69: 106.97 | AX69: 2008-07-30 | AY69: 252.58 | BA69: 2006-05-11 | BB69: 6.903333333 | BG69: 2021-03-09 | BH69: 3.469387755
B70: 2005-09-26 | C70: 7.41 | E70: 1990-06-23 | F70: 38.1 | H70: 2017-02-17 | I70: 20.9 | K70: 1990-10-31 | L70: 9.866666667 | N70: 2017-10-11 | O70: 7.3 | Q70: 2011-06-29 | R70: 8.77 | T70: 2018-10-31 | U70: 7.93 | W70: 2011-02-09 | X70: 15.16 | Z70: 2007-11-19 | AA70: 6.51 | AC70: 1990-10-31 | AD70: 8.9 | AF70: 2005-10-03 | AG70: 7.393333333 | AI70: 2004-12-17 | AJ70: 8.9 | AO70: 2008-08-27 | AP70: 76.58 | AR70: 2008-08-27 | AS70: 206.35 | AU70: 2008-08-27 | AV70: 108.55 | AX70: 2008-08-14 | AY70: 285.44 | BA70: 2006-05-18 | BB70: 17.32 | BG70: 2021-03-23 | BH70: 2.164948454
B71: 2005-10-03 | C71: 7.87 | E71: 1990-06-27 | F71: 18.96666667 | H71: 2017-02-28 | I71: 33.47 | K71: 1990-11-16 | L71: 14.03333333 | N71: 2017-10-30 | O71: 11.7 | Q71: 2011-07-06 | R71: 13.50666667 | T71: 2018-11-14 | U71: 10.48 | W71: 2011-02-16 | X71: 11.39666667 | Z71: 2007-11-19 | AA71: 6.96 | AC71: 1990-11-16 | AD71: 9.066666667 | AF71: 2005-10-10 | AG71: 7.166666667 | AI71: 2004-12-17 | AJ71: 8.7 | AO71: 2008-09-10 | AP71: 55.48 | AR71: 2008-09-10 | AS71: 208.38 | AU71: 2008-09-10 | AV71: 111.01 | AX71: 2008-08-27 | AY71: 291.27 | BA71: 2006-07-24 | BB71: 10.08 | BG71: 2021-04-07 | BH71: 3
B72: 2005-10-10 | C72: 8.906666667 | E72: 1990-06-30 | F72: 54 | H72: 2017-03-15 | I72: 15.05 | K72: 1990-12-05 | L72: 27 | N72: 2017-11-17 | O72: 10.09 | Q72: 2011-07-13 | R72: 12.13 | T72: 2018-11-30 | U72: 9.84 | W72: 2011-02-23 | X72: 10.91 | Z72: 2007-11-19 | AA72: 6.66 | AC72: 1990-12-05 | AD72: 10.49 | AF72: 2005-10-14 | AG72: 6.973333333 | AI72: 2004-12-17 | AJ72: 10.1 | AO72: 2008-09-23 | AP72: 57.56 | AR72: 2008-09-23 | AS72: 195.68 | AU72: 2008-09-23 | AV72: 111.2 | AX72: 2008-09-10 | AY72: 301.73 | BA72: 2006-10-11 | BB72: 6.98 | BG72: 2021-04-19 | BH72: 4.467005076
B73: 2005-10-14 | C73: 8.606666667 | E73: 1990-07-11 | F73: 17.4 | H73: 2017-03-29 | I73: 16.7 | K73: 1991-01-09 | L73: 10.16666667 | N73: 2017-11-30 | O73: 9.28 | Q73: 2011-07-20 | R73: 12.44666667 | T73: 2018-12-12 | U73: 10.73 | W73: 2011-03-08 | X73: 22.49666667 | Z73: 2007-12-05 | AA73: 8.21 | AC73: 1991-01-09 | AD73: 8.533333333 | AF73: 2005-10-31 | AG73: 5.726666667 | AI73: 2005-02-02 | AJ73: 13.5 | AO73: 2008-10-09 | AP73: 56.76 | AR73: 2008-10-09 | AS73: 196.9 | AU73: 2008-10-09 | AV73: 119.16 | AX73: 2008-09-23 | AY73: 301.7 | BA73: 2006-12-04 | BB73: 4.535 | BG73: 2021-05-05 | BH73: 4.897959184
B74: 2005-10-31 | C74: 10.77666667 | E74: 1990-07-22 | F74: 33.85 | H74: 2017-04-18 | I74: 14.64 | K74: 1991-02-08 | L74: 15.5 | N74: 2017-12-15 | O74: 36.62 | Q74: 2011-07-29 | R74: 47.09 | T74: 2018-12-27 | U74: 11.77 | W74: 2011-03-17 | X74: 11.36666667 | Z74: 2007-12-05 | AA74: 8.23 | AC74: 1992-08-04 | AD74: 6.666666667 | AF74: 2005-11-07 | AG74: 6.776666667 | AI74: 2005-02-02 | AJ74: 13.9 | AO74: 2008-10-15 | AP74: 47.71 | AR74: 2008-10-15 | AS74: 151.89 | AU74: 2008-10-15 | AV74: 114.15 | AX74: 2008-10-09 | AY74: 333.81 | BA74: 2007-04-26 | BB74: 7.485 | BG74: 2021-05-26 | BH74: 4.693877551
B75: 2005-11-07 | C75: 11.30333333 | E75: 1990-07-25 | F75: 13.73333333 | H75: 2017-05-03 | I75: 16.83 | K75: 1991-02-19 | L75: 14.4 | N75: 2018-01-09 | O75: 34.59 | Q75: 2011-08-03 | R75: 21.10666667 | T75: 2019-01-18 | U75: 13.23 | W75: 2011-03-22 | X75: 10.77666667 | Z75: 2007-12-05 | AA75: 7.11 | AC75: 1992-08-18 | AD75: 6.866666667 | AF75: 2005-11-30 | AG75: 7.013333333 | AI75: 2005-02-02 | AJ75: 13.3 | AO75: 2008-10-30 | AP75: 60.3 | AR75: 2008-10-30 | AS75: 187.12 | AU75: 2008-10-30 | AV75: 154.55 | AX75: 2008-10-15 | AY75: 315.78 | BA75: 2007-05-09 | BB75: 16.07 | BG75: 2021-06-08 | BH75: 4.918032787
B76: 2005-11-30 | C76: 8.686666667 | E76: 1990-08-08 | F76: 10.96666667 | H76: 2017-05-22 | I76: 15.23 | K76: 1991-03-05 | L76: 15.06666667 | N76: 2018-01-24 | O76: 19.06 | Q76: 2011-08-10 | R76: 14.90333333 | T76: 2019-02-04 | U76: 24.66 | W76: 2011-03-31 | X76: 24.06 | Z76: 2007-12-19 | AA76: 11.23 | AC76: 1992-09-01 | AD76: 6.4 | AF76: 2006-05-08 | AG76: 9.393333333 | AI76: 2005-08-07 | AJ76: 19.8 | AO76: 2008-11-12 | AP76: 53.73 | AR76: 2008-11-12 | AS76: 191.9 | AU76: 2008-11-12 | AV76: 185.4 | AX76: 2008-10-30 | AY76: 310.16 | BA76: 2007-06-04 | BB76: 4.666666667 | BG76: 2021-06-28 | BH76: 4.5
B77: 2006-05-15 | C77: 12.25666667 | E77: 1990-08-24 | F77: 11.33333333 | H77: 2017-06-06 | I77: 13.74 | K77: 1991-03-19 | L77: 15.96666667 | N77: 2018-02-07 | O77: 20.44 | Q77: 2011-08-17 | R77: 13.4 | T77: 2019-02-27 | U77: 12.39 | W77: 2011-04-06 | X77: 13.14333333 | Z77: 2007-12-19 | AA77: 9.75 | AC77: 1992-09-22 | AD77: 6.3 | AF77: 2006-05-15 | AG77: 12.93 | AI77: 2005-08-07 | AJ77: 20.6 | AO77: 2008-11-26 | AP77: 82.43 | AR77: 2008-11-26 | AS77: 218.34 | AU77: 2008-11-26 | AV77: 204.17 | AX77: 2008-11-12 | AY77: 357.24 | BA77: 2007-08-29 | BB77: 6.51 | BG77: 2021-07-12 | BH77: 3.06122449
B78: 2006-06-14 | C78: 10.56666667 | E78: 1990-09-05 | F78: 11.96666667 | H78: 2017-06-19 | I78: 16.06 | K78: 1991-04-02 | L78: 13.56666667 | N78: 2018-02-23 | O78: 11.15 | Q78: 2011-08-24 | R78: 14.61 | T78: 2019-03-13 | U78: 23.71 | W78: 2011-04-13 | X78: 12.12 | Z78: 2007-12-19 | AA78: 6.07 | AC78: 1992-09-29 | AD78: 7.133333333 | AF78: 2006-05-30 | AG78: 8.623333333 | AI78: 2005-08-07 | AJ78: 19.8 | AO78: 2008-12-10 | AP78: 87.1 | AR78: 2008-12-10 | AS78: 221.46 | AU78: 2008-12-10 | AV78: 206.34 | AX78: 2008-11-26 | AY78: 366.18 | BA78: 2007-10-16 | BB78: 8.2 | BG78: 2021-07-28 | BH78: 2.626262626
B79: 2006-07-12 | C79: 10.17666667 | E79: 1990-09-06 | F79: 45.35 | H79: 2017-07-05 | I79: 13.29 | K79: 1991-04-09 | L79: 25.7 | N79: 2018-04-06 | O79: 11.96 | Q79: 2011-09-01 | R79: 9.943333333 | T79: 2019-03-26 | U79: 13.58 | W79: 2011-04-21 | X79: 11.79333333 | Z79: 2008-01-03 | AA79: 12.07 | AC79: 1992-10-06 | AD79: 5.8 | AF79: 2006-06-05 | AG79: 7.363333333 | AI79: 2005-09-03 | AJ79: 12.7 | AO79: 2008-12-23 | AP79: 120.78 | AR79: 2008-12-23 | AS79: 252.91 | AU79: 2008-12-23 | AV79: 212.74 | AX79: 2008-12-10 | AY79: 370.22 | BA79: 2008-06-05 | BB79: 7.286666667 | BG79: 2021-08-16 | BH79: 2.3
B80: 2006-09-21 | C80: 7.91 | E80: 1990-09-12 | F80: 11 | H80: 2017-07-20 | I80: 13.82 | K80: 1991-04-16 | L80: 15.26666667 | N80: 2018-04-24 | O80: 15.9 | Q80: 2011-09-07 | R80: 7.546666667 | T80: 2019-04-12 | U80: 51.54 | W80: 2011-04-27 | X80: 14.37333333 | Z80: 2008-01-03 | AA80: 11.33 | AC80: 1992-10-13 | AD80: 8.5 | AF80: 2006-06-13 | AG80: 7.951666667 | AI80: 2005-09-03 | AJ80: 13.4 | AO80: 2009-01-07 | AP80: 123.66 | AR80: 2009-01-07 | AS80: 231.51 | AU80: 2009-01-07 | AV80: 219.88 | AX80: 2008-12-23 | AY80: 378.46 | BA80: 2008-07-02 | BB80: 14.225 | BG80: 2021-08-31 | BH80: 2.346938776
B81: 2006-10-23 | C81: 8.043333333 | E81: 1990-09-14 | F81: 65.83333333 | H81: 2017-08-01 | I81: 17.2 | K81: 1991-05-03 | L81: 16.55 | N81: 2018-05-08 | O81: 16.08 | Q81: 2011-09-13 | R81: 7.99 | T81: 2019-04-30 | U81: 13.93 | W81: 2011-05-04 | X81: 11.27 | Z81: 2008-01-03 | AA81: 13.31 | AC81: 1992-10-21 | AD81: 10.5 | AF81: 2006-06-20 | AG81: 10.33 | AI81: 2005-09-03 | AJ81: 12.5 | AO81: 2009-01-27 | AP81: 112 | AR81: 2009-01-27 | AS81: 254.12 | AU81: 2009-01-27 | AV81: 240.98 | AX81: 2009-01-07 | AY81: 562.86 | BA81: 2009-05-25 | BB81: 22.045 | BG81: 2021-09-22 | BH81: 2.448979592
B82: 2007-06-25 | C82: 11.19 | E82: 1990-09-19 | F82: 11.8 | H82: 2017-08-18 | I82: 21.72 | K82: 1991-05-14 | L82: 27.83333333 | N82: 2018-05-24 | O82: 16.08 | Q82: 2011-09-21 | R82: 9.476666667 | T82: 2019-05-14 | U82: 12.59 | W82: 2011-05-11 | X82: 44.45333333 | Z82: 2008-01-17 | AA82: 13.32 | AC82: 1992-10-27 | AD82: 8.343333333 | AF82: 2006-06-26 | AG82: 8.616666667 | AI82: 2005-10-18 | AJ82: 6.1 | AX82: 2009-01-27 | AY82: 510.19 | BA82: 2009-10-23 | BB82: 6.083333333 | BG82: 2021-10-05 | BH82: 1.6
B83: 2007-06-27 | C83: 11.77333333 | E83: 1990-10-05 | F83: 9.4 | H83: 2017-09-06 | I83: 25.24 | K83: 1991-05-28 | L83: 31.23333333 | N83: 2018-06-06 | O83: 16.86 | Q83: 2011-09-28 | R83: 9.406666667 | T83: 2019-05-31 | U83: 16.15 | W83: 2011-05-17 | X83: 10.06 | Z83: 2008-01-17 | AA83: 11.86 | AC83: 1992-11-04 | AD83: 9.8 | AF83: 2006-07-06 | AG83: 11.94 | AI83: 2005-10-18 | AJ83: 6.7 | BA83: 2011-05-11 | BB83: 39.61 | BG83: 2021-10-25 | BH83: 1.015228426
B84: 2007-07-01 | C84: 8.86 | E84: 1990-10-17 | F84: 12.03333333 | H84: 2017-09-21 | I84: 17.11 | K84: 1991-06-11 | L84: 17.4 | N84: 2018-06-20 | O84: 16.19 | Q84: 2011-10-05 | R84: 11.21 | T84: 2019-06-12 | U84: 17.52 | W84: 2011-05-25 | X84: 11.60333333 | Z84: 2008-01-17 | AA84: 11.07 | AC84: 1992-11-12 | AD84: 8.976666667 | AF84: 2006-07-10 | AG84: 13.29333333 | AI84: 2005-10-18 | AJ84: 6.7 | BA84: 2011-11-08 | BB84: 6.096666667 | BG84: 2021-11-10 | BH84: 1.3
B85: 2007-07-09 | C85: 14.30666667 | E85: 1990-10-31 | F85: 7.633333333 | H85: 2017-10-11 | I85: 15.18 | K85: 1991-06-25 | L85: 16.56666667 | N85: 2018-07-06 | O85: 18.09 | Q85: 2011-10-12 | R85: 19.15333333 | T85: 2019-06-25 | U85: 32.27 | W85: 2011-06-02 | X85: 11.56666667 | Z85: 2008-02-01 | AA85: 16.75 | AC85: 1992-11-18 | AD85: 8.566666667 | AF85: 2006-07-12 | AG85: 8.84 | AI85: 2005-11-07 | AJ85: 9.8 | BA85: 2012-05-02 | BB85: 12.62333333 | BG85: 2021-11-30 | BH85: 1.237113402
B86: 2007-07-11 | C86: 12.14333333 | E86: 1990-11-16 | F86: 9.3 | H86: 2017-10-30 | I86: 14.66 | K86: 1991-07-09 | L86: 45.93333333 | N86: 2018-07-30 | O86: 11.86 | Q86: 2011-10-21 | R86: 10.41 | T86: 2019-07-10 | U86: 18.65 | W86: 2011-06-08 | X86: 9.93 | Z86: 2008-02-01 | AA86: 18.04 | AC86: 1992-11-24 | AD86: 8.433333333 | AF86: 2006-07-19 | AG86: 8.55 | AI86: 2005-11-07 | AJ86: 11.1 | BA86: 2013-04-18 | BB86: 5.143333333 | BG86: 2021-12-16 | BH86: 2.8
B87: 2007-07-17 | C87: 10.83333333 | E87: 1990-11-21 | F87: 11.46666667 | H87: 2017-11-17 | I87: 15.44 | K87: 1991-07-23 | L87: 40.9 | N87: 2018-08-15 | O87: 12.18 | Q87: 2011-10-26 | R87: 11.77 | T87: 2019-07-24 | U87: 13.27 | W87: 2011-06-14 | X87: 8.586666667 | Z87: 2008-02-01 | AA87: 17.65 | AC87: 1992-12-01 | AD87: 5.533333333 | AF87: 2006-08-01 | AG87: 9.17 | AI87: 2005-11-07 | AJ87: 10.6 | BG87: 2021-12-29 | BH87: 1.224489796
B88: 2007-07-23 | C88: 11.22 | E88: 1990-12-05 | F88: 10.06666667 | H88: 2017-11-30 | I88: 18.51 | K88: 1991-08-06 | L88: 26.66666667 | N88: 2018-08-29 | O88: 22.78 | Q88: 2011-11-04 | R88: 7.53 | T88: 2019-08-07 | U88: 12.1 | W88: 2011-06-22 | X88: 14.67333333 | Z88: 2008-02-14 | AA88: 19.21 | AC88: 1992-12-08 | AD88: 6.59 | AF88: 2006-08-07 | AG88: 8.94 | AI88: 2005-11-29 | AJ88: 10.7 | BG88: 2022-01-21 | BH88: 2.828282828
B89: 2007-07-25 | C89: 11.10666667 | E89: 1991-01-09 | F89: 18.23333333 | H89: 2017-12-15 | I89: 16.85 | K89: 1991-08-20 | L89: 29.26666667 | N89: 2018-09-14 | O89: 9.97 | Q89: 2013-08-02 | R89: 23.76 | T89: 2019-08-30 | U89: 10.43 | W89: 2011-06-29 | X89: 9.006666667 | Z89: 2008-02-14 | AA89: 21.38 | AC89: 1992-12-15 | AD89: 9.533333333 | AF89: 2006-08-14 | AG89: 7.363333333 | AI89: 2005-11-29 | AJ89: 12 | BG89: 2022-02-02 | BH89: 5.5
B90: 2007-07-30 | C90: 9.82 | E90: 1991-02-01 | F90: 20.2 | H90: 2018-01-09 | I90: 21.27 | K90: 1991-09-03 | L90: 35 | N90: 2018-09-28 | O90: 9.76 | Q90: 2013-08-16 | R90: 12.81333333 | T90: 2019-09-27 | U90: 16.15 | W90: 2011-07-06 | X90: 13.40666667 | Z90: 2008-02-14 | AA90: 19.05 | AC90: 1992-12-22 | AD90: 8.2 | AF90: 2006-08-28 | AG90: 6.343333333 | AI90: 2005-11-29 | AJ90: 12 | BG90: 2022-02-18 | BH90: 7.878787879
B91: 2007-08-06 | C91: 11.45333333 | E91: 1991-02-06 | F91: 18.5 | H91: 2018-01-24 | I91: 20.12 | K91: 1991-09-17 | L91: 29 | N91: 2018-10-16 | O91: 10.43 | Q91: 2013-09-05 | R91: 12.42333333 | T91: 2019-10-15 | U91: 11.81 | W91: 2011-07-13 | X91: 12.04666667 | Z91: 2008-03-05 | AA91: 19.5 | AC91: 1993-01-12 | AD91: 6.666666667 | AF91: 2006-09-11 | AG91: 6.31 | AI91: 2006-05-16 | AJ91: 9.1 | BG91: 2022-03-09 | BH91: 10.1
B92: 2007-08-08 | C92: 9.693333333 | E92: 1991-02-08 | F92: 17.13333333 | H92: 2018-02-07 | I92: 14.96 | K92: 1991-10-01 | L92: 17.3 | N92: 2018-10-31 | O92: 8.86 | Q92: 2013-09-27 | R92: 12.99666667 | T92: 2019-10-29 | U92: 13.99 | W92: 2011-07-20 | X92: 9.61 | Z92: 2008-03-05 | AA92: 20.7 | AC92: 1993-01-26 | AD92: 6.6 | AF92: 2006-09-18 | AG92: 9.336666667 | AI92: 2006-05-16 | AJ92: 8.6 | BG92: 2022-03-23 | BH92: 7.6
B93: 2007-08-13 | C93: 12.28 | E93: 1991-02-19 | F93: 15.36666667 | H93: 2018-02-23 | I93: 22.17 | K93: 1991-10-15 | L93: 9.7 | N93: 2018-11-14 | O93: 13.68 | Q93: 2013-10-09 | R93: 13.67333333 | T93: 2019-11-13 | U93: 9.22 | W93: 2011-07-29 | X93: 19.49666667 | Z93: 2008-03-05 | AA93: 16.65 | AC93: 1993-02-09 | AD93: 7.066666667 | AF93: 2006-09-21 | AG93: 6.286666667 | AI93: 2006-05-16 | AJ93: 7.9 | BG93: 2022-04-06 | BH93: 8.2
B94: 2007-08-20 | C94: 12.35 | E94: 1991-03-05 | F94: 20.73333333 | H94: 2018-04-06 | I94: 13.7 | K94: 1991-11-05 | L94: 19.83333333 | N94: 2018-11-30 | O94: 9.95 | Q94: 2013-10-23 | R94: 12.70333333 | T94: 2019-11-26 | U94: 12.86 | W94: 2011-08-03 | X94: 15.23 | Z94: 2008-03-19 | AA94: 4.96 | AC94: 1993-02-23 | AD94: 8.043333333 | AF94: 2006-09-25 | AG94: 5.88 | AI94: 2006-06-12 | AJ94: 9.2 | BG94: 2022-04-29 | BH94: 2.857142857
B95: 2007-08-22 | C95: 9.856666667 | E95: 1991-03-19 | F95: 19.16666667 | H95: 2018-04-24 | I95: 14.74 | K95: 1991-11-19 | L95: 12.83333333 | N95: 2018-12-12 | O95: 16.22 | Q95: 2013-11-19 | R95: 12.28333333 | T95: 2019-12-13 | U95: 15.33 | W95: 2011-08-10 | X95: 16.97333333 | Z95: 2008-03-19 | AA95: 4.95 | AC95: 1993-03-09 | AD95: 7.233333333 | AF95: 2006-10-02 | AG95: 16.16 | AI95: 2006-06-12 | AJ95: 8.6 | BG95: 2022-05-11 | BH95: 5.204081633
B96: 2007-08-27 | C96: 11.46666667 | E96: 1991-04-02 | F96: 17.63333333 | H96: 2018-05-08 | I96: 10.43 | K96: 1991-12-10 | L96: 13.43333333 | N96: 2018-12-27 | O96: 11.08 | Q96: 2013-12-13 | R96: 28.91333333 | T96: 2020-01-09 | U96: 15.86 | W96: 2011-08-17 | X96: 14.09 | Z96: 2008-04-02 | AA96: 20.83 | AC96: 1993-03-23 | AD96: 6.166666667 | AF96: 2006-10-10 | AG96: 4.49 | AI96: 2006-06-12 | AJ96: 8 | BG96: 2022-05-27 | BH96: 3.4375
B97: 2007-09-04 | C97: 8.81 | E97: 1991-04-09 | F97: 31.9 | H97: 2018-05-24 | I97: 9.12 | K97: 1992-01-17 | L97: 9.766666667 | N97: 2019-01-18 | O97: 19.24 | Q97: 2016-08-09 | R97: 13.75 | T97: 2020-01-24 | U97: 20.6 | W97: 2011-08-24 | X97: 15.26666667 | Z97: 2008-04-02 | AA97: 21.84 | AC97: 1993-04-21 | AD97: 8.233333333 | AF97: 2006-10-24 | AG97: 6.41 | AI97: 2006-07-11 | AJ97: 17.3
B98: 2007-09-05 | C98: 8.113333333 | E98: 1991-04-16 | F98: 21.8 | H98: 2018-06-06 | I98: 10.05 | K98: 1992-01-28 | L98: 11.3 | N98: 2019-02-04 | O98: 25.64 | Q98: 2016-09-16 | R98: 12.58 | T98: 2020-02-07 | U98: 19.9 | W98: 2011-09-01 | X98: 8.95 | Z98: 2008-04-02 | AA98: 21.79 | AC98: 1993-05-04 | AD98: 10.86666667 | AF98: 2007-03-24 | AG98: 11.84333333 | AI98: 2006-07-11 | AJ98: 16.5
B99: 2007-09-10 | C99: 11.96 | E99: 1991-05-03 | F99: 16.96666667 | H99: 2018-06-20 | I99: 10.38 | K99: 1992-02-18 | L99: 17.9 | N99: 2019-02-27 | O99: 23.35 | Q99: 2016-09-27 | R99: 11.16 | T99: 2020-02-27 | U99: 18.4 | W99: 2011-09-07 | X99: 8.64 | Z99: 2008-04-16 | AA99: 11 | AC99: 1993-05-18 | AD99: 7.3 | AF99: 2007-05-14 | AG99: 16.24666667 | AI99: 2006-07-11 | AJ99: 16.3
B100: 2007-09-17 | C100: 9.85 | E100: 1991-05-14 | F100: 19 | H100: 2018-07-06 | I100: 15.12 | K100: 1992-03-13 | L100: 14.83333333 | N100: 2019-03-13 | O100: 17.8 | Q100: 2016-10-14 | R100: 12.4 | T100: 2020-03-11 | U100: 21.8 | W100: 2011-09-13 | X100: 8.13 | Z100: 2008-04-16 | AA100: 11.1 | AC100: 1993-06-01 | AD100: 7.8 | AF100: 2007-05-21 | AG100: 5.093333333 | AI100: 2006-09-19 | AJ100: 12.6
B101: 2007-09-24 | C101: 30.28333333 | E101: 1991-05-28 | F101: 26.66666667 | H101: 2018-07-30 | I101: 15.1 | K101: 1992-04-09 | L101: 20.06666667 | N101: 2019-03-26 | O101: 11.89 | Q101: 2016-10-26 | R101: 10.5 | T101: 2020-03-27 | U101: 16.74 | W101: 2011-09-21 | X101: 9.266666667 | Z101: 2008-04-16 | AA101: 10.84 | AC101: 1993-06-15 | AD101: 9.566666667 | AF101: 2007-05-29 | AG101: 5.546666667 | AI101: 2006-09-19 | AJ101: 11.8
B102: 2007-09-26 | C102: 9.64 | E102: 1991-06-11 | F102: 19.06666667 | H102: 2018-08-15 | I102: 13.58 | K102: 1992-04-14 | L102: 11.8 | N102: 2019-04-12 | O102: 17.36 | Q102: 2016-11-16 | R102: 7.96 | T102: 2020-04-07 | U102: 18.75 | W102: 2011-09-28 | X102: 8.165 | Z102: 2008-04-30 | AA102: 9.84 | AC102: 1993-06-29 | AD102: 6.166666667 | AF102: 2007-06-11 | AG102: 8.003333333 | AI102: 2006-09-19 | AJ102: 12.5
B103: 2007-10-01 | C103: 9.176666667 | E103: 1991-06-25 | F103: 14.13333333 | H103: 2018-08-29 | I103: 28.59 | K103: 1992-04-28 | L103: 14.76666667 | N103: 2019-04-30 | O103: 15.14 | Q103: 2016-12-13 | R103: 9.24 | T103: 2020-04-24 | U103: 13.76 | W103: 2011-10-05 | X103: 10.32333333 | Z103: 2008-04-30 | AA103: 11.28 | AC103: 1993-07-13 | AD103: 4.556666667 | AF103: 2007-06-18 | AG103: 8.076666667 | AI103: 2006-10-24 | AJ103: 6.7
B104: 2007-10-10 | C104: 7.583333333 | E104: 1991-07-09 | F104: 14.93333333 | H104: 2018-09-14 | I104: 14.51 | K104: 1992-05-12 | L104: 39.56666667 | N104: 2019-05-14 | O104: 13.8 | Q104: 2016-12-28 | R104: 11.82 | T104: 2020-05-15 | U104: 13.06 | W104: 2011-10-12 | X104: 16.50666667 | Z104: 2008-04-30 | AA104: 9.34 | AC104: 1993-07-27 | AD104: 7.066666667 | AF104: 2007-06-25 | AG104: 8.853333333 | AI104: 2006-10-24 | AJ104: 7.2
B105: 2007-10-15 | C105: 10.61 | E105: 1991-07-23 | F105: 19.13333333 | H105: 2018-09-28 | I105: 15.26 | K105: 1992-05-26 | L105: 14.26666667 | N105: 2019-05-31 | O105: 19.66 | Q105: 2017-01-18 | R105: 10.52 | T105: 2020-05-29 | U105: 18.22 | W105: 2011-10-21 | X105: 13.23333333 | Z105: 2008-05-15 | AA105: 7.31 | AC105: 1993-08-10 | AD105: 5.6 | AF105: 2011-11-04 | AG105: 7.73 | AI105: 2006-10-24 | AJ105: 6.5
B106: 2007-10-22 | C106: 7.976666667 | E106: 1991-08-06 | F106: 12 | H106: 2018-10-16 | I106: 11.88 | K106: 1992-06-09 | L106: 16.06666667 | N106: 2019-06-12 | O106: 18.18 | Q106: 2017-01-31 | R106: 9.7 | T106: 2020-06-12 | U106: 18.54 | W106: 2011-10-26 | X106: 11.18666667 | Z106: 2008-05-15 | AA106: 7.27 | AC106: 1993-08-24 | AD106: 3.9 | AF106: 2013-08-02 | AG106: 14.53333333 | AI106: 2013-03-24 | AJ106: 18
B107: 2007-10-24 | C107: 8.383333333 | E107: 1991-08-20 | F107: 9.933333333 | H107: 2018-10-31 | I107: 10.89 | K107: 1992-06-19 | L107: 24.76666667 | N107: 2019-06-25 | O107: 27.61 | Q107: 2017-02-17 | R107: 12.44 | T107: 2020-07-10 | U107: 135.02 | W107: 2011-11-04 | X107: 7.556666667 | Z107: 2008-05-15 | AA107: 8.21 | AC107: 1993-09-07 | AD107: 4.266666667 | AF107: 2013-08-16 | AG107: 12.07333333 | AI107: 2013-03-24 | AJ107: 17.1
B108: 2007-10-29 | C108: 7.796666667 | E108: 1991-09-03 | F108: 13.83333333 | H108: 2018-11-14 | I108: 13.68 | K108: 1992-07-21 | L108: 17.6 | N108: 2019-07-10 | O108: 19.43 | Q108: 2017-02-28 | R108: 10.63 | T108: 2020-07-24 | U108: 10.32 | W108: 2013-08-02 | X108: 14.53333333 | Z108: 2008-05-23 | AA108: 9.58 | AC108: 1993-09-21 | AD108: 5.333333333 | AF108: 2013-09-05 | AG108: 12.11666667 | AI108: 2013-03-24 | AJ108: 18.8
B109: 2007-11-07 | C109: 8.87 | E109: 1991-09-17 | F109: 15.5 | H109: 2018-11-30 | I109: 13.19 | K109: 1992-08-04 | L109: 17.06666667 | N109: 2019-07-24 | O109: 15.92 | Q109: 2017-03-15 | R109: 10.94 | T109: 2020-08-07 | U109: 12.88 | W109: 2013-08-16 | X109: 12.07333333 | Z109: 2008-05-23 | AA109: 8.76 | AC109: 1993-10-05 | AD109: 7.726666667 | AF109: 2013-09-27 | AG109: 12.81333333 | AI109: 2013-05-22 | AJ109: 13.5
B110: 2007-11-19 | C110: 7.406666667 | E110: 1991-10-15 | F110: 6.033333333 | H110: 2018-12-12 | I110: 14.49 | K110: 1992-09-01 | L110: 13.56666667 | N110: 2019-08-07 | O110: 11.56 | Q110: 2017-03-29 | R110: 14.85 | T110: 2020-09-15 | U110: 13.5 | W110: 2013-09-05 | X110: 12.11666667 | Z110: 2008-05-23 | AA110: 8.47 | AC110: 1993-10-19 | AD110: 8.49 | AF110: 2013-10-09 | AG110: 13.55333333 | AI110: 2013-05-22 | AJ110: 16.1
B111: 2007-12-05 | C111: 9.36 | E111: 1991-11-05 | F111: 9.266666667 | H111: 2018-12-27 | I111: 14.02 | K111: 1992-09-22 | L111: 20.56666667 | N111: 2019-08-30 | O111: 8.57 | Q111: 2017-04-18 | R111: 12.43 | T111: 2020-09-29 | U111: 12.71 | W111: 2013-09-27 | X111: 12.81333333 | Z111: 2008-06-04 | AA111: 6.79 | AC111: 1993-11-02 | AD111: 9.903333333 | AF111: 2013-10-23 | AG111: 11.90333333 | AI111: 2013-05-22 | AJ111: 14.4
B112: 2007-12-19 | C112: 9.043333333 | E112: 1991-11-19 | F112: 12.16666667 | H112: 2019-01-18 | I112: 20.16 | K112: 1992-09-29 | L112: 14.53333333 | N112: 2019-09-11 | O112: 14.17 | Q112: 2017-05-03 | R112: 14.54 | T112: 2020-10-14 | U112: 7.9 | W112: 2013-10-09 | X112: 13.55333333 | Z112: 2008-06-04 | AA112: 6.2 | AC112: 1993-11-17 | AD112: 9.233333333 | AF112: 2013-11-19 | AG112: 12.47 | AI112: 2013-06-05 | AJ112: 20.2
B113: 2008-01-03 | C113: 10.31 | E113: 1991-12-10 | F113: 14.03333333 | H113: 2019-02-04 | I113: 21.43 | K113: 1992-10-06 | L113: 9.766666667 | N113: 2019-09-27 | O113: 11.09 | Q113: 2017-05-22 | R113: 14.57 | T113: 2020-11-03 | U113: 6.26 | W113: 2013-10-23 | X113: 11.90333333 | Z113: 2008-06-04 | AA113: 6.01 | AC113: 1993-11-30 | AD113: 9.266666667 | AI113: 2013-06-05 | AJ113: 21.1
B114: 2008-01-17 | C114: 9.943333333 | E114: 1992-01-17 | F114: 17.53333333 | H114: 2019-02-27 | I114: 13.4 | K114: 1992-10-13 | L114: 11.73333333 | N114: 2019-10-15 | O114: 10.5 | Q114: 2017-06-06 | R114: 15.6 | T114: 2020-11-19 | U114: 9.32 | W114: 2013-11-19 | X114: 12.47 | Z114: 2008-06-20 | AA114: 7.38 | AC114: 1993-12-14 | AD114: 6.2 | AI114: 2013-06-05 | AJ114: 20
B115: 2008-02-01 | C115: 11.37 | E115: 1992-01-28 | F115: 16.8 | H115: 2019-03-13 | I115: 17.75 | K115: 1992-10-21 | L115: 9.2 | N115: 2019-10-29 | O115: 12.33 | Q115: 2017-06-19 | R115: 15.52 | T115: 2020-12-04 | U115: 8.02 | W115: 2013-12-13 | X115: 13.07666667 | Z115: 2008-06-20 | AA115: 6.53 | AC115: 1994-01-04 | AD115: 6.266666667 | AI115: 2013-06-18 | AJ115: 21.9
B116: 2008-02-14 | C116: 11.43666667 | E116: 1992-02-18 | F116: 14.73333333 | H116: 2019-03-26 | I116: 15.76 | K116: 1992-10-27 | L116: 10.03333333 | N116: 2019-11-13 | O116: 13.56 | Q116: 2017-07-05 | R116: 10.73 | T116: 2020-12-17 | U116: 10.36 | W116: 2016-09-16 | X116: 10.74 | Z116: 2008-06-20 | AA116: 6.59 | AC116: 1994-01-21 | AD116: 12.36666667 | AI116: 2013-06-18 | AJ116: 21.5
B117: 2008-03-05 | C117: 10.27666667 | E117: 1992-03-13 | F117: 20.83333333 | H117: 2019-04-12 | I117: 21.5 | K117: 1992-11-04 | L117: 11.7 | N117: 2019-11-26 | O117: 11.91 | Q117: 2017-07-20 | R117: 15.34 | T117: 2021-01-05 | U117: 12.51 | W117: 2016-09-27 | X117: 12.39 | Z117: 2008-07-01 | AA117: 6.32 | AC117: 1994-02-01 | AD117: 7.463333333 | AI117: 2013-06-18 | AJ117: 23.7
B118: 2008-03-19 | C118: 7.163333333 | E118: 1992-04-09 | F118: 16.43333333 | H118: 2019-04-30 | I118: 9.94 | K118: 1992-11-12 | L118: 15.7 | N118: 2019-12-13 | O118: 16.33 | Q118: 2017-08-01 | R118: 19.16 | T118: 2021-01-21 | U118: 14.87 | W118: 2016-10-14 | X118: 12.34 | Z118: 2008-07-01 | AA118: 6.28 | AC118: 1994-02-15 | AD118: 5.91 | AI118: 2013-07-03 | AJ118: 35.8
B119: 2008-04-02 | C119: 18.42333333 | E119: 1992-04-14 | F119: 14.13333333 | H119: 2019-05-14 | I119: 9.44 | K119: 1992-11-18 | L119: 12.66666667 | N119: 2020-01-09 | O119: 22.37 | Q119: 2017-08-18 | R119: 15.93 | T119: 2021-02-04 | U119: 10.81 | W119: 2016-10-26 | X119: 10.56 | Z119: 2008-07-01 | AA119: 5.79 | AC119: 1994-03-01 | AD119: 7.416666667 | AI119: 2013-07-03 | AJ119: 41.9
B120: 2008-04-16 | C120: 11.08333333 | E120: 1992-04-28 | F120: 16.76666667 | H120: 2019-05-31 | I120: 15.85 | K120: 1992-11-24 | L120: 10 | N120: 2020-01-24 | O120: 18.9 | Q120: 2017-09-06 | R120: 9.57 | T120: 2021-02-24 | U120: 12.44 | W120: 2016-11-16 | X120: 9.43 | Z120: 2008-07-17 | AA120: 11.73 | AC120: 1994-03-15 | AD120: 7.19 | AI120: 2013-07-03 | AJ120: 39.9
B121: 2008-04-30 | C121: 12.07666667 | E121: 1992-05-12 | F121: 16.33333333 | H121: 2019-06-12 | I121: 14.91 | K121: 1992-12-01 | L121: 5.666666667 | N121: 2020-02-07 | O121: 18.49 | Q121: 2017-09-21 | R121: 8.86 | T121: 2021-03-09 | U121: 13.82 | W121: 2016-12-13 | X121: 8.44 | Z121: 2008-07-17 | AA121: 11.08 | AC121: 1994-04-05 | AD121: 6.833333333 | AI121: 2013-07-07 | AJ121: 28.5
B122: 2008-05-15 | C122: 11.94 | E122: 1992-05-26 | F122: 15.76666667 | H122: 2019-06-25 | I122: 23.43 | K122: 1992-12-08 | L122: 9.9 | N122: 2020-02-27 | O122: 14.36 | Q122: 2017-10-11 | R122: 10.09 | T122: 2021-03-23 | U122: 10.8 | W122: 2016-12-28 | X122: 10.75 | Z122: 2008-07-17 | AA122: 11.98 | AC122: 1994-04-19 | AD122: 4.833333333 | AI122: 2013-07-07 | AJ122: 37.5
B123: 2008-05-23 | C123: 10.89 | E123: 1992-06-09 | F123: 18.3 | H123: 2019-07-10 | I123: 16.16 | K123: 1992-12-15 | L123: 9.7 | N123: 2020-03-11 | O123: 17.18 | Q123: 2017-10-30 | R123: 11.46 | T123: 2021-04-07 | U123: 9.13 | W123: 2017-01-18 | X123: 11.49 | Z123: 2008-07-30 | AA123: 15.1 | AC123: 1994-05-03 | AD123: 7.8 | AI123: 2013-07-07 | AJ123: 39.1
B124: 2008-06-04 | C124: 11.66 | E124: 1992-06-19 | F124: 18.1 | H124: 2019-07-24 | I124: 17.6 | K124: 1992-12-22 | L124: 6.733333333 | N124: 2020-03-27 | O124: 12.94 | Q124: 2017-11-17 | R124: 9.49 | T124: 2021-04-19 | U124: 12.63 | W124: 2017-01-31 | X124: 9.07 | Z124: 2008-07-30 | AA124: 15.25 | AC124: 1994-05-17 | AD124: 8.843333333
B125: 2008-06-20 | C125: 12.11666667 | E125: 1992-07-21 | F125: 10.4 | H125: 2019-08-07 | I125: 15.63 | K125: 1993-01-12 | L125: 9.566666667 | N125: 2020-04-07 | O125: 13.85 | Q125: 2017-11-30 | R125: 8.57 | T125: 2021-05-05 | U125: 16.79 | W125: 2017-02-17 | X125: 11.04 | Z125: 2008-07-30 | AA125: 15.24 | AC125: 1999-05-18 | AD125: 9.466666667
B126: 2008-07-01 | C126: 10.88666667 | E126: 1992-08-04 | F126: 10.1 | H126: 2019-08-30 | I126: 13.71 | K126: 1993-01-26 | L126: 10.43333333 | N126: 2020-04-24 | O126: 14.4 | Q126: 2017-12-15 | R126: 10.7 | T126: 2021-05-26 | U126: 18.19 | W126: 2017-02-28 | X126: 10.11 | Z126: 2008-08-14 | AA126: 8.49 | AC126: 2002-01-22 | AD126: 8.133333333
B127: 2008-07-17 | C127: 8.116666667 | E127: 1992-08-18 | F127: 9.133333333 | H127: 2019-09-11 | I127: 14.95 | K127: 1993-02-09 | L127: 8.933333333 | N127: 2020-05-15 | O127: 13.81 | Q127: 2018-01-09 | R127: 12.92 | T127: 2021-06-08 | U127: 19.22 | W127: 2017-03-15 | X127: 10.04 | Z127: 2008-08-14 | AA127: 8.9 | AC127: 2002-02-05 | AD127: 7.2
B128: 2008-07-30 | C128: 13.05666667 | E128: 1992-09-01 | F128: 9.266666667 | H128: 2019-09-27 | I128: 18 | K128: 1993-02-23 | L128: 9.966666667 | N128: 2020-05-29 | O128: 19.84 | Q128: 2018-01-24 | R128: 13.09 | T128: 2021-06-28 | U128: 18.82 | W128: 2017-03-29 | X128: 15.39 | Z128: 2008-08-14 | AA128: 7.43 | AC128: 2002-02-19 | AD128: 6.566666667
B129: 2008-08-14 | C129: 8.706666667 | E129: 1992-09-22 | F129: 10.03333333 | H129: 2019-10-15 | I129: 12.29 | K129: 1993-03-09 | L129: 10.93333333 | N129: 2020-06-12 | O129: 16.52 | Q129: 2018-02-07 | R129: 13.83 | T129: 2021-07-12 | U129: 11.98 | W129: 2017-04-18 | X129: 11.59 | Z129: 2008-08-27 | AA129: 9.79 | AC129: 2002-03-05 | AD129: 6.6
B130: 2008-08-27 | C130: 10.35333333 | E130: 1992-09-29 | F130: 8.433333333 | H130: 2019-10-29 | I130: 15.18 | K130: 1993-03-23 | L130: 7.466666667 | N130: 2020-07-10 | O130: 31.86 | Q130: 2018-02-23 | R130: 9.85 | T130: 2021-07-28 | U130: 11.77 | W130: 2017-05-03 | X130: 13.46 | Z130: 2008-08-27 | AA130: 10.17 | AC130: 2002-03-19 | AD130: 7.033333333
B131: 2008-09-10 | C131: 9.113333333 | E131: 1992-10-06 | F131: 5.066666667 | H131: 2019-11-13 | I131: 13.97 | K131: 1993-04-21 | L131: 11.5 | N131: 2020-07-24 | O131: 11.82 | Q131: 2018-04-06 | R131: 10.45 | T131: 2021-08-16 | U131: 9.45 | W131: 2017-05-22 | X131: 15.23 | Z131: 2008-08-27 | AA131: 10.19 | AC131: 2002-04-02 | AD131: 8.723333333
B132: 2008-09-23 | C132: 24.89333333 | E132: 1992-10-13 | F132: 7.866666667 | H132: 2019-11-26 | I132: 14.75 | K132: 1993-05-04 | L132: 16.83333333 | N132: 2020-08-07 | O132: 11.61 | Q132: 2018-04-24 | R132: 14.57 | T132: 2021-08-31 | U132: 11.02 | W132: 2017-06-06 | X132: 17.16 | Z132: 2008-09-10 | AA132: 10.59 | AC132: 2002-04-16 | AD132: 11.56333333
B133: 2008-10-09 | C133: 7.333333333 | E133: 1992-10-21 | F133: 8.6 | H133: 2019-12-13 | I133: 16.33 | K133: 1993-05-18 | L133: 12.83333333 | N133: 2020-09-15 | O133: 13.5 | Q133: 2018-05-08 | R133: 15.85 | T133: 2021-09-22 | U133: 10.92 | W133: 2017-06-19 | X133: 16.78 | Z133: 2008-09-10 | AA133: 11 | AC133: 2002-04-30 | AD133: 11.37333333
B134: 2008-10-15 | C134: 5.993333333 | E134: 1992-10-27 | F134: 6.766666667 | H134: 2020-01-09 | I134: 16.44 | K134: 1993-06-01 | L134: 12.36666667 | N134: 2020-09-29 | O134: 11.27 | Q134: 2018-05-24 | R134: 14.75 | W134: 2017-07-05 | X134: 11.86 | Z134: 2008-09-10 | AA134: 10.02 | AC134: 2002-05-14 | AD134: 9.326666667
B135: 2008-10-30 | C135: 7.856666667 | E135: 1992-11-04 | F135: 9.9 | H135: 2020-01-24 | I135: 16.2 | K135: 1993-06-15 | L135: 23.5 | N135: 2020-10-14 | O135: 10.62 | Q135: 2018-06-06 | R135: 16.75 | W135: 2017-07-20 | X135: 17.13 | Z135: 2008-10-09 | AA135: 7.02 | AC135: 2002-05-28 | AD135: 12.80333333
B136: 2008-11-12 | C136: 7.743333333 | E136: 1992-11-12 | F136: 17.3 | H136: 2020-02-07 | I136: 15.45 | K136: 1993-06-29 | L136: 14.33333333 | N136: 2020-11-03 | O136: 10.89 | Q136: 2018-06-20 | R136: 12.88 | W136: 2017-08-01 | X136: 17.02 | Z136: 2008-10-09 | AA136: 5.41 | AC136: 2002-06-14 | AD136: 11.26666667
B137: 2008-11-26 | C137: 9.62 | E137: 1992-11-18 | F137: 11.46666667 | H137: 2020-02-27 | I137: 12.92 | K137: 1993-07-13 | L137: 15.86666667 | N137: 2020-11-19 | O137: 9.95 | Q137: 2018-07-06 | R137: 15.88 | W137: 2017-08-18 | X137: 14.98 | Z137: 2008-10-09 | AA137: 6.14 | AC137: 2002-06-25 | AD137: 9.253333333
B138: 2008-12-10 | C138: 9.16 | E138: 1992-11-24 | F138: 12.2 | H138: 2020-03-11 | I138: 17.18 | K138: 1993-07-27 | L138: 19.43333333 | N138: 2020-12-04 | O138: 9.89 | Q138: 2018-07-30 | R138: 13.17 | W138: 2017-09-06 | X138: 10.58 | Z138: 2008-10-15 | AA138: 5.77 | AC138: 2002-07-09 | AD138: 8.736666667
B139: 2008-12-23 | C139: 7.836666667 | E139: 1992-12-01 | F139: 7.166666667 | H139: 2020-03-27 | I139: 13.17 | K139: 1993-08-10 | L139: 15.73333333 | N139: 2020-12-17 | O139: 14.43 | Q139: 2018-08-15 | R139: 13.82 | W139: 2017-09-21 | X139: 10.86 | Z139: 2008-10-15 | AA139: 5.07 | AC139: 2002-07-23 | AD139: 14.72333333
B140: 2009-01-07 | C140: 13.30333333 | E140: 1992-12-08 | F140: 11.4 | H140: 2020-04-07 | I140: 13.39 | K140: 1993-08-24 | L140: 15.6 | N140: 2021-01-05 | O140: 17.67 | Q140: 2018-08-29 | R140: 23.48 | W140: 2017-10-11 | X140: 10.86 | Z140: 2008-10-15 | AA140: 4.46 | AC140: 2002-08-06 | AD140: 4.44
B141: 2009-01-27 | C141: 11.64666667 | E141: 1992-12-15 | F141: 15.4 | H141: 2020-04-24 | I141: 12.72 | K141: 1993-09-07 | L141: 9.466666667 | N141: 2021-01-21 | O141: 17.6 | Q141: 2018-09-14 | R141: 11.48 | W141: 2017-10-30 | X141: 10.87 | Z141: 2008-10-30 | AA141: 6.14 | AC141: 2002-08-20 | AD141: 7.12
B142: 2009-02-11 | C142: 9.773333333 | E142: 1992-12-22 | F142: 13.56666667 | H142: 2020-05-15 | I142: 11.43 | K142: 1993-09-21 | L142: 18.93333333 | N142: 2021-02-04 | O142: 24.31 | Q142: 2018-09-28 | R142: 12.6 | W142: 2017-11-17 | X142: 10.2 | Z142: 2008-10-30 | AA142: 7.06 | AC142: 2002-08-28 | AD142: 6.826666667
B143: 2009-02-26 | C143: 10.36 | E143: 1993-01-12 | F143: 17.73333333 | H143: 2020-05-29 | I143: 15.79 | K143: 1993-10-05 | L143: 15 | N143: 2021-02-24 | O143: 16.56 | Q143: 2018-10-16 | R143: 13.8 | W143: 2017-11-30 | X143: 7.45 | Z143: 2008-10-30 | AA143: 5.86 | AC143: 2002-09-03 | AD143: 6.713333333
B144: 2009-03-12 | C144: 7.55 | E144: 1993-01-26 | F144: 18.06666667 | H144: 2020-06-12 | I144: 13.86 | K144: 1993-10-19 | L144: 15.36666667 | N144: 2021-03-09 | O144: 15.93 | Q144: 2018-10-31 | R144: 9.5 | W144: 2017-12-15 | X144: 9.81 | Z144: 2008-11-12 | AA144: 8.02 | AC144: 2002-09-17 | AD144: 6.48
B145: 2009-03-25 | C145: 7.84 | E145: 1993-02-09 | F145: 19.56666667 | H145: 2020-07-10 | I145: 24.23 | K145: 1993-11-02 | L145: 9.266666667 | N145: 2021-03-23 | O145: 14.4 | Q145: 2018-11-14 | R145: 11.07 | W145: 2018-01-09 | X145: 11.8 | Z145: 2008-11-12 | AA145: 7.74 | AC145: 2002-10-02 | AD145: 6.086666667
B146: 2009-04-09 | C146: 10.31666667 | E146: 1993-02-23 | F146: 16.8 | H146: 2020-07-24 | I146: 14.19 | K146: 1993-11-17 | L146: 12.86666667 | N146: 2021-04-07 | O146: 16.97 | Q146: 2018-11-30 | R146: 7.99 | W146: 2018-01-24 | X146: 11.67 | Z146: 2008-11-12 | AA146: 8.51 | AC146: 2002-10-15 | AD146: 6.38
B147: 2009-04-16 | C147: 10.41 | E147: 1993-03-09 | F147: 12.06666667 | H147: 2020-08-07 | I147: 16.98 | K147: 1993-11-30 | L147: 8.6 | N147: 2021-04-19 | O147: 17.35 | Q147: 2018-12-12 | R147: 9.69 | W147: 2018-02-07 | X147: 13.47 | Z147: 2008-11-26 | AA147: 7.56 | AC147: 2002-10-30 | AD147: 7.943333333
B148: 2009-04-30 | C148: 8.826666667 | E148: 1993-03-23 | F148: 11.96666667 | H148: 2020-09-15 | I148: 17.66 | K148: 1993-12-14 | L148: 8.6 | N148: 2021-05-05 | O148: 18.34 | Q148: 2018-12-27 | R148: 9.23 | W148: 2018-02-23 | X148: 10.44 | Z148: 2008-11-26 | AA148: 8.27 | AC148: 2002-11-13 | AD148: 6.28
B149: 2009-05-14 | C149: 12.44333333 | E149: 1993-04-21 | F149: 19 | H149: 2020-09-29 | I149: 14.21 | K149: 1994-01-04 | L149: 6.966666667 | N149: 2021-05-26 | O149: 17.96 | Q149: 2019-01-18 | R149: 9.77 | W149: 2018-04-06 | X149: 11.79 | Z149: 2008-11-26 | AA149: 9.09 | AC149: 2002-11-27 | AD149: 7.306666667
B150: 2009-05-28 | C150: 16.42333333 | E150: 1993-05-04 | F150: 19.7 | H150: 2020-10-14 | I150: 14.84 | K150: 1994-01-21 | L150: 72.46666667 | N150: 2021-06-08 | O150: 17.27 | Q150: 2019-02-04 | R150: 15.37 | W150: 2018-04-24 | X150: 12.83 | Z150: 2008-12-10 | AA150: 11.31 | AC150: 2003-02-06 | AD150: 5.55
B151: 2009-06-12 | C151: 20.29666667 | E151: 1993-05-18 | F151: 11.33333333 | H151: 2020-11-03 | I151: 12.86 | K151: 1994-02-01 | L151: 10.56666667 | N151: 2021-06-28 | O151: 21.83 | Q151: 2019-02-27 | R151: 12.92 | W151: 2018-05-08 | X151: 15.21 | Z151: 2008-12-10 | AA151: 9.92 | AC151: 2003-03-12 | AD151: 10.52666667
B152: 2009-06-24 | C152: 11.41666667 | E152: 1993-06-01 | F152: 13.16666667 | H152: 2020-11-19 | I152: 16.79 | K152: 1994-02-15 | L152: 8.733333333 | N152: 2021-07-12 | O152: 15.75 | Q152: 2019-03-13 | R152: 11.43 | W152: 2018-05-24 | X152: 13.82 | Z152: 2008-12-10 | AA152: 9.73 | AC152: 2003-03-26 | AD152: 8.673333333
B153: 2009-07-09 | C153: 10.09666667 | E153: 1993-06-15 | F153: 15.66666667 | H153: 2020-12-04 | I153: 15.51 | K153: 1994-03-01 | L153: 11.4 | N153: 2021-07-28 | O153: 13.05 | Q153: 2019-03-26 | R153: 9.6 | W153: 2018-06-06 | X153: 13.43 | Z153: 2008-12-23 | AA153: 32.62 | AC153: 2003-04-09 | AD153: 12.67
B154: 2009-07-29 | C154: 9.683333333 | E154: 1993-06-29 | F154: 13.93333333 | H154: 2020-12-17 | I154: 21.21 | K154: 1994-03-15 | L154: 10.2 | N154: 2021-08-16 | O154: 9.91 | Q154: 2019-04-12 | R154: 16.7 | W154: 2018-06-20 | X154: 12 | Z154: 2008-12-23 | AA154: 32.02 | AC154: 2003-04-24 | AD154: 9.586666667
B155: 2009-08-05 | C155: 10.99333333 | E155: 1993-07-13 | F155: 22.13333333 | H155: 2021-01-05 | I155: 17.61 | K155: 1994-04-05 | L155: 9.7 | N155: 2021-08-31 | O155: 10.38 | Q155: 2019-04-30 | R155: 13.26 | W155: 2018-07-06 | X155: 15.18 | Z155: 2008-12-23 | AA155: 31.4 | AC155: 2003-05-09 | AD155: 9.78
B156: 2009-08-19 | C156: 11.06333333 | E156: 1993-07-27 | F156: 15.16666667 | H156: 2021-01-21 | I156: 19.4 | K156: 1994-04-19 | L156: 11.4 | N156: 2021-09-22 | O156: 9.7 | Q156: 2019-05-14 | R156: 13.31 | W156: 2018-07-30 | X156: 12.76 | Z156: 2009-01-07 | AA156: 13.27 | AC156: 2003-05-22 | AD156: 10.11333333
B157: 2009-09-02 | C157: 10.98333333 | E157: 1993-08-10 | F157: 10.6 | H157: 2021-02-04 | I157: 17.83 | K157: 1994-05-03 | L157: 11.46666667 | Q157: 2019-05-31 | R157: 17.54 | W157: 2018-08-15 | X157: 15.39 | Z157: 2009-01-07 | AA157: 12.85 | AC157: 2003-06-05 | AD157: 6.47
B158: 2009-09-22 | C158: 8.75 | E158: 1993-08-24 | F158: 10.63333333 | H158: 2021-02-24 | I158: 15.45 | K158: 1994-05-17 | L158: 11.56666667 | Q158: 2019-06-12 | R158: 15.64 | W158: 2018-08-29 | X158: 22.55 | Z158: 2009-01-07 | AA158: 13.25 | AC158: 2003-06-18 | AD158: 15.52
B159: 2009-10-07 | C159: 9.82 | E159: 1993-09-07 | F159: 7.166666667 | H159: 2021-03-09 | I159: 16.39 | K159: 1996-03-19 | L159: 12.6 | Q159: 2019-06-25 | R159: 22.58 | W159: 2018-09-14 | X159: 11.25 | Z159: 2009-01-27 | AA159: 21.11 | AC159: 2003-07-02 | AD159: 24.96666667
B160: 2009-10-21 | C160: 7.573333333 | E160: 1993-09-21 | F160: 11.46666667 | H160: 2021-03-23 | I160: 15.54 | K160: 1996-04-16 | L160: 16.9 | Q160: 2019-07-10 | R160: 20.4 | W160: 2018-09-28 | X160: 11.21 | Z160: 2009-01-27 | AA160: 19.07 | AC160: 2003-07-18 | AD160: 41.23666667
B161: 2009-11-04 | C161: 8.633333333 | E161: 1993-10-05 | F161: 8 | H161: 2021-04-07 | I161: 14.66 | K161: 1996-04-23 | L161: 14.83333333 | Q161: 2019-07-24 | R161: 16.1 | W161: 2018-10-16 | X161: 12.52 | Z161: 2009-01-27 | AA161: 20.47 | AC161: 2003-07-30 | AD161: 23.91333333
B162: 2009-11-17 | C162: 7.98 | E162: 1993-10-19 | F162: 8.4 | H162: 2021-04-19 | I162: 15.1 | K162: 1996-04-30 | L162: 15.53333333 | Q162: 2019-08-07 | R162: 14.25 | W162: 2018-10-31 | X162: 8.86 | AC162: 2003-08-13 | AD162: 31.96333333
B163: 2009-12-02 | C163: 10.59666667 | E163: 1993-11-02 | F163: 7.833333333 | H163: 2021-05-05 | I163: 14.83 | K163: 1996-05-07 | L163: 13.36666667 | Q163: 2019-08-30 | R163: 12.52 | W163: 2018-11-14 | X163: 10.08 | AC163: 2003-08-27 | AD163: 34.07666667
B164: 2009-12-16 | C164: 8.273333333 | E164: 1993-11-17 | F164: 8.666666667 | H164: 2021-05-26 | I164: 15.43 | K164: 1996-05-14 | L164: 13.56666667 | Q164: 2019-09-11 | R164: 59.04 | W164: 2018-11-30 | X164: 9.49 | AC164: 2003-09-10 | AD164: 20.17666667
B165: 2009-12-29 | C165: 12.45 | E165: 1993-11-30 | F165: 9.233333333 | H165: 2021-06-08 | I165: 16.12 | K165: 1996-05-21 | L165: 25.26666667 | Q165: 2019-09-27 | R165: 12.76 | W165: 2018-12-12 | X165: 10.85 | AC165: 2003-09-24 | AD165: 30.60666667
B166: 2010-01-13 | C166: 10.06333333 | E166: 1993-12-14 | F166: 10.26666667 | H166: 2021-06-28 | I166: 17.55 | K166: 1996-05-28 | L166: 11.03333333 | Q166: 2019-10-15 | R166: 11.63 | W166: 2018-12-27 | X166: 8.66 | AC166: 2003-10-08 | AD166: 11.2325
B167: 2010-01-27 | C167: 11.78333333 | E167: 1994-01-04 | F167: 17.56666667 | H167: 2021-07-12 | I167: 16.73 | K167: 1996-06-04 | L167: 12.6 | Q167: 2019-10-29 | R167: 11.73 | W167: 2019-01-18 | X167: 8.45 | AC167: 2003-10-22 | AD167: 10.24333333
B168: 2010-02-04 | C168: 13.67333333 | E168: 1994-01-21 | F168: 6.766666667 | H168: 2021-07-28 | I168: 17.46 | K168: 1996-06-11 | L168: 26.83333333 | Q168: 2019-11-13 | R168: 12.19 | W168: 2019-02-04 | X168: 12.89 | AC168: 2003-10-24 | AD168: 6.953333333
B169: 2010-02-17 | C169: 8.846666667 | E169: 1994-02-01 | F169: 17.83333333 | H169: 2021-08-16 | I169: 14.84 | K169: 1996-06-18 | L169: 51.6 | Q169: 2019-11-26 | R169: 9.67 | W169: 2019-02-27 | X169: 11.49 | AC169: 2003-11-05 | AD169: 7.1
B170: 2010-03-03 | C170: 9.313333333 | E170: 1994-02-15 | F170: 12.36666667 | H170: 2021-08-31 | I170: 16 | K170: 1996-06-25 | L170: 17.46666667 | Q170: 2019-12-13 | R170: 10.16 | W170: 2019-03-13 | X170: 12.14 | AC170: 2003-11-19 | AD170: 6.615185185
B171: 2010-03-17 | C171: 9.293333333 | E171: 1994-03-01 | F171: 16.26666667 | H171: 2021-09-22 | I171: 15.91 | K171: 1996-07-02 | L171: 15.16666667 | Q171: 2020-01-09 | R171: 11.16 | W171: 2019-03-26 | X171: 9.72 | AC171: 2003-11-24 | AD171: 5.433333333
B172: 2010-03-31 | C172: 11.24666667 | E172: 1994-03-15 | F172: 15.5 | K172: 1996-07-09 | L172: 15.7 | Q172: 2020-01-24 | R172: 11.93 | W172: 2019-04-12 | X172: 13.64 | AC172: 2003-12-03 | AD172: 8.002916667
B173: 2010-04-14 | C173: 10.55 | E173: 1994-04-05 | F173: 14.73333333 | K173: 1996-07-16 | L173: 14.33333333 | Q173: 2020-02-07 | R173: 10 | W173: 2019-04-30 | X173: 13.08 | AC173: 2003-12-19 | AD173: 5.851111111
B174: 2010-05-12 | C174: 12.37333333 | E174: 1994-04-19 | F174: 14.23333333 | K174: 1996-07-23 | L174: 15 | Q174: 2020-02-27 | R174: 11.65 | W174: 2019-05-14 | X174: 13.19 | AC174: 2004-01-14 | AD174: 6.873846154
B175: 2010-05-19 | C175: 9.486666667 | E175: 1994-05-03 | F175: 14.9 | K175: 1996-07-30 | L175: 18.33333333 | Q175: 2020-03-11 | R175: 11.76 | W175: 2019-05-31 | X175: 17.9 | AC175: 2004-01-23 | AD175: 9.883333333
B176: 2010-06-02 | C176: 14.69666667 | E176: 1994-05-17 | F176: 12 | K176: 1996-08-06 | L176: 18.13333333 | Q176: 2020-03-27 | R176: 10.17 | W176: 2019-06-12 | X176: 15.27 | AC176: 2004-01-27 | AD176: 7.013333333
B177: 2010-06-24 | C177: 14.38666667 | E177: 1996-03-19 | F177: 15.93333333 | K177: 1996-08-20 | L177: 17.83333333 | Q177: 2020-04-07 | R177: 14.48 | W177: 2019-06-25 | X177: 33 | AC177: 2004-02-05 | AD177: 7.576666667
B178: 2010-07-06 | C178: 12.66666667 | E178: 1996-04-16 | F178: 14.93333333 | K178: 1996-09-03 | L178: 9.766666667 | Q178: 2020-04-24 | R178: 13.18 | W178: 2019-07-10 | X178: 18.58 | AC178: 2004-02-18 | AD178: 6.816666667
B179: 2010-07-21 | C179: 13.95666667 | E179: 1996-04-23 | F179: 15.73333333 | K179: 1996-09-17 | L179: 12.63333333 | Q179: 2020-05-15 | R179: 12.65 | W179: 2019-07-24 | X179: 14.9 | AC179: 2004-03-04 | AD179: 6.563333333
B180: 2010-08-04 | C180: 13.38333333 | E180: 1996-04-30 | F180: 15.53333333 | K180: 1996-10-01 | L180: 25 | Q180: 2020-05-29 | R180: 16.08 | W180: 2019-08-07 | X180: 14.61 | AC180: 2004-03-18 | AD180: 8.286666667
B181: 2010-08-19 | C181: 11.19333333 | E181: 1996-05-07 | F181: 15.06666667 | K181: 1996-10-15 | L181: 12.26666667 | Q181: 2020-06-12 | R181: 15.54 | W181: 2019-08-30 | X181: 12.34 | AC181: 2004-03-20 | AD181: 8.1
B182: 2010-09-01 | C182: 11.39 | E182: 1996-05-14 | F182: 13.06666667 | K182: 1996-10-29 | L182: 10.26666667 | Q182: 2020-07-10 | R182: 21.58 | W182: 2019-09-11 | X182: 13.22 | AC182: 2004-04-07 | AD182: 7.063333333
B183: 2010-09-15 | C183: 8.746666667 | E183: 1996-05-21 | F183: 17.83333333 | K183: 1996-11-12 | L183: 14.1 | Q183: 2020-07-24 | R183: 16.21 | W183: 2019-09-27 | X183: 13.95 | AC183: 2004-04-19 | AD183: 6.13
B184: 2010-09-29 | C184: 11.36 | E184: 1996-05-28 | F184: 16.76666667 | K184: 1996-11-26 | L184: 9.633333333 | Q184: 2020-08-07 | R184: 12.88 | W184: 2019-10-15 | X184: 11.69 | AC184: 2004-04-21 | AD184: 4.936666667
B185: 2010-10-12 | C185: 6.863333333 | E185: 1996-06-04 | F185: 16.86666667 | K185: 1996-12-10 | L185: 11.06666667 | Q185: 2020-09-15 | R185: 14.42 | W185: 2019-10-29 | X185: 11.56 | AC185: 2004-05-05 | AD185: 5.926666667
B186: 2010-11-09 | C186: 5.086666667 | E186: 1996-06-11 | F186: 20.36666667 | K186: 1996-12-23 | L186: 11.36666667 | Q186: 2020-09-29 | R186: 13.35 | W186: 2019-11-13 | X186: 9.17 | AC186: 2004-05-19 | AD186: 16.98333333
B187: 2010-11-24 | C187: 6.726666667 | E187: 1996-06-18 | F187: 41.76666667 | K187: 1997-01-14 | L187: 18 | Q187: 2020-10-14 | R187: 12.35 | W187: 2019-11-26 | X187: 9.14 | AC187: 2004-05-24 | AD187: 5.053333333
B188: 2010-12-01 | C188: 6.156666667 | E188: 1996-06-25 | F188: 14 | K188: 1997-01-28 | L188: 9.266666667 | Q188: 2020-11-03 | R188: 11.07 | W188: 2019-12-13 | X188: 9.57 | AC188: 2004-06-02 | AD188: 5.786666667
B189: 2010-12-15 | C189: 6.51 | E189: 1996-07-02 | F189: 14.86666667 | K189: 1997-02-11 | L189: 8.533333333 | Q189: 2020-11-19 | R189: 11.69 | W189: 2020-01-09 | X189: 10.04 | AC189: 2004-06-16 | AD189: 5.896666667
B190: 2011-01-05 | C190: 11.43 | E190: 1996-07-09 | F190: 11.83333333 | K190: 1997-02-25 | L190: 10.96666667 | Q190: 2020-12-04 | R190: 10.88 | W190: 2020-01-24 | X190: 9.82 | AC190: 2004-06-28 | AD190: 4.713333333
B191: 2011-01-20 | C191: 10.06666667 | E191: 1996-07-16 | F191: 11.6 | K191: 1997-03-11 | L191: 11.66666667 | Q191: 2020-12-17 | R191: 10.13 | W191: 2020-02-07 | X191: 10.24 | AC191: 2004-07-14 | AD191: 7.09
B192: 2011-02-04 | C192: 11.84333333 | E192: 1996-07-23 | F192: 10.56666667 | K192: 1997-03-25 | L192: 11.2 | Q192: 2021-01-05 | R192: 10.42 | W192: 2020-02-27 | X192: 10.56 | AC192: 2004-07-28 | AD192: 8.403333333
B193: 2011-02-16 | C193: 13.24666667 | E193: 1996-07-30 | F193: 12.13333333 | K193: 1997-04-08 | L193: 11.13333333 | Q193: 2021-01-21 | R193: 10.64 | W193: 2020-03-11 | X193: 11.76 | AC193: 2004-08-11 | AD193: 6.37
B194: 2011-03-08 | C194: 9.896666667 | E194: 1996-08-06 | F194: 11.23333333 | K194: 1997-04-15 | L194: 10.46666667 | Q194: 2021-02-04 | R194: 11.57 | W194: 2020-03-27 | X194: 9.02 | AC194: 2004-08-14 | AD194: 6.076666667
B195: 2011-03-22 | C195: 10.19 | E195: 1996-08-20 | F195: 25.53333333 | K195: 1997-04-22 | L195: 8.833333333 | Q195: 2021-02-24 | R195: 11.62 | W195: 2020-04-07 | X195: 12.75 | AC195: 2004-08-25 | AD195: 30.03
B196: 2011-04-06 | C196: 16.14666667 | E196: 1996-09-03 | F196: 8.533333333 | K196: 1997-04-29 | L196: 8.833333333 | Q196: 2021-03-09 | R196: 17.01 | W196: 2020-04-24 | X196: 12.43 | AC196: 2004-09-08 | AD196: 7.016666667
B197: 2011-04-21 | C197: 13.44666667 | E197: 1996-09-17 | F197: 7.166666667 | K197: 1997-05-07 | L197: 9.166666667 | Q197: 2021-03-23 | R197: 11.2 | W197: 2020-05-15 | X197: 14.39 | AC197: 2004-09-22 | AD197: 7.243333333
B198: 2011-05-04 | C198: 10.51333333 | E198: 1996-10-01 | F198: 7.5 | K198: 1997-05-13 | L198: 8.7 | Q198: 2021-04-07 | R198: 15.81 | W198: 2020-05-29 | X198: 15.9 | AC198: 2004-10-06 | AD198: 7.126666667
B199: 2011-05-17 | C199: 12.55333333 | E199: 1996-10-15 | F199: 6.1 | K199: 1997-05-20 | L199: 9.1 | Q199: 2021-04-19 | R199: 14.58 | W199: 2020-06-12 | X199: 14.38 | AC199: 2004-10-08 | AD199: 8.223333333
B200: 2011-06-02 | C200: 13.28 | E200: 1996-10-29 | F200: 6.366666667 | K200: 1997-05-27 | L200: 11.16666667 | Q200: 2021-05-05 | R200: 15.35 | W200: 2020-07-10 | X200: 23.14 | AC200: 2004-10-20 | AD200: 6.87
B201: 2011-06-14 | C201: 10.46333333 | E201: 1996-11-12 | F201: 8.633333333 | K201: 1997-06-03 | L201: 19.63333333 | Q201: 2021-05-26 | R201: 17.5 | W201: 2020-07-24 | X201: 13.78 | AC201: 2004-11-03 | AD201: 5.996666667
B202: 2011-06-29 | C202: 9.25 | E202: 1996-11-26 | F202: 6.133333333 | K202: 1997-06-10 | L202: 20.53333333 | Q202: 2021-06-08 | R202: 14.39 | W202: 2020-08-07 | X202: 16.4 | AC202: 2004-11-17 | AD202: 3.783333333
B203: 2011-07-13 | C203: 13.55666667 | E203: 1996-12-10 | F203: 7.633333333 | K203: 1997-06-17 | L203: 11.93333333 | Q203: 2021-06-28 | R203: 20.79 | T203: 2017-06-06 | U203: 13.38 | W203: 2020-09-15 | X203: 15.81 | AC203: 2004-11-26 | AD203: 7.7
B204: 2011-07-29 | C204: 16.17666667 | E204: 1996-12-23 | F204: 11.46666667 | K204: 1997-06-24 | L204: 17.03333333 | Q204: 2021-07-12 | R204: 14.36 | T204: 2017-06-19 | U204: 16.18 | W204: 2020-09-29 | X204: 13.64 | AC204: 2004-12-01 | AD204: 5.143333333
B205: 2011-08-10 | C205: 13.22333333 | E205: 1997-01-14 | F205: 17.53333333 | K205: 1997-07-01 | L205: 15.86666667 | Q205: 2021-07-28 | R205: 18.56 | T205: 2017-07-05 | U205: 13.29 | W205: 2020-10-14 | X205: 12.18 | AC205: 2004-12-17 | AD205: 7.453333333
B206: 2011-08-24 | C206: 16.36 | E206: 1997-01-28 | F206: 14.46666667 | K206: 1997-07-08 | L206: 14.6 | Q206: 2021-08-16 | R206: 11.83 | T206: 2017-07-20 | U206: 13.23 | W206: 2020-11-03 | X206: 10.78 | AC206: 2004-12-22 | AD206: 8.136666667
B207: 2011-09-07 | C207: 7.61 | E207: 1997-02-11 | F207: 9.933333333 | K207: 1997-07-15 | L207: 18.76666667 | Q207: 2021-08-31 | R207: 11.25 | T207: 2017-08-01 | U207: 11.42 | W207: 2020-11-19 | X207: 12.12 | AC207: 2005-01-06 | AD207: 8.223333333
B208: 2011-09-21 | C208: 8.47 | E208: 1997-02-25 | F208: 12.53333333 | K208: 1997-07-22 | L208: 14.6 | Q208: 2021-09-22 | R208: 10.39 | T208: 2017-08-18 | U208: 21.12 | W208: 2020-12-04 | X208: 9.78 | AC208: 2005-01-20 | AD208: 7.276666667
B209: 2011-10-05 | C209: 6.836666667 | E209: 1997-03-11 | F209: 10.53333333 | K209: 1997-08-05 | L209: 9.466666667 | T209: 2017-09-06 | U209: 13.68 | W209: 2020-12-17 | X209: 10.25 | AC209: 2005-02-02 | AD209: 6.056666667
B210: 2011-10-26 | C210: 9.876666667 | E210: 1997-03-25 | F210: 14.2 | K210: 1997-08-19 | L210: 10.4 | T210: 2017-09-21 | U210: 10.8 | W210: 2021-01-05 | X210: 9.72 | AC210: 2005-02-09 | AD210: 8.136666667
B211: 2011-11-08 | C211: 10.17 | E211: 1997-04-08 | F211: 12.7 | K211: 1997-09-02 | L211: 15.1 | T211: 2017-10-11 | U211: 10.21 | W211: 2021-01-21 | X211: 10.06 | AC211: 2005-02-16 | AD211: 7.173333333
B212: 2011-11-22 | C212: 10.19 | E212: 1997-04-15 | F212: 11.3 | K212: 1997-09-16 | L212: 11.6 | T212: 2017-10-30 | U212: 10.75 | W212: 2021-02-04 | X212: 10.12 | AC212: 2005-03-03 | AD212: 5.653333333
B213: 2011-12-07 | C213: 18.65666667 | E213: 1997-04-22 | F213: 9.666666667 | K213: 1997-09-30 | L213: 12.8 | T213: 2017-11-17 | U213: 10.74 | W213: 2021-02-24 | X213: 11.51 | AC213: 2005-03-24 | AD213: 6.626666667
B214: 2011-12-21 | C214: 6.63 | E214: 1997-04-29 | F214: 12.1 | K214: 1997-10-14 | L214: 14.43333333 | T214: 2017-11-30 | U214: 10.41 | W214: 2021-03-09 | X214: 12.91 | AC214: 2005-04-06 | AD214: 10.01666667
B215: 2012-01-04 | C215: 11.24 | E215: 1997-05-07 | F215: 10.5 | K215: 1997-10-28 | L215: 7.7 | T215: 2017-12-15 | U215: 10.94 | W215: 2021-03-23 | X215: 9.83 | AC215: 2005-04-13 | AD215: 7.016666667
B216: 2012-01-18 | C216: 9.66 | E216: 1997-05-13 | F216: 10.26666667 | K216: 1997-11-11 | L216: 11.9 | T216: 2018-01-09 | U216: 12.8 | W216: 2021-04-07 | X216: 13.1 | AC216: 2005-04-27 | AD216: 10.71666667
B217: 2012-02-01 | C217: 10.18333333 | E217: 1997-05-20 | F217: 10.03333333 | K217: 1997-11-25 | L217: 8.7 | T217: 2018-01-24 | U217: 15.69 | W217: 2021-04-19 | X217: 14.76 | AC217: 2005-05-10 | AD217: 8.166666667
B218: 2012-02-15 | C218: 7.34 | E218: 1997-05-27 | F218: 9.9 | K218: 1997-12-09 | L218: 9.7 | T218: 2018-02-07 | U218: 12.88 | W218: 2021-05-05 | X218: 15.18 | AC218: 2005-05-26 | AD218: 8.69
B219: 2012-02-29 | C219: 10.27 | E219: 1997-06-03 | F219: 13.1 | K219: 1997-12-23 | L219: 8.2 | T219: 2018-02-23 | U219: 11.86 | W219: 2021-05-26 | X219: 17.21 | AC219: 2005-06-09 | AD219: 8.133333333
B220: 2012-03-13 | C220: 7.49 | E220: 1997-06-10 | F220: 14.13333333 | K220: 1998-01-06 | L220: 13.73333333 | T220: 2018-04-06 | U220: 9.12 | W220: 2021-06-08 | X220: 14.04 | AC220: 2005-06-22 | AD220: 5.88
B221: 2012-03-27 | C221: 8.703333333 | E221: 1997-06-17 | F221: 11.83333333 | K221: 1998-02-03 | L221: 11.36666667 | T221: 2018-04-24 | U221: 16.83 | W221: 2021-06-28 | X221: 18.01 | AC221: 2005-07-12 | AD221: 12.5
B222: 2012-04-04 | C222: 7.366666667 | E222: 1997-06-24 | F222: 12.7 | K222: 1998-02-10 | L222: 11.93333333 | T222: 2018-05-08 | U222: 15.62 | W222: 2021-07-12 | X222: 14.76 | AC222: 2005-07-26 | AD222: 8.866666667
B223: 2012-04-17 | C223: 6.766666667 | E223: 1997-07-01 | F223: 13.8 | K223: 1998-02-24 | L223: 8.733333333 | T223: 2018-05-24 | U223: 11.67 | W223: 2021-07-28 | X223: 17.11 | AC223: 2005-08-03 | AD223: 14.21
B224: 2012-05-01 | C224: 8.2 | E224: 1997-07-08 | F224: 54.56666667 | K224: 1998-03-03 | L224: 9.9 | T224: 2018-06-06 | U224: 16.46 | W224: 2021-08-16 | X224: 13.27 | AC224: 2005-08-11 | AD224: 7.593333333
B225: 2012-05-15 | C225: 6.373333333 | E225: 1997-07-15 | F225: 13.73333333 | K225: 1998-03-17 | L225: 21.33333333 | T225: 2018-06-20 | U225: 14.51 | W225: 2021-08-31 | X225: 12.87 | AC225: 2005-08-23 | AD225: 7.536666667
B226: 2012-05-29 | C226: 9.586666667 | E226: 1997-07-22 | F226: 13.4 | K226: 1998-03-24 | L226: 9.8 | T226: 2018-07-06 | U226: 14.83 | W226: 2021-09-22 | X226: 14.17 | AC226: 2005-09-08 | AD226: 7.896666667
... 628 more rows

Sheet USGS Flow
O2: cfs
N3: Year | O3: USGS
N4: 1990 | O4: 136.5587189
N5: 1991 | O5: 138.1068493
N6: 1992 | O6: 141.3715847
N7: 1993 | O7: 146.460274
N8: 1994 | O8: 138.3068493
N9: 1995 | O9: 119.9972603
N10: 1996 | O10: 125.0273224
N11: 1997 | O11: 130.9808219
N12: 1998 | O12: 111.4712329
N13: 1999 | O13: 105.1369863
N14: 2000 | O14: 100.5519126
N15: 2001 | O15: 106.5
N16: 2002 | O16: 130.3
N17: 2003 | O17: 127.1
N18: 2004 | O18: 130.3
N19: 2005 | O19: 125.5
N20: 2006 | O20: 117.8
N21: 2007 | O21: 115.3
N22: 2008 | O22: 114.76
N23: 2009 | O23: 118.2
N24: 2010 | O24: 108.3
N25: 2011 | O25: 113.5
N26: 2012 | O26: 117.7
N27: 2013 | O27: 141.1
N28: 2014 | O28: 160.3
N29: =N28+1 -> 2015 | O29: 157.4
N30: =N29+1 -> 2016 | O30: 140.4
N31: =N30+1 -> 2017 | O31: 131.4
N32: =N31+1 -> 2018 | O32: 139
N33: 2019 | O33: 152.4
N34: 2020 | O34: 156.8
N37: max | O37: =MAX(O4:O36) -> 160.3
N38: min | O38: =MIN(O4:O36) -> 100.5519126
N39: Average | O39: =AVERAGE(O4:O36) -> 128.9687036

Sheet Little Platte
AN2: Diatom Sub-Type | AS2: Green Sub-Type | AX2: Blue Greens Sub-Type | BC2: Golden Sub-Type
AN3: 1 | AO3: Synedra | AS3: Scenedesmus | AX3: Anabaena | BC3: Peridinium/Gymnodium | BI3: =BI5-BH5 -> 1 | BJ3: 1 | BK3: 2 | BL3: 6 | BM3: 14 | BN3: 11 | BO3: 23 | BP3: 36 | BQ3: 34 | BR3: 25 | BS3: 34 | BT3: 14 | BU3: 7 | BV3: 8 | BW3: 4 | BX3: 1 | BY3: 1 | BZ3: 3
AN4: 2 | AO4: Fragilaria | AS4: Pediastrum, Desmids | AX4: Microcystis (units^2@100X)) | BC4: Dinobryon
AN5: 3 | AO5: Melosira | AS5: Microgreens (cells) | AX5: Gloeothece | BC5: Uroglenopsis | BI5: =COUNTIF($D40:$D15000,"<6") -> 1 | BJ5: =COUNTIF($D40:$D15000,"<7") -> 2 | BK5: =COUNTIF($D40:$D15000,"<8") -> 4 | BL5: =COUNTIF($D40:$D15000,"<9") -> 10 | BM5: =COUNTIF($D40:$D15000,"<10") -> 24 | BN5: =COUNTIF($D40:$D15000,"<11") -> 35 | BO5: =COUNTIF($D40:$D15000,"<12") -> 58 | BP5: =COUNTIF($D40:$D15000,"<13") -> 94 | BQ5: =COUNTIF($D40:$D15000,"<14") -> 128 | BR5: =COUNTIF($D40:$D15000,"<15") -> 153 | BS5: =COUNTIF($D40:$D15000,"<16") -> 187 | BT5: =COUNTIF($D40:$D15000,"<17") -> 201 | BU5: =COUNTIF($D40:$D15000,"<18") -> 208 | BV5: =COUNTIF($D40:$D15000,"<19") -> 216 | BW5: =COUNTIF($D40:$D15000,"<20") -> 220 | BX5: =COUNTIF($D40:$D15000,"<21") -> 221 | BY5: =COUNTIF($D40:$D15000,"<22") -> 222 | BZ5: =COUNTIF($D40:$D15000,"<23") -> 225
AN6: 4 | AO6: Centrics | AS6: Coelastrum (Colonies) | AX6: Aphanocapsa | BC6: Ceratium
AN7: 5 | AO7: Cymatopleura | AS7: Filamentous Greens | AX7: Gloeosapsa | BC7: Trebonema
AN8: 6 | AO8: Achnanthes | AS8: Lagerheimia | AX8: Gompho, Coelos | BC8: Mallomonas | BI8: =BI10-BH10 -> 25 | BJ8: 83 | BK8: 103 | BL8: 59 | BM8: 19 | BN8: 9 | BO8: 1 | BP8: 2 | BQ8: 1 | BR8: 1 | BS8: 3 | BT8: 4 | BU8: 1
AN9: 7 | AO9: Amphipora | AS9: Closterium (cells) | AX9: Oscillatoria/Lyngbya | BC9: Cryptomonas
AN10: 8 | AO10: Asterionella | AS10: Pediastrum (cells) | AX10: Chrococcus | BC10: Chrysosphaerella (Colony) | BI10: =COUNTIF($P40:$P14997,"<2") -> 25 | BJ10: =COUNTIF($P40:$P14997,"<3") -> 108 | BK10: =COUNTIF($P40:$P14997,"<4") -> 211 | BL10: =COUNTIF($P40:$P14997,"<5") -> 270 | BM10: =COUNTIF($P40:$P14997,"<6") -> 289 | BN10: =COUNTIF($P40:$P14997,"<7") -> 298 | BO10: =COUNTIF($P40:$P14997,"<8") -> 299 | BP10: =COUNTIF($P40:$P14997,"<9") -> 301 | BQ10: =COUNTIF($P40:$P14997,"<10") -> 302 | BR10: =COUNTIF($P40:$P14997,"<11") -> 303 | BS10: =COUNTIF($P40:$P14997,"<12") -> 306 | BT10: =COUNTIF($P40:$P14997,"<13") -> 310 | BU10: =COUNTIF($P40:$P14997,"<14") -> 311
AN11: 9 | AO11: Other Pennates | AS11: Ankistrodesmus | AX11: Eucapsis | BC11: Chroomonas
AN12: 10 | AO12: Cyclotella | AS12: Cosmarium | AX12: Merimopedia | BC12: Other Flagellate
AN13: 11 | AO13: dipioneis | AS13: Staurastrum | AX13: Lyngbya
AN14: 12 | AO14: Pleurosigma | AS14: Colonial Green (Colonies) | AX14: Coelosphaerium (cells)
AN15: 13 | AO15: Rhizoselenia | AX15: Microsystis
AN16: 14 | AO16: Cymbella | BI16: =AO33 -> 1259
AN17: 15 | AO17: Tabellaria | BI17: =AT33 -> 1329
AN18: 16 | AO18: Stephandiscus | BI18: =AY33 -> 794
AN19: 17 | AO19: Large Benthic | BI19: =BD33 -> 1180
AN20: 18 | AO20: Small Pennate
AN21: 19 | AO21: Large Pennate
AN22: 20 | AO22: Naviculoid
C32: Std Dev | D32: =STDEV(D39:D684) -> 4.063877069 | O32: Std Dev | P32: =STDEV(P39:P684) -> 2.372407143
B33: Little Platte | C33: Count | D33: =COUNT(D40:D3031) -> 230 | F33: Little Platte | G33: Count | H33: =COUNT(H40:H3031) -> 204 | J33: Little Platte | K33: Count | L33: 78 | N33: Little Platte | O33: Count | P33: =COUNT(P40:P3031) -> 314 | R33: Little Platte | S33: Count | T33: =COUNT(T40:T3031) -> 119 | V33: Little Platte | W33: Count | X33: =COUNT(X40:X3031) -> 42 | Z33: Little Platte | AA33: Count | AB33: =COUNT(AB40:AB3031) -> 78 | AD33: Little Platte | AE33: Count | AF33: =COUNT(AF40:AF3031) -> 66 | AH33: Little Platte | AI33: Count | AJ33: =COUNT(AJ40:AJ3031) -> 60 | AM33: Little Platte | AN33: Count | AO33: =COUNT(AO39:AO30031) -> 1259 | AR33: Little Platte | AS33: Count | AT33: =COUNT(AT39:AT30031) -> 1329 | AW33: Little Platte | AX33: Count | AY33: =COUNT(AY39:AY30031) -> 794 | BB33: Little Platte | BC33: Count | BD33: =COUNT(BD39:BD30031) -> 1180
B34: =YEAR(MIN(B40:B2031)) -> 2004 | C34: Minimum | D34: =MAX(D40:D2031) -> 38.51 | F34: =YEAR(MIN(F40:F2031)) -> 2004 | G34: Minimum | H34: =MAX(H40:H2031) -> 17.31 | J34: =YEAR(MIN(J40:J2031)) -> 2004 | K34: Minimum | L34: 48.9 | N34: =YEAR(MIN(N40:N2031)) -> 2004 | O34: Minimum | P34: =MAX(P40:P2031) -> 18.15 | R34: =YEAR(MIN(R40:R2031)) -> 2004 | S34: Minimum | T34: =MAX(T40:T2031) -> 152 | V34: =YEAR(MIN(V40:V2031)) -> 2005 | W34: Minimum | X34: =MAX(X40:X2031) -> 156 | Z34: =YEAR(MIN(Z40:Z2031)) -> 2005 | AA34: Minimum | AB34: =MAX(AB40:AB2031) -> 48.9 | AD34: =YEAR(MIN(AD40:AD2031)) -> 2004 | AE34: Minimum | AF34: =MAX(AF40:AF2031) -> 233 | AH34: =YEAR(MIN(AH40:AH2031)) -> 2004 | AI34: Minimum | AJ34: =MAX(AJ40:AJ2031) -> 15215.37 | AM34: =YEAR(MIN(AL40:AM2031)) -> 2004 | AN34: Minimum | AO34: =MAX(AO39:AO20030) -> 1991667 | AR34: =YEAR(MIN(AQ40:AR2031)) -> 2004 | AS34: Minimum | AT34: =MAX(AT39:AT20030) -> 8601374 | AW34: =YEAR(MIN(AV40:AW2031)) -> 2004 | AX34: Minimum | AY34: =MAX(AY39:AY20030) -> 89821980 | BB34: =YEAR(MIN(BA40:BB2031)) -> 2004 | BC34: Minimum | BD34: =MAX(BD39:BD20030) -> 4749359
B35: =YEAR(MAX(B40:B2031)) -> 2009 | C35: Maximum | D35: =MIN(D40:D2031) -> 5.3 | F35: =YEAR(MAX(F40:F2031)) -> 2009 | G35: Maximum | H35: =MIN(H40:H2031) -> 3.43 | J35: =YEAR(MAX(J40:J2031)) -> 2009 | K35: Maximum | L35: 20.84 | N35: =YEAR(MAX(N40:N2031)) -> 2009 | O35: Maximum | P35: =MIN(P40:P2031) -> 1.05 | R35: =YEAR(MAX(R40:R2031)) -> 2009 | S35: Maximum | T35: =MIN(T40:T2031) -> 24 | V35: =YEAR(MAX(V40:V2031)) -> 2006 | W35: Maximum | X35: =MIN(X40:X2031) -> 86 | Z35: =YEAR(MAX(Z40:Z2031)) -> 2009 | AA35: Maximum | AB35: =MIN(AB40:AB2031) -> 20.84 | AD35: =YEAR(MAX(AD40:AD2031)) -> 2006 | AE35: Maximum | AF35: =MIN(AF40:AF2031) -> 63 | AH35: =YEAR(MAX(AH40:AH2031)) -> 2005 | AI35: Maximum | AJ35: =MIN(AJ40:AJ2031) -> 382.19 | AM35: =YEAR(MAX(AL40:AM2031)) -> 2009 | AN35: Maximum | AO35: =MIN(AO40:AO2031) -> 100 | AR35: =YEAR(MAX(AQ40:AR2031)) -> 2009 | AS35: Maximum | AT35: =MIN(AT40:AT2031) -> 44 | AW35: =YEAR(MAX(AV40:AW2031)) -> 2009 | AX35: Maximum | AY35: =MIN(AY40:AY2031) -> 100 | BB35: =YEAR(MAX(BA40:BB2031)) -> 2009 | BC35: Maximum | BD35: =MIN(BD40:BD2031) -> 100
C36: Average | D36: =AVERAGE(D40:D2031) -> 14.09726087 | G36: Average | H36: =AVERAGE(H40:H2031) -> 7.984068627 | K36: Average | L36: 32.96320513 | O36: Average | P36: =AVERAGE(P40:P2031) -> 3.912707006 | S36: Average | T36: =AVERAGE(T40:T2031) -> 112.8907563 | W36: Average | X36: =AVERAGE(X40:X2031) -> 110.5714286 | AA36: Average | AB36: =AVERAGE(AB40:AB2031) -> 32.96320513 | AE36: Average | AF36: =AVERAGE(AF40:AF2031) -> 161.4090909 | AI36: Average | AJ36: =AVERAGE(AJ40:AJ2031) -> 4492.620333 | AN36: Average | AO36: =AVERAGE(AO39:AO20031) -> 115896.2907 | AS36: Average | AT36: =AVERAGE(AT39:AT20031) -> 227975.5117 | AX36: Average | AY36: =AVERAGE(AY39:AY20031) -> 724072.5416 | BC36: Average | BD36: =AVERAGE(BD39:BD20031) -> 198309.7797
D38: TP | H38: TDP | L38: Nox | P38: Chl | T38: Alk | X38: Diss Alk | AB38: Ca | AF38: TDS | AJ38: Si | AO38: Diatoms | AT38: Greens | AY38: Blue Greens | BD38: Golden
B39: SampDate | C39: Depth | D39: Measure | F39: SampDate | G39: Depth | H39: Measure | J39: SampDate | K39: Depth | L39: Measure | N39: SampDate | O39: Depth | P39: Measure | R39: SampDate | S39: Depth | T39: Measure | V39: SampDate | W39: Depth | X39: Measure | Z39: SampDate | AA39: Depth | AB39: Measure | AD39: SampDate | AE39: Depth | AF39: Measure | AH39: SampDate | AI39: Depth | AJ39: Measure
B40: 2004-09-22 | C40: 1 | D40: 12.4 | F40: 2004-10-20 | G40: 1 | H40: 10.05 | J40: 2004-09-22 | K40: 1 | L40: 9.75 | N40: 2004-09-22 | O40: 1 | P40: 2.03 | R40: 2004-09-22 | S40: 1 | T40: 122 | V40: 2005-04-27 | W40: 1 | X40: 118 | Z40: 2005-09-21 | AA40: 1 | AB40: 20.84 | AD40: 2004-09-22 | AE40: 1 | AF40: 149 | AH40: 2004-09-22 | AI40: 1 | AJ40: 2583.38 | AL40: 2004-09-22 | AM40: Diatom | AN40: 2 | AO40: 42900 | AQ40: 2004-09-22 | AR40: Green | AS40: 1 | AT40: 61282 | AV40: 2004-09-22 | AW40: Blue Green | AX40: 1 | AY40: 18700 | BA40: 2004-09-22 | BB40: Gloden | BC40: 2 | BD40: 96300
B41: 2004-09-22 | C41: 1 | D41: 12.3 | F41: 2004-10-20 | G41: 1 | H41: 8.65 | J41: 2004-09-22 | K41: 1 | L41: 9.49 | N41: 2004-09-22 | O41: 1 | P41: 2.57 | R41: 2004-09-22 | S41: 1 | T41: 120 | V41: 2005-04-27 | W41: 1 | X41: 122 | Z41: 2005-09-21 | AA41: 1 | AB41: 24.05 | AD41: 2004-09-22 | AE41: 1 | AF41: 137 | AH41: 2004-09-22 | AI41: 1 | AJ41: 2880.19 | AL41: 2004-09-22 | AM41: Diatom | AN41: 4 | AO41: 100 | AQ41: 2004-09-22 | AR41: Green | AS41: 2 | AT41: 600 | AV41: 2004-09-22 | AW41: Blue Green | AX41: 2 | AY41: 27600 | BA41: 2004-09-22 | BB41: Gloden | BC41: 7 | BD41: 43772
B42: 2004-09-22 | C42: 1 | D42: 11.18 | F42: 2004-10-20 | G42: 1 | H42: 9.46 | J42: 2004-09-22 | K42: 1 | L42: 9.47 | N42: 2004-09-22 | O42: 1 | P42: 2.05 | R42: 2004-09-22 | S42: 1 | T42: 122 | V42: 2005-04-27 | W42: 1 | X42: 122 | Z42: 2005-09-21 | AA42: 1 | AB42: 23.25 | AD42: 2004-09-22 | AE42: 1 | AF42: 143 | AH42: 2004-09-22 | AI42: 1 | AJ42: 2973.64 | AL42: 2004-09-22 | AM42: Diatom | AN42: 9 | AO42: 8754 | AQ42: 2004-09-22 | AR42: Green | AS42: 7 | AT42: 26264 | AV42: 2004-09-22 | AW42: Blue Green | AX42: 8 | AY42: 11200 | BA42: 2004-09-22 | BB42: Gloden | BC42: 2 | BD42: 100632
B43: 2004-10-06 | C43: 1 | D43: 13.64 | F43: 2004-11-03 | G43: 1 | H43: 6.54 | J43: 2004-10-06 | K43: 1 | L43: 10.04 | N43: 2004-09-22 | O43: 1 | P43: 2.56 | R43: 2004-10-06 | S43: 1 | T43: 118 | V43: 2005-05-11 | W43: 1 | X43: 122 | Z43: 2005-10-05 | AA43: 1 | AB43: 24.85 | AD43: 2004-10-06 | AE43: 1 | AF43: 165 | AH43: 2004-10-06 | AI43: 1 | AJ43: 1479.3 | AL43: 2004-09-22 | AM43: Diatom | AN43: 1 | AO43: 3500 | AQ43: 2004-09-22 | AR43: Green | AS43: 1 | AT43: 106920 | AV43: 2004-09-22 | AW43: Blue Green | AX43: 12 | AY43: 525274 | BA43: 2004-09-22 | BB43: Gloden | BC43: 6 | BD43: 3144
B44: 2004-10-06 | C44: 1 | D44: 6.12 | F44: 2004-11-03 | G44: 1 | H44: 5.68 | J44: 2004-10-06 | K44: 1 | L44: 7.16 | N44: 2004-09-22 | O44: 1 | P44: 2.05 | R44: 2004-10-06 | S44: 1 | T44: 116 | V44: 2005-05-11 | W44: 1 | X44: 120 | Z44: 2005-10-05 | AA44: 1 | AB44: 24.85 | AD44: 2004-10-06 | AE44: 1 | AF44: 162 | AH44: 2004-10-06 | AI44: 1 | AJ44: 1638.9 | AL44: 2004-09-22 | AM44: Diatom | AN44: 2 | AO44: 28600 | AQ44: 2004-09-22 | AR44: Green | AS44: 3 | AT44: 9434 | AV44: 2004-09-22 | AW44: Blue Green | AX44: 2 | AY44: 8500 | BA44: 2004-09-22 | BB44: Gloden | BC44: 7 | BD44: 62894
B45: 2004-10-06 | C45: 1 | D45: 7.47 | F45: 2004-11-03 | G45: 1 | H45: 5.26 | J45: 2004-10-06 | K45: 1 | L45: 5.27 | N45: 2004-09-22 | O45: 1 | P45: 2.54 | R45: 2004-10-06 | S45: 1 | T45: 126 | V45: 2005-05-11 | W45: 1 | X45: 122 | Z45: 2005-10-05 | AA45: 1 | AB45: 24.85 | AD45: 2004-10-06 | AE45: 1 | AF45: 161 | AH45: 2004-10-06 | AI45: 1 | AJ45: 1595.43 | AL45: 2004-09-22 | AM45: Diatom | AN45: 4 | AO45: 300 | AQ45: 2004-09-22 | AR45: Green | AS45: 4 | AT45: 100 | AV45: 2004-09-22 | AW45: Blue Green | AX45: 8 | AY45: 264158 | BA45: 2004-09-22 | BB45: Gloden | BC45: 2 | BD45: 148828
B46: 2004-10-06 | C46: 1 | D46: 12.43 | F46: 2004-11-17 | G46: 1 | H46: 4.07 | J46: 2004-10-20 | K46: 1 | L46: 14.5 | N46: 2004-10-06 | O46: 1 | P46: 1.52 | R46: 2004-10-20 | S46: 1 | T46: 122 | V46: 2005-05-26 | W46: 1 | X46: 118 | Z46: 2005-11-02 | AA46: 1 | AB46: 33.67 | AD46: 2004-10-20 | AE46: 1 | AF46: 183 | AH46: 2004-10-20 | AI46: 1 | AJ46: 1590.79 | AL46: 2004-09-22 | AM46: Diatom | AN46: 9 | AO46: 12578 | AQ46: 2004-09-22 | AR46: Green | AS46: 1 | AT46: 61282 | AV46: 2004-09-22 | AW46: Blue Green | AX46: 2 | AY46: 49200 | BA46: 2004-09-22 | BB46: Gloden | BC46: 6 | BD46: 4377
B47: 2004-10-06 | C47: 1 | D47: 12.99 | F47: 2004-11-17 | G47: 1 | H47: 3.96 | J47: 2004-10-20 | K47: 1 | L47: 15.9 | N47: 2004-10-06 | O47: 1 | P47: 2.02 | R47: 2004-10-20 | S47: 1 | T47: 120 | V47: 2005-05-26 | W47: 1 | X47: 118 | Z47: 2005-11-02 | AA47: 1 | AB47: 31.26 | AD47: 2004-10-20 | AE47: 1 | AF47: 177 | AH47: 2004-10-20 | AI47: 1 | AJ47: 1602.68 | AL47: 2004-09-22 | AM47: Diatom | AN47: 13 | AO47: 6290 | AQ47: 2004-09-22 | AR47: Green | AS47: 2 | AT47: 200 | AV47: 2004-09-22 | AW47: Blue Green | AX47: 8 | AY47: 17510 | BA47: 2004-09-22 | BB47: Gloden | BC47: 7 | BD47: 52528
B48: 2004-10-06 | C48: 1 | D48: 5.3 | F48: 2004-11-17 | G48: 1 | H48: 4.34 | J48: 2004-10-20 | K48: 1 | L48: 15.05 | N48: 2004-10-06 | O48: 1 | P48: 1.49 | R48: 2004-10-20 | S48: 1 | T48: 122 | V48: 2005-05-26 | W48: 1 | X48: 118 | Z48: 2005-11-02 | AA48: 1 | AB48: 31.26 | AD48: 2004-10-20 | AE48: 1 | AF48: 192 | AH48: 2004-10-20 | AI48: 1 | AJ48: 1798.44 | AL48: 2004-09-22 | AM48: Diatom | AN48: 1 | AO48: 13132 | AQ48: 2004-09-22 | AR48: Green | AS48: 3 | AT48: 65660 | AV48: 2004-10-06 | AW48: Blue Green | AX48: 1 | AY48: 3700 | BA48: 2004-10-06 | BB48: Gloden | BC48: 2 | BD48: 39396
B49: 2004-10-20 | C49: 1 | D49: 9.65 | F49: 2004-12-01 | G49: 1 | H49: 3.89 | J49: 2004-11-03 | K49: 1 | L49: 33.3 | N49: 2004-10-06 | O49: 1 | P49: 2.19 | R49: 2004-11-03 | S49: 1 | T49: 132 | V49: 2005-06-08 | W49: 1 | X49: 114 | Z49: 2006-03-01 | AA49: 1 | AB49: 39.28 | AD49: 2004-11-03 | AE49: 1 | AF49: 146 | AH49: 2004-11-03 | AI49: 1 | AJ49: 2482.17 | AL49: 2004-09-22 | AM49: Diatom | AN49: 2 | AO49: 39100 | AQ49: 2004-09-22 | AR49: Green | AS49: 4 | AT49: 500 | AV49: 2004-10-06 | AW49: Blue Green | AX49: 2 | AY49: 27600 | BA49: 2004-10-06 | BB49: Gloden | BC49: 6 | BD49: 17510
B50: 2004-10-20 | C50: 1 | D50: 10.14 | F50: 2004-12-01 | G50: 1 | H50: 4.55 | J50: 2004-11-03 | K50: 1 | L50: 33.12 | N50: 2004-10-06 | O50: 1 | P50: 1.78 | R50: 2004-11-03 | S50: 1 | T50: 134 | V50: 2005-06-08 | W50: 1 | X50: 126 | Z50: 2006-03-01 | AA50: 1 | AB50: 40.08 | AD50: 2004-11-03 | AE50: 1 | AF50: 139 | AH50: 2004-11-03 | AI50: 1 | AJ50: 2548.27 | AL50: 2004-09-22 | AM50: Diatom | AN50: 4 | AO50: 100 | AQ50: 2004-09-22 | AR50: Green | AS50: 6 | AT50: 4377 | AV50: 2004-10-06 | AW50: Blue Green | AX50: 1 | AY50: 16500 | BA50: 2004-10-06 | BB50: Gloden | BC50: 7 | BD50: 30642
B51: 2004-10-20 | C51: 1 | D51: 11.36 | F51: 2004-12-01 | G51: 1 | H51: 4.55 | J51: 2004-11-03 | K51: 1 | L51: 33.47 | N51: 2004-10-06 | O51: 1 | P51: 2.11 | R51: 2004-11-03 | S51: 1 | T51: 132 | V51: 2005-06-08 | W51: 1 | X51: 120 | Z51: 2006-03-01 | AA51: 1 | AB51: 41.68 | AD51: 2004-11-03 | AE51: 1 | AF51: 145 | AH51: 2004-11-03 | AI51: 1 | AJ51: 2467 | AL51: 2004-09-22 | AM51: Diatom | AN51: 9 | AO51: 17510 | AQ51: 2004-10-06 | AR51: Green | AS51: 1 | AT51: 21886 | AV51: 2004-10-06 | AW51: Blue Green | AX51: 2 | AY51: 35700 | BA51: 2004-10-06 | BB51: Gloden | BC51: 2 | BD51: 109432
B52: 2004-11-03 | C52: 1 | D52: 11.37 | F52: 2005-02-16 | G52: 1 | H52: 6.57 | J52: 2004-11-17 | K52: 1 | L52: 47.7 | N52: 2004-10-20 | O52: 1 | P52: 2.32 | R52: 2004-11-17 | S52: 1 | T52: 126 | V52: 2005-06-22 | W52: 1 | X52: 112 | Z52: 2006-04-05 | AA52: 1 | AB52: 33.67 | AD52: 2004-11-17 | AE52: 1 | AF52: 175 | AH52: 2004-11-17 | AI52: 1 | AJ52: 2687.02 | AL52: 2004-09-22 | AM52: Diatom | AN52: 13 | AO52: 4377 | AQ52: 2004-10-06 | AR52: Green | AS52: 2 | AT52: 400 | AV52: 2004-10-06 | AW52: Blue Green | AX52: 1 | AY52: 9400 | BA52: 2004-10-06 | BB52: Gloden | BC52: 6 | BD52: 4377
B53: 2004-11-03 | C53: 1 | D53: 12.71 | F53: 2005-02-16 | G53: 1 | H53: 7.04 | J53: 2004-11-17 | K53: 1 | L53: 47.77 | N53: 2004-10-20 | O53: 1 | P53: 2.35 | R53: 2004-11-17 | S53: 1 | T53: 126 | V53: 2005-06-22 | W53: 1 | X53: 110 | Z53: 2006-04-05 | AA53: 1 | AB53: 33.67 | AD53: 2004-11-17 | AE53: 1 | AF53: 180 | AH53: 2004-11-17 | AI53: 1 | AJ53: 2657.09 | AL53: 2004-10-06 | AM53: Diatom | AN53: 1 | AO53: 3800 | AQ53: 2004-10-06 | AR53: Green | AS53: 3 | AT53: 8754 | AV53: 2004-10-06 | AW53: Blue Green | AX53: 2 | AY53: 27700 | BA53: 2004-10-06 | BB53: Gloden | BC53: 7 | BD53: 39396
B54: 2004-11-03 | C54: 1 | D54: 10.41 | F54: 2005-02-16 | G54: 1 | H54: 6.53 | J54: 2004-11-17 | K54: 1 | L54: 47.48 | N54: 2004-10-20 | O54: 1 | P54: 2.1 | R54: 2004-11-17 | S54: 1 | T54: 124 | V54: 2005-06-22 | W54: 1 | X54: 112 | Z54: 2006-04-05 | AA54: 1 | AB54: 34.47 | AD54: 2004-11-17 | AE54: 1 | AF54: 172 | AH54: 2004-11-17 | AI54: 1 | AJ54: 2897.59 | AL54: 2004-10-06 | AM54: Diatom | AN54: 2 | AO54: 9000 | AQ54: 2004-10-06 | AR54: Green | AS54: 4 | AT54: 100 | AV54: 2004-10-20 | AW54: Blue Green | AX54: 1 | AY54: 14400 | BA54: 2004-10-06 | BB54: Gloden | BC54: 2 | BD54: 91924
B55: 2004-11-17 | C55: 1 | D55: 7.7 | F55: 2005-04-13 | G55: 1 | H55: 4.31 | J55: 2004-12-01 | K55: 1 | L55: 67.14 | N55: 2004-10-20 | O55: 1 | P55: 2.12 | R55: 2004-12-01 | S55: 1 | T55: 126 | V55: 2005-07-13 | W55: 1 | X55: 102 | Z55: 2006-04-19 | AA55: 1 | AB55: 36.87 | AD55: 2004-12-01 | AE55: 1 | AF55: 188 | AH55: 2004-12-01 | AI55: 1 | AJ55: 847.45 | AL55: 2004-10-06 | AM55: Diatom | AN55: 9 | AO55: 13132 | AQ55: 2004-10-06 | AR55: Green | AS55: 1 | AT55: 105054 | AV55: 2004-10-20 | AW55: Blue Green | AX55: 2 | AY55: 8600 | BA55: 2004-10-06 | BB55: Gloden | BC55: 6 | BD55: 21886
B56: 2004-11-17 | C56: 1 | D56: 8.79 | F56: 2005-04-13 | G56: 1 | H56: 4.42 | J56: 2004-12-01 | K56: 1 | L56: 65.55 | N56: 2004-10-20 | O56: 1 | P56: 2.66 | R56: 2004-12-01 | S56: 1 | T56: 130 | V56: 2005-07-13 | W56: 1 | X56: 96 | Z56: 2006-04-19 | AA56: 1 | AB56: 36.07 | AD56: 2004-12-01 | AE56: 1 | AF56: 181 | AH56: 2004-12-01 | AI56: 1 | AJ56: 841.2 | AL56: 2004-10-06 | AM56: Diatom | AN56: 1 | AO56: 21886 | AQ56: 2004-10-06 | AR56: Green | AS56: 2 | AT56: 200 | AV56: 2004-10-20 | AW56: Blue Green | AX56: 8 | AY56: 50316 | BA56: 2004-10-06 | BB56: Gloden | BC56: 7 | BD56: 39396
B57: 2004-11-17 | C57: 1 | D57: 8.26 | F57: 2005-04-13 | G57: 1 | H57: 4.94 | J57: 2004-12-01 | K57: 1 | L57: 64.6 | N57: 2004-10-20 | O57: 1 | P57: 2.76 | R57: 2004-12-01 | S57: 1 | T57: 128 | V57: 2005-07-13 | W57: 1 | X57: 94 | Z57: 2006-04-19 | AA57: 1 | AB57: 33.67 | AD57: 2004-12-01 | AE57: 1 | AF57: 185 | AH57: 2004-12-01 | AI57: 1 | AJ57: 909.49 | AL57: 2004-10-06 | AM57: Diatom | AN57: 2 | AO57: 5500 | AQ57: 2004-10-06 | AR57: Green | AS57: 3 | AT57: 30642 | AV57: 2004-10-20 | AW57: Blue Green | AX57: 2 | AY57: 23300 | BA57: 2004-10-20 | BB57: Gloden | BC57: 2 | BD57: 1166696
B58: 2004-12-01 | C58: 1 | D58: 9.32 | F58: 2005-04-27 | G58: 1 | H58: 6.94 | J58: 2005-02-16 | K58: 1 | L58: 143.67 | N58: 2004-11-03 | O58: 1 | P58: 3.39 | R58: 2005-02-16 | S58: 1 | T58: 146 | V58: 2005-07-27 | W58: 1 | X58: 92 | Z58: 2006-05-03 | AA58: 1 | AB58: 36.07 | AD58: 2005-02-16 | AE58: 1 | AF58: 207 | AH58: 2005-02-16 | AI58: 1 | AJ58: 592.1 | AL58: 2004-10-06 | AM58: Diatom | AN58: 3 | AO58: 2500 | AQ58: 2004-10-06 | AR58: Green | AS58: 4 | AT58: 100 | AV58: 2004-10-20 | AW58: Blue Green | AX58: 1 | AY58: 3700 | BA58: 2004-10-20 | BB58: Gloden | BC58: 6 | BD58: 15724
B59: 2004-12-01 | C59: 1 | D59: 9.8 | F59: 2005-04-27 | G59: 1 | H59: 6.72 | J59: 2005-02-16 | K59: 1 | L59: 142.71 | N59: 2004-11-03 | O59: 1 | P59: 4.71 | R59: 2005-02-16 | S59: 1 | T59: 152 | V59: 2005-07-27 | W59: 1 | X59: 92 | Z59: 2006-05-03 | AA59: 1 | AB59: 36.07 | AD59: 2005-02-16 | AE59: 1 | AF59: 214 | AH59: 2005-02-16 | AI59: 1 | AJ59: 586.89 | AL59: 2004-10-06 | AM59: Diatom | AN59: 9 | AO59: 17510 | AQ59: 2004-10-06 | AR59: Green | AS59: 1 | AT59: 118186 | AV59: 2004-10-20 | AW59: Blue Green | AX59: 2 | AY59: 19300 | BA59: 2004-10-20 | BB59: Gloden | BC59: 7 | BD59: 15724
B60: 2004-12-01 | C60: 1 | D60: 11 | F60: 2005-04-27 | G60: 1 | H60: 6.44 | J60: 2005-02-16 | K60: 1 | L60: 142.32 | N60: 2004-11-03 | O60: 1 | P60: 3.5 | R60: 2005-02-16 | S60: 1 | T60: 146 | V60: 2005-07-27 | W60: 1 | X60: 92 | Z60: 2006-05-03 | AA60: 1 | AB60: 36.87 | AD60: 2005-02-16 | AE60: 1 | AF60: 211 | AH60: 2005-02-16 | AI60: 1 | AJ60: 587.7 | AL60: 2004-10-06 | AM60: Diatom | AN60: 1 | AO60: 4500 | AQ60: 2004-10-06 | AR60: Green | AS60: 2 | AT60: 300 | AV60: 2004-11-03 | AW60: Blue Green | AX60: 1 | AY60: 2000 | BA60: 2004-10-20 | BB60: Gloden | BC60: 1 | BD60: 100
B61: 2005-02-16 | C61: 1 | D61: 11.57 | F61: 2005-05-11 | G61: 1 | H61: 5.23 | J61: 2005-04-13 | K61: 1 | L61: 65.1 | N61: 2004-11-03 | O61: 1 | P61: 4.31 | R61: 2005-04-13 | S61: 1 | T61: 120 | V61: 2005-08-11 | W61: 1 | X61: 86 | Z61: 2006-05-16 | AA61: 1 | AB61: 33.67 | AD61: 2005-04-13 | AE61: 1 | AF61: 145 | AH61: 2005-04-13 | AI61: 1 | AJ61: 396.09 | AL61: 2004-10-06 | AM61: Diatom | AN61: 2 | AO61: 18200 | AQ61: 2004-10-06 | AR61: Green | AS61: 3 | AT61: 61282 | AV61: 2004-11-03 | AW61: Blue Green | AX61: 2 | AY61: 20800 | BA61: 2004-10-20 | BB61: Gloden | BC61: 2 | BD61: 801044
B62: 2005-02-16 | C62: 1 | D62: 11 | F62: 2005-05-11 | G62: 1 | H62: 4.89 | J62: 2005-04-13 | K62: 1 | L62: 62.99 | N62: 2004-11-03 | O62: 1 | P62: 3.28 | R62: 2005-04-13 | S62: 1 | T62: 122 | V62: 2005-08-11 | W62: 1 | X62: 86 | Z62: 2006-05-16 | AA62: 1 | AB62: 32.87 | AD62: 2005-04-13 | AE62: 1 | AF62: 136 | AH62: 2005-04-13 | AI62: 1 | AJ62: 565.15 | AL62: 2004-10-06 | AM62: Diatom | AN62: 9 | AO62: 8754 | AQ62: 2004-10-06 | AR62: Green | AS62: 4 | AT62: 200 | AV62: 2004-11-03 | AW62: Blue Green | AX62: 8 | AY62: 5600 | BA62: 2004-10-20 | BB62: Gloden | BC62: 6 | BD62: 8754
B63: 2005-02-16 | C63: 1 | D63: 10.26 | F63: 2005-05-11 | G63: 1 | H63: 5.09 | J63: 2005-04-13 | K63: 1 | L63: 65.46 | N63: 2004-11-03 | O63: 1 | P63: 4.12 | R63: 2005-04-13 | S63: 1 | T63: 120 | V63: 2005-08-11 | W63: 1 | X63: 88 | Z63: 2006-05-16 | AA63: 1 | AB63: 33.67 | AD63: 2005-04-13 | AE63: 1 | AF63: 142 | AH63: 2005-04-13 | AI63: 1 | AJ63: 586.72 | AL63: 2004-10-20 | AM63: Diatom | AN63: 1 | AO63: 69184 | AQ63: 2004-10-20 | AR63: Green | AS63: 1 | AT63: 37736 | AV63: 2004-11-03 | AW63: Blue Green | AX63: 2 | AY63: 20400 | BA63: 2004-10-20 | BB63: Gloden | BC63: 7 | BD63: 52528
B64: 2005-04-13 | C64: 1 | D64: 10.73 | F64: 2005-05-26 | G64: 1 | H64: 6.8 | J64: 2005-04-27 | K64: 1 | L64: 12.14 | N64: 2004-11-17 | O64: 1 | P64: 3.76 | R64: 2005-04-27 | S64: 1 | T64: 126 | V64: 2005-08-24 | W64: 1 | X64: 104 | Z64: 2006-06-01 | AA64: 1 | AB64: 31.26 | AD64: 2005-04-27 | AE64: 1 | AF64: 145 | AH64: 2005-04-27 | AI64: 1 | AJ64: 1047.4 | AL64: 2004-10-20 | AM64: Diatom | AN64: 2 | AO64: 12100 | AQ64: 2004-10-20 | AR64: Green | AS64: 2 | AT64: 200 | AV64: 2004-11-03 | AW64: Blue Green | AX64: 2 | AY64: 17200 | BA64: 2004-10-20 | BB64: Gloden | BC64: 2 | BD64: 462276
B65: 2005-04-13 | C65: 1 | D65: 9 | F65: 2005-05-26 | G65: 1 | H65: 7.57 | J65: 2005-04-27 | K65: 1 | L65: 12.21 | N65: 2004-11-17 | O65: 1 | P65: 4.45 | R65: 2005-04-27 | S65: 1 | T65: 126 | V65: 2005-08-24 | W65: 1 | X65: 102 | Z65: 2006-06-01 | AA65: 1 | AB65: 30.46 | AD65: 2005-04-27 | AE65: 1 | AF65: 158 | AH65: 2005-04-27 | AI65: 1 | AJ65: 769.61 | AL65: 2004-10-20 | AM65: Diatom | AN65: 6 | AO65: 6290 | AQ65: 2004-10-20 | AR65: Green | AS65: 3 | AT65: 15724 | AV65: 2004-11-17 | AW65: Blue Green | AX65: 1 | AY65: 1000 | BA65: 2004-10-20 | BB65: Gloden | BC65: 6 | BD65: 12578
B66: 2005-04-13 | C66: 1 | D66: 9.61 | F66: 2005-05-26 | G66: 1 | H66: 6.59 | J66: 2005-04-27 | K66: 1 | L66: 13.09 | N66: 2004-11-17 | O66: 1 | P66: 3.28 | R66: 2005-04-27 | S66: 1 | T66: 126 | V66: 2005-08-24 | W66: 1 | X66: 102 | Z66: 2006-06-01 | AA66: 1 | AB66: 30.46 | AD66: 2005-04-27 | AE66: 1 | AF66: 154 | AH66: 2005-04-27 | AI66: 1 | AJ66: 1046.85 | AL66: 2004-10-20 | AM66: Diatom | AN66: 9 | AO66: 18868 | AQ66: 2004-10-20 | AR66: Green | AS66: 4 | AT66: 300 | AV66: 2004-11-17 | AW66: Blue Green | AX66: 2 | AY66: 6400 | BA66: 2004-10-20 | BB66: Gloden | BC66: 7 | BD66: 31448
B67: 2005-04-27 | C67: 1 | D67: 17.22 | F67: 2005-06-08 | G67: 1 | H67: 7.18 | J67: 2005-05-11 | K67: 1 | L67: 4.9 | N67: 2004-11-17 | O67: 1 | P67: 4.5 | R67: 2005-05-11 | S67: 1 | T67: 122 | V67: 2005-09-07 | W67: 1 | X67: 92 | Z67: 2006-06-14 | AA67: 1 | AB67: 30.46 | AD67: 2005-05-11 | AE67: 1 | AF67: 177 | AH67: 2005-05-11 | AI67: 1 | AJ67: 1463.27 | AL67: 2004-10-20 | AM67: Diatom | AN67: 1 | AO67: 26264 | AQ67: 2004-10-20 | AR67: Green | AS67: 1 | AT67: 70036 | AV67: 2004-11-17 | AW67: Blue Green | AX67: 2 | AY67: 2000 | BA67: 2004-11-03 | BB67: Gloden | BC67: 2 | BD67: 811341
B68: 2005-04-27 | C68: 1 | D68: 19.02 | F68: 2005-06-08 | G68: 1 | H68: 6.9 | J68: 2005-05-11 | K68: 1 | L68: 5.3 | N68: 2004-11-17 | O68: 1 | P68: 3.79 | R68: 2005-05-11 | S68: 1 | T68: 124 | V68: 2005-09-07 | W68: 1 | X68: 92 | Z68: 2006-06-28 | AA68: 1 | AB68: 28.86 | AD68: 2005-05-11 | AE68: 1 | AF68: 176 | AH68: 2005-05-11 | AI68: 1 | AJ68: 1447.86 | AL68: 2004-10-20 | AM68: Diatom | AN68: 2 | AO68: 31400 | AQ68: 2004-10-20 | AR68: Green | AS68: 2 | AT68: 600 | AV68: 2004-11-17 | AW68: Blue Green | AX68: 1 | AY68: 100 | BA68: 2004-11-03 | BB68: Gloden | BC68: 6 | BD68: 15724
B69: 2005-04-27 | C69: 1 | D69: 16.65 | F69: 2005-06-08 | G69: 1 | H69: 6.36 | J69: 2005-05-11 | K69: 1 | L69: 6.06 | N69: 2004-11-17 | O69: 1 | P69: 3.85 | R69: 2005-05-11 | S69: 1 | T69: 126 | V69: 2005-09-07 | W69: 1 | X69: 92 | Z69: 2006-07-12 | AA69: 1 | AB69: 25.65 | AD69: 2005-05-11 | AE69: 1 | AF69: 166 | AH69: 2005-05-11 | AI69: 1 | AJ69: 382.19 | AL69: 2004-10-20 | AM69: Diatom | AN69: 9 | AO69: 17510 | AQ69: 2004-10-20 | AR69: Green | AS69: 3 | AT69: 48150 | AV69: 2004-11-17 | AW69: Blue Green | AX69: 2 | AY69: 3900 | BA69: 2004-11-03 | BB69: Gloden | BC69: 7 | BD69: 47171
B70: 2005-05-11 | C70: 1 | D70: 18.03 | F70: 2005-06-22 | G70: 1 | H70: 5.51 | J70: 2005-05-26 | K70: 1 | L70: 5.85 | N70: 2004-12-01 | O70: 1 | P70: 3.78 | R70: 2005-05-26 | S70: 1 | T70: 118 | V70: 2005-09-21 | W70: 1 | X70: 96 | Z70: 2006-07-27 | AA70: 1 | AB70: 25.65 | AD70: 2005-05-26 | AE70: 1 | AF70: 160 | AH70: 2005-05-26 | AI70: 1 | AJ70: 2572.64 | AL70: 2004-10-20 | AM70: Diatom | AN70: 1 | AO70: 5700 | AQ70: 2004-10-20 | AR70: Green | AS70: 1 | AT70: 53460 | AV70: 2004-12-01 | AW70: Blue Green | AX70: 2 | AY70: 5000 | BA70: 2004-11-03 | BB70: Gloden | BC70: 1 | BD70: 500
B71: 2005-05-11 | C71: 1 | D71: 17.73 | F71: 2005-06-22 | G71: 1 | H71: 6.1 | J71: 2005-05-26 | K71: 1 | L71: 5.6 | N71: 2004-12-01 | O71: 1 | P71: 5.93 | R71: 2005-05-26 | S71: 1 | T71: 120 | V71: 2005-09-21 | W71: 1 | X71: 100 | Z71: 2006-08-09 | AA71: 1 | AB71: 24.85 | AD71: 2005-05-26 | AE71: 1 | AF71: 180 | AH71: 2005-05-26 | AI71: 1 | AJ71: 2581.86 | AL71: 2004-10-20 | AM71: Diatom | AN71: 2 | AO71: 31900 | AQ71: 2004-10-20 | AR71: Green | AS71: 3 | AT71: 455986 | AV71: 2004-12-01 | AW71: Blue Green | AX71: 2 | AY71: 400 | BA71: 2004-11-03 | BB71: Gloden | BC71: 2 | BD71: 628947
B72: 2005-05-11 | C72: 1 | D72: 18.12 | F72: 2005-06-22 | G72: 1 | H72: 5.21 | J72: 2005-05-26 | K72: 1 | L72: 5.26 | N72: 2004-12-01 | O72: 1 | P72: 4.26 | R72: 2005-05-26 | S72: 1 | T72: 118 | V72: 2005-09-21 | W72: 1 | X72: 102 | Z72: 2006-08-23 | AA72: 1 | AB72: 24.85 | AD72: 2005-05-26 | AE72: 1 | AF72: 177 | AH72: 2005-05-26 | AI72: 1 | AJ72: 2568.65 | AL72: 2004-10-20 | AM72: Diatom | AN72: 3 | AO72: 700 | AQ72: 2004-10-20 | AR72: Green | AS72: 4 | AT72: 100 | AV72: 2004-12-01 | AW72: Blue Green | AX72: 2 | AY72: 1100 | BA72: 2004-11-03 | BB72: Gloden | BC72: 6 | BD72: 9434
B73: 2005-05-26 | C73: 1 | D73: 16.75 | F73: 2005-07-13 | G73: 1 | H73: 5.67 | J73: 2005-06-08 | K73: 1 | L73: 9.47 | N73: 2004-12-01 | O73: 1 | P73: 4.82 | R73: 2005-06-08 | S73: 1 | T73: 112 | V73: 2005-10-05 | W73: 1 | X73: 104 | Z73: 2006-09-06 | AA73: 1 | AB73: 22.44 | AD73: 2005-06-08 | AE73: 1 | AF73: 210 | AH73: 2005-06-08 | AI73: 1 | AJ73: 2065.15 | AL73: 2004-10-20 | AM73: Diatom | AN73: 9 | AO73: 12578 | AQ73: 2004-11-03 | AR73: Green | AS73: 1 | AT73: 182394 | AV73: 2005-02-16 | AW73: Blue Green | AX73: 2 | AY73: 40200 | BA73: 2004-11-03 | BB73: Gloden | BC73: 7 | BD73: 22013
B74: 2005-05-26 | C74: 1 | D74: 16.96 | F74: 2005-07-13 | G74: 1 | H74: 5.25 | J74: 2005-06-08 | K74: 1 | L74: 9.88 | N74: 2004-12-01 | O74: 1 | P74: 3.74 | R74: 2005-06-08 | S74: 1 | T74: 116 | V74: 2005-10-05 | W74: 1 | X74: 102 | Z74: 2006-09-20 | AA74: 1 | AB74: 24.85 | AD74: 2005-06-08 | AE74: 1 | AF74: 219 | AH74: 2005-06-08 | AI74: 1 | AJ74: 1846.31 | AL74: 2004-11-03 | AM74: Diatom | AN74: 1 | AO74: 72329 | AQ74: 2004-11-03 | AR74: Green | AS74: 2 | AT74: 200 | AV74: 2005-02-16 | AW74: Blue Green | AX74: 2 | AY74: 73510 | BA74: 2004-11-03 | BB74: Gloden | BC74: 2 | BD74: 678480
B75: 2005-05-26 | C75: 1 | D75: 16.84 | F75: 2005-07-13 | G75: 1 | H75: 5.83 | J75: 2005-06-08 | K75: 1 | L75: 9.88 | N75: 2004-12-01 | O75: 1 | P75: 4.66 | R75: 2005-06-08 | S75: 1 | T75: 126 | V75: 2005-10-05 | W75: 1 | X75: 104 | Z75: 2006-10-09 | AA75: 1 | AB75: 32.06 | AD75: 2005-06-08 | AE75: 1 | AF75: 198 | AH75: 2005-06-08 | AI75: 1 | AJ75: 2236.99 | AL75: 2004-11-03 | AM75: Diatom | AN75: 2 | AO75: 41300 | AQ75: 2004-11-03 | AR75: Green | AS75: 3 | AT75: 81763 | AV75: 2005-02-16 | AW75: Blue Green | AX75: 7 | AY75: 11500 | BA75: 2004-11-03 | BB75: Gloden | BC75: 7 | BD75: 4377
B76: 2005-06-08 | C76: 1 | D76: 23.66 | F76: 2005-07-27 | G76: 1 | H76: 5.4 | J76: 2005-06-22 | K76: 1 | L76: 6.99 | N76: 2005-02-16 | O76: 1 | P76: 5.18 | R76: 2005-06-22 | S76: 1 | T76: 102 | V76: 2005-11-02 | W76: 1 | X76: 130 | Z76: 2006-10-24 | AA76: 1 | AB76: 35.27 | AD76: 2005-06-22 | AE76: 1 | AF76: 188 | AH76: 2005-06-22 | AI76: 1 | AJ76: 603.86 | AL76: 2004-11-03 | AM76: Diatom | AN76: 1 | AO76: 59750 | AQ76: 2004-11-03 | AR76: Green | AS76: 1 | AT76: 169816 | AV76: 2005-02-16 | AW76: Blue Green | AX76: 8 | AY76: 87546 | BA76: 2004-11-17 | BB76: Gloden | BC76: 2 | BD76: 314473
B77: 2005-06-08 | C77: 1 | D77: 26.91 | F77: 2005-07-27 | G77: 1 | H77: 5.43 | J77: 2005-06-22 | K77: 1 | L77: 6.64 | N77: 2005-02-16 | O77: 1 | P77: 5.14 | R77: 2005-06-22 | S77: 1 | T77: 114 | V77: 2005-11-02 | W77: 1 | X77: 130 | Z77: 2006-11-08 | AA77: 1 | AB77: 35.27 | AD77: 2005-06-22 | AE77: 1 | AF77: 177 | AH77: 2005-06-22 | AI77: 1 | AJ77: 611.3 | AL77: 2004-11-03 | AM77: Diatom | AN77: 2 | AO77: 39600 | AQ77: 2004-11-03 | AR77: Green | AS77: 2 | AT77: 100 | AV77: 2005-02-16 | AW77: Blue Green | AX77: 2 | AY77: 13350 | BA77: 2004-11-17 | BB77: Gloden | BC77: 6 | BD77: 22013
B78: 2005-06-08 | C78: 1 | D78: 20.49 | F78: 2005-07-27 | G78: 1 | H78: 5.17 | J78: 2005-06-22 | K78: 1 | L78: 7.57 | N78: 2005-02-16 | O78: 1 | P78: 3.29 | R78: 2005-06-22 | S78: 1 | T78: 112 | V78: 2005-11-02 | W78: 1 | X78: 130 | Z78: 2006-11-27 | AA78: 1 | AB78: 36.87 | AD78: 2005-06-22 | AE78: 1 | AF78: 171 | AH78: 2005-06-22 | AI78: 1 | AJ78: 598.44 | AL78: 2004-11-03 | AM78: Diatom | AN78: 4 | AO78: 100 | AQ78: 2004-11-03 | AR78: Green | AS78: 3 | AT78: 84908 | AV78: 2005-02-16 | AW78: Blue Green | AX78: 8 | AY78: 284524 | BA78: 2004-11-17 | BB78: Gloden | BC78: 7 | BD78: 15724
B79: 2005-06-22 | C79: 1 | D79: 16.11 | F79: 2005-08-11 | G79: 1 | H79: 6.26 | J79: 2005-07-13 | K79: 1 | L79: 10.95 | N79: 2005-02-16 | O79: 1 | P79: 3.49 | R79: 2005-07-13 | S79: 1 | T79: 100 | V79: 2006-03-01 | W79: 1 | X79: 150 | Z79: 2007-01-05 | AA79: 1 | AB79: 38.48 | AD79: 2005-07-13 | AE79: 1 | AF79: 177 | AH79: 2005-07-13 | AI79: 1 | AJ79: 555.7 | AL79: 2004-11-03 | AM79: Diatom | AN79: 1 | AO79: 48150 | AQ79: 2004-11-03 | AR79: Green | AS79: 4 | AT79: 100 | AV79: 2005-02-16 | AW79: Blue Green | AX79: 10 | AY79: 87546 | BA79: 2004-11-17 | BB79: Gloden | BC79: 2 | BD79: 374223
B80: 2005-06-22 | C80: 1 | D80: 15.6 | F80: 2005-08-11 | G80: 1 | H80: 6.4 | J80: 2005-07-13 | K80: 1 | L80: 11.03 | N80: 2005-02-16 | O80: 1 | P80: 4.97 | R80: 2005-07-13 | S80: 1 | T80: 96 | V80: 2006-03-01 | W80: 1 | X80: 156 | Z80: 2007-03-29 | AA80: 1 | AB80: 36.07 | AD80: 2005-07-13 | AE80: 1 | AF80: 180 | AH80: 2005-07-13 | AI80: 1 | AJ80: 504.44 | AL80: 2004-11-03 | AM80: Diatom | AN80: 2 | AO80: 33600 | AQ80: 2004-11-03 | AR80: Green | AS80: 1 | AT80: 144451 | AV80: 2005-04-13 | AW80: Blue Green | AX80: 2 | AY80: 54600 | BA80: 2004-11-17 | BB80: Gloden | BC80: 6 | BD80: 15724
B81: 2005-06-22 | C81: 1 | D81: 16.34 | F81: 2005-08-11 | G81: 1 | H81: 5.98 | J81: 2005-07-13 | K81: 1 | L81: 10.18 | N81: 2005-02-16 | O81: 1 | P81: 5.82 | R81: 2005-07-13 | S81: 1 | T81: 96 | V81: 2006-03-01 | W81: 1 | X81: 154 | Z81: 2007-04-17 | AA81: 1 | AB81: 35.27 | AD81: 2005-07-13 | AE81: 1 | AF81: 184 | AH81: 2005-07-13 | AI81: 1 | AJ81: 439.14 | AL81: 2004-11-17 | AM81: Diatom | AN81: 1 | AO81: 53460 | AQ81: 2004-11-03 | AR81: Green | AS81: 2 | AT81: 300 | AV81: 2005-04-13 | AW81: Blue Green | AX81: 2 | AY81: 22040 | BA81: 2004-11-17 | BB81: Gloden | BC81: 7 | BD81: 34592
B82: 2005-07-13 | C82: 1 | D82: 13.92 | F82: 2005-08-24 | G82: 1 | H82: 4.96 | J82: 2005-07-27 | K82: 1 | L82: 8.58 | N82: 2005-04-13 | O82: 1 | P82: 1.47 | R82: 2005-07-27 | S82: 1 | T82: 92 | Z82: 2007-05-02 | AA82: 1 | AB82: 29.66 | AD82: 2005-07-27 | AE82: 1 | AF82: 159 | AH82: 2005-07-27 | AI82: 1 | AJ82: 511.61 | AL82: 2004-11-17 | AM82: Diatom | AN82: 2 | AO82: 40200 | AQ82: 2004-11-03 | AR82: Green | AS82: 3 | AT82: 56905 | AV82: 2005-04-13 | AW82: Blue Green | AX82: 8 | AY82: 62895 | BA82: 2004-11-17 | BB82: Gloden | BC82: 2 | BD82: 317618
B83: 2005-07-13 | C83: 1 | D83: 12.81 | F83: 2005-08-24 | G83: 1 | H83: 5.66 | J83: 2005-07-27 | K83: 1 | L83: 8.77 | N83: 2005-04-13 | O83: 1 | P83: 1.07 | R83: 2005-07-27 | S83: 1 | T83: 94 | Z83: 2007-05-16 | AA83: 1 | AB83: 38.48 | AD83: 2005-07-27 | AE83: 1 | AF83: 153 | AH83: 2005-07-27 | AI83: 1 | AJ83: 562.34 | AL83: 2004-11-17 | AM83: Diatom | AN83: 6 | AO83: 3145 | AQ83: 2004-11-17 | AR83: Green | AS83: 1 | AT83: 267302 | AV83: 2005-04-13 | AW83: Blue Green | AX83: 10 | AY83: 6000 | BA83: 2004-11-17 | BB83: Gloden | BC83: 6 | BD83: 9434
B84: 2005-07-13 | C84: 1 | D84: 12.51 | F84: 2005-08-24 | G84: 1 | H84: 4.49 | J84: 2005-07-27 | K84: 1 | L84: 9.11 | N84: 2005-04-13 | O84: 1 | P84: 1.22 | R84: 2005-07-27 | S84: 1 | T84: 94 | Z84: 2007-06-01 | AA84: 1 | AB84: 35.27 | AD84: 2005-07-27 | AE84: 1 | AF84: 143 | AH84: 2005-07-27 | AI84: 1 | AJ84: 495.07 | AL84: 2004-11-17 | AM84: Diatom | AN84: 9 | AO84: 6289 | AQ84: 2004-11-17 | AR84: Green | AS84: 2 | AT84: 100 | AV84: 2005-04-13 | AW84: Blue Green | AX84: 1 | AY84: 7000 | BA84: 2004-11-17 | BB84: Gloden | BC84: 7 | BD84: 40882
B85: 2005-07-27 | C85: 1 | D85: 14.87 | F85: 2005-09-07 | G85: 1 | H85: 13.91 | J85: 2005-08-11 | K85: 1 | L85: 10.31 | N85: 2005-04-13 | O85: 1 | P85: 2.53 | R85: 2005-08-11 | S85: 1 | T85: 100 | Z85: 2007-06-13 | AA85: 1 | AB85: 32.46 | AD85: 2005-08-11 | AE85: 1 | AF85: 148 | AH85: 2005-08-11 | AI85: 1 | AJ85: 14026.35 | AL85: 2004-11-17 | AM85: Diatom | AN85: 1 | AO85: 81763 | AQ85: 2004-11-17 | AR85: Green | AS85: 3 | AT85: 81763 | AV85: 2005-04-13 | AW85: Blue Green | AX85: 2 | AY85: 1903200 | BA85: 2004-12-01 | BB85: Gloden | BC85: 1 | BD85: 500
B86: 2005-07-27 | C86: 1 | D86: 14.48 | F86: 2005-09-07 | G86: 1 | H86: 12.26 | J86: 2005-08-11 | K86: 1 | L86: 8.63 | N86: 2005-04-13 | O86: 1 | P86: 1.22 | R86: 2005-08-11 | S86: 1 | T86: 94 | Z86: 2007-06-27 | AA86: 1 | AB86: 29.66 | AD86: 2005-08-11 | AE86: 1 | AF86: 156 | AH86: 2005-08-11 | AI86: 1 | AJ86: 15215.37 | AL86: 2004-11-17 | AM86: Diatom | AN86: 2 | AO86: 19800 | AQ86: 2004-11-17 | AR86: Green | AS86: 1 | AT86: 210697 | AV86: 2005-04-13 | AW86: Blue Green | AX86: 8 | AY86: 131319 | BA86: 2004-12-01 | BB86: Gloden | BC86: 2 | BD86: 188223
B87: 2005-07-27 | C87: 1 | D87: 15.37 | F87: 2005-09-07 | G87: 1 | H87: 11.38 | J87: 2005-08-11 | K87: 1 | L87: 10.65 | N87: 2005-04-13 | O87: 1 | P87: 1.34 | R87: 2005-08-11 | S87: 1 | T87: 88 | Z87: 2007-07-11 | AA87: 1 | AB87: 29.66 | AD87: 2005-08-11 | AE87: 1 | AF87: 142 | AH87: 2005-08-11 | AI87: 1 | AJ87: 14157.98 | AL87: 2004-11-17 | AM87: Diatom | AN87: 3 | AO87: 4000 | AQ87: 2004-11-17 | AR87: Green | AS87: 3 | AT87: 91197 | AV87: 2005-04-27 | AW87: Blue Green | AX87: 1 | AY87: 1000 | BA87: 2004-12-01 | BB87: Gloden | BC87: 6 | BD87: 4377
B88: 2005-08-11 | C88: 1 | D88: 16.72 | F88: 2005-09-21 | G88: 1 | H88: 11.25 | J88: 2005-08-24 | K88: 1 | L88: 7.78 | N88: 2005-04-27 | O88: 1 | P88: 1.7 | R88: 2005-08-24 | S88: 1 | T88: 104 | Z88: 2007-07-25 | AA88: 1 | AB88: 28.86 | AD88: 2005-08-24 | AE88: 1 | AF88: 63 | AH88: 2005-08-24 | AI88: 1 | AJ88: 13960.6 | AL88: 2004-11-17 | AM88: Diatom | AN88: 6 | AO88: 6289 | AQ88: 2004-11-17 | AR88: Green | AS88: 4 | AT88: 200 | AV88: 2005-04-27 | AW88: Blue Green | AX88: 2 | AY88: 12000 | BA88: 2004-12-01 | BB88: Gloden | BC88: 7 | BD88: 13132
B89: 2005-08-11 | C89: 1 | D89: 15.21 | F89: 2005-09-21 | G89: 1 | H89: 11.4 | J89: 2005-08-24 | K89: 1 | L89: 7.11 | N89: 2005-04-27 | O89: 1 | P89: 2.13 | R89: 2005-08-24 | S89: 1 | T89: 104 | Z89: 2007-08-08 | AA89: 1 | AB89: 23.25 | AD89: 2005-08-24 | AE89: 1 | AF89: 66 | AH89: 2005-08-24 | AI89: 1 | AJ89: 13857.08 | AL89: 2004-11-17 | AM89: Diatom | AN89: 9 | AO89: 3145 | AQ89: 2004-11-17 | AR89: Green | AS89: 1 | AT89: 345921 | AV89: 2005-04-27 | AW89: Blue Green | AX89: 7 | AY89: 800 | BA89: 2004-12-01 | BB89: Gloden | BC89: 2 | BD89: 166671
B90: 2005-08-11 | C90: 1 | D90: 15.24 | F90: 2005-09-21 | G90: 1 | H90: 12.19 | J90: 2005-08-24 | K90: 1 | L90: 7.64 | N90: 2005-04-27 | O90: 1 | P90: 1.38 | R90: 2005-08-24 | S90: 1 | T90: 104 | Z90: 2007-08-22 | AA90: 1 | AB90: 25.65 | AD90: 2005-08-24 | AE90: 1 | AF90: 79 | AH90: 2005-08-24 | AI90: 1 | AJ90: 14259.05 | AL90: 2004-11-17 | AM90: Diatom | AN90: 1 | AO90: 94342 | AQ90: 2004-11-17 | AR90: Green | AS90: 3 | AT90: 97487 | AV90: 2005-04-27 | AW90: Blue Green | AX90: 10 | AY90: 1600 | BA90: 2004-12-01 | BB90: Gloden | BC90: 6 | BD90: 3145
B91: 2005-08-24 | C91: 1 | D91: 12.73 | F91: 2005-10-05 | G91: 1 | H91: 9.95 | J91: 2005-09-07 | K91: 1 | L91: 6.88 | N91: 2005-04-27 | O91: 1 | P91: 1.16 | R91: 2005-09-07 | S91: 1 | T91: 92 | Z91: 2007-09-05 | AA91: 1 | AB91: 33.67 | AD91: 2005-09-07 | AE91: 1 | AF91: 213 | AH91: 2005-09-07 | AI91: 1 | AJ91: 14106.36 | AL91: 2004-11-17 | AM91: Diatom | AN91: 2 | AO91: 35200 | AQ91: 2004-11-17 | AR91: Green | AS91: 4 | AT91: 100 | AV91: 2005-04-27 | AW91: Blue Green | AX91: 2 | AY91: 147100 | BA91: 2004-12-01 | BB91: Gloden | BC91: 7 | BD91: 28303
B92: 2005-08-24 | C92: 1 | D92: 12.33 | F92: 2005-10-05 | G92: 1 | H92: 8.56 | J92: 2005-09-07 | K92: 1 | L92: 7.28 | N92: 2005-04-27 | O92: 1 | P92: 1.76 | R92: 2005-09-07 | S92: 1 | T92: 90 | Z92: 2007-09-26 | AA92: 1 | AB92: 34.47 | AD92: 2005-09-07 | AE92: 1 | AF92: 233 | AH92: 2005-09-07 | AI92: 1 | AJ92: 14442.03 | AL92: 2004-11-17 | AM92: Diatom | AN92: 3 | AO92: 3500 | AQ92: 2004-12-01 | AR92: Green | AS92: 1 | AT92: 87546 | AV92: 2005-04-27 | AW92: Blue Green | AX92: 8 | AY92: 21886 | BA92: 2004-12-01 | BB92: Gloden | BC92: 2 | BD92: 78791
B93: 2005-08-24 | C93: 1 | D93: 12.5 | F93: 2005-10-05 | G93: 1 | H93: 10.06 | J93: 2005-09-07 | K93: 1 | L93: 5.26 | N93: 2005-04-27 | O93: 1 | P93: 1.88 | R93: 2005-09-07 | S93: 1 | T93: 92 | Z93: 2007-10-10 | AA93: 1 | AB93: 27.25 | AD93: 2005-09-07 | AE93: 1 | AF93: 203 | AH93: 2005-09-07 | AI93: 1 | AJ93: 14018.42 | AL93: 2004-11-17 | AM93: Diatom | AN93: 8 | AO93: 500 | AQ93: 2004-12-01 | AR93: Green | AS93: 2 | AT93: 100 | AV93: 2005-04-27 | AW93: Blue Green | AX93: 10 | AY93: 175092 | BA93: 2004-12-01 | BB93: Gloden | BC93: 6 | BD93: 4377
B94: 2005-09-07 | C94: 1 | D94: 14.55 | F94: 2005-11-02 | G94: 1 | H94: 9.75 | J94: 2005-09-21 | K94: 1 | L94: 7.7 | N94: 2005-05-11 | O94: 1 | P94: 2.77 | R94: 2005-09-21 | S94: 1 | T94: 114 | Z94: 2007-10-24 | AA94: 1 | AB94: 39.28 | AD94: 2005-09-21 | AE94: 1 | AF94: 212 | AH94: 2005-09-21 | AI94: 1 | AJ94: 13248.05 | AL94: 2004-12-01 | AM94: Diatom | AN94: 1 | AO94: 144451 | AQ94: 2004-12-01 | AR94: Green | AS94: 3 | AT94: 420220 | AV94: 2005-04-27 | AW94: Blue Green | AX94: 2 | AY94: 397770 | BA94: 2004-12-01 | BB94: Gloden | BC94: 7 | BD94: 17509
B95: 2005-09-07 | C95: 1 | D95: 13.93 | F95: 2005-11-02 | G95: 1 | H95: 9.58 | J95: 2005-09-21 | K95: 1 | L95: 7.23 | N95: 2005-05-11 | O95: 1 | P95: 3.38 | R95: 2005-09-21 | S95: 1 | T95: 114 | Z95: 2007-11-07 | AA95: 1 | AB95: 42.48 | AD95: 2005-09-21 | AE95: 1 | AF95: 220 | AH95: 2005-09-21 | AI95: 1 | AJ95: 13999.95 | AL95: 2004-12-01 | AM95: Diatom | AN95: 2 | AO95: 7700 | AQ95: 2004-12-01 | AR95: Green | AS95: 1 | AT95: 279881 | AV95: 2005-04-27 | AW95: Blue Green | AX95: 7 | AY95: 5000 | BA95: 2005-02-16 | BB95: Gloden | BC95: 1 | BD95: 100
B96: 2005-09-07 | C96: 1 | D96: 13.53 | F96: 2005-11-02 | G96: 1 | H96: 10.66 | J96: 2005-09-21 | K96: 1 | L96: 6.92 | N96: 2005-05-11 | O96: 1 | P96: 3.7 | R96: 2005-09-21 | S96: 1 | T96: 100 | Z96: 2007-11-19 | AA96: 1 | AB96: 48.9 | AD96: 2005-09-21 | AE96: 1 | AF96: 223 | AH96: 2005-09-21 | AI96: 1 | AJ96: 13314.64 | AL96: 2004-12-01 | AM96: Diatom | AN96: 9 | AO96: 39396 | AQ96: 2004-12-01 | AR96: Green | AS96: 3 | AT96: 106921 | AV96: 2005-04-27 | AW96: Blue Green | AX96: 8 | AY96: 78618 | BA96: 2005-02-16 | BB96: Gloden | BC96: 2 | BD96: 1730491
B97: 2005-09-21 | C97: 1 | D97: 13.69 | F97: 2006-03-01 | G97: 1 | H97: 3.43 | J97: 2005-10-05 | K97: 1 | L97: 3.04 | N97: 2005-05-11 | O97: 1 | P97: 4.88 | R97: 2005-10-05 | S97: 1 | T97: 104 | Z97: 2008-02-01 | AA97: 1 | AB97: 44.89 | AD97: 2005-10-05 | AE97: 1 | AF97: 96 | AH97: 2005-10-05 | AI97: 1 | AJ97: 12076.93 | AL97: 2004-12-01 | AM97: Diatom | AN97: 1 | AO97: 81763 | AQ97: 2004-12-01 | AR97: Green | AS97: 4 | AT97: 200 | AV97: 2005-04-27 | AW97: Blue Green | AX97: 10 | AY97: 2000 | BA97: 2005-02-16 | BB97: Gloden | BC97: 6 | BD97: 23567
B98: 2005-09-21 | C98: 1 | D98: 13.43 | F98: 2006-03-01 | G98: 1 | H98: 4.01 | J98: 2005-10-05 | K98: 1 | L98: 2.9 | N98: 2005-05-11 | O98: 1 | P98: 2.79 | R98: 2005-10-05 | S98: 1 | T98: 104 | Z98: 2008-02-14 | AA98: 1 | AB98: 47.29 | AD98: 2005-10-05 | AE98: 1 | AF98: 97 | AH98: 2005-10-05 | AI98: 1 | AJ98: 12196.95 | AL98: 2004-12-01 | AM98: Diatom | AN98: 2 | AO98: 17100 | AQ98: 2004-12-01 | AR98: Green | AS98: 1 | AT98: 258260 | AV98: 2005-05-11 | AW98: Blue Green | AX98: 1 | AY98: 77000 | BA98: 2005-02-16 | BB98: Gloden | BC98: 7 | BD98: 300
B99: 2005-09-21 | C99: 1 | D99: 13.09 | F99: 2006-03-01 | G99: 1 | H99: 3.98 | J99: 2005-10-05 | K99: 1 | L99: 3.2 | N99: 2005-05-11 | O99: 1 | P99: 6.65 | R99: 2005-10-05 | S99: 1 | T99: 104 | Z99: 2008-03-20 | AA99: 1 | AB99: 36.87 | AD99: 2005-10-05 | AE99: 1 | AF99: 93 | AH99: 2005-10-05 | AI99: 1 | AJ99: 11972.1 | AL99: 2004-12-01 | AM99: Diatom | AN99: 3 | AO99: 500 | AQ99: 2004-12-01 | AR99: Green | AS99: 2 | AT99: 200 | AV99: 2005-05-11 | AW99: Blue Green | AX99: 2 | AY99: 33000 | BA99: 2005-02-16 | BB99: Gloden | BC99: 10 | BD99: 50501
B100: 2005-10-05 | C100: 1 | D100: 13.86 | F100: 2006-04-05 | G100: 1 | H100: 8.43 | J100: 2005-11-02 | K100: 1 | L100: 10.29 | N100: 2005-05-26 | O100: 1 | P100: 3.57 | R100: 2005-11-02 | S100: 1 | T100: 108 | Z100: 2008-04-16 | AA100: 1 | AB100: 34.47 | AD100: 2005-11-02 | AE100: 1 | AF100: 103 | AL100: 2004-12-01 | AM100: Diatom | AN100: 9 | AO100: 18868 | AQ100: 2004-12-01 | AR100: Green | AS100: 3 | AT100: 100678 | AV100: 2005-05-11 | AW100: Blue Green | AX100: 1 | AY100: 46000 | BA100: 2005-02-16 | BB100: Gloden | BC100: 1 | BD100: 1000
B101: 2005-10-05 | C101: 1 | D101: 12.69 | F101: 2006-04-05 | G101: 1 | H101: 8.9 | J101: 2005-11-02 | K101: 1 | L101: 8.48 | N101: 2005-05-26 | O101: 1 | P101: 4.13 | R101: 2005-11-02 | S101: 1 | T101: 104 | Z101: 2008-04-30 | AA101: 1 | AB101: 33.67 | AD101: 2005-11-02 | AE101: 1 | AF101: 101 | AL101: 2004-12-01 | AM101: Diatom | AN101: 12 | AO101: 6289 | AQ101: 2005-02-16 | AR101: Green | AS101: 1 | AT101: 1100 | AV101: 2005-05-11 | AW101: Blue Green | AX101: 2 | AY101: 23250 | BA101: 2005-02-16 | BB101: Gloden | BC101: 2 | BD101: 2013553
B102: 2005-10-05 | C102: 1 | D102: 13.63 | F102: 2006-04-05 | G102: 1 | H102: 9.32 | J102: 2005-11-02 | K102: 1 | L102: 9.96 | N102: 2005-05-26 | O102: 1 | P102: 3.61 | R102: 2005-11-02 | S102: 1 | T102: 110 | Z102: 2008-05-15 | AA102: 1 | AB102: 36.07 | AD102: 2005-11-02 | AE102: 1 | AF102: 104 | AL102: 2004-12-01 | AM102: Diatom | AN102: 1 | AO102: 113810 | AQ102: 2005-02-16 | AR102: Green | AS102: 8 | AT102: 9900 | AV102: 2005-05-11 | AW102: Blue Green | AX102: 7 | AY102: 9500 | BA102: 2005-02-16 | BB102: Gloden | BC102: 7 | BD102: 2000
B103: 2005-11-02 | C103: 1 | D103: 11.64 | F103: 2006-04-19 | G103: 1 | H103: 6.87 | J103: 2006-03-01 | K103: 1 | L103: 91.12 | N103: 2005-05-26 | O103: 1 | P103: 5.05 | R103: 2006-03-01 | S103: 1 | T103: 144 | Z103: 2008-05-23 | AA103: 1 | AB103: 34.47 | AD103: 2006-04-19 | AE103: 1 | AF103: 136 | AL103: 2004-12-01 | AM103: Diatom | AN103: 9 | AO103: 8755 | AQ103: 2005-02-16 | AR103: Green | AS103: 11 | AT103: 200 | AV103: 2005-05-11 | AW103: Blue Green | AX103: 8 | AY103: 91394 | BA103: 2005-02-16 | BB103: Gloden | BC103: 9 | BD103: 590934
B104: 2005-11-02 | C104: 1 | D104: 11.23 | F104: 2006-04-19 | G104: 1 | H104: 7.68 | J104: 2006-03-01 | K104: 1 | L104: 91.12 | N104: 2005-05-26 | O104: 1 | P104: 3.64 | R104: 2006-03-01 | S104: 1 | T104: 144 | Z104: 2008-06-04 | AA104: 1 | AB104: 35.27 | AD104: 2006-04-19 | AE104: 1 | AF104: 147 | AL104: 2005-02-16 | AM104: Diatom | AN104: 1 | AO104: 1500 | AQ104: 2005-02-16 | AR104: Green | AS104: 1 | AT104: 4000 | AV104: 2005-05-11 | AW104: Blue Green | AX104: 10 | AY104: 377368 | BA104: 2005-02-16 | BB104: Gloden | BC104: 10 | BD104: 21886
B105: 2005-11-02 | C105: 1 | D105: 11.13 | F105: 2006-04-19 | G105: 1 | H105: 6.89 | J105: 2006-03-01 | K105: 1 | L105: 91.33 | N105: 2005-05-26 | O105: 1 | P105: 4.64 | R105: 2006-03-01 | S105: 1 | T105: 144 | Z105: 2008-06-20 | AA105: 1 | AB105: 36.87 | AD105: 2006-04-19 | AE105: 1 | AF105: 131 | AL105: 2005-02-16 | AM105: Diatom | AN105: 2 | AO105: 14500 | AQ105: 2005-02-16 | AR105: Green | AS105: 3 | AT105: 284524 | AV105: 2005-05-11 | AW105: Blue Green | AX105: 1 | AY105: 75500 | BA105: 2005-02-16 | BB105: Gloden | BC105: 2 | BD105: 1904121
B106: 2006-03-01 | C106: 1 | D106: 11.97 | F106: 2006-05-03 | G106: 1 | H106: 9.29 | J106: 2006-04-05 | K106: 1 | L106: 73.61 | N106: 2005-06-08 | O106: 1 | P106: 4.54 | R106: 2006-04-05 | S106: 1 | T106: 122 | Z106: 2008-07-01 | AA106: 1 | AB106: 40.08 | AL106: 2005-02-16 | AM106: Diatom | AN106: 20 | AO106: 63968 | AQ106: 2005-02-16 | AR106: Green | AS106: 8 | AT106: 24000 | AV106: 2005-05-11 | AW106: Blue Green | AX106: 2 | AY106: 100920 | BA106: 2005-02-16 | BB106: Gloden | BC106: 7 | BD106: 25000
